{"text_format":"1","workbook":"xlsx","n_sheets":12,"sheets":["Landing_Gear","IV_Min_Max","NPIAS Arpts","Inflation","Geographic_Adj","ReportTemplate","ACCE ProjectList","CER_Summary","CER_Summary_low","CER_Summary_high","results_summary","ACCE"],"not_rendered":{"charts":0,"images":5,"macros":1,"external_links":3,"defined_names":28,"comments":5,"pivot_tables":0},"unopened":[],"bounds":{"document_bytes":16777216,"sheet_cells":100000,"rows_first":2000,"rows_last":500,"rows_between":2000,"halvings":0,"cell_chars":16384,"cell_head_chars":4096},"cells_cut":0,"cells_raw":0,"read":"whole","date_system":"1900"}

{"sheet":"Landing_Gear","index":0,"n_rows":6,"n_cols":4,"rows_kept":6,"cut":false,"hidden":true,"merged":[]}
[null,"Landing Gear","FAA","Empirical"]
["Code","Configuration","SW Equiv.","SW Equiv."]
["SW","Single wheel (SW)",1,1]
["DW","Dual wheel (DW)",1.3,1.6429]
["DTW","Dual tandem (DTW)",2,3.0267146700000001]
["DDTW","Double dual tandem (DDTW)",2.21,5.7658914463500004]

{"sheet":"IV_Min_Max","index":1,"n_rows":16,"n_cols":14,"rows_kept":16,"cut":false,"hidden":true,"merged":[]}
[]
[]
[]
[]
[]
[null,null,null,null,5,6,null,8,9]
["Project","Variable 1","Min","Max","Min_adj","Max_adj","Variable 2","Min_adj","Max_adj","Min","Max","Variable 3","Min","Max"]
["Construct or Rehabilitate Taxiway","Pavement Area (SF)",30000,648000,{"$f":"C8/1000","v":30},{"$f":"D8/1000","v":648},"Design Aircraft MTOW (lbs)",{"$f":"J8/1000","v":8},875,8000,875000,"Landing Gear Configuration",{"$f":"NA()","v":{"$error":"#N/A"}},{"$f":"NA()","v":{"$error":"#N/A"}}]
["Construct, Expand, or Rehabilitate Apron","Pavement Area (SF)",21250,1158300,{"$f":"C9/1000","v":21.25},{"$f":"D9/1000","v":1158.3},"Design Aircraft MTOW (lbs)",12.5,620,12500,620000,"Landing Gear Configuration",{"$f":"NA()","v":{"$error":"#N/A"}},{"$f":"NA()","v":{"$error":"#N/A"}}]
["Construct, Extend, or Rehabilitate Runway","Pavement Area (SF)",132120,1200300,132.12,{"$f":"D10/1000","v":1200.3},"Design Aircraft MTOW (lbs)",12,130,12000,130000,"Landing Gear Configuration",{"$f":"NA()","v":{"$error":"#N/A"}},{"$f":"NA()","v":{"$error":"#N/A"}}]
["Install Perimeter Fencing","Length (LF)",125,10330,{"$f":"C11/1000","v":0.125},{"$f":"D11/1000","v":10.33}]
["Install Airport Visual Aid (PAPI)","No. of Systems/Rwy Ends",1,2,{"$f":"C12","v":1},{"$f":"D12","v":2}]
["Install Weather Reporting Equipment",{"$f":"NA()","v":{"$error":"#N/A"}}]
["Construct Aircraft Rescue and Fire Fighting Facility","Combined Floor Area (SF)",2554,45000,{"$f":"C14/1000","v":2.5539999999999998},{"$f":"D14/1000","v":45},"No. of Stories",{"$f":"J14","v":1},{"$f":"K14","v":2},1,2]
["Construct Snow Removal Equipment Building","Combined Floor Area (SF)",1140,68000,{"$f":"C15/1000","v":1.1399999999999999},{"$f":"D15/1000","v":68}]
["Install Airport Visual Aid (Rotating Beacon)","No. of Systems/Rwy Ends",1,1,{"$f":"C16","v":1},{"$f":"D16","v":1}]

{"sheet":"NPIAS Arpts","index":2,"n_rows":3357,"n_cols":18,"rows_kept":3357,"cut":false,"hidden":true,"merged":[]}
["APPENDIX A -  ALL NPIAS Airports (2013-2017)"]
["RO","ADO","ST","City","Airport","Locid","ST","Airport","NPIAS Number","Ownership","Hub","Role","Service\nLevel","Year 5\nService\nLevel","Current\nEnplanements","Current\nBased\nAircraft","2013 - 2017\nDevelopment\nCost","Airport added by user"]
["AL","AAL","AK","Adak Island","Adak","ADK","AK","Adak","02-0001","PU",null,"Basic","GA","GA",2097,0,0]
["AL","AAL","AK","Akhiok","Akhiok","AKK","AK","Akhiok","02-0002","PU",null,"Basic","GA","GA",1209,0,9842105]
["AL","AAL","AK","Akiachak","Akiachak","Z13","AK","Akiachak","02-0345","NA",null,"Local","CS","GA",2981,0,0]
["AL","AAL","AK","Akiak","Akiak","AKI","AK","Akiak","02-0004","PU",null,"Basic","GA","GA",1960,1,0]
["AL","AAL","AK","Akutan","Akutan (Proposed GA)","01D","AK","Akutan (Proposed GA)","02-0005",null,null,null,null,"GA",0,0,18539474]
["AL","AAL","AK","Akutan","Akutan","KQA","AK","Akutan","02-0346","PU",null,"Basic","GA","GA",1246,0,0]
["AL","AAL","AK","Alakanuk","Alakanuk (Proposed CM)","01F","AK","Alakanuk (Proposed CM)","02-0440",null,null,null,null,"CS",0,0,0]
["AL","AAL","AK","Alakanuk","Alakanuk","AUK","AK","Alakanuk","02-0332","PU",null,"Local","CS","CS",3213,0,0]
["AL","AAL","AK","Aleknagik","Aleknagik /New","5A8","AK","Aleknagik /New","02-0359","PU",null,"Basic","GA","GA",5,1,4736842]
["AL","AAL","AK","Allakaket","Allakaket","6A8","AK","Allakaket","02-0009","PU",null,"Basic","GA","GA",2482,0,0]
["AL","AAL","AK","Ambler","Ambler","AFM","AK","Ambler","02-0354","PU",null,"Basic","GA","GA",2110,0,11842106]
["AL","AAL","AK","Anaktuvuk Pass","Anaktuvuk Pass","AKP","AK","Anaktuvuk Pass","02-0012","PU",null,"Local","CS","CS",4031,0,2123684]
["AL","AAL","AK","Anchorage","Ted Stevens Anchorage International","ANC","AK","Ted Stevens Anchorage International","02-0016","PU","M",null,"P","P",2342310,150,150269095]
["AL","AAL","AK","Anchorage",".","LHD","AK",".","02-0013","PU","N",null,"P","P",19789,781,5263158]
["AL","AAL","AK","Anchorage","Merrill Field","MRI","AK","Merrill Field","02-0015","PU","N",null,"P","P",14972,965,13041623]
["AL","AAL","AK","Angoon","Angoon (Proposed GA)","07E","AK","Angoon (Proposed GA)","02-0476",null,null,null,null,"GA",0,0,21402501]
["AL","AAL","AK","Angoon","Angoon","AGN","AK","Angoon","02-0018","PU",null,"Basic","GA","GA",1680,0,0]
["AL","AAL","AK","Aniak","Aniak","ANI","AK","Aniak","02-0019","PU","N",null,"P","P",16394,19,22262105]
["AL","AAL","AK","Anvik","Anvik","ANV","AK","Anvik","02-0021","PU",null,"Basic","GA","GA",814,0,0]
["AL","AAL","AK","Arctic Village","Arctic Village","ARC","AK","Arctic Village","02-0022","NA",null,"Basic","GA","GA",2047,0,0]
["AL","AAL","AK","Atka","Atka","AKA","AK","Atka","02-0394","PU",null,"Basic","GA","GA",322,0,0]
["AL","AAL","AK","Atmautluak","Atmautluak","4A2","AK","Atmautluak","02-0379","PU",null,"Basic","GA","GA",2115,0,842105]
["AL","AAL","AK","Atqasuk","Atqasuk Edward Burnell Sr Memorial","ATK","AK","Atqasuk Edward Burnell Sr Memorial","02-0023","PU",null,"Basic","GA","GA",2499,0,2105263]
["AL","AAL","AK","Baranof","Warm Spring Bay","BNF","AK","Warm Spring Bay","02-0451","PU",null,"Other","GA","GA",0,0,0]
["AL","AAL","AK","Barrow","Wiley Post-Will Rogers Memorial","BRW","AK","Wiley Post-Will Rogers Memorial","02-0026","PU","N",null,"P","P",40141,8,0]
["AL","AAL","AK","Barter Island Lrrs","Barter Island LRRS","BTI","AK","Barter Island LRRS","02-0027","MA",null,"Local","CS","CS",2828,0,0]
["AL","AAL","AK","Beaver","Beaver","WBQ","AK","Beaver","02-0028","PU",null,"Basic","GA","GA",1061,0,0]
["AL","AAL","AK","Bethel","Bethel","BET","AK","Bethel","02-0029","PU","N",null,"P","P",144353,230,14952632]
["AL","AAL","AK","Bettles","Bettles","BTT","AK","Bettles","02-0030","PU",null,"Basic","GA","GA",1403,9,11578948]
["AL","AAL","AK","Big Lake","Big Lake","BGQ","AK","Big Lake","02-0031","PU",null,"Basic","GA","GA",0,11,0]
["AL","AAL","AK","Birch Creek","Birch Creek","Z91","AK","Birch Creek","02-0033","PU",null,"Other","GA","GA",361,0,0]
["AL","AAL","AK","Birchwood","Birchwood","BCV","AK","Birchwood","02-0034","PU",null,"Basic","GA","GA",450,285,13913026]
["AL","AAL","AK","Boundary","Boundary","BYA","AK","Boundary","02-0036","PU",null,"Basic","GA","GA",0,0,0]
["AL","AAL","AK","Brevig Mission","Brevig Mission","KTS","AK","Brevig Mission","02-0294","PU",null,"Basic","GA","GA",2133,0,0]
["AL","AAL","AK","Buckland","Buckland","BVK","AK","Buckland","02-0399","PU",null,"Local","CS","CS",3580,1,0]
["AL","AAL","AK","Central","Central","CEM","AK","Central","02-0045","PU",null,"Basic","GA","GA",20,3,0]
["AL","AAL","AK","Chalkyitsik","Chalkyitsik","CIK","AK","Chalkyitsik","02-0046","PU",null,"Basic","GA","GA",777,0,11000000]
["AL","AAL","AK","Chandalar Camp","Chandalar Shelf","5CD","AK","Chandalar Shelf","02-0431","PU",null,"Other","GA","GA",0,0,0]
["AL","AAL","AK","Chandalar Lake","Chandalar Lake","WCR","AK","Chandalar Lake","02-0047","PU",null,"Basic","GA","GA",42,0,0]
["AL","AAL","AK","Chefornak","Chefornak (Proposed CM)","01G","AK","Chefornak (Proposed CM)","02-0442",null,null,null,null,"CS",0,0,0]
["AL","AAL","AK","Chefornak","Chefornak","CFK","AK","Chefornak","02-0054","PU",null,"Local","CS","CS",3640,0,0]
["AL","AAL","AK","Chenega","Chenega Bay","C05","AK","Chenega Bay","02-0419","PU",null,"Basic","GA","GA",35,0,0]
["AL","AAL","AK","Chevak","Chevak","VAK","AK","Chevak","02-0052","PU",null,"Local","CS","CS",5588,1,16421053]
["AL","AAL","AK","Chicken","Chicken","CKX","AK","Chicken","02-0053","PU",null,"Basic","GA","GA",7,0,0]
["AL","AAL","AK","Chignik","Chignik","AJC","AK","Chignik","02-0330","PU",null,"Basic","GA","GA",854,0,0]
["AL","AAL","AK","Chignik Lagoon","Chignik Lagoon","KCL","AK","Chignik Lagoon","02-0056","PU",null,"Basic","GA","GA",648,0,0]
["AL","AAL","AK","Chignik Lake","Chignik Lake","A79","AK","Chignik Lake","02-0331","PU",null,"Basic","GA","GA",35,3,6100000]
["AL","AAL","AK","Chisana","Chisana","CZN","AK","Chisana","02-0057","PU",null,"Basic","GA","GA",44,0,0]
["AL","AAL","AK","Chitina","Chitina","CXC","AK","Chitina","02-0059","PU",null,"Basic","GA","GA",0,2,0]
["AL","AAL","AK","Chuathbaluk","Chuathbaluk","9A3","AK","Chuathbaluk","02-0460","PU",null,"Basic","GA","GA",530,0,0]
["AL","AAL","AK","Circle","Circle City /New/","CRC","AK","Circle City /New/","02-0407","PU",null,"Basic","GA","GA",355,1,0]
["AL","AAL","AK","Circle Hot Springs","Circle Hot Springs","CHP","AK","Circle Hot Springs","02-0061","PU",null,"Other","GA","GA",55,0,0]
["AL","AAL","AK","Clarks Point","Clarks Point","CLP","AK","Clarks Point","02-0438","PU",null,"Basic","GA","GA",454,1,0]
["AL","AAL","AK","Clear","Clear","Z84","AK","Clear","02-0420","PU",null,"Other","GA","GA",50,3,0]
["AL","AAL","AK","Coffman Cove","Coffman Cove","KCC","AK","Coffman Cove","02-0064","PU",null,"Basic","GA","GA",74,0,0]
["AL","AAL","AK","Cold Bay","Cold Bay","CDB","AK","Cold Bay","02-0065","PU",null,"Local","CS","CS",9261,0,18631580]
["AL","AAL","AK","Coldfoot","Coldfoot","CXF","AK","Coldfoot","02-0425","PU",null,"Other","GA","GA",212,3,14210526]
["AL","AAL","AK","Cordova","Merle K (Mudhole) Smith","CDV","AK","Merle K (Mudhole) Smith","02-0067","PU","N",null,"P","P",17856,30,30589473]
["AL","AAL","AK","Cordova","Cordova Municipal","CKU","AK","Cordova Municipal","02-0068","PU",null,"Other","GA","GA",0,3,0]
["AL","AAL","AK","Council","Council","K29","AK","Council","02-0413","PU",null,"Other","GA","GA",0,0,0]
["AL","AAL","AK","Craig","Craig","CGA","AK","Craig","02-0071","PU",null,"Local","CS","CS",4368,0,0]
["AL","AAL","AK","Crooked Creek","Crooked Creek","CJX","AK","Crooked Creek","02-0073","PU",null,"Basic","GA","GA",549,0,21052632]
["AL","AAL","AK","Dahl Creek","Dahl Creek","DCK","AK","Dahl Creek","02-0075","PU",null,"Other","GA","GA",51,0,0]
["AL","AAL","AK","Deadhorse","Deadhorse","SCC","AK","Deadhorse","02-0339","PU","N",null,"P","P",37319,7,19378948]
["AL","AAL","AK","Deering","Deering","DEE","AK","Deering","02-0400","PU",null,"Basic","GA","GA",1291,0,0]
["AL","AAL","AK","Dillingham","Dillingham","DLG","AK","Dillingham","02-0078","PU","N",null,"P","P",42927,52,0]
["AL","AAL","AK","Diomede","Diomede","DM2","AK","Diomede","02-0381","PU",null,"Basic","GA","GA",272,0,0]
["AL","AAL","AK","Eagle","Eagle","EAA","AK","Eagle","02-0083","PU",null,"Basic","GA","GA",734,1,0]
["AL","AAL","AK","Eek","Eek","EEK","AK","Eek","02-0085","PU",null,"Local","CS","CS",3340,0,0]
["AL","AAL","AK","Egegik","Egegik","EII","AK","Egegik","02-0422","PU",null,"Basic","GA","GA",1305,3,0]
["AL","AAL","AK","Ekwok","Ekwok","KEK","AK","Ekwok","02-0088","PU",null,"Basic","GA","GA",284,0,0]
["AL","AAL","AK","Elfin Cove","Elfin Cove","ELV","AK","Elfin Cove","02-0089","PU",null,"Basic","GA","GA",305,0,0]
["AL","AAL","AK","Elim","Elim","ELI","AK","Elim","02-0090","PU",null,"Basic","GA","GA",2376,0,0]
["AL","AAL","AK","Emmonak","Emmonak","ENM","AK","Emmonak","02-0397","PU","N",null,"P","P",10537,9,1157895]
["AL","AAL","AK","Excursion Inlet","Excursion Inlet","EXI","AK","Excursion Inlet","02-0095","PU",null,"Basic","GA","GA",30,0,0]
["AL","AAL","AK","Fairbanks","Fairbanks International","FAI","AK","Fairbanks International","02-0096","PU","S",null,"P","P",435392,382,44738094]
["AL","AAL","AK","False Pass","False Pass","KFP","AK","False Pass","02-0097","PU",null,"Basic","GA","GA",321,0,23157895]
["AL","AAL","AK","Flat","Flat","FLT","AK","Flat","02-0099","PU",null,"Basic","GA","GA",5,0,0]
["AL","AAL","AK","Fort Yukon","Fort Yukon","FYU","AK","Fort Yukon","02-0100","PU",null,"Local","CS","CS",7986,0,0]
["AL","AAL","AK","Funter Bay","Funter Bay","FNR","AK","Funter Bay","02-0101","PU",null,"Basic","GA","GA",11,0,0]
["AL","AAL","AK","Galbraith Lake","Galbraith Lake","GBH","AK","Galbraith Lake","02-0428","PU",null,"Other","GA","GA",878,0,0]
["AL","AAL","AK","Galena","Edward G. Pitka Sr","GAL","AK","Edward G. Pitka Sr","02-0102","PU","N",null,"P","P",12421,11,20736842]
["AL","AAL","AK","Gambell","Gambell","GAM","AK","Gambell","02-0103","PU",null,"Local","CS","CS",3851,0,10000000]
["AL","AAL","AK","Girdwood","Girdwood","AQY","AK","Girdwood","02-0104","PU",null,"Other","GA","GA",0,0,0]
["AL","AAL","AK","Golovin","Golovin","GLV","AK","Golovin","02-0106","PU",null,"Basic","GA","GA",1753,0,14947368]
["AL","AAL","AK","Goodnews","Goodnews","GNU","AK","Goodnews","02-0107","PU",null,"Basic","GA","GA",1649,0,0]
["AL","AAL","AK","Goose Bay","Goose Bay","Z40","AK","Goose Bay","02-0409","PU",null,"Other","GA","GA",0,0,0]
["AL","AAL","AK","Grayling","Grayling","KGX","AK","Grayling","02-0109","PU",null,"Basic","GA","GA",1005,0,0]
["AL","AAL","AK","Gulkana","Gulkana","GKN","AK","Gulkana","02-0110","PU",null,"Basic","GA","GA",141,13,3157895]
["AL","AAL","AK","Gustavus","Gustavus","GST","AK","Gustavus","02-0111","PU",null,"Local","CS","CS",9996,25,16315789]
["AL","AAL","AK","Haines","Haines","3Z9","AK","Haines","02-0457","PU",null,"Other","GA","GA",0,0,0]
["AL","AAL","AK","Haines","Haines","HNS","AK","Haines","02-0112","PU",null,"Local","CS","CS",9534,6,16105263]
["AL","AAL","AK","Healy","Healy River","HRR","AK","Healy River","02-0414","PU",null,"Basic","GA","GA",8,7,0]
["AL","AAL","AK","Hollis","Hollis Clark Bay","HYL","AK","Hollis Clark Bay","02-0452","PU",null,"Basic","GA","GA",1965,0,0]
["AL","AAL","AK","Holy Cross","Holy Cross","HCA","AK","Holy Cross","02-0120","PU",null,"Basic","GA","GA",1155,0,10526316]
["AL","AAL","AK","Homer","Homer","HOM","AK","Homer","02-0122","PU","N",null,"P","P",38407,91,32842106]
["AL","AAL","AK","Hoonah","Hoonah","HNH","AK","Hoonah","02-0125","PU","N",null,"P","P",10759,3,0]
["AL","AAL","AK","Hoonah","Hoonah","OOH","AK","Hoonah","02-0453","PU",null,"Other","GA","GA",0,0,0]
["AL","AAL","AK","Hooper Bay","Hooper Bay","HPB","AK","Hooper Bay","02-0126","PU",null,"Local","CS","CS",5949,0,42189474]
["AL","AAL","AK","Hope","Hope","5HO","AK","Hope","02-0449","PU",null,"Other","GA","GA",0,0,0]
["AL","AAL","AK","Hughes","Hughes","HUS","AK","Hughes","02-0127","PU",null,"Basic","GA","GA",1225,0,5815790]
["AL","AAL","AK","Huslia","Huslia","HLA","AK","Huslia","02-0128","PU",null,"Local","CS","CS",3400,1,1852343]
["AL","AAL","AK","Hydaburg","Hydaburg","HYG","AK","Hydaburg","02-0129","PU",null,"Basic","GA","GA",38,0,0]
["AL","AAL","AK","Hyder","Hyder","4Z7","AK","Hyder","02-0382","PU",null,"Basic","GA","GA",101,0,0]
["AL","AAL","AK","Igiugig","Igiugig","IGG","AK","Igiugig","02-0131","PU",null,"Basic","GA","GA",594,0,0]
["AL","AAL","AK","Iliamna","Iliamna","ILI","AK","Iliamna","02-0132","PU",null,"Local","CS","CS",6889,33,0]
["AL","AAL","AK","Ivanof Bay","Ivanof Bay","KIB","AK","Ivanof Bay","02-0378","PU",null,"Other","GA","GA",0,0,0]
["AL","AAL","AK","Juneau","Juneau Harbor","5Z1","AK","Juneau Harbor","02-0403","PU",null,"Basic","GA","GA",0,2,0]
["AL","AAL","AK","Juneau","Juneau International","JNU","AK","Juneau International","02-0133","PU","N",null,"P","P",344057,335,38743473]
["AL","AAL","AK","Kake","Kake","AFE","AK","Kake","02-0398","PU",null,"Basic","GA","GA",0,0,20842106]
["AL","AAL","AK","Kake","Kake","KAE","AK","Kake","02-0458","PU",null,"Basic","GA","GA",1440,0,0]
["AL","AAL","AK","Kaktovik","Kaktovik (Proposed CS)","08O","AK","Kaktovik (Proposed CS)","02-0482","PU",null,null,null,"CS",0,0,15096287]
["AL","AAL","AK","Kalskag","Kalskag","KLG","AK","Kalskag","02-0136","PU",null,"Local","CS","CS",3373,1,0]
["AL","AAL","AK","Kaltag","Kaltag","KAL","AK","Kaltag","02-0137","PU",null,"Basic","GA","GA",2325,0,0]
["AL","AAL","AK","Kantishna","Kantishna","5Z5","AK","Kantishna","02-0426","PU",null,"Basic","GA","GA",0,3,0]
["AL","AAL","AK","Karluk","Karluk","KYK","AK","Karluk","02-0138","PU",null,"Basic","GA","GA",397,0,0]
["AL","AAL","AK","Kasaan","Kasaan","KXA","AK","Kasaan","02-0139","PU",null,"Basic","GA","GA",125,0,0]
["AL","AAL","AK","Kasigluk","Kasigluk","Z09","AK","Kasigluk","02-0341","PU",null,"Local","CS","CS",4164,0,1522105]
["AL","AAL","AK","Kenai","Kenai Municipal","ENA","AK","Kenai Municipal","02-0142","PU","N",null,"P","P",86857,85,18532087]
["AL","AAL","AK","Ketchikan","Murphys Pullout","8K9","AK","Murphys Pullout","02-0408","PU",null,"Other","GA","GA",0,8,0]
["AL","AAL","AK","Ketchikan","Ketchikan International","KTN","AK","Ketchikan International","02-0144","PU","N",null,"P","P",100138,13,17507896]
["AL","AAL","AK","Kiana","Bob Baker Memorial","IAN","AK","Bob Baker Memorial","02-0146","PU",null,"Local","CS","CS",3320,4,16315789]
["AL","AAL","AK","King Cove","King Cove","KVC","AK","King Cove","02-0147","PU",null,"Local","CS","CS",2718,0,0]
["AL","AAL","AK","King Salmon","King Salmon","AKN","AK","King Salmon","02-0148","PU","N",null,"P","P",41514,42,33052632]
["AL","AAL","AK","Kipnuk","Kipnuk","IIK","AK","Kipnuk","02-0150","PU",null,"Local","CS","CS",5919,1,0]
["AL","AAL","AK","Kitoi Bay","Kitoi Bay","KKB","AK","Kitoi Bay","02-0151","PU",null,"Basic","GA","GA",28,0,0]
["AL","AAL","AK","Kivalina","Kivalina","KVL","AK","Kivalina","02-0152","PU",null,"Local","CS","CS",3481,0,0]
["AL","AAL","AK","Klawock","Klawock","AKW","AK","Klawock","02-0154","PU",null,"Basic","GA","GA",15,4,9684210]
["AL","AAL","AK","Klawock","Klawock","AQC","AK","Klawock","02-0153","PU",null,"Other","GA","GA",0,0,0]
["AL","AAL","AK","Kobuk","Kobuk","OBU","AK","Kobuk","02-0427","PU",null,"Basic","GA","GA",1255,0,0]
["AL","AAL","AK","Kodiak","Kodiak","ADQ","AK","Kodiak","02-0158","PU","N",null,"P","P",80303,41,81315054]
["AL","AAL","AK","Kodiak","Kodiak Municipal","KDK","AK","Kodiak Municipal","02-0465","PU",null,"Other","GA","GA",0,7,0]
["AL","AAL","AK","Kodiak","Trident Basin","T44","AK","Trident Basin","02-0450","PU",null,"Local","GA","GA",4330,11,26316]
["AL","AAL","AK","Kokhanok","Kokhanok","9K2","AK","Kokhanok","02-0406","PU",null,"Basic","GA","GA",887,0,463158]
["AL","AAL","AK","Koliganek","Koliganek","JZZ","AK","Koliganek","02-0424","PU",null,"Basic","GA","GA",572,1,10210527]
["AL","AAL","AK","Kongiganak","Kongiganak","DUY","AK","Kongiganak","02-0380","PU",null,"Local","CS","CS",4359,0,0]
["AL","AAL","AK","Kotlik","Kotlik","2A9","AK","Kotlik","02-0159","PU",null,"Local","GA","GA",3498,0,9210526]
["AL","AAL","AK","Kotzebue","Ralph Wien Memorial","OTZ","AK","Ralph Wien Memorial","02-0160","PU","N",null,"P","P",62177,52,47115136]
["AL","AAL","AK","Koyuk","Koyuk Alfred Adams","KKA","AK","Koyuk Alfred Adams","02-0161","PU",null,"Basic","GA","GA",2366,0,0]
["AL","AAL","AK","Koyukuk","Koyukuk","KYU","AK","Koyukuk","02-0162","PU",null,"Basic","GA","GA",1254,0,0]
["AL","AAL","AK","Kwethluk","Kwethluk","KWT","AK","Kwethluk","02-0435","PU",null,"Local","CS","GA",3276,0,0]
["AL","AAL","AK","Kwigillingok","Kwigillingok","GGV","AK","Kwigillingok","02-0165","PU",null,"Local","CS","CS",3692,0,26315790]
["AL","AAL","AK","Lake Louise","Lake Louise","Z55","AK","Lake Louise","02-0430","PU",null,"Basic","GA","GA",1,0,0]
["AL","AAL","AK","Larsen Bay","Larsen Bay","2A3","AK","Larsen Bay","02-0166","PU",null,"Regional","CS","CS",2597,0,0]
["AL","AAL","AK","Levelock","Levelock","9Z8","AK","Levelock","02-0167","PU",null,"Basic","GA","GA",447,0,0]
["AL","AAL","AK","Lime Village","Lime Village","2AK","AK","Lime Village","02-0360","PU",null,"Basic","GA","GA",13,0,160000]
["AL","AAL","AK","Manley Hot Springs","Manley Hot Springs","MLY","AK","Manley Hot Springs","02-0170","PU",null,"Basic","GA","GA",41,7,1052632]
["AL","AAL","AK","Manokotak","Manokotak","MBA","AK","Manokotak","02-0171","PU","N",null,"P","P",12409,0,0]
["AL","AAL","AK","Marshall","Marshall Don Hunter Sr","MDM","AK","Marshall Don Hunter Sr","02-0363","PU",null,"Local","CS","CS",3253,0,0]
["AL","AAL","AK","May Creek","May Creek","MYK","AK","May Creek","02-0173","PU",null,"Basic","GA","GA",8,0,0]
["AL","AAL","AK","McCarthy","McCarthy","15Z","AK","McCarthy","02-0334","PU",null,"Basic","GA","GA",54,0,0]
["AL","AAL","AK","McGrath","McGrath","MCG","AK","McGrath","02-0176","PU",null,"Local","CS","CS",5242,11,7000000]
["AL","AAL","AK","Mekoryuk","Mekoryuk","MYU","AK","Mekoryuk","02-0178","PU",null,"Basic","GA","GA",1529,0,7368421]
["AL","AAL","AK","Metlakatla","Metlakatla","MTM","AK","Metlakatla","02-0369","PU",null,"Local","CS","CS",4140,0,0]
["AL","AAL","AK","Meyers Chuck","Meyers Chuck","84K","AK","Meyers Chuck","02-0454","PU",null,"Other","GA","GA",161,0,0]
["AL","AAL","AK","Minchumina","Minchumina","MHM","AK","Minchumina","02-0180","PU",null,"Basic","GA","GA",124,2,2105263]
["AL","AAL","AK","Minto","Minto Al Wright","51Z","AK","Minto Al Wright","02-0336","PU",null,"Basic","GA","GA",294,0,0]
["AL","AAL","AK","Mountain Village","Mountain Village","MOU","AK","Mountain Village","02-0184","PU",null,"Local","CS","CS",4927,0,0]
["AL","AAL","AK","Naknek","Naknek","5NK","AK","Naknek","02-0185","PU",null,"Basic","GA","GA",275,22,0]
["AL","AAL","AK","Nanwalek","Nanwalek","KEB","AK","Nanwalek","02-0094","PU",null,"Local","CS","CS",3362,0,0]
["AL","AAL","AK","Napakiak","Napakiak","WNA","AK","Napakiak","02-0188","PU",null,"Basic","GA","GA",1891,0,0]
["AL","AAL","AK","Napaskiak","Napaskiak","PKA","AK","Napaskiak","02-0189","PU",null,"Basic","GA","GA",1868,0,0]
["AL","AAL","AK","Nelson Lagoon","Nelson Lagoon","OUL","AK","Nelson Lagoon","02-0190","PU",null,"Basic","GA","GA",449,3,0]
["AL","AAL","AK","Nenana","Nenana Municipal","ENN","AK","Nenana Municipal","02-0191","PU",null,"Local","GA","GA",79,15,1736843]
["AL","AAL","AK","New Stuyahok","New Stuyahok","KNW","AK","New Stuyahok","02-0193","PU",null,"Basic","GA","GA",838,0,0]
["AL","AAL","AK","Newtok","Newtok","EWU","AK","Newtok","02-0194","PU",null,"Local","CS","CS",2607,0,0]
["AL","AAL","AK","Nightmute","Nightmute","IGT","AK","Nightmute","02-0195","PU",null,"Basic","GA","GA",2074,0,0]
["AL","AAL","AK","Nikolai","Nikolai","FSP","AK","Nikolai","02-0357","PU",null,"Basic","GA","GA",367,0,0]
["AL","AAL","AK","Noatak","Noatak","WTK","AK","Noatak","02-0198","PU",null,"Local","CS","CS",4529,0,0]
["AL","AAL","AK","Nome","Nome","OME","AK","Nome","02-0199","PU","N",null,"P","P",56658,68,70894737]
["AL","AAL","AK","Nondalton","Nondalton","5NN","AK","Nondalton","02-0432","PU",null,"Basic","GA","GA",1202,0,0]
["AL","AAL","AK","Noorvik","Robert /Bob/ Curtis Memorial","D76","AK","Robert /Bob/ Curtis Memorial","02-0201","PU",null,"Local","CS","CS",4661,0,0]
["AL","AAL","AK","North Whale Pass","North Whale","96Z","AK","North Whale","02-0415","PU",null,"Basic","GA","GA",99,0,0]
["AL","AAL","AK","Northway","Northway","ORT","AK","Northway","02-0203","PU",null,"Basic","GA","GA",55,0,0]
["AL","AAL","AK","Nuiqsut","Nuiqsut","AQT","AK","Nuiqsut","02-0366","PU",null,"Local","CS","CS",2741,0,2054316]
["AL","AAL","AK","Nulato","Nulato","NUL","AK","Nulato","02-0204","PU",null,"Local","CS","CS",3404,1,0]
["AL","AAL","AK","Nunapitchuk","Nunapitchuk","16A","AK","Nunapitchuk","02-0446","PU",null,"Local","CS","CS",2877,0,0]
["AL","AAL","AK","Old Harbor","Old Harbor","6R7","AK","Old Harbor","02-0421","PU",null,"Regional","CS","CS",3177,0,569210]
["AL","AAL","AK","Ophir","Ophir","Z17","AK","Ophir","02-0209","PU",null,"Other","GA","GA",0,0,0]
["AL","AAL","AK","Ouzinkie","Ouzinkie","4K5","AK","Ouzinkie","02-0210","PU",null,"Regional","CS","GA",2784,0,0]
["AL","AAL","AK","Palmer","Palmer Municipal","PAQ","AK","Palmer Municipal","02-0211","PU",null,"Local","GA","GA",374,107,0]
["AL","AAL","AK","Pedro Bay","Pedro Bay","4K0","AK","Pedro Bay","02-0215","PU",null,"Basic","GA","GA",541,0,0]
["AL","AAL","AK","Pelican","Pelican","PEC","AK","Pelican","02-0216","PU",null,"Basic","GA","GA",652,0,0]
["AL","AAL","AK","Perryville","Perryville","PEV","AK","Perryville","02-0218","PU",null,"Basic","GA","GA",667,0,0]
["AL","AAL","AK","Petersburg","Lloyd R. Roundtree Seaplane Facility","63A","AK","Lloyd R. Roundtree Seaplane Facility","02-0340","PU",null,"Other","GA","GA",0,0,0]
["AL","AAL","AK","Petersburg","Petersburg James A Johnson","PSG","AK","Petersburg James A Johnson","02-0219","PU","N",null,"P","P",18468,14,10000000]
["AL","AAL","AK","Pilot Point","Pilot Point","PNP","AK","Pilot Point","02-0222","PU",null,"Basic","GA","GA",834,0,0]
["AL","AAL","AK","Pilot Station","Pilot Station","07L","AK","Pilot Station","02-0477","PU",null,null,null,"CS",0,0,16526316]
["AL","AAL","AK","Pilot Station","Pilot Station","0AK","AK","Pilot Station","02-0223","PU",null,"Local","CS","CS",3564,0,0]
["AL","AAL","AK","Platinum","Platinum","PTU","AK","Platinum","02-0224","PU",null,"Basic","GA","GA",1354,0,0]
["AL","AAL","AK","Point Baker","Point Baker","KPB","AK","Point Baker","02-0423","PU",null,"Other","GA","GA",23,0,0]
["AL","AAL","AK","Point Hope","Point Hope","PHO","AK","Point Hope","02-0226","PU",null,"Local","CS","CS",4713,0,7763158]
["AL","AAL","AK","Point Lay","Point Lay LRRS","PIZ","AK","Point Lay LRRS","02-0387","MA",null,"Basic","GA","GA",1720,0,0]
["AL","AAL","AK","Port Alexander","Port Alexander","AHP","AK","Port Alexander","02-0228","PU",null,"Basic","GA","GA",146,0,0]
["AL","AAL","AK","Port Graham","Port Graham","PGM","AK","Port Graham","02-0233","PU",null,"Local","CS","CS",2738,0,0]
["AL","AAL","AK","Port Heiden","Port Heiden","PTH","AK","Port Heiden","02-0234","PU",null,"Basic","GA","GA",1037,0,0]
["AL","AAL","AK","Port Lions","Port Lions","ORI","AK","Port Lions","02-0235","PU",null,"Basic","GA","GA",2257,0,1578947]
["AL","AAL","AK","Port Protection","Port Protection","19P","AK","Port Protection","02-0448","PU",null,"Basic","GA","GA",84,0,0]
["AL","AAL","AK","Portage Creek","Portage Creek","A14","AK","Portage Creek","02-0348","PU",null,"Other","GA","GA",16,0,0]
["AL","AAL","AK","Prospect Creek","Prospect Creek","PPC","AK","Prospect Creek","02-0429","PU",null,"Other","GA","GA",639,0,0]
["AL","AAL","AK","Quinhagak","Quinhagak","AQH","AK","Quinhagak","02-0242","NA",null,"Local","CS","CS",6770,2,0]
["AL","AAL","AK","Rampart","Rampart","RMP","AK","Rampart","02-0244","PU",null,"Basic","GA","GA",224,0,157895]
["AL","AAL","AK","Red Devil","Red Devil","RDV","AK","Red Devil","02-0246","PU",null,"Basic","GA","GA",136,3,2210527]
["AL","AAL","AK","Ruby","Ruby","RBY","AK","Ruby","02-0248","PU",null,"Basic","GA","GA",1809,2,0]
["AL","AAL","AK","Russian Mission","Russian Mission","RSH","AK","Russian Mission","02-0249","PU",null,"Local","CS","CS",3002,0,0]
["AL","AAL","AK","Sand Point","Sand Point","SDP","AK","Sand Point","02-0253","PU",null,"Local","CS","CS",4281,0,0]
["AL","AAL","AK","Savoonga","Savoonga","SVA","AK","Savoonga","02-0254","PU",null,"Local","CS","CS",4323,0,0]
["AL","AAL","AK","Scammon Bay","Scammon Bay","SCM","AK","Scammon Bay","02-0255","PU",null,"Local","CS","CS",4155,0,0]
["AL","AAL","AK","Selawik","Selawik","WLK","AK","Selawik","02-0256","PU",null,"Local","CS","CS",4828,0,0]
["AL","AAL","AK","Seldovia","Seldovia","SOV","AK","Seldovia","02-0258","PU",null,"Local","CS","CS",5707,3,6842105]
["AL","AAL","AK","Seward","Seward","SWD","AK","Seward","02-0259","PU",null,"Local","GA","GA",8,25,0]
["AL","AAL","AK","Shageluk","Shageluk","SHX","AK","Shageluk","02-0370","PU",null,"Basic","GA","GA",739,0,0]
["AL","AAL","AK","Shaktoolik","Shaktoolik","2C7","AK","Shaktoolik","02-0401","PU",null,"Basic","GA","GA",2146,0,0]
["AL","AAL","AK","Sheldon Point","Sheldon Point","SXP","AK","Sheldon Point","02-0262","PU",null,"Basic","GA","GA",1351,0,17600001]
["AL","AAL","AK","Shishmaref","Shishmaref","SHH","AK","Shishmaref","02-0404","PU",null,"Local","CS","CS",3126,0,7368421]
["AL","AAL","AK","Shungnak","Shungnak","SHG","AK","Shungnak","02-0265","PU",null,"Basic","GA","GA",2238,0,210526]
["AL","AAL","AK","Sitka","Sitka","A29","AK","Sitka","02-0267","PU",null,"Basic","GA","GA",41,9,6663158]
["AL","AAL","AK","Sitka","Sitka Rocky Gutierrez","SIT","AK","Sitka Rocky Gutierrez","02-0268","PU","N",null,"P","P",64536,23,2463158]
["AL","AAL","AK","Skagway","Skagway","7K2","AK","Skagway","02-0455","PU",null,"Other","GA","GA",0,0,0]
["AL","AAL","AK","Skagway","Skagway","SGY","AK","Skagway","02-0270","PU",null,"Local","CS","CS",8531,0,0]
["AL","AAL","AK","Skwentna","Skwentna","SKW","AK","Skwentna","02-0411","PU",null,"Basic","GA","GA",130,0,0]
["AL","AAL","AK","Sleetmute","Sleetmute","SLQ","AK","Sleetmute","02-0272","PU",null,"Basic","GA","GA",386,0,0]
["AL","AAL","AK","Soldotna","Soldotna","SXQ","AK","Soldotna","02-0274","PU",null,"Local","GA","GA",23,41,8275626]
["AL","AAL","AK","South Naknek","South Naknek Nr 2","WSN","AK","South Naknek Nr 2","02-0186","PU",null,"Basic","GA","GA",190,0,0]
["AL","AAL","AK","St Mary'S","St Mary's","KSM","AK","St Mary's","02-0017","PU",null,"Local","CS","CS",9891,8,11894737]
["AL","AAL","AK","St Michael","St Michael","SMK","AK","St Michael","02-0276","PU",null,"Basic","GA","GA",2297,0,0]
["AL","AAL","AK","St Paul Island","St Paul Island","SNP","AK","St Paul Island","02-0277","PU",null,"Local","CS","CS",3229,0,0]
["AL","AAL","AK","St. George","St George","PBV","AK","St George","02-0416","PU",null,"Basic","GA","GA",643,0,0]
["AL","AAL","AK","Stebbins","Stebbins","WBB","AK","Stebbins","02-0279","PU",null,"Local","CS","CS",2603,0,0]
["AL","AAL","AK","Stevens Village","Stevens Village","SVS","AK","Stevens Village","02-0280","PU",null,"Basic","GA","GA",1228,0,0]
["AL","AAL","AK","Stony River","Stony River (Proposed GA)","077","AK","Stony River (Proposed GA)","02-0464",null,null,null,null,"GA",0,0,12631579]
["AL","AAL","AK","Stony River","Stony River 2","SRV","AK","Stony River 2","02-0281","PU",null,"Basic","GA","GA",217,0,0]
["AL","AAL","AK","Takotna","Takotna","TCT","AK","Takotna","02-0284","PU",null,"Basic","GA","GA",190,0,0]
["AL","AAL","AK","Talkeetna","Talkeetna","TKA","AK","Talkeetna","02-0287","PU",null,"Local","GA","GA",2,25,49894735]
["AL","AAL","AK","Tanana","Ralph M Calhoun Memorial","TAL","AK","Ralph M Calhoun Memorial","02-0290","PU",null,"Local","CS","CS",3241,5,0]
["AL","AAL","AK","Tatitlek","Tatitlek","7KA","AK","Tatitlek","02-0342","PU",null,"Basic","GA","GA",8,1,0]
["AL","AAL","AK","Telida","Telida","2K5","AK","Telida","02-0358","PU",null,"Basic","GA","GA",0,0,0]
["AL","AAL","AK","Teller","Teller","TER","AK","Teller","02-0333","PU",null,"Basic","GA","GA",1254,0,0]
["AL","AAL","AK","Tenakee Springs","Tenakee","TKE","AK","Tenakee","02-0295","PU",null,"Basic","GA","GA",645,0,0]
["AL","AAL","AK","Tetlin","Tetlin","3T4","AK","Tetlin","02-0467","PU",null,"Basic","GA","GA",0,0,0]
["AL","AAL","AK","Thorne Bay","Thorne Bay","KTB","AK","Thorne Bay","02-0297","PU",null,"Local","CS","CS",2608,0,0]
["AL","AAL","AK","Togiak Village","Togiak","TOG","AK","Togiak","02-0402","PU",null,"Basic","GA","GA",2312,0,2315789]
["AL","AAL","AK","Tok","Tok Junction","6K8","AK","Tok Junction","02-0412","PU",null,"Local","GA","GA",0,39,2105263]
["AL","AAL","AK","Toksook Bay","Toksook Bay","OOK","AK","Toksook Bay","02-0441","PU",null,"Local","CS","CS",4726,1,0]
["AL","AAL","AK","Tuluksak","Tuluksak","TLT","AK","Tuluksak","02-0302","PU",null,"Local","CS","GA",2658,0,0]
["AL","AAL","AK","Tuntutuliak","Tuntutuliak","A61","AK","Tuntutuliak","02-0303","PU",null,"Local","CS","CS",3662,0,0]
["AL","AAL","AK","Tununak","New","09G","AK","New","02-0486","PU",null,null,null,"GA",0,0,15526316]
["AL","AAL","AK","Tununak","Tununak","4KA","AK","Tununak","02-0304","PU",null,"Basic","GA","GA",2145,0,0]
["AL","AAL","AK","Twin Hills","Twin Hills","A63","AK","Twin Hills","02-0356","PU",null,"Basic","GA","GA",199,0,0]
["AL","AAL","AK","Ugashik","Ugashik","9A8","AK","Ugashik","02-0405","PU",null,"Other","GA","GA",0,0,0]
["AL","AAL","AK","Unalakleet","Unalakleet","UNK","AK","Unalakleet","02-0309","PU","N",null,"P","P",12693,14,342105]
["AL","AAL","AK","Unalaska","Unalaska","DUT","AK","Unalaska","02-0082","PU","N",null,"P","P",26711,3,15754385]
["AL","AAL","AK","Valdez","Valdez Pioneer Field","VDZ","AK","Valdez Pioneer Field","02-0311","PU","N",null,"P","P",15739,33,842105]
["AL","AAL","AK","Venetie","Venetie","VEE","AK","Venetie","02-0439","NA",null,"Local","CS","GA",2523,1,0]
["AL","AAL","AK","Wainwright","Wainwright","AWI","AK","Wainwright","02-0313","PU",null,"Local","CS","CS",4129,0,15110126]
["AL","AAL","AK","Wales","Wales","IWK","AK","Wales","02-0337","PU",null,"Basic","GA","GA",1321,0,0]
["AL","AAL","AK","Wasilla","Wasilla","IYS","AK","Wasilla","02-0417","PU",null,"Local","GA","GA",0,87,45852632]
["AL","AAL","AK","White Mountain","White Mountain","WMO","AK","White Mountain","02-0319","PU",null,"Basic","GA","GA",1495,0,526316]
["AL","AAL","AK","Whittier","Whittier","IEM","AK","Whittier","02-0385","PU",null,"Other","GA","GA",0,2,0]
["AL","AAL","AK","Willow","Willow","UUO","AK","Willow","02-0320","PU",null,"Basic","GA","GA",1800,18,0]
["AL","AAL","AK","Wiseman","Wiseman","WSM","AK","Wiseman","02-0321","PU",null,"Other","GA","GA",0,1,0]
["AL","AAL","AK","Wrangell","Wrangell","68A","AK","Wrangell","02-0324","PU",null,"Other","GA","GA",0,0,800000]
["AL","AAL","AK","Wrangell","Wrangell","WRG","AK","Wrangell","02-0323","PU","N",null,"P","P",10882,13,3157895]
["AL","AAL","AK","Yakutat","Yakutat","2Y3","AK","Yakutat","02-0445","PU",null,"Other","GA","GA",0,0,0]
["AL","AAL","AK","Yakutat","Yakutat","YAK","AK","Yakutat","02-0327","PU","N",null,"P","P",10035,8,8736842]
["CE","ACE","IA","Albia","Albia Municipal","4C8","IA","Albia Municipal","19-0001","PU",null,"Other","GA","GA",0,9,2246947]
["CE","ACE","IA","Algona","Algona Municipal","AXA","IA","Algona Municipal","19-0002","PU",null,"Local","GA","GA",0,28,2653000]
["CE","ACE","IA","Ames","Ames Municipal","AMW","IA","Ames Municipal","19-0004","PU",null,"Local","GA","GA",12,54,2939000]
["CE","ACE","IA","Ankeny","Ankeny Regional","IKV","IA","Ankeny Regional","19-0132","PU",null,"Regional","R","R",33,72,4966976]
["CE","ACE","IA","Atlantic","Atlantic Municipal","AIO","IA","Atlantic Municipal","19-0005","PU",null,"Local","GA","GA",0,27,3429270]
["CE","ACE","IA","Audubon","Audubon County","ADU","IA","Audubon County","19-0006","PU",null,"Other","GA","GA",0,4,2630601]
["CE","ACE","IA","Belle Plaine","Belle Plaine Municipal","TZT","IA","Belle Plaine Municipal","19-0131","PU",null,"Other","GA","GA",0,2,1163500]
["CE","ACE","IA","Bloomfield","Bloomfield Municipal","4K6","IA","Bloomfield Municipal","19-0008","PU",null,"Other","GA","GA",0,8,1688085]
["CE","ACE","IA","Boone","Boone Municipal","BNW","IA","Boone Municipal","19-0009","PU",null,"Local","GA","GA",0,37,1019405]
["CE","ACE","IA","Burlington","Southeast Iowa Regional","BRL","IA","Southeast Iowa Regional","19-0010","PU",null,"Regional","CS","CS",2821,44,6584629]
["CE","ACE","IA","Carroll","Arthur N Neu","CIN","IA","Arthur N Neu","19-0011","PU",null,"Local","GA","GA",0,20,925000]
["CE","ACE","IA","Cedar Rapids","The Eastern Iowa","CID","IA","The Eastern Iowa","19-0012","PU","S",null,"P","P",462670,140,23766012]
["CE","ACE","IA","Centerville","Centerville Municipal","TVK","IA","Centerville Municipal","19-0013","PU",null,"Basic","GA","GA",0,12,1561316]
["CE","ACE","IA","Chariton","Chariton Municipal","CNC","IA","Chariton Municipal","19-0014","PU",null,"Basic","GA","GA",3,11,2462631]
["CE","ACE","IA","Charles City","Northeast Iowa Regional","CCY","IA","Northeast Iowa Regional","19-0015","PU",null,"Basic","GA","GA",0,14,10662550]
["CE","ACE","IA","Cherokee","Cherokee County Regional","CKP","IA","Cherokee County Regional","19-0099","PU",null,"Local","GA","GA",0,28,4690902]
["CE","ACE","IA","Clarinda","Schenck Field","ICL","IA","Schenck Field","19-0017","PU",null,"Local","GA","GA",0,20,2117569]
["CE","ACE","IA","Clarion","Clarion Municipal","CAV","IA","Clarion Municipal","19-0018","PU",null,"Basic","GA","GA",0,11,1285274]
["CE","ACE","IA","Clinton","Clinton Municipal","CWI","IA","Clinton Municipal","19-0019","PU",null,"Local","GA","GA",3,24,808289]
["CE","ACE","IA","Council Bluffs","Council Bluffs Municipal","CBF","IA","Council Bluffs Municipal","19-0022","PU",null,"Regional","GA","GA",187,75,5188196]
["CE","ACE","IA","Creston","Creston Municipal","CSQ","IA","Creston Municipal","19-0023","PU",null,"Local","GA","GA",0,16,8547689]
["CE","ACE","IA","Davenport","Davenport Municipal","DVN","IA","Davenport Municipal","19-0024","PU",null,"Regional","GA","GA",1,106,14786500]
["CE","ACE","IA","Decorah","Decorah Municipal","DEH","IA","Decorah Municipal","19-0025","PU",null,"Local","GA","GA",0,24,1105000]
["CE","ACE","IA","Denison","Denison Municipal","DNS","IA","Denison Municipal","19-0026","PU",null,"Local","GA","GA",4,17,4028000]
["CE","ACE","IA","Des Moines","Des Moines International","DSM","IA","Des Moines International","19-0027","PU","S",null,"P","P",898840,108,35432693]
["CE","ACE","IA","Dubuque","Dubuque Regional","DBQ","IA","Dubuque Regional","19-0028","PU","N",null,"P","P",33861,74,23001971]
["CE","ACE","IA","Emmetsburg","Emmetsburg Municipal","EGQ","IA","Emmetsburg Municipal","19-0031","PU",null,"Basic","GA","GA",0,7,3277998]
["CE","ACE","IA","Estherville","Estherville Municipal","EST","IA","Estherville Municipal","19-0032","PU",null,"Local","GA","GA",0,21,955000]
["CE","ACE","IA","Fairfield","Fairfield Municipal","FFL","IA","Fairfield Municipal","19-0033","PU",null,"Local","GA","GA",1,19,2148684]
["CE","ACE","IA","Forest City","Forest City Municipal","FXY","IA","Forest City Municipal","19-0034","PU",null,"Local","GA","GA",0,16,1490000]
["CE","ACE","IA","Fort Dodge","Fort Dodge Regional","FOD","IA","Fort Dodge Regional","19-0035","PU",null,"Regional","CS","CS",8207,24,11881109]
["CE","ACE","IA","Fort Madison","Fort Madison Municipal","FSW","IA","Fort Madison Municipal","19-0036","PU",null,"Other","GA","GA",43,8,2766004]
["CE","ACE","IA","Greenfield","Greenfield Municipal","GFZ","IA","Greenfield Municipal","19-0038","PU",null,"Basic","GA","GA",0,13,2398000]
["CE","ACE","IA","Grinnell","Grinnell Regional","GGI","IA","Grinnell Regional","19-0039","PU",null,"Basic","GA","GA",0,9,1650000]
["CE","ACE","IA","Guthrie Center","Guthrie County Regional","GCT","IA","Guthrie County Regional","19-0103","PU",null,"Basic","GA","GA",0,11,3015000]
["CE","ACE","IA","Hampton","Hampton Municipal","HPT","IA","Hampton Municipal","19-0041","PU",null,"Local","GA","GA",0,16,890000]
["CE","ACE","IA","Harlan","Harlan Municipal","HNR","IA","Harlan Municipal","19-0042","PU",null,"Local","GA","GA",0,27,1735197]
["CE","ACE","IA","Humboldt","Humboldt Municipal","0K7","IA","Humboldt Municipal","19-0043","PU",null,"Basic","GA","GA",0,12,1857250]
["CE","ACE","IA","Independence","Independence Municipal","IIB","IA","Independence Municipal","19-0045","PU",null,"Local","GA","GA",0,20,1440000]
["CE","ACE","IA","Iowa City","Iowa City Municipal","IOW","IA","Iowa City Municipal","19-0047","PU",null,"Regional","GA","GA",52,77,7883000]
["CE","ACE","IA","Iowa Falls","Iowa Falls Municipal","IFA","IA","Iowa Falls Municipal","19-0048","PU",null,"Basic","GA","GA",0,10,11147155]
["CE","ACE","IA","Jefferson","Jefferson Municipal","EFW","IA","Jefferson Municipal","19-0049","PU",null,"Local","GA","GA",0,18,2747348]
["CE","ACE","IA","Keokuk","Keokuk Municipal","EOK","IA","Keokuk Municipal","19-0050","PU",null,"Local","GA","GA",29,22,14865553]
["CE","ACE","IA","Knoxville","Knoxville Municipal","OXV","IA","Knoxville Municipal","19-0051","PU",null,"Local","GA","GA",0,26,7376750]
["CE","ACE","IA","Lamoni","Lamoni Municipal","LWD","IA","Lamoni Municipal","19-0122","PU",null,"Basic","GA","GA",0,5,2585150]
["CE","ACE","IA","Le Mars","Le Mars Municipal","LRJ","IA","Le Mars Municipal","19-0127","PU",null,"Local","GA","GA",0,18,901033]
["CE","ACE","IA","Mapleton","James G. Whiting Memorial Field","MEY","IA","James G. Whiting Memorial Field","19-0054","PU",null,"Other","GA","GA",0,8,861000]
["CE","ACE","IA","Maquoketa","Maquoketa Municipal","OQW","IA","Maquoketa Municipal","19-0055","PU",null,"Basic","GA","GA",0,14,2831370]
["CE","ACE","IA","Marshalltown","Marshalltown Municipal","MIW","IA","Marshalltown Municipal","19-0058","PU",null,"Local","GA","GA",0,37,5183100]
["CE","ACE","IA","Mason City","Mason City Municipal","MCW","IA","Mason City Municipal","19-0059","PU","N",null,"P","P",13852,55,4410064]
["CE","ACE","IA","Monticello","Monticello Regional","MXO","IA","Monticello Regional","19-0061","PU",null,"Local","GA","GA",23,30,1989035]
["CE","ACE","IA","Mount Pleasant","Mount Pleasant Municipal","MPZ","IA","Mount Pleasant Municipal","19-0062","PU",null,"Local","GA","GA",17,17,5859000]
["CE","ACE","IA","Muscatine","Muscatine Municipal","MUT","IA","Muscatine Municipal","19-0063","PU",null,"Local","GA","GA",6,27,2363904]
["CE","ACE","IA","Newton","Newton Municipal","TNU","IA","Newton Municipal","19-0065","PU",null,"Local","GA","GA",7,16,1490000]
["CE","ACE","IA","Oelwein","Oelwein Municipal","OLZ","IA","Oelwein Municipal","19-0067","PU",null,"Local","GA","GA",0,17,2035327]
["CE","ACE","IA","Orange City","New","09B","IA","New","19-0135","PU",null,null,null,"GA",0,0,19678191]
["CE","ACE","IA","Orange City","Orange City Municipal","ORC","IA","Orange City Municipal","19-0069","PU",null,"Basic","GA","GA",0,11,1088648]
["CE","ACE","IA","Osceola","Osceola Municipal","I75","IA","Osceola Municipal","19-0108","PU",null,"Local","GA","GA",0,20,2172549]
["CE","ACE","IA","Oskaloosa","Oskaloosa Municipal","OOA","IA","Oskaloosa Municipal","19-0072","PU",null,"Local","GA","GA",0,22,1998000]
["CE","ACE","IA","Ottumwa","Ottumwa Regional","OTM","IA","Ottumwa Regional","19-0073","PU",null,"Local","GA","GA",406,32,8446300]
["CE","ACE","IA","Pella","Pella Municipal","PEA","IA","Pella Municipal","19-0112","PU",null,"Regional","GA","GA",0,31,6203370]
["CE","ACE","IA","Perry","Perry Municipal","PRO","IA","Perry Municipal","19-0075","PU",null,"Local","GA","GA",0,19,8910000]
["CE","ACE","IA","Pocahontas","Pocahontas Municipal","POH","IA","Pocahontas Municipal","19-0076","PU",null,"Local","GA","GA",0,19,3849998]
["CE","ACE","IA","Red Oak","Red Oak Municipal","RDK","IA","Red Oak Municipal","19-0077","PU",null,"Local","GA","GA",0,27,1206315]
["CE","ACE","IA","Rockwell City","Rockwell City Municipal","2Y4","IA","Rockwell City Municipal","19-0129","PU",null,"Basic","GA","GA",0,12,4306064]
["CE","ACE","IA","Sac City","Sac City Municipal","SKI","IA","Sac City Municipal","19-0080","PU",null,"Basic","GA","GA",0,10,817685]
["CE","ACE","IA","Sheldon","Sheldon Municipal","SHL","IA","Sheldon Municipal","19-0081","PU",null,"Local","GA","GA",0,24,1642941]
["CE","ACE","IA","Shenandoah","Shenandoah Municipal","SDA","IA","Shenandoah Municipal","19-0082","PU",null,"Basic","GA","GA",0,13,3293154]
["CE","ACE","IA","Sioux City","Sioux Gateway/Col. Bud Day Field","SUX","IA","Sioux Gateway/Col. Bud Day Field","19-0085","PU","N",null,"P","P",24701,52,54750300]
["CE","ACE","IA","Spencer","Spencer Municipal","SPW","IA","Spencer Municipal","19-0086","PU",null,"Local","GA","GA",65,22,6354700]
["CE","ACE","IA","Storm Lake","Storm Lake Municipal","SLB","IA","Storm Lake Municipal","19-0088","PU",null,"Local","GA","GA",0,37,5644329]
["CE","ACE","IA","Tipton","Mathews Memorial","8C4","IA","Mathews Memorial","19-0134","PU",null,"Other","GA","GA",0,8,5398200]
["CE","ACE","IA","Vinton","Vinton Veterans Memorial Airpark","VTI","IA","Vinton Veterans Memorial Airpark","19-0092","PU",null,"Local","GA","GA",0,21,3459154]
["CE","ACE","IA","Washington","Washington Municipal","AWG","IA","Washington Municipal","19-0093","PU",null,"Local","GA","GA",28,26,8354506]
["CE","ACE","IA","Waterloo","Waterloo Regional","ALO","IA","Waterloo Regional","19-0094","PU","N",null,"P","P",23206,88,7053800]
["CE","ACE","IA","Waverly","Waverly Municipal","C25","IA","Waverly Municipal","19-0096","PU",null,"Local","GA","GA",0,23,3518500]
["CE","ACE","IA","Webster City","Webster City Municipal","EBS","IA","Webster City Municipal","19-0097","PU",null,"Local","GA","GA",0,23,2110000]
["CE","ACE","IA","West Union","George L Scott Municipal","3Y2","IA","George L Scott Municipal","19-0128","PU",null,"Other","GA","GA",0,6,3242939]
["CE","ACE","IA","Winterset","Winterset Municipal","3Y3","IA","Winterset Municipal","19-0098","PU",null,"Local","GA","GA",0,20,4259733]
["CE","ACE","KS","Abilene","Abilene Municipal","K78","KS","Abilene Municipal","20-0001","PU",null,"Local","GA","GA",0,18,3270553]
["CE","ACE","KS","Anthony","Anthony Municipal","ANY","KS","Anthony Municipal","20-0002","PU",null,"Other","GA","GA",0,3,1333585]
["CE","ACE","KS","Atchison","Amelia Earhart","K59","KS","Amelia Earhart","20-0004","PU",null,"Local","GA","GA",0,25,2105219]
["CE","ACE","KS","Atwood","Atwood-Rawlins County City-County","ADT","KS","Atwood-Rawlins County City-County","20-0005","PU",null,"Basic","GA","GA",0,9,951776]
["CE","ACE","KS","Augusta","Augusta Municipal","3AU","KS","Augusta Municipal","20-0006","PU",null,"Local","GA","GA",3,63,2071879]
["CE","ACE","KS","Belleville","Belleville Municipal","RPB","KS","Belleville Municipal","20-0007","PU",null,"Other","GA","GA",0,9,1350550]
["CE","ACE","KS","Beloit","Moritz Memorial","K61","KS","Moritz Memorial","20-0008","PU",null,"Local","GA","GA",0,16,4330762]
["CE","ACE","KS","Burlington","Coffey County","UKL","KS","Coffey County","20-0510","PU",null,"Local","GA","GA",0,25,3476513]
["CE","ACE","KS","Chanute","Chanute Martin Johnson","CNU","KS","Chanute Martin Johnson","20-0009","PU",null,"Local","GA","GA",0,29,826550]
["CE","ACE","KS","Cimarron","Cimarron Municipal","8K8","KS","Cimarron Municipal","20-0116","PU",null,"Basic","GA","GA",0,10,3412878]
["CE","ACE","KS","Clay Center","Clay Center Municipal","CYW","KS","Clay Center Municipal","20-0010","PU",null,"Local","GA","GA",0,15,865868]
["CE","ACE","KS","Coffeyville","Coffeyville Municipal","CFV","KS","Coffeyville Municipal","20-0011","PU",null,"Local","GA","GA",0,27,1581609]
["CE","ACE","KS","Colby","Shalz Field","CBK","KS","Shalz Field","20-0012","PU",null,"Local","GA","GA",4,16,4242505]
["CE","ACE","KS","Concordia","Blosser Municipal","CNK","KS","Blosser Municipal","20-0013","PU",null,"Basic","GA","GA",0,13,7592313]
["CE","ACE","KS","Dodge City","Dodge City Regional","DDC","KS","Dodge City Regional","20-0017","PU",null,"Regional","CS","CS",3853,33,8861793]
["CE","ACE","KS","El Dorado","Captain Jack Thomas/El Dorado","EQA","KS","Captain Jack Thomas/El Dorado","20-0018","PU",null,"Local","GA","GA",0,27,4033217]
["CE","ACE","KS","Elkhart","Elkhart-Morton County","EHA","KS","Elkhart-Morton County","20-0019","PU",null,"Basic","GA","GA",0,12,2156466]
["CE","ACE","KS","Ellsworth","Ellsworth Municipal","9K7","KS","Ellsworth Municipal","20-0117","PU",null,"Basic","GA","GA",0,14,7008626]
["CE","ACE","KS","Emporia","Emporia Municipal","EMP","KS","Emporia Municipal","20-0020","PU",null,"Local","GA","GA",6,35,5317638]
["CE","ACE","KS","Eureka","Eureka Municipal","13K","KS","Eureka Municipal","20-0021","PU",null,"Basic","GA","GA",0,12,1520468]
["CE","ACE","KS","Fort Scott","Fort Scott Municipal","FSK","KS","Fort Scott Municipal","20-0022","PU",null,"Local","GA","GA",0,16,5036273]
["CE","ACE","KS","Garden City","Garden City Regional","GCK","KS","Garden City Regional","20-0024","PU","N",null,"P","P",10155,47,4761788]
["CE","ACE","KS","Gardner","Gardner Municipal","K34","KS","Gardner Municipal","20-0119","PU",null,"Local","GA","GA",0,71,3450000]
["CE","ACE","KS","Garnett","Garnett Municipal","K68","KS","Garnett Municipal","20-0025","PU",null,"Basic","GA","GA",0,11,4263392]
["CE","ACE","KS","Goodland","Renner Field /Goodland Municipal/","GLD","KS","Renner Field /Goodland Municipal/","20-0026","PU",null,"Local","GA","GA",141,21,6459576]
["CE","ACE","KS","Great Bend","Great Bend Municipal","GBD","KS","Great Bend Municipal","20-0027","PU",null,"Local","GA","GA",719,30,6160307]
["CE","ACE","KS","Hays","Hays Regional","HYS","KS","Hays Regional","20-0028","PU",null,"Regional","CS","P",9026,56,1989512]
["CE","ACE","KS","Herington","Herington Regional","HRU","KS","Herington Regional","20-0029","PU",null,"Other","GA","GA",0,9,1036777]
["CE","ACE","KS","Hill City","Hill City Municipal","HLC","KS","Hill City Municipal","20-0031","PU",null,"Basic","GA","GA",4,9,1876167]
["CE","ACE","KS","Hugoton","Hugoton Municipal","HQG","KS","Hugoton Municipal","20-0034","PU",null,"Local","GA","GA",0,17,1766165]
["CE","ACE","KS","Hutchinson","Hutchinson Municipal","HUT","KS","Hutchinson Municipal","20-0035","PU",null,"Regional","GA","GA",2,29,6908434]
["CE","ACE","KS","Independence","Independence Municipal","IDP","KS","Independence Municipal","20-0036","PU",null,"Local","GA","GA",3,18,3061165]
["CE","ACE","KS","Iola","Allen County","K88","KS","Allen County","20-0037","PU",null,"Basic","GA","GA",0,11,2514298]
["CE","ACE","KS","Johnson","Stanton County Municipal","2K3","KS","Stanton County Municipal","20-0110","PU",null,"Local","GA","GA",0,35,1260623]
["CE","ACE","KS","Junction City","Freeman Field","3JC","KS","Freeman Field","20-0039","PU",null,"Local","GA","GA",0,16,1417060]
["CE","ACE","KS","Kingman","Kingman Airport - Clyde Cessna Field","9K8","KS","Kingman Airport - Clyde Cessna Field","20-0042","PU",null,"Local","GA","GA",0,17,1876954]
["CE","ACE","KS","Lakin","Lakin","36K","KS","Lakin","20-0106","PU",null,"Other","GA","GA",0,5,5766316]
["CE","ACE","KS","Larned","Larned-Pawnee County","LQR","KS","Larned-Pawnee County","20-0046","PU",null,"Basic","GA","GA",0,14,2353500]
["CE","ACE","KS","Lawrence","Lawrence Municipal","LWC","KS","Lawrence Municipal","20-0047","PU",null,"Regional","GA","GA",7,55,7000395]
["CE","ACE","KS","Leoti","Mark Hoard Memorial","3K7","KS","Mark Hoard Memorial","20-0049","PU",null,"Basic","GA","GA",0,10,6124679]
["CE","ACE","KS","Liberal","Liberal Mid-America Regional","LBL","KS","Liberal Mid-America Regional","20-0050","PU",null,"Regional","CS","CS",7156,54,6891237]
["CE","ACE","KS","Lyons","Lyons-Rice County Municipal","LYO","KS","Lyons-Rice County Municipal","20-0051","PU",null,"Other","GA","GA",0,8,1789232]
["CE","ACE","KS","Manhattan","Manhattan Regional","MHK","KS","Manhattan Regional","20-0052","PU","N",null,"P","P",44603,45,22186751]
["CE","ACE","KS","Marysville","Marysville Municipal","MYZ","KS","Marysville Municipal","20-0053","PU",null,"Other","GA","GA",0,5,1725000]
["CE","ACE","KS","McPherson","McPherson","MPR","KS","McPherson","20-0054","PU",null,"Local","GA","GA",0,31,2340000]
["CE","ACE","KS","Meade","Meade Municipal","MEJ","KS","Meade Municipal","20-0055","PU",null,"Basic","GA","GA",0,11,1490000]
["CE","ACE","KS","Medicine Lodge","Medicine Lodge","K51","KS","Medicine Lodge","20-0098","PU",null,"Other","GA","GA",0,4,2780000]
["CE","ACE","KS","Ness City","Ness City Municipal","48K","KS","Ness City Municipal","20-0057","PU",null,"Basic","GA","GA",0,4,6699098]
["CE","ACE","KS","Newton","Newton-City-County","EWK","KS","Newton-City-County","20-0058","PU",null,"Regional","R","R",1,98,2654039]
["CE","ACE","KS","Norton","Norton Municipal","NRN","KS","Norton Municipal","20-0091","PU",null,"Local","GA","GA",6,19,1531736]
["CE","ACE","KS","Oakley","Oakley Municipal","OEL","KS","Oakley Municipal","20-0060","PU",null,"Basic","GA","GA",0,11,4129142]
["CE","ACE","KS","Oberlin","Oberlin Municipal","OIN","KS","Oberlin Municipal","20-0061","PU",null,"Other","GA","GA",0,5,8575845]
["CE","ACE","KS","Olathe","New Century Aircenter","IXD","KS","New Century Aircenter","20-0109","PU",null,"Regional","R","R",51,132,7093195]
["CE","ACE","KS","Olathe","Johnson County Executive","OJC","KS","Johnson County Executive","20-0062","PU",null,"Regional","R","R",69,143,4871360]
["CE","ACE","KS","Osage City","Osage City Municipal","53K","KS","Osage City Municipal","20-0120","PU",null,"Basic","GA","GA",0,17,4138551]
["CE","ACE","KS","Oswego","Oswego Municipal","K67","KS","Oswego Municipal","20-0065","PU",null,"Other","GA","GA",0,2,2182556]
["CE","ACE","KS","Ottawa","Ottawa Municipal","OWI","KS","Ottawa Municipal","20-0066","PU",null,"Local","GA","GA",0,41,1127612]
["CE","ACE","KS","Paola","Miami County","K81","KS","Miami County","20-0063","PU",null,"Local","GA","GA",0,19,1940830]
["CE","ACE","KS","Parsons","Tri-City","PPF","KS","Tri-City","20-0067","PU",null,"Local","GA","GA",0,15,3990000]
["CE","ACE","KS","Phillipsburg","Phillipsburg Municipal","PHG","KS","Phillipsburg Municipal","20-0068","PU",null,"Basic","GA","GA",4,10,2253876]
["CE","ACE","KS","Pittsburg","Atkinson Municipal","PTS","KS","Atkinson Municipal","20-0069","PU",null,"Local","GA","GA",1,36,5025750]
["CE","ACE","KS","Pratt","Pratt Regional","PTT","KS","Pratt Regional","20-0070","PU",null,"Local","GA","GA",3,25,2590000]
["CE","ACE","KS","Russell","Russell Municipal","RSL","KS","Russell Municipal","20-0071","PU",null,"Basic","GA","GA",0,13,2500000]
["CE","ACE","KS","Sabetha","Sabetha Municipal","K83","KS","Sabetha Municipal","20-0511","PU",null,"Other","GA","GA",0,6,0]
["CE","ACE","KS","Salina","Salina Municipal","SLN","KS","Salina Municipal","20-0072","PU",null,"Regional","CS","CS",3144,123,10310885]
["CE","ACE","KS","Satanta","Satanta Municipal","1K9","KS","Satanta Municipal","20-0101","PU",null,"Other","GA","GA",0,5,4070000]
["CE","ACE","KS","Scott City","Scott City Municipal","TQK","KS","Scott City Municipal","20-0073","PU",null,"Local","GA","GA",0,26,2427675]
["CE","ACE","KS","Smith Center","Smith Center Municipal","K82","KS","Smith Center Municipal","20-0076","PU",null,"Other","GA","GA",0,9,784938]
["CE","ACE","KS","St. Francis","Cheyenne County Municipal","SYF","KS","Cheyenne County Municipal","20-0077","PU",null,"Basic","GA","GA",0,11,1070000]
["CE","ACE","KS","Stockton-Plainville","New","02H","KS","New","20-0100","PU",null,null,null,"GA",0,0,4181733]
["CE","ACE","KS","Syracuse","Syracuse-Hamilton County Municipal","3K3","KS","Syracuse-Hamilton County Municipal","20-0081","PU",null,"Local","GA","GA",0,34,4584314]
["CE","ACE","KS","Topeka","Forbes Field","FOE","KS","Forbes Field","20-0113","PU","N",null,"P","P",15115,39,6593500]
["CE","ACE","KS","Topeka","Philip Billard Municipal","TOP","KS","Philip Billard Municipal","20-0082","PU",null,"Local","GA","GA",7,67,1289457]
["CE","ACE","KS","Tribune","Tribune Municipal","5K2","KS","Tribune Municipal","20-0083","PU",null,"Local","GA","GA",0,12,1598989]
["CE","ACE","KS","Ulysses","Ulysses","ULS","KS","Ulysses","20-0084","PU",null,"Local","GA","GA",2,46,1481691]
["CE","ACE","KS","Wakeeney","Trego Wakeeney","0H1","KS","Trego Wakeeney","20-0512","PU",null,"Other","GA","GA",0,7,2676803]
["CE","ACE","KS","Wellington","Wellington Municipal","EGT","KS","Wellington Municipal","20-0087","PU",null,"Local","GA","GA",0,34,2273846]
["CE","ACE","KS","Wichita","Colonel James Jabara","AAO","KS","Colonel James Jabara","20-0089","PU",null,"Regional","R","R",79,90,477631]
["CE","ACE","KS","Wichita","Wichita Mid-Continent","ICT","KS","Wichita Mid-Continent","20-0088","PU","S",null,"P","P",751601,222,54386272]
["CE","ACE","KS","Winfield/Arkansas City","Strother Field","WLD","KS","Strother Field","20-0090","PU",null,"Local","GA","GA",63,16,3066256]
["CE","ACE","MO","Aurora","Jerry Sumners Sr Aurora Municipal","2H2","MO","Jerry Sumners Sr Aurora Municipal","29-0001","PU",null,"Local","GA","GA",0,31,4220000]
["CE","ACE","MO","Bolivar","Bolivar Municipal","M17","MO","Bolivar Municipal","29-0005","PU",null,"Local","GA","GA",0,61,2020000]
["CE","ACE","MO","Boonville","Jesse Viertel Memorial","VER","MO","Jesse Viertel Memorial","29-0006","PU",null,"Local","GA","GA",0,36,2514000]
["CE","ACE","MO","Bowling Green","Bowling Green Municipal","H19","MO","Bowling Green Municipal","29-0007","PU",null,"Other","GA","GA",0,7,3557300]
["CE","ACE","MO","Branson West","Branson West Municipal - Emerson Field","FWB","MO","Branson West Municipal - Emerson Field","29-0070","PU",null,"Basic","GA","GA",0,0,2208000]
["CE","ACE","MO","Brookfield","North Central Missouri Regional","MO8","MO","North Central Missouri Regional","29-0127","PU",null,"Basic","GA","GA",1,8,4500000]
["CE","ACE","MO","Butler","Butler Memorial","BUM","MO","Butler Memorial","29-0009","PU",null,"Basic","GA","GA",0,14,6514000]
["CE","ACE","MO","Cabool","Cabool Memorial","TVB","MO","Cabool Memorial","29-0132","PU",null,"Basic","GA","GA",0,11,815000]
["CE","ACE","MO","Camdenton","Camdenton Memorial","H21","MO","Camdenton Memorial","29-0135","PU",null,"Local","GA","GA",0,30,4150000]
["CE","ACE","MO","Cameron","Cameron Memorial","EZZ","MO","Cameron Memorial","29-0103","PU",null,"Local","GA","GA",0,23,2420000]
["CE","ACE","MO","Cape Girardeau","Cape Girardeau Regional","CGI","MO","Cape Girardeau Regional","29-0013","PU",null,"Regional","CS","CS",4862,50,3125895]
["CE","ACE","MO","Caruthersville","Caruthersville Memorial","M05","MO","Caruthersville Memorial","29-0016","PU",null,"Other","GA","GA",0,1,962000]
["CE","ACE","MO","Cassville","Cassville Municipal","94K","MO","Cassville Municipal","29-0017","PU",null,"Other","GA","GA",0,5,3420000]
["CE","ACE","MO","Chillicothe","Chillicothe Municipal","CHT","MO","Chillicothe Municipal","29-0019","PU",null,"Local","GA","GA",0,15,5002105]
["CE","ACE","MO","Clinton","Clinton Memorial","GLY","MO","Clinton Memorial","29-0020","PU",null,"Local","GA","GA",0,30,9800000]
["CE","ACE","MO","Columbia","Columbia Regional","COU","MO","Columbia Regional","29-0022","PU","N",null,"P","P",38293,41,34365094]
["CE","ACE","MO","Cuba","Cuba Municipal","UBX","MO","Cuba Municipal","29-0118","PU",null,"Basic","GA","GA",0,14,1020000]
["CE","ACE","MO","Dexter","Dexter Municipal","DXE","MO","Dexter Municipal","29-0024","PU",null,"Local","GA","GA",0,19,850000]
["CE","ACE","MO","Eldon","Eldon Model Airpark","H79","MO","Eldon Model Airpark","29-0108","PU",null,"Local","GA","GA",0,24,4780000]
["CE","ACE","MO","Farmington","Farmington Regional","FAM","MO","Farmington Regional","29-0027","PU",null,"Local","GA","GA",0,44,3810000]
["CE","ACE","MO","Fort Leonard Wood (U.S. Army)","Waynesville-St. Robert Regional Forney Field","TBN","MO","Waynesville-St. Robert Regional Forney Field","29-0091","MR",null,"Regional","CS","CS",4159,4,1882947]
["CE","ACE","MO","Fredericktown","A. Paul Vance Fredericktown Regional","H88","MO","A. Paul Vance Fredericktown Regional","29-0028","PU",null,"Basic","GA","GA",0,10,1762895]
["CE","ACE","MO","Fulton","Elton Hensley Memorial","FTT","MO","Elton Hensley Memorial","29-0029","PU",null,"Local","GA","GA",0,49,4945000]
["CE","ACE","MO","Hannibal","Hannibal Regional","HAE","MO","Hannibal Regional","29-0031","PU",null,"Local","GA","GA",18,20,5865000]
["CE","ACE","MO","Harrisonville","Lawrence Smith Memorial","LRY","MO","Lawrence Smith Memorial","29-0032","PU",null,"Local","GA","GA",0,26,15909189]
["CE","ACE","MO","Higginsville","Higginsville Industrial Municipal","HIG","MO","Higginsville Industrial Municipal","29-0033","PU",null,"Basic","GA","GA",8,14,1620000]
["CE","ACE","MO","Houston","Houston Memorial","M48","MO","Houston Memorial","29-0104","PU",null,"Basic","GA","GA",0,19,1131000]
["CE","ACE","MO","Jefferson City","Jefferson City Memorial","JEF","MO","Jefferson City Memorial","29-0036","PU",null,"Regional","GA","GA",14,47,13310000]
["CE","ACE","MO","Joplin","Joplin Regional","JLN","MO","Joplin Regional","29-0037","PU",null,"Regional","CS","CS",4078,110,7300000]
["CE","ACE","MO","Kaiser Lake Ozark","Lee C Fine Memorial","AIZ","MO","Lee C Fine Memorial","29-0038","PU",null,"Other","GA","GA",53,4,1808000]
["CE","ACE","MO","Kansas City","Kansas City International","MCI","MO","Kansas City International","29-0040","PU","M",null,"P","P",4946173,0,236015000]
["CE","ACE","MO","Kansas City","Charles B. Wheeler Downtown","MKC","MO","Charles B. Wheeler Downtown","29-0041","PU",null,"National","R","R",1169,189,69684250]
["CE","ACE","MO","Kennett","Kennett Memorial","TKX","MO","Kennett Memorial","29-0043","PU",null,"Local","GA","GA",0,19,1512000]
["CE","ACE","MO","Kirksville","Kirksville Regional","IRK","MO","Kirksville Regional","29-0045","PU",null,"Local","GA","GA",2127,35,5130000]
["CE","ACE","MO","Lamar","Lamar Municipal","LLU","MO","Lamar Municipal","29-0047","PU",null,"Other","GA","GA",0,7,3705000]
["CE","ACE","MO","Lebanon","Floyd W. Jones Lebanon","LBO","MO","Floyd W. Jones Lebanon","29-0048","PU",null,"Local","GA","GA",0,47,9002600]
["CE","ACE","MO","Lee's Summit","Lee's Summit Municipal","LXT","MO","Lee's Summit Municipal","29-0112","PU",null,"Regional","R","R",0,146,28261851]
["CE","ACE","MO","Linn","Linn State Technical College","1H3","MO","Linn State Technical College","29-0049","PU",null,"Other","GA","GA",0,9,2447500]
["CE","ACE","MO","Macon","Macon-Fower Memorial","K89","MO","Macon-Fower Memorial","29-0050","PU",null,"Basic","GA","GA",0,12,3301000]
["CE","ACE","MO","Malden","Malden Regional","MAW","MO","Malden Regional","29-0051","PU",null,"Local","GA","GA",0,19,6127705]
["CE","ACE","MO","Marshall","Marshall Memorial Municipal","MHL","MO","Marshall Memorial Municipal","29-0052","PU",null,"Local","GA","GA",0,26,2200000]
["CE","ACE","MO","Maryville","Northwest Missouri Regional","EVU","MO","Northwest Missouri Regional","29-0053","PU",null,"Local","GA","GA",0,21,1420000]
["CE","ACE","MO","Memphis","Memphis Memorial","03D","MO","Memphis Memorial","29-0125","PU",null,"Basic","GA","GA",0,11,4324895]
["CE","ACE","MO","Mexico","Mexico Memorial","MYJ","MO","Mexico Memorial","29-0100","PU",null,"Local","GA","GA",0,35,3235000]
["CE","ACE","MO","Moberly","Omar N Bradley","MBY","MO","Omar N Bradley","29-0056","PU",null,"Basic","GA","GA",2,13,3817000]
["CE","ACE","MO","Monett","Monett Municipal","HFJ","MO","Monett Municipal","29-0057","PU",null,"Local","GA","GA",1,29,10760000]
["CE","ACE","MO","Monticello","Lewis County Regional","6M6","MO","Lewis County Regional","29-0059","PU",null,"Other","GA","GA",0,4,5206000]
["CE","ACE","MO","Mosby","Midwest National Air Center","GPH","MO","Midwest National Air Center","29-0042","PU",null,"Regional","GA","GA",1,53,2540000]
["CE","ACE","MO","Mountain Grove","Mountain Grove Memorial","1MO","MO","Mountain Grove Memorial","29-0060","PU",null,"Other","GA","GA",0,8,4192895]
["CE","ACE","MO","Mountain View","Mountain View","MNF","MO","Mountain View","29-0138","PU",null,"Local","GA","GA",0,16,4412979]
["CE","ACE","MO","Neosho","Neosho Hugh Robinson","EOS","MO","Neosho Hugh Robinson","29-0063","PU",null,"Local","GA","GA",0,39,4610000]
["CE","ACE","MO","Nevada","Nevada Municipal","NVD","MO","Nevada Municipal","29-0064","PU",null,"Other","GA","GA",0,8,2450000]
["CE","ACE","MO","New Madrid","County Memorial","EIW","MO","County Memorial","29-0065","PU",null,"Basic","GA","GA",2,11,3350000]
["CE","ACE","MO","Osage Beach","Grand Glaize- Osage Beach","K15","MO","Grand Glaize- Osage Beach","29-0066","PU",null,"Local","GA","GA",0,19,2110000]
["CE","ACE","MO","Perryville","Perryville Municipal","K02","MO","Perryville Municipal","29-0067","PU",null,"Other","GA","GA",1,9,1690000]
["CE","ACE","MO","Piedmont","Piedmont Municipal","PYN","MO","Piedmont Municipal","29-0068","PU",null,"Basic","GA","GA",0,5,2736600]
["CE","ACE","MO","Poplar Bluff","Poplar Bluff Municipal","POF","MO","Poplar Bluff Municipal","29-0071","PU",null,"Local","GA","GA",23,16,4771000]
["CE","ACE","MO","Potosi","Washington County","8WC","MO","Washington County","29-0148","PU",null,"Basic","GA","GA",0,11,4650000]
["CE","ACE","MO","Rolla/Vichy","Rolla National","VIH","MO","Rolla National","29-0073","PU",null,"Local","GA","GA",7,66,10762673]
["CE","ACE","MO","Salem","Salem Memorial","K33","MO","Salem Memorial","29-0074","PU",null,"Other","GA","GA",0,9,1505195]
["CE","ACE","MO","Sedalia","Sedalia Regional","DMO","MO","Sedalia Regional","29-0075","PU",null,"Basic","GA","GA",3,12,8658000]
["CE","ACE","MO","Sikeston","Sikeston Memorial Municipal","SIK","MO","Sikeston Memorial Municipal","29-0076","PU",null,"Local","GA","GA",2,17,1420000]
["CE","ACE","MO","Springfield","Springfield-Branson National","SGF","MO","Springfield-Branson National","29-0077","PU","S",null,"P","P",381172,168,55964675]
["CE","ACE","MO","St. Charles","St Charles County Smartt","SET","MO","St Charles County Smartt","29-0079","PU",null,"Local","R","R",0,83,1520000]
["CE","ACE","MO","St. Clair","St Clair Regional","K39","MO","St Clair Regional","29-0080","PU",null,"Basic","GA","GA",0,10,1485000]
["CE","ACE","MO","St. Joseph","Rosecrans Memorial","STJ","MO","Rosecrans Memorial","29-0081","PU",null,"Regional","GA","GA",149,86,20960000]
["CE","ACE","MO","St. Louis","Creve Coeur","1H0","MO","Creve Coeur","29-0140","PR",null,"Regional","R","R",0,117,5362874]
["CE","ACE","MO","St. Louis","Lambert-St Louis International","STL","MO","Lambert-St Louis International","29-0085","PU","M",null,"P","P",6044760,18,126875500]
["CE","ACE","MO","St. Louis","Spirit of St. Louis","SUS","MO","Spirit of St. Louis","29-0082","PU",null,"National","R","R",1570,417,7168344]
["CE","ACE","MO","Sullivan","Sullivan Regional","UUV","MO","Sullivan Regional","29-0101","PU",null,"Local","GA","GA",0,18,7290000]
["CE","ACE","MO","Tarkio","Gould Peterson Municipal","K57","MO","Gould Peterson Municipal","29-0089","PU",null,"Local","GA","GA",0,21,2130000]
["CE","ACE","MO","Trenton","Trenton Municipal","TRX","MO","Trenton Municipal","29-0090","PU",null,"Other","GA","GA",2,8,820000]
["CE","ACE","MO","Warrensburg","Skyhaven","RCM","MO","Skyhaven","29-0093","PU",null,"Local","GA","GA",0,48,25820000]
["CE","ACE","MO","Warsaw","Warsaw Municipal","RAW","MO","Warsaw Municipal","29-0095","PU",null,"Other","GA","GA",0,6,4110000]
["CE","ACE","MO","Washington","Washington Regional","FYG","MO","Washington Regional","29-0096","PU",null,"Local","GA","GA",1,29,3650000]
["CE","ACE","MO","West Plains","West Plains Regional","UNO","MO","West Plains Regional","29-0111","PU",null,"Local","GA","GA",1,27,7640000]
["CE","ACE","NE","Ainsworth","Ainsworth Regional","ANW","NE","Ainsworth Regional","31-0001","PU",null,"Basic","GA","GA",0,10,3018527]
["CE","ACE","NE","Albion","Albion Municipal","BVN","NE","Albion Municipal","31-0002","PU",null,"Basic","GA","GA",0,11,1216750]
["CE","ACE","NE","Alliance","Alliance Municipal","AIA","NE","Alliance Municipal","31-0003","PU",null,"Local","GA","GA",1416,62,1304000]
["CE","ACE","NE","Alma","Alma Municipal","4D9","NE","Alma Municipal","31-0004","PU",null,"Other","GA","GA",0,2,2548295]
["CE","ACE","NE","Atkinson","Stuart-Atkinson Municipal","8V2","NE","Stuart-Atkinson Municipal","31-0079","PU",null,"Other","GA","GA",0,8,1569000]
["CE","ACE","NE","Auburn","Farington Field","K01","NE","Farington Field","31-0006","PU",null,"Other","GA","GA",0,6,3722087]
["CE","ACE","NE","Aurora","Aurora Municipal - Al Potter Field","AUH","NE","Aurora Municipal - Al Potter Field","31-0007","PU",null,"Local","GA","GA",81,25,1213275]
["CE","ACE","NE","Bassett","Rock County","RBE","NE","Rock County","31-0008","PU",null,"Other","GA","GA",0,4,2100000]
["CE","ACE","NE","Beatrice","Beatrice Municipal","BIE","NE","Beatrice Municipal","31-0009","PU",null,"Local","GA","GA",0,21,7491360]
["CE","ACE","NE","Blair","Blair Municipal","BTA","NE","Blair Municipal","31-0109","PU",null,"Local","GA","GA",0,30,15884905]
["CE","ACE","NE","Broken Bow","Broken Bow Municipal/Keith Glaze Field","BBW","NE","Broken Bow Municipal/Keith Glaze Field","31-0013","PU",null,"Basic","GA","GA",0,10,2215500]
["CE","ACE","NE","Burwell","Cram Field","BUB","NE","Cram Field","31-0014","PU",null,"Other","GA","GA",0,4,1370000]
["CE","ACE","NE","Cambridge","Cambridge Municipal","CSB","NE","Cambridge Municipal","31-0015","PU",null,"Basic","GA","GA",2,7,3425368]
["CE","ACE","NE","Central City","Central City Municipal - Larry Reineke Field","07K","NE","Central City Municipal - Larry Reineke Field","31-0016","PU",null,"Local","GA","GA",0,19,2640105]
["CE","ACE","NE","Chadron","Chadron Municipal","CDR","NE","Chadron Municipal","31-0017","PU",null,"Local","GA","GA",1769,18,2523592]
["CE","ACE","NE","Chappell","Billy G Ray Field","CNP","NE","Billy G Ray Field","31-0018","PU",null,"Other","GA","GA",0,1,1071420]
["CE","ACE","NE","Columbus","Columbus Municipal","OLU","NE","Columbus Municipal","31-0019","PU",null,"Local","GA","GA",0,35,3970000]
["CE","ACE","NE","Cozad","Cozad Municipal","CZD","NE","Cozad Municipal","31-0020","PU",null,"Basic","GA","GA",0,13,2862000]
["CE","ACE","NE","Creighton","Creighton Municipal","6K3","NE","Creighton Municipal","31-0089","PU",null,"Other","GA","GA",0,9,1046000]
["CE","ACE","NE","Crete","Crete Municipal","CEK","NE","Crete Municipal","31-0022","PU",null,"Local","GA","GA",0,41,1141000]
["CE","ACE","NE","Curtis","Curtis Municipal","47V","NE","Curtis Municipal","31-0024","PU",null,"Other","GA","GA",0,3,1885368]
["CE","ACE","NE","David City","David City Municipal","93Y","NE","David City Municipal","31-0025","PU",null,"Other","GA","GA",0,3,1133990]
["CE","ACE","NE","Fairbury","Fairbury Municipal","FBY","NE","Fairbury Municipal","31-0026","PU",null,"Basic","GA","GA",0,10,832261]
["CE","ACE","NE","Fairmont","Fairmont State Airfield","FMZ","NE","Fairmont State Airfield","31-0027","PU",null,"Basic","GA","GA",1,18,2273376]
["CE","ACE","NE","Falls City","Brenner Field","FNB","NE","Brenner Field","31-0028","PU",null,"Local","GA","GA",0,23,2394000]
["CE","ACE","NE","Fremont","Fremont Municipal","FET","NE","Fremont Municipal","31-0029","PU",null,"Local","GA","GA",0,48,1700500]
["CE","ACE","NE","Gordon","Gordon Municipal","GRN","NE","Gordon Municipal","31-0031","PU",null,"Basic","GA","GA",4,10,6811000]
["CE","ACE","NE","Grand Island","Central Nebraska Regional","GRI","NE","Central Nebraska Regional","31-0034","PU","N",null,"P","P",37101,24,9488468]
["CE","ACE","NE","Grant","Grant Municipal","GGF","NE","Grant Municipal","31-0035","PU",null,"Basic","GA","GA",0,15,1449490]
["CE","ACE","NE","Greeley","Greeley Municipal","99Y","NE","Greeley Municipal","31-0036","PU",null,"Other","GA","GA",0,0,0]
["CE","ACE","NE","Hartington","Hartington Municipal/ Bud Becker Field","0B4","NE","Hartington Municipal/ Bud Becker Field","31-0106","PU",null,"Local","GA","GA",0,17,1246000]
["CE","ACE","NE","Harvard","Harvard State","08K","NE","Harvard State","31-0039","PU",null,"Other","GA","GA",0,5,2600000]
["CE","ACE","NE","Hastings","Hastings Municipal","HSI","NE","Hastings Municipal","31-0040","PU",null,"Local","GA","GA",0,28,1511441]
["CE","ACE","NE","Hebron","Hebron Municipal","HJH","NE","Hebron Municipal","31-0041","PU",null,"Other","GA","GA",0,5,2135855]
["CE","ACE","NE","Holdrege","Brewster Field","HDE","NE","Brewster Field","31-0042","PU",null,"Local","GA","GA",0,30,1572188]
["CE","ACE","NE","Hyannis","Grant County","1V2","NE","Grant County","31-0043","PU",null,"Basic","GA","GA",0,5,1500449]
["CE","ACE","NE","Imperial","Imperial Municipal","IML","NE","Imperial Municipal","31-0044","PU",null,"Basic","GA","GA",4,12,3610000]
["CE","ACE","NE","Kearney","Kearney Regional","EAR","NE","Kearney Regional","31-0045","PU",null,"Regional","CS","CS",9530,29,11368813]
["CE","ACE","NE","Kimball","Kimball Municipal/Robert E Arraj Field","IBM","NE","Kimball Municipal/Robert E Arraj Field","31-0047","PU",null,"Basic","GA","GA",0,11,943000]
["CE","ACE","NE","Lexington","Jim Kelly Field","LXN","NE","Jim Kelly Field","31-0048","PU",null,"Local","GA","GA",0,21,1337422]
["CE","ACE","NE","Lincoln","Lincoln","LNK","NE","Lincoln","31-0050","PU","N",null,"P","P",143230,235,6648421]
["CE","ACE","NE","Loup City","Loup City Municipal","0F4","NE","Loup City Municipal","31-0051","PU",null,"Other","GA","GA",0,6,1577000]
["CE","ACE","NE","McCook","McCook Ben Nelson Regional","MCK","NE","McCook Ben Nelson Regional","31-0052","PU",null,"Local","GA","GA",1993,31,1056510]
["CE","ACE","NE","Minden","Pioneer Village Field","0V3","NE","Pioneer Village Field","31-0054","PU",null,"Local","GA","GA",0,16,1202763]
["CE","ACE","NE","Nebraska City","Nebraska City Municipal","AFK","NE","Nebraska City Municipal","31-0056","PU",null,"Basic","GA","GA",10,12,1746985]
["CE","ACE","NE","Neligh","Antelope County","4V9","NE","Antelope County","31-0057","PU",null,"Local","GA","GA",0,20,3735410]
["CE","ACE","NE","Norfolk","Norfolk Regional/Karl Stefan Memorial Field","OFK","NE","Norfolk Regional/Karl Stefan Memorial Field","31-0058","PU",null,"Regional","GA","GA",0,35,9319481]
["CE","ACE","NE","North Platte","North Platte Regional Airport Lee Bird Field","LBF","NE","North Platte Regional Airport Lee Bird Field","31-0059","PU",null,"Regional","CS","CS",8391,48,2026000]
["CE","ACE","NE","O'Neill","The O'Neill Municipal-John L Baker Field","ONL","NE","The O'Neill Municipal-John L Baker Field","31-0060","PU",null,"Basic","GA","GA",45,14,3280000]
["CE","ACE","NE","Ogallala","Searle Field","OGA","NE","Searle Field","31-0061","PU",null,"Basic","GA","GA",0,12,2657500]
["CE","ACE","NE","Omaha","Millard","MLE","NE","Millard","31-0053","PU",null,"Regional","R","R",1,124,1801244]
["CE","ACE","NE","Omaha","Eppley Airfield","OMA","NE","Eppley Airfield","31-0062","PU","M",null,"P","P",2097958,122,55237381]
["CE","ACE","NE","Ord","Evelyn Sharp Field","ODX","NE","Evelyn Sharp Field","31-0064","PU",null,"Basic","GA","GA",0,9,1997415]
["CE","ACE","NE","Oshkosh","Garden County","OKS","NE","Garden County","31-0065","PU",null,"Other","GA","GA",0,8,1349390]
["CE","ACE","NE","Pawnee City","Pawnee City Municipal","50K","NE","Pawnee City Municipal","31-0100","PU",null,"Other","GA","GA",0,2,1220000]
["CE","ACE","NE","Pender","Pender Municipal","0C4","NE","Pender Municipal","31-0066","PU",null,"Basic","GA","GA",0,14,1002000]
["CE","ACE","NE","Plattsmouth","Plattsmouth Municipal","PMV","NE","Plattsmouth Municipal","31-0068","PU",null,"Local","GA","GA",0,32,3694716]
["CE","ACE","NE","Red Cloud","Red Cloud Municipal","7V7","NE","Red Cloud Municipal","31-0105","PU",null,"Other","GA","GA",0,7,1325000]
["CE","ACE","NE","Rushville","Modisett","9V5","NE","Modisett","31-0070","PU",null,"Other","GA","GA",0,4,869475]
["CE","ACE","NE","Sargent","Sargent Municipal","09K","NE","Sargent Municipal","31-0103","PU",null,"Other","GA","GA",0,2,3089280]
["CE","ACE","NE","Scottsbluff","Western Nebraska Regional/William B. Heilig Field","BFF","NE","Western Nebraska Regional/William B. Heilig Field","31-0072","PU",null,"Regional","CS","CS",9864,53,8360662]
["CE","ACE","NE","Scribner","Scribner State","SCB","NE","Scribner State","31-0073","PU",null,"Local","GA","GA",0,13,2300000]
["CE","ACE","NE","Seward","Seward Municipal","SWT","NE","Seward Municipal","31-0074","PU",null,"Local","GA","GA",0,28,850000]
["CE","ACE","NE","Sidney","Sidney Municipal/Lloyd W. Carr Field","SNY","NE","Sidney Municipal/Lloyd W. Carr Field","31-0075","PU",null,"Local","GA","GA",0,27,3288289]
["CE","ACE","NE","Superior","Superior Municipal","12K","NE","Superior Municipal","31-0080","PU",null,"Basic","GA","GA",0,9,1004768]
["CE","ACE","NE","Tecumseh","Tecumseh Municipal","0G3","NE","Tecumseh Municipal","31-0081","PU",null,"Other","GA","GA",0,3,3001000]
["CE","ACE","NE","Tekamah","Tekamah Municipal","TQE","NE","Tekamah Municipal","31-0082","PU",null,"Local","GA","GA",0,20,3586000]
["CE","ACE","NE","Thedford","Thomas County","TIF","NE","Thomas County","31-0093","PU",null,"Basic","GA","GA",0,3,2881000]
["CE","ACE","NE","Valentine","Miller Field","VTN","NE","Miller Field","31-0084","PU",null,"Local","GA","GA",0,20,3450456]
["CE","ACE","NE","Wahoo","Wahoo Municipal","AHQ","NE","Wahoo Municipal","31-0085","PU",null,"Local","GA","GA",0,28,1196500]
["CE","ACE","NE","Wayne","Wayne Municipal/ Stan Morris Field","LCG","NE","Wayne Municipal/ Stan Morris Field","31-0086","PU",null,"Local","GA","GA",0,18,1965350]
["CE","ACE","NE","York","York Municipal","JYR","NE","York Municipal","31-0104","PU",null,"Local","GA","GA",0,17,1255000]
["EA","BEC","WV","Beckley","Raleigh County Memorial","BKW","WV","Raleigh County Memorial","54-0001","PU",null,"Regional","GA","GA",2429,58,5473685]
["EA","BEC","WV","Bluefield","Mercer County","BLF","WV","Mercer County","54-0002","PU",null,"Local","GA","GA",0,21,6657895]
["EA","BEC","WV","Buckhannon","Upshur County Regional","W22","WV","Upshur County Regional","54-0039","PU",null,"Local","GA","GA",0,15,814012]
["EA","BEC","WV","Charleston","Yeager","CRW","WV","Yeager","54-0003","PU","N",null,"P","P",264818,92,9856119]
["EA","BEC","WV","Clarksburg","North Central West Virginia","CKB","WV","North Central West Virginia","54-0005","PU","N",null,"P","P",10694,68,4215791]
["EA","BEC","WV","Elkins","Elkins-Randolph County-Jennings Randolph Field","EKN","WV","Elkins-Randolph County-Jennings Randolph Field","54-0007","PU",null,"Local","GA","GA",0,19,2137171]
["EA","BEC","WV","Fairmont","Fairmont Municipal-Frankman Field","4G7","WV","Fairmont Municipal-Frankman Field","54-0008","PU",null,"Local","GA","GA",0,30,3490045]
["EA","BEC","WV","Huntington","Tri-State/Milton J. Ferguson Field","HTS","WV","Tri-State/Milton J. Ferguson Field","54-0010","PU","N",null,"P","P",115263,45,13090872]
["EA","BEC","WV","Lewisburg","Greenbrier Valley","LWB","WV","Greenbrier Valley","54-0012","PU","N",null,"P","P",12293,26,6894737]
["EA","BEC","WV","Logan","Logan County","6L4","WV","Logan County","54-0013","PU",null,"Local","GA","GA",0,17,2399999]
["EA","BEC","WV","Martinsburg","Eastern WV Regional/Shepherd Field","MRB","WV","Eastern WV Regional/Shepherd Field","54-0014","PU",null,"Local","R","R",2,69,5181579]
["EA","BEC","WV","Morgantown","Morgantown Municipal-Walter L. Bill Hart Field","MGW","WV","Morgantown Municipal-Walter L. Bill Hart Field","54-0015","PU","N",null,"P","P",11249,51,77268421]
["EA","BEC","WV","Moundsville","Marshall County","MPG","WV","Marshall County","54-0016","PU",null,"Other","GA","GA",2,9,814758]
["EA","BEC","WV","Parkersburg","Mid-Ohio Valley Regional","PKB","WV","Mid-Ohio Valley Regional","54-0018","PU",null,"Regional","CS","CS",5477,46,11923361]
["EA","BEC","WV","Petersburg","Grant County","W99","WV","Grant County","54-0019","PU",null,"Local","GA","GA",1,21,1108420]
["EA","BEC","WV","Philippi","Philippi/Barbour County Regional","79D","WV","Philippi/Barbour County Regional","54-0040","PU",null,"Basic","GA","GA",0,11,1214474]
["EA","BEC","WV","Pineville","Kee Field","I16","WV","Kee Field","54-0020","PU",null,"Other","GA","GA",0,7,2264233]
["EA","BEC","WV","Point Pleasant","Mason County","3I2","WV","Mason County","54-0021","PU",null,"Local","GA","GA",0,15,1631579]
["EA","BEC","WV","Ravenswood","Jackson County","I18","WV","Jackson County","54-0023","PU",null,"Local","GA","GA",0,21,944261]
["EA","BEC","WV","Summersville","Summersville","SXL","WV","Summersville","54-0025","PU",null,"Basic","GA","GA",0,8,647896]
["EA","BEC","WV","Sutton","Braxton County","48I","WV","Braxton County","54-0026","PU",null,"Basic","GA","GA",0,9,3393618]
["EA","BEC","WV","Wheeling","Wheeling Ohio County","HLG","WV","Wheeling Ohio County","54-0030","PU",null,"Regional","GA","GA",8,36,1000001]
["EA","BEC","WV","Williamson","Mingo County Regional","EBD","WV","Mingo County Regional","54-0041","PU",null,null,"GA","GA",0,12,1105263]
["EA","HAR","DE","Dover/Cheswold","Delaware Airpark","33N","DE","Delaware Airpark","10-0001","PU",null,"Local","GA","GA",0,56,13752756]
["EA","HAR","DE","Georgetown","Sussex County","GED","DE","Sussex County","10-0007","PU",null,"Regional","GA","GA",19,61,13213594]
["EA","HAR","DE","Middletown","Summit","EVY","DE","Summit","10-0003","PR",null,"Other","R","R",0,43,0]
["EA","HAR","DE","Wilmington","New Castle","ILG","DE","New Castle","10-0006","PU",null,"National","R","R",789,169,21739028]
["EA","HAR","NJ","Atlantic City","Atlantic City International","ACY","NJ","Atlantic City International","34-0002","PU","S",null,"P","P",669470,48,26939945]
["EA","HAR","NJ","Belmar/Farmingdale","Monmouth Executive","BLM","NJ","Monmouth Executive","34-0005","PR",null,"Regional","R","R",68,246,0]
["EA","HAR","NJ","Caldwell","Essex County","CDW","NJ","Essex County","34-0011","PU",null,"Regional","R","R",14,203,6341278]
["EA","HAR","NJ","Hammonton","Hammonton Municipal","N81","NJ","Hammonton Municipal","34-0017","PU",null,"Local","GA","GA",0,31,5262921]
["EA","HAR","NJ","Lakewood","Lakewood","N12","NJ","Lakewood","34-0076","PU",null,"Local","GA","GA",0,47,1441927]
["EA","HAR","NJ","Lincoln Park","Lincoln Park","N07","NJ","Lincoln Park","34-0057","PR",null,"Local","R","R",0,110,938824]
["EA","HAR","NJ","Linden","Linden","LDJ","NJ","Linden","34-0019","PU",null,"Regional","R","R",8,97,1711579]
["EA","HAR","NJ","Manville","Central Jersey Regional","47N","NJ","Central Jersey Regional","34-0051","PR",null,"Local","R","R",0,96,0]
["EA","HAR","NJ","Millville","Millville Municipal","MIV","NJ","Millville Municipal","34-0022","PU",null,"Regional","GA","GA",6,54,10096518]
["EA","HAR","NJ","Morristown","Morristown Municipal","MMU","NJ","Morristown Municipal","34-0023","PU",null,"National","R","R",729,189,82058740]
["EA","HAR","NJ","Mount Holly","South Jersey Regional","VAY","NJ","South Jersey Regional","34-0054","PU",null,"Local","R","R",0,96,3881250]
["EA","HAR","NJ","Ocean City","Ocean City Municipal","26N","NJ","Ocean City Municipal","34-0029","PU",null,"Local","GA","GA",2,27,2205046]
["EA","HAR","NJ","Princeton/Rocky Hill","Princeton","39N","NJ","Princeton","34-0032","PR",null,"Local","R","R",6,94,791053]
["EA","HAR","NJ","Readington","Solberg-Hunterdon","N51","NJ","Solberg-Hunterdon","34-0033","PR",null,"Other","R","R",0,71,0]
["EA","HAR","NJ","Robbinsville","Trenton-Robbinsville","N87","NJ","Trenton-Robbinsville","34-0035","PR",null,"Other","R","R",2,56,2041487]
["EA","HAR","NJ","Somerville","Somerset","SMQ","NJ","Somerset","34-0061","PR",null,"Regional","R","R",9,131,3004605]
["EA","HAR","NJ","Sussex","Sussex","FWN","NJ","Sussex","34-0037","PR",null,"Local","R","R",0,70,0]
["EA","HAR","NJ","Toms River","Robert J. Miller Air Park","MJX","NJ","Robert J. Miller Air Park","34-0041","PU",null,"Local","GA","GA",0,69,17460190]
["EA","HAR","NJ","Trenton","Trenton Mercer","TTN","NJ","Trenton Mercer","34-0042","PU",null,"National","GA","GA",853,138,56935677]
["EA","HAR","NJ","West Milford","Greenwood Lake","4N1","NJ","Greenwood Lake","34-0044","PU",null,"Local","GA","GA",0,62,3819079]
["EA","HAR","NJ","Wildwood","Cape May County","WWD","NJ","Cape May County","34-0045","PU",null,"Regional","GA","GA",13,49,30986372]
["EA","HAR","NJ","Woodbine","Woodbine Municipal","OBI","NJ","Woodbine Municipal","34-0046","PU",null,"Local","GA","GA",0,65,5637895]
["EA","HAR","PA","Allentown","Lehigh Valley International","ABE","PA","Lehigh Valley International","42-0001","PU","S",null,"P","P",414427,138,37998846]
["EA","HAR","PA","Allentown","Allentown Queen City Municipal","XLL","PA","Allentown Queen City Municipal","42-0002","PU",null,"Regional","GA","GA",0,104,6315372]
["EA","HAR","PA","Altoona","Altoona-Blair County","AOO","PA","Altoona-Blair County","42-0055","PU",null,"Regional","CS","CS",4378,56,11359409]
["EA","HAR","PA","Beaver Falls","Beaver County","BVI","PA","Beaver County","42-0004","PU",null,"Regional","R","R",1,126,2125000]
["EA","HAR","PA","Bedford","Bedford County","HMZ","PA","Bedford County","42-0006","PU",null,"Local","GA","GA",0,20,1939000]
["EA","HAR","PA","Bloomsburg","Bloomsburg Municipal","N13","PA","Bloomsburg Municipal","42-0007","PU",null,"Local","GA","GA",0,26,1311842]
["EA","HAR","PA","Bradford","Bradford Regional","BFD","PA","Bradford Regional","42-0008","PU",null,"Regional","CS","CS",2962,21,4650426]
["EA","HAR","PA","Butler","Butler County/K W Scholter Field","BTP","PA","Butler County/K W Scholter Field","42-0010","PU",null,"Regional","R","R",6,113,1818724]
["EA","HAR","PA","Chambersburg","Franklin County Regional","N68","PA","Franklin County Regional","42-0012","PU",null,"Local","GA","GA",0,15,1267105]
["EA","HAR","PA","Clarion","Clarion County","AXQ","PA","Clarion County","42-0013","PU",null,"Local","GA","GA",0,22,1615645]
["EA","HAR","PA","Clearfield","Clearfield-Lawrence","FIG","PA","Clearfield-Lawrence","42-0014","PU",null,"Local","GA","GA",0,15,1317690]
["EA","HAR","PA","Coatesville","Chester County G O Carlson","MQS","PA","Chester County G O Carlson","42-0016","PU",null,"National","R","R",51,118,3368421]
["EA","HAR","PA","Connellsville","Joseph A. Hardy Connellsville","VVS","PA","Joseph A. Hardy Connellsville","42-0018","PU",null,"Local","GA","GA",0,43,1025000]
["EA","HAR","PA","Corry","Corry-Lawrence","8G2","PA","Corry-Lawrence","42-0020","PU",null,"Basic","GA","GA",0,11,2232895]
["EA","HAR","PA","Doylestown","Doylestown","DYL","PA","Doylestown","42-0022","PU",null,"Regional","R","R",0,157,4105263]
["EA","HAR","PA","DuBois","Dubois Regional","DUJ","PA","Dubois Regional","42-0023","PU",null,"Local","CS","CS",5728,18,1004376]
["EA","HAR","PA","Ebensburg","Ebensburg","9G8","PA","Ebensburg","42-0026","PU",null,"Other","GA","GA",0,8,1238592]
["EA","HAR","PA","Erie","Erie International/Tom Ridge Field","ERI","PA","Erie International/Tom Ridge Field","42-0030","PU","N",null,"P","P",127184,39,13619677]
["EA","HAR","PA","Franklin","Venango Regional","FKL","PA","Venango Regional","42-0032","PU",null,"Regional","GA","GA",1380,50,802106]
["EA","HAR","PA","Gettysburg","Gettysburg Regional","W05","PA","Gettysburg Regional","42-0033","PU",null,"Basic","GA","GA",4,10,4936399]
["EA","HAR","PA","Greenville","Greenville Municipal","4G1","PA","Greenville Municipal","42-0034","PU",null,"Local","GA","GA",0,22,1350527]
["EA","HAR","PA","Grove City","Grove City","29D","PA","Grove City","42-0035","PU",null,"Other","GA","GA",0,7,665789]
["EA","HAR","PA","Harrisburg","Capital City","CXY","PA","Capital City","42-0038","PU",null,"Regional","R","R",11,96,2655784]
["EA","HAR","PA","Harrisburg","Harrisburg International","MDT","PA","Harrisburg International","42-0059","PU","S",null,"P","P",664968,28,29183435]
["EA","HAR","PA","Hazleton","Hazleton Municipal","HZL","PA","Hazleton Municipal","42-0039","PU",null,"Local","GA","GA",1,39,1855460]
["EA","HAR","PA","Indiana","Indiana County/Jimmy Stewart Field/","IDI","PA","Indiana County/Jimmy Stewart Field/","42-0043","PU",null,"Local","GA","GA",44,39,802368]
["EA","HAR","PA","Johnstown","John Murtha Johnstown-Cambria County","JST","PA","John Murtha Johnstown-Cambria County","42-0045","PU",null,"Regional","CS","CS",8457,24,25040146]
["EA","HAR","PA","Lancaster","Lancaster","LNS","PA","Lancaster","42-0049","PU",null,"Regional","CS","CS",6410,141,2374381]
["EA","HAR","PA","Latrobe","Arnold Palmer Regional","LBE","PA","Arnold Palmer Regional","42-0050","PU",null,"Regional","GA","GA",6978,148,6446962]
["EA","HAR","PA","Lehighton","Jake Arner Memorial","22N","PA","Jake Arner Memorial","42-0109","PU",null,"Local","GA","GA",0,35,0]
["EA","HAR","PA","Lock Haven","William T. Piper Memorial","LHV","PA","William T. Piper Memorial","42-0053","PU",null,"Local","GA","GA",0,58,1109277]
["EA","HAR","PA","Meadville","Port Meadville","GKJ","PA","Port Meadville","42-0057","PU",null,"Regional","GA","GA",16,27,899395]
["EA","HAR","PA","Monongahela","Rostraver","FWQ","PA","Rostraver","42-0061","PU",null,"Regional","R","R",3,111,2952974]
["EA","HAR","PA","Mount Pocono","Pocono Mountains Municipal","MPO","PA","Pocono Mountains Municipal","42-0065","PU",null,"Local","GA","GA",8,20,833685]
["EA","HAR","PA","New Castle","New Castle Municipal","UCP","PA","New Castle Municipal","42-0068","PU",null,"Local","GA","GA",0,55,1636777]
["EA","HAR","PA","Philadelphia","Wings Field","LOM","PA","Wings Field","42-0079","PR",null,"Regional","R","R",256,100,1885263]
["EA","HAR","PA","Philadelphia","Philadelphia International","PHL","PA","Philadelphia International","42-0076","PU","L",null,"P","P",14951254,26,2635645916]
["EA","HAR","PA","Philadelphia","Northeast Philadelphia","PNE","PA","Northeast Philadelphia","42-0074","PU",null,"National","R","R",312,166,5789827]
["EA","HAR","PA","Philipsburg","Mid-State","PSB","PA","Mid-State","42-0080","PU",null,"Other","GA","GA",0,8,0]
["EA","HAR","PA","Pittsburgh","Allegheny County","AGC","PA","Allegheny County","42-0082","PU",null,"National","R","R",129,121,10469737]
["EA","HAR","PA","Pittsburgh","Pittsburgh International","PIT","PA","Pittsburgh International","42-0081","PU","M",null,"P","P",3996656,27,71675635]
["EA","HAR","PA","Pottstown","Pottstown Municipal","N47","PA","Pottstown Municipal","42-0083","PU",null,"Local","GA","GA",0,42,2840000]
["EA","HAR","PA","Pottstown","Heritage Field","PTW","PA","Heritage Field","42-0114","PR",null,"Regional","R","R",3,90,0]
["EA","HAR","PA","Pottsville","Schuylkill County /Joe Zerbey/","ZER","PA","Schuylkill County /Joe Zerbey/","42-0084","PU",null,"Local","GA","GA",1,27,1032630]
["EA","HAR","PA","Punxsutawney","Punxsutawney Municipal","N35","PA","Punxsutawney Municipal","42-0086","PU",null,"Other","GA","GA",0,8,1249118]
["EA","HAR","PA","Quakertown","Quakertown","UKT","PA","Quakertown","42-0087","PU",null,"Local","GA","GA",0,78,1434211]
["EA","HAR","PA","Reading","Reading Regional/Carl A Spaatz Field","RDG","PA","Reading Regional/Carl A Spaatz Field","42-0088","PU",null,"National","GA","GA",1703,116,4500000]
["EA","HAR","PA","Reedsville","Mifflin County","RVL","PA","Mifflin County","42-0089","PU",null,"Local","GA","GA",2,28,1054079]
["EA","HAR","PA","Selinsgrove","Penn Valley","SEG","PA","Penn Valley","42-0091","PU",null,"Regional","GA","GA",0,25,805264]
["EA","HAR","PA","Shamokin","Northumberland County","N79","PA","Northumberland County","42-0092","PU",null,"Local","GA","GA",0,18,1204078]
["EA","HAR","PA","Somerset","Somerset County","2G9","PA","Somerset County","42-0094","PU",null,"Local","GA","GA",0,25,893685]
["EA","HAR","PA","St. Marys","St Marys Municipal","OYM","PA","St Marys Municipal","42-0095","PU",null,"Local","GA","GA",0,14,1239474]
["EA","HAR","PA","State College","University Park","UNV","PA","University Park","42-0096","PU","N",null,"P","P",143531,62,12494635]
["EA","HAR","PA","Titusville","Titusville","6G1","PA","Titusville","42-0098","PU",null,"Basic","GA","GA",4,13,1056580]
["EA","HAR","PA","Toughkenamon","New Garden","N57","PA","New Garden","42-0113","PU",null,"Local","R","R",0,95,3659269]
["EA","HAR","PA","Towanda","Bradford County","N27","PA","Bradford County","42-0111","PU",null,"Local","GA","GA",2,29,1775790]
["EA","HAR","PA","Washington","Washington County","AFJ","PA","Washington County","42-0101","PU",null,"Regional","GA","GA",3,70,3125527]
["EA","HAR","PA","Wellsboro","Wellsboro Johnston","N38","PA","Wellsboro Johnston","42-0103","PU",null,"Basic","GA","GA",0,13,0]
["EA","HAR","PA","West Chester","Brandywine","OQN","PA","Brandywine","42-0115","PR",null,"Regional","R","R",0,115,2439606]
["EA","HAR","PA","Wilkes-Barre","Wilkes-Barre Wyoming Valley","WBW","PA","Wilkes-Barre Wyoming Valley","42-0104","PU",null,"Local","GA","GA",0,50,1047925]
["EA","HAR","PA","Wilkes-Barre/Scranton","Wilkes-Barre/Scranton International","AVP","PA","Wilkes-Barre/Scranton International","42-0105","PU","N",null,"P","P",213422,37,18929350]
["EA","HAR","PA","Williamsport","Williamsport Regional","IPT","PA","Williamsport Regional","42-0106","PU","N",null,"P","P",22519,37,10526317]
["EA","HAR","PA","Zelienople","Zelienople Municipal","PJC","PA","Zelienople Municipal","42-0108","PU",null,"Local","GA","GA",12,23,1057895]
["EA","NYC","NJ","Newark","Newark Liberty International","EWR","NJ","Newark Liberty International","34-0027","PU","L",null,"P","P",16571754,1,344498325]
["EA","NYC","NJ","Teterboro","Teterboro","TEB","NJ","Teterboro","34-0039","PU",null,"National","R","R",6725,132,20363216]
["EA","NYC","NY","Akron","Akron","9G3","NY","Akron","36-0206","PR",null,"Other","R","R",0,54,3716232]
["EA","NYC","NY","Albany","Albany International","ALB","NY","Albany International","36-0001","PU","S",null,"P","P",1250282,83,16355570]
["EA","NYC","NY","Batavia","Genesee County","GVQ","NY","Genesee County","36-0006","PU",null,"Regional","R","R",1,56,7138303]
["EA","NYC","NY","Bayport","Bayport Aerodrome","23N","NY","Bayport Aerodrome","36-0130","PU",null,"Local","GA","GA",0,41,1302000]
["EA","NYC","NY","Binghamton","Greater Binghamton/Edwin A Link Field","BGM","NY","Greater Binghamton/Edwin A Link Field","36-0008","PU","N",null,"P","P",108988,32,41709387]
["EA","NYC","NY","Brockport","Ledgedale Airpark","7G0","NY","Ledgedale Airpark","36-0173","PR",null,"Other","R","R",0,38,0]
["EA","NYC","NY","Buffalo","Buffalo Airfield","9G0","NY","Buffalo Airfield","36-0202","PR",null,"Other","R","R",0,23,607895]
["EA","NYC","NY","Buffalo","Buffalo Niagara International","BUF","NY","Buffalo Niagara International","36-0009","PU","M",null,"P","P",2602968,42,63669447]
["EA","NYC","NY","Canandaigua","Canandaigua","D38","NY","Canandaigua","36-0093","PU",null,"Local","R","R",16,42,3073073]
["EA","NYC","NY","Corning","Corning-Painted Post","7N1","NY","Corning-Painted Post","36-0193","PU",null,"Local","GA","GA",0,27,1123684]
["EA","NYC","NY","Cortland","Cortland County-Chase Field","N03","NY","Cortland County-Chase Field","36-0017","PU",null,"Local","GA","GA",0,38,1615849]
["EA","NYC","NY","Dansville","Dansville Municipal","DSV","NY","Dansville Municipal","36-0018","PU",null,"Local","GA","GA",0,33,3297861]
["EA","NYC","NY","Duanesburg","Duanesburg","4B1","NY","Duanesburg","36-0194","PR",null,"Other","GA","GA",0,6,0]
["EA","NYC","NY","Dunkirk","Chautauqua County/Dunkirk","DKK","NY","Chautauqua County/Dunkirk","36-0022","PU",null,"Regional","GA","GA",0,39,1221580]
["EA","NYC","NY","East Hampton","East Hampton","HTO","NY","East Hampton","36-0024","PU",null,"Regional","GA","GA",353,89,0]
["EA","NYC","NY","East Moriches","Spadaro","1N2","NY","Spadaro","36-0228","PR",null,"Other","R","R",0,14,1068207]
["EA","NYC","NY","Ellenville","Joseph Y Resnick","N89","NY","Joseph Y Resnick","36-0201","PU",null,"Local","GA","GA",4,26,3373059]
["EA","NYC","NY","Elmira/Corning","Elmira/Corning Regional","ELM","NY","Elmira/Corning Regional","36-0026","PU","N",null,"P","P",131358,54,11154592]
["EA","NYC","NY","Endicott","Tri-Cities","CZG","NY","Tri-Cities","36-0027","PU",null,"Local","GA","GA",0,48,2697079]
["EA","NYC","NY","Farmingdale","Republic","FRG","NY","Republic","36-0028","PU",null,"National","R","R",2783,527,36448055]
["EA","NYC","NY","Fishers Island","Elizabeth Field","0B8","NY","Elizabeth Field","36-0029","PU",null,"Basic","GA","GA",66,6,1850000]
["EA","NYC","NY","Freehold","Freehold","1I5","NY","Freehold","36-0217","PR",null,"Other","GA","GA",0,16,0]
["EA","NYC","NY","Fulton","Oswego County","FZY","NY","Oswego County","36-0031","PU",null,"Regional","GA","GA",1,63,9285992]
["EA","NYC","NY","Gasport","Royalton","9G5","NY","Royalton","36-3605","PR",null,"Other","GA","GA",0,40,0]
["EA","NYC","NY","Glens Falls","Floyd Bennett Memorial","GFL","NY","Floyd Bennett Memorial","36-0033","PU",null,"Regional","GA","GA",46,49,16561083]
["EA","NYC","NY","Hamilton","Hamilton Municipal","VGC","NY","Hamilton Municipal","36-0192","PU",null,"Local","GA","GA",11,33,2547895]
["EA","NYC","NY","Hornell","Hornell Municipal","HTF","NY","Hornell Municipal","36-0041","PU",null,"Local","GA","GA",4,19,1636110]
["EA","NYC","NY","Hudson","Columbia County","1B1","NY","Columbia County","36-0042","PU",null,"Regional","GA","GA",15,27,3583947]
["EA","NYC","NY","Ithaca","Ithaca Tompkins Regional","ITH","NY","Ithaca Tompkins Regional","36-0047","PU","N",null,"P","P",121390,60,1850000]
["EA","NYC","NY","Jamestown","Chautauqua County/Jamestown","JHW","NY","Chautauqua County/Jamestown","36-0048","PU",null,"Regional","CS","CS",3679,25,5091508]
["EA","NYC","NY","Johnstown","Fulton County","NY0","NY","Fulton County","36-0049","PU",null,"Local","GA","GA",0,35,4538843]
["EA","NYC","NY","Kingston","Kingston-Ulster","20N","NY","Kingston-Ulster","36-0222","PR",null,"Other","R","R",10,35,3237904]
["EA","NYC","NY","Lake Placid","Lake Placid","LKP","NY","Lake Placid","36-0051","PU",null,"Other","GA","GA",21,6,2475000]
["EA","NYC","NY","Lancaster","Buffalo-Lancaster Regional","BQR","NY","Buffalo-Lancaster Regional","36-0216","PR",null,"Other","R","R",0,53,3650879]
["EA","NYC","NY","Le Roy","Le Roy","5G0","NY","Le Roy","36-0221","PR",null,"Other","R","R",0,19,2316317]
["EA","NYC","NY","Lockport","North Buffalo Suburban","0G0","NY","North Buffalo Suburban","36-0218","PR",null,"Other","GA","GA",0,31,0]
["EA","NYC","NY","Malone","Malone-Dufort","MAL","NY","Malone-Dufort","36-0053","PU",null,"Basic","GA","GA",0,14,2521407]
["EA","NYC","NY","Massena","Massena International-Richards Field","MSS","NY","Massena International-Richards Field","36-0054","PU",null,"Regional","CS","CS",3350,10,3604050]
["EA","NYC","NY","Middletown","Randall","06N","NY","Randall","36-0224","PR",null,"Other","R","R",0,17,1631751]
["EA","NYC","NY","Millbrook","Sky Acres","44N","NY","Sky Acres","36-0223","PR",null,"Other","R","R",7,43,1070978]
["EA","NYC","NY","Montauk","Montauk","MTP","NY","Montauk","36-0226","PR",null,"Other","R","R",22,12,2334905]
["EA","NYC","NY","Montgomery","Orange County","MGJ","NY","Orange County","36-0059","PU",null,"Regional","GA","GA",11,170,20779826]
["EA","NYC","NY","Monticello","Sullivan County International","MSV","NY","Sullivan County International","36-0060","PU",null,"Local","GA","GA",22,41,4038372]
["EA","NYC","NY","New York","East 34th Street","6N5","NY","East 34th Street","36-0184","PU",null,"Other","GA","GA",241,0,0]
["EA","NYC","NY","New York","New York Skyports Inc","6N7","NY","New York Skyports Inc","36-0185","PU",null,"Other","GA","GA",0,0,0]
["EA","NYC","NY","New York","Long Island MacArthur","ISP","NY","Long Island MacArthur","36-0046","PU","S",null,"P","P",858741,225,48278787]
["EA","NYC","NY","New York","John F Kennedy International","JFK","NY","John F Kennedy International","36-0066","PU","L",null,"P","P",22934047,0,280792418]
["EA","NYC","NY","New York","West 30th St.","JRA","NY","West 30th St.","36-0186","PU",null,"Other","GA","GA",82,0,0]
["EA","NYC","NY","New York","Downtown Manhattan/Wall St","JRB","NY","Downtown Manhattan/Wall St","36-0073","PU",null,"Other","GA","GA",28,0,0]
["EA","NYC","NY","New York","La Guardia","LGA","NY","La Guardia","36-0068","PU","L",null,"P","P",12001501,0,246871426]
["EA","NYC","NY","Newburgh","Stewart International","SWF","NY","Stewart International","36-0085","PU","N",null,"P","P",201684,92,88439013]
["EA","NYC","NY","Niagara Falls","Niagara Falls International","IAG","NY","Niagara Falls International","36-0086","PU","N",null,"P","P",23849,47,27125241]
["EA","NYC","NY","Norwich","Lt Warren Eaton","OIC","NY","Lt Warren Eaton","36-0088","PU",null,"Basic","GA","GA",2,13,2180671]
["EA","NYC","NY","Ogdensburg","Ogdensburg International","OGS","NY","Ogdensburg International","36-0089","PU",null,"Basic","GA","GA",2329,7,9720103]
["EA","NYC","NY","Olean","Cattaraugus County-Olean","OLE","NY","Cattaraugus County-Olean","36-0091","PU",null,"Basic","GA","GA",16,12,909000]
["EA","NYC","NY","Oneonta","Oneonta Municipal","N66","NY","Oneonta Municipal","36-0092","PU",null,"Basic","GA","GA",25,9,3481579]
["EA","NYC","NY","Penn Yan","Penn Yan","PEO","NY","Penn Yan","36-0094","PU",null,"Local","GA","GA",262,31,3224790]
["EA","NYC","NY","Perry","Perry-Warsaw","01G","NY","Perry-Warsaw","36-0095","PU",null,"Basic","GA","GA",0,21,700000]
["EA","NYC","NY","Piseco","Piseco","K09","NY","Piseco","36-0096","PU",null,"Basic","GA","GA",0,2,1965000]
["EA","NYC","NY","Plattsburgh","Plattsburgh International","PBG","NY","Plattsburgh International","36-0229","PU","N",null,"P","P",94808,41,55292318]
["EA","NYC","NY","Potsdam","Potsdam Municipal/Damon Field/","PTD","NY","Potsdam Municipal/Damon Field/","36-0099","PU",null,"Basic","GA","GA",18,14,4940250]
["EA","NYC","NY","Poughkeepsie","Dutchess County","POU","NY","Dutchess County","36-0100","PU",null,"Regional","GA","GA",29,106,5792000]
["EA","NYC","NY","Red Hook","Sky Park","46N","NY","Sky Park","36-0157","PR",null,"Other","GA","GA",0,0,0]
["EA","NYC","NY","Rochester","Greater Rochester International","ROC","NY","Greater Rochester International","36-0102","PU","S",null,"P","P",1263965,75,55233145]
["EA","NYC","NY","Rome","Griffiss International","RME","NY","Griffiss International","36-0119","PU",null,"Regional","GA","GA",1082,58,49512124]
["EA","NYC","NY","Saranac Lake","Adirondack Regional","SLK","NY","Adirondack Regional","36-0105","PU",null,"Regional","CS","CS",5762,14,4820395]
["EA","NYC","NY","Saratoga Springs","Saratoga County","5B2","NY","Saratoga County","36-0004","PU",null,"Regional","GA","GA",35,38,4400923]
["EA","NYC","NY","Schenectady","Schenectady County","SCH","NY","Schenectady County","36-0106","PU",null,"Regional","R","R",26,96,8904667]
["EA","NYC","NY","Schroon Lake","Schroon Lake","4B7","NY","Schroon Lake","36-0211","PU",null,"Other","GA","GA",0,1,1100000]
["EA","NYC","NY","Seneca Falls","Finger Lakes Regional","0G7","NY","Finger Lakes Regional","36-0133","PU",null,"Local","GA","GA",2,29,4896316]
["EA","NYC","NY","Shirley","Brookhaven","HWV","NY","Brookhaven","36-0108","PU",null,"Local","R","R",2,304,11466579]
["EA","NYC","NY","Sidney","Sidney Municipal","N23","NY","Sidney Municipal","36-0109","PU",null,"Local","GA","GA",0,28,3307895]
["EA","NYC","NY","Skaneateles","Skaneateles Aero Drome","6B9","NY","Skaneateles Aero Drome","36-0214","PR",null,"Other","GA","GA",1,13,0]
["EA","NYC","NY","South Bethlehem","South Albany","4B0","NY","South Albany","36-0163","PR",null,"Other","GA","GA",0,47,0]
["EA","NYC","NY","Stormville","Stormville","N69","NY","Stormville","36-0113","PR",null,"Other","GA","GA",0,0,0]
["EA","NYC","NY","Syracuse","Syracuse Suburban","6NK","NY","Syracuse Suburban","36-0232","PR",null,"Other","R","R",0,0,0]
["EA","NYC","NY","Syracuse","Syracuse Hancock International","SYR","NY","Syracuse Hancock International","36-0114","PU","S",null,"P","P",1024505,75,70874306]
["EA","NYC","NY","Ticonderoga","Ticonderoga Municipal","4B6","NY","Ticonderoga Municipal","36-0196","PU",null,"Basic","GA","GA",0,12,1825000]
["EA","NYC","NY","Troy","Rensselaer County","5B7","NY","Rensselaer County","36-0161","PR",null,"Other","GA","GA",0,13,0]
["EA","NYC","NY","Utica/Frankfort","Frankfort-Highland","6B4","NY","Frankfort-Highland","36-0231","PR",null,"Other","GA","GA",0,6,0]
["EA","NYC","NY","Wallkill","Kobelt","N45","NY","Kobelt","36-0142","PR",null,"Other","R","R",4328,36,0]
["EA","NYC","NY","Warwick","Warwick Municipal","N72","NY","Warwick Municipal","36-0179","PU",null,"Local","GA","GA",0,57,0]
["EA","NYC","NY","Watertown","Watertown International","ART","NY","Watertown International","36-0120","PU",null,"Local","GA","GA",2203,28,5176675]
["EA","NYC","NY","Weedsport","Whitfords","B16","NY","Whitfords","36-0205","PR",null,"Other","R","R",1,28,0]
["EA","NYC","NY","Wellsville","Wellsville Municipal Airport,Tarantine Field","ELZ","NY","Wellsville Municipal Airport,Tarantine Field","36-0121","PU",null,"Local","GA","GA",42,18,8663765]
["EA","NYC","NY","Westhampton Beach","Francis S Gabreski","FOK","NY","Francis S Gabreski","36-0122","PU",null,"Regional","GA","GA",147,102,9480426]
["EA","NYC","NY","White Plains","Westchester County","HPN","NY","Westchester County","36-0123","PU","S",null,"P","P",999831,326,58587500]
["EA","NYC","NY","Williamson/Sodus","Williamson-Sodus","SDC","NY","Williamson-Sodus","36-0215","PR",null,"Other","R","R",4,63,1628945]
["EA","NYC","NY","Wurtsboro","Wurtsboro-Sullivan County","N82","NY","Wurtsboro-Sullivan County","36-0139","PR",null,"Other","R","R",0,52,0]
["EA","WAS","MD","Baltimore","Baltimore/Washington International Thurgood Marshal","BWI","MD","Baltimore/Washington International Thurgood Marshal","24-0005","PU","L",null,"P","P",10848633,75,88121480]
["EA","WAS","MD","Baltimore","Martin State","MTN","MD","Martin State","24-0031","PU",null,"National","R","R",139,194,157895]
["EA","WAS","MD","Cambridge","Cambridge-Dorchester","CGE","MD","Cambridge-Dorchester","24-0007","PU",null,"Regional","GA","GA",0,36,8207895]
["EA","WAS","MD","College Park","College Park","CGS","MD","College Park","24-0011","PU",null,"Local","GA","GA",0,36,0]
["EA","WAS","MD","Crisfield","Crisfield Municipal","W41","MD","Crisfield Municipal","24-0012","PU",null,"Other","GA","GA",0,9,963180]
["EA","WAS","MD","Cumberland","Greater Cumberland Regional","CBE","MD","Greater Cumberland Regional","24-0013","PU",null,"Local","GA","GA",0,56,15629916]
["EA","WAS","MD","Easton","Easton/Newnam Field","ESN","MD","Easton/Newnam Field","24-0014","PU",null,"National","GA","GA",77,126,18742850]
["EA","WAS","MD","Fort Meade(Odenton)","Tipton","FME","MD","Tipton","24-0042","PU",null,"Local","R","R",5,87,6234558]
["EA","WAS","MD","Frederick","Frederick Municipal","FDK","MD","Frederick Municipal","24-0017","PU",null,"Regional","R","R",27,215,17039372]
["EA","WAS","MD","Gaithersburg","Montgomery County Airpark","GAI","MD","Montgomery County Airpark","24-0018","PU",null,"Regional","R","R",27,169,17000773]
["EA","WAS","MD","Hagerstown","Hagerstown Regional-Richard A Henson Field","HGR","MD","Hagerstown Regional-Richard A Henson Field","24-0019","PU","N",null,"P","P",10665,147,18425525]
["EA","WAS","MD","Indian Head","Maryland","2W5","MD","Maryland","24-0020","PR",null,"Other","R","R",0,70,0]
["EA","WAS","MD","Leonardtown","St. Mary's County Regional","2W6","MD","St. Mary's County Regional","24-0022","PU",null,"Regional","GA","GA",1,150,7499867]
["EA","WAS","MD","Oakland","Garrett County","2G4","MD","Garrett County","24-0023","PU",null,"Local","GA","GA",0,17,0]
["EA","WAS","MD","Ocean City","Ocean City Municipal","OXB","MD","Ocean City Municipal","24-0024","PU",null,"Local","GA","GA",14,43,8271243]
["EA","WAS","MD","Salisbury","Salisbury-Ocean City Wicomico Regional","SBY","MD","Salisbury-Ocean City Wicomico Regional","24-0025","PU","N",null,"P","P",65489,121,16904587]
["EA","WAS","MD","Stevensville","Bay Bridge","W29","MD","Bay Bridge","24-0036","PU",null,"Local","GA","GA",3,70,7452632]
["EA","WAS","MD","Westminster","Carroll County Regional/Jack B Poage Field","DMW","MD","Carroll County Regional/Jack B Poage Field","24-0028","PU",null,"Regional","R","R",7,93,8460076]
["EA","WAS","VA","Abingdon","Virginia Highlands","VJI","VA","Virginia Highlands","51-0001","PU",null,"Regional","GA","GA",307,68,19130838]
["EA","WAS","VA","Blacksburg","Virginia Tech/Montgomery Executive","BCB","VA","Virginia Tech/Montgomery Executive","51-0002","PU",null,"Regional","GA","GA",10,35,14942132]
["EA","WAS","VA","Brookneal","Brookneal/Campbell County","0V4","VA","Brookneal/Campbell County","51-0062","PU",null,"Other","GA","GA",0,0,315789]
["EA","WAS","VA","Charlottesville","Charlottesville-Albemarle","CHO","VA","Charlottesville-Albemarle","51-0004","PU","N",null,"P","P",197776,91,17373603]
["EA","WAS","VA","Culpeper","Culpeper Regional","CJR","VA","Culpeper Regional","51-0010","PU",null,"Regional","GA","GA",1,113,6303684]
["EA","WAS","VA","Danville","Danville Regional","DAN","VA","Danville Regional","51-0011","PU",null,"Local","GA","GA",11,32,6339728]
["EA","WAS","VA","Dublin","New River Valley","PSK","VA","New River Valley","51-0012","PU",null,"Local","GA","GA",3,41,5135000]
["EA","WAS","VA","Emporia","Emporia-Greensville Regional","EMV","VA","Emporia-Greensville Regional","51-0013","PU",null,"Other","GA","GA",1,6,6796250]
["EA","WAS","VA","Farmville","Farmville Regional","FVX","VA","Farmville Regional","51-0015","PU",null,"Local","GA","GA",0,27,7323741]
["EA","WAS","VA","Franklin","Franklin Municipal-John Beverly Rose","FKN","VA","Franklin Municipal-John Beverly Rose","51-0017","PU",null,"Local","GA","GA",0,24,4492472]
["EA","WAS","VA","Front Royal","Front Royal-Warren County","FRR","VA","Front Royal-Warren County","51-0019","PU",null,"Local","GA","GA",0,33,860884]
["EA","WAS","VA","Galax Hillsville","Twin County","HLX","VA","Twin County","51-0020","PU",null,"Basic","GA","GA",4,9,6283750]
["EA","WAS","VA","Grundy","Grundy Municipal","GDY","VA","Grundy Municipal","51-0022","PU",null,"Basic","GA","GA",0,11,15000000]
["EA","WAS","VA","Hot Springs","Ingalls Field","HSP","VA","Ingalls Field","51-0024","PU",null,"Basic","GA","GA",4,4,778463]
["EA","WAS","VA","Jonesville","Lee County","0VG","VA","Lee County","51-0084","PU",null,"Basic","GA","GA",0,6,789473]
["EA","WAS","VA","Leesburg","Leesburg Executive","JYO","VA","Leesburg Executive","51-0027","PU",null,"Regional","R","R",46,162,6168193]
["EA","WAS","VA","Louisa","Louisa County/Freeman Field","LKU","VA","Louisa County/Freeman Field","51-0078","PU",null,"Local","GA","GA",0,48,781579]
["EA","WAS","VA","Luray","Luray Caverns","W45","VA","Luray Caverns","51-0067","PU",null,"Basic","GA","GA",0,14,6576904]
["EA","WAS","VA","Lynchburg","Lynchburg Regional/Preston Glenn Field","LYH","VA","Lynchburg Regional/Preston Glenn Field","51-0029","PU","N",null,"P","P",93772,89,2278947]
["EA","WAS","VA","Manassas","Manassas Regional/Harry P. Davis Field","HEF","VA","Manassas Regional/Harry P. Davis Field","51-0030","PU",null,"National","R","R",98,340,9629467]
["EA","WAS","VA","Marion/Wytheville","Mountain Empire","MKJ","VA","Mountain Empire","51-0031","PU",null,"Local","GA","GA",0,24,1639155]
["EA","WAS","VA","Martinsville","Blue Ridge","MTV","VA","Blue Ridge","51-0032","PU",null,"Regional","GA","GA",4,58,9019887]
["EA","WAS","VA","Melfa","Accomack County","MFV","VA","Accomack County","51-0033","PU",null,"Local","GA","GA",0,23,1685184]
["EA","WAS","VA","Newport News","Newport News/Williamsburg International","PHF","VA","Newport News/Williamsburg International","51-0035","PU","S",null,"P","P",519906,106,22688685]
["EA","WAS","VA","Norfolk","Chesapeake Regional","CPK","VA","Chesapeake Regional","51-0006","PU",null,"Regional","GA","GA",5,126,4303043]
["EA","WAS","VA","Norfolk","Norfolk International","ORF","VA","Norfolk International","51-0036","PU","S",null,"P","P",1663294,103,61064095]
["EA","WAS","VA","Norfolk","Hampton Roads Executive","PVG","VA","Hampton Roads Executive","51-0040","PR",null,"Regional","R","R",0,207,11725031]
["EA","WAS","VA","Orange","Orange County","OMH","VA","Orange County","51-0037","PU",null,"Local","GA","GA",0,38,1105263]
["EA","WAS","VA","Petersburg","Dinwiddie County","PTB","VA","Dinwiddie County","51-0039","PU",null,"Local","GA","GA",0,58,2065790]
["EA","WAS","VA","Quinton","New Kent County","W96","VA","New Kent County","51-0041","PU",null,"Local","GA","GA",0,35,2493158]
["EA","WAS","VA","Richlands","Tazewell County","JFZ","VA","Tazewell County","51-0053","PU",null,"Basic","GA","GA",1,10,913112]
["EA","WAS","VA","Richmond","Chesterfield County","FCI","VA","Chesterfield County","51-0007","PU",null,"Regional","R","R",41,129,10747105]
["EA","WAS","VA","Richmond","Richmond International","RIC","VA","Richmond International","51-0043","PU","S",null,"P","P",1651131,78,48526232]
["EA","WAS","VA","Richmond/Ashland","Hanover County Municipal","OFP","VA","Hanover County Municipal","51-0023","PU",null,"Regional","GA","GA",4,112,12229093]
["EA","WAS","VA","Roanoke","Roanoke Regional/Woodrum Field","ROA","VA","Roanoke Regional/Woodrum Field","51-0045","PU","N",null,"P","P",316478,123,59652306]
["EA","WAS","VA","South Boston","William M Tuck","W78","VA","William M Tuck","51-0047","PU",null,"Local","GA","GA",0,21,896000]
["EA","WAS","VA","South Hill","Mecklenburg-Brunswick Regional","AVC","VA","Mecklenburg-Brunswick Regional","51-0070","PU",null,"Local","GA","GA",3,25,3550000]
["EA","WAS","VA","Stafford","Stafford Regional","RMN","VA","Stafford Regional","51-0069","PU",null,"Local","R","R",15,41,7095263]
["EA","WAS","VA","Staunton/Waynesboro/Harrisonburg","Shenandoah Valley Regional","SHD","VA","Shenandoah Valley Regional","51-0049","PU","N",null,"P","P",10408,65,0]
["EA","WAS","VA","Suffolk","Suffolk Executive","SFQ","VA","Suffolk Executive","51-0050","PU",null,"Regional","GA","GA",0,59,1808480]
["EA","WAS","VA","Tangier","Tangier Island","TGI","VA","Tangier Island","51-0051","PU",null,"Basic","GA","GA",0,0,0]
["EA","WAS","VA","Tappahannock","Tappahannock-Essex County","XSA","VA","Tappahannock-Essex County","51-0081","PU",null,"Local","GA","GA",0,21,1064467]
["EA","WAS","VA","Warrenton","Warrenton-Fauquier","HWY","VA","Warrenton-Fauquier","51-0068","PU",null,"Regional","R","R",0,113,3145981]
["EA","WAS","VA","Washington","Ronald Reagan Washington National","DCA","VA","Ronald Reagan Washington National","51-0082","PU","L",null,"P","P",8736804,0,64144875]
["EA","WAS","VA","Washington","Washington Dulles International","IAD","VA","Washington Dulles International","51-0083","PU","L",null,"P","P",11276481,70,307791019]
["EA","WAS","VA","West Point","Middle Peninsula Regional","FYJ","VA","Middle Peninsula Regional","51-0057","PU",null,"Local","GA","GA",12,36,3337632]
["EA","WAS","VA","Winchester","Winchester Regional","OKV","VA","Winchester Regional","51-0059","PU",null,"Regional","GA","GA",6,109,14597928]
["EA","WAS","VA","Wise","Lonesome Pine","LNP","VA","Lonesome Pine","51-0060","PU",null,"Local","GA","GA",0,17,12356579]
["GL","BIS","ND","Beach","Beach","20U","ND","Beach","38-0002","PU",null,"Basic","GA","GA",0,8,1664737]
["GL","BIS","ND","Bismarck","Bismarck Municipal","BIS","ND","Bismarck Municipal","38-0003","PU","N",null,"P","P",196285,78,30377798]
["GL","BIS","ND","Bottineau","Bottineau Municipal","D09","ND","Bottineau Municipal","38-0004","PU",null,"Local","GA","GA",0,22,3048166]
["GL","BIS","ND","Bowman","Bowman Municipal","BPP","ND","Bowman Municipal","38-0005","PU",null,"Local","GA","GA",1,15,9650012]
["GL","BIS","ND","Cando","Cando Municipal","9D7","ND","Cando Municipal","38-0073","PU",null,"Other","GA","GA",0,5,1368421]
["GL","BIS","ND","Carrington","Carrington Municipal","46D","ND","Carrington Municipal","38-0076","PU",null,"Basic","GA","GA",0,7,772631]
["GL","BIS","ND","Casselton","Casselton Robert Miller Regional","5N8","ND","Casselton Robert Miller Regional","38-0069","PU",null,"Local","GA","GA",0,37,1557895]
["GL","BIS","ND","Cavalier","Cavalier Municipal","2C8","ND","Cavalier Municipal","38-0008","PU",null,"Other","GA","GA",0,9,1409163]
["GL","BIS","ND","Cooperstown","Cooperstown Municipal","S32","ND","Cooperstown Municipal","38-0010","PU",null,"Local","GA","GA",0,16,857894]
["GL","BIS","ND","Crosby","Crosby Municipal","D50","ND","Crosby Municipal","38-0011","PU",null,"Basic","GA","GA",0,13,3731579]
["GL","BIS","ND","Devils Lake","Devils Lake Regional","DVL","ND","Devils Lake Regional","38-0012","PU",null,"Local","CS","CS",5242,33,2000000]
["GL","BIS","ND","Dickinson","Dickinson - Theodore Roosevelt Regional","DIK","ND","Dickinson - Theodore Roosevelt Regional","38-0013","PU","N",null,"P","P",10383,20,20340622]
["GL","BIS","ND","Dunseith","International Peace Garden","S28","ND","International Peace Garden","38-0014","PU",null,"Basic","GA","GA",0,0,1421052]
["GL","BIS","ND","Edgeley","Edgeley Municipal","51D","ND","Edgeley Municipal","38-0079","PU",null,"Other","GA","GA",0,8,947369]
["GL","BIS","ND","Ellendale","Ellendale Municipal","4E7","ND","Ellendale Municipal","38-0016","PU",null,"Other","GA","GA",0,8,1116843]
["GL","BIS","ND","Fargo","Hector International","FAR","ND","Hector International","38-0017","PU","S",null,"P","P",365963,177,27657894]
["GL","BIS","ND","Fort Yates","Standing Rock","Y27","ND","Standing Rock","38-0018","NA",null,"Other","GA","GA",0,0,1451580]
["GL","BIS","ND","Garrison","Garrison Municipal","D05","ND","Garrison Municipal","38-0019","PU",null,"Local","GA","GA",0,17,1186315]
["GL","BIS","ND","Glen Ullin","Glen Ullin Regional","D57","ND","Glen Ullin Regional","38-0020","PU",null,"Basic","GA","GA",0,7,1184210]
["GL","BIS","ND","Grafton","Hutson Field","GAF","ND","Hutson Field","38-0021","PU",null,"Local","GA","GA",0,17,789473]
["GL","BIS","ND","Grand Forks","Grand Forks International","GFK","ND","Grand Forks International","38-0022","PU","N",null,"P","P",117980,152,11036042]
["GL","BIS","ND","Gwinner","Gwinner-Roger Melroe Field","GWR","ND","Gwinner-Roger Melroe Field","38-0023","PU",null,"Basic","GA","GA",0,12,894737]
["GL","BIS","ND","Harvey","Harvey Municipal","5H4","ND","Harvey Municipal","38-0071","PU",null,"Basic","GA","GA",0,9,1000000]
["GL","BIS","ND","Hazen","Mercer County Regional","HZE","ND","Mercer County Regional","38-0075","PU",null,"Other","GA","GA",0,5,1052632]
["GL","BIS","ND","Hettinger","Hettinger Municipal","HEI","ND","Hettinger Municipal","38-0026","PU",null,"Local","GA","GA",0,23,2192630]
["GL","BIS","ND","Hillsboro","Hillsboro Municipal","3H4","ND","Hillsboro Municipal","38-0062","PU",null,"Local","GA","GA",0,22,7602369]
["GL","BIS","ND","Jamestown","Jamestown Regional","JMS","ND","Jamestown Regional","38-0028","PU",null,"Regional","CS","CS",4434,52,2526316]
["GL","BIS","ND","Kenmare","Kenmare Municipal","7K5","ND","Kenmare Municipal","38-0029","PU",null,"Local","GA","GA",0,22,1657894]
["GL","BIS","ND","Kindred","Hamry Field","K74","ND","Hamry Field","38-0068","PU",null,"Local","GA","GA",0,20,1984632]
["GL","BIS","ND","LaMoure","LaMoure Rott Municipal","4F9","ND","LaMoure Rott Municipal","38-0070","PR",null,"Other","GA","GA",0,12,3936842]
["GL","BIS","ND","Lakota","Lakota Municipal","5L0","ND","Lakota Municipal","38-0080","PU",null,"Basic","GA","GA",0,13,773684]
["GL","BIS","ND","Langdon","Robertson Field","D55","ND","Robertson Field","38-0031","PU",null,"Basic","GA","GA",0,14,1060045]
["GL","BIS","ND","Linton","Linton Municipal","7L2","ND","Linton Municipal","38-0033","PU",null,"Local","GA","GA",0,18,954211]
["GL","BIS","ND","Lisbon","Lisbon Municipal","6L3","ND","Lisbon Municipal","38-0081","PU",null,"Basic","GA","GA",0,12,1168421]
["GL","BIS","ND","Mandan","Mandan Municipal","Y19","ND","Mandan Municipal","38-0035","PU",null,"Local","GA","GA",0,71,1526315]
["GL","BIS","ND","Minot","Minot International","MOT","ND","Minot International","38-0037","PU","N",null,"P","P",91120,94,48955439]
["GL","BIS","ND","Mohall","Mohall Municipal","HBC","ND","Mohall Municipal","38-0038","PU",null,"Other","GA","GA",0,5,1210525]
["GL","BIS","ND","Mott","Mott Municipal","3P3","ND","Mott Municipal","38-0039","PU",null,"Other","GA","GA",0,8,824211]
["GL","BIS","ND","Northwood","Northwood Municipal-Vince Field","4V4","ND","Northwood Municipal-Vince Field","38-0074","PU",null,"Basic","GA","GA",0,10,1938947]
["GL","BIS","ND","Oakes","Oakes Municipal","2D5","ND","Oakes Municipal","38-0044","PU",null,"Local","GA","GA",0,17,991099]
["GL","BIS","ND","Park River","Park River - W C Skjerven Field","Y37","ND","Park River - W C Skjerven Field","38-0045","PU",null,"Basic","GA","GA",0,10,1321053]
["GL","BIS","ND","Parshall","Parshall-Hankins","Y74","ND","Parshall-Hankins","38-0046","PU",null,"Other","GA","GA",0,9,1244210]
["GL","BIS","ND","Pembina","Pembina Municipal","PMB","ND","Pembina Municipal","38-0047","PU",null,"Basic","GA","GA",0,6,894737]
["GL","BIS","ND","Rolla","Rolla Municipal","06D","ND","Rolla Municipal","38-0048","PU",null,"Basic","GA","GA",0,8,864095]
["GL","BIS","ND","Rugby","Rugby Municipal","RUG","ND","Rugby Municipal","38-0049","PU",null,"Basic","GA","GA",8,13,1005579]
["GL","BIS","ND","Stanley","Stanley Municipal","08D","ND","Stanley Municipal","38-0050","PU",null,"Basic","GA","GA",0,12,1947369]
["GL","BIS","ND","Tioga","Tioga Municipal","D60","ND","Tioga Municipal","38-0051","PU",null,"Local","GA","GA",0,113,1988421]
["GL","BIS","ND","Valley City","Barnes County Municipal","BAC","ND","Barnes County Municipal","38-0053","PU",null,"Local","GA","GA",0,28,2526315]
["GL","BIS","ND","Wahpeton","Harry Stern","BWP","ND","Harry Stern","38-0054","PU",null,"Local","GA","GA",0,58,1773105]
["GL","BIS","ND","Walhalla","Walhalla Municipal","96D","ND","Walhalla Municipal","38-0063","PU",null,"Other","GA","GA",0,6,1495425]
["GL","BIS","ND","Washburn","Washburn Municipal","5C8","ND","Washburn Municipal","38-0055","PU",null,"Basic","GA","GA",0,14,1797368]
["GL","BIS","ND","Watford City","Watford City Municipal","S25","ND","Watford City Municipal","38-0056","PU",null,"Local","GA","GA",0,28,1999999]
["GL","BIS","ND","Williston","Sloulin Field International","ISN","ND","Sloulin Field International","38-0058","PU","N",null,"P","P",16473,44,149200210]
["GL","BIS","SD","Aberdeen","Aberdeen Regional","ABR","SD","Aberdeen Regional","46-0001","PU","N",null,"P","P",20089,37,17581974]
["GL","BIS","SD","Belle Fourche","Belle Fourche Municipal","EFC","SD","Belle Fourche Municipal","46-0072","PU",null,"Local","GA","GA",0,25,1188158]
["GL","BIS","SD","Bison","Bison Municipal","6V5","SD","Bison Municipal","46-0003","PU",null,"Basic","GA","GA",1,10,1619971]
["GL","BIS","SD","Britton","Britton Municipal","BTN","SD","Britton Municipal","46-0004","PU",null,"Other","GA","GA",1,8,980000]
["GL","BIS","SD","Brookings","Brookings Regional","BKX","SD","Brookings Regional","46-0005","PU",null,"Local","GA","GA",12,45,17625155]
["GL","BIS","SD","Buffalo","Harding County","9D2","SD","Harding County","46-0006","PU",null,"Basic","GA","GA",0,4,847105]
["GL","BIS","SD","Canton","Canton Municipal","7G9","SD","Canton Municipal","46-0007","PU",null,"Basic","GA","GA",0,12,1978947]
["GL","BIS","SD","Chamberlain","Chamberlain Municipal","9V9","SD","Chamberlain Municipal","46-0071","PU",null,"Basic","GA","GA",0,12,763158]
["GL","BIS","SD","Clark","Clark County","8D7","SD","Clark County","46-0009","PU",null,"Basic","GA","GA",0,10,817526]
["GL","BIS","SD","Custer","Custer County","CUT","SD","Custer County","46-0011","PU",null,"Basic","GA","GA",0,14,1737895]
["GL","BIS","SD","De Smet","Wilder","6E5","SD","Wilder","46-0063","PU",null,"Other","GA","GA",0,5,802500]
["GL","BIS","SD","Eagle Butte","Cheyenne Eagle Butte","84D","SD","Cheyenne Eagle Butte","46-0068","NA",null,"Basic","GA","GA",0,0,846052]
["GL","BIS","SD","Edgemont","Edgemont Municipal","6V0","SD","Edgemont Municipal","46-0013","PU",null,"Other","GA","GA",0,2,796842]
["GL","BIS","SD","Eureka","Eureka Municipal","3W8","SD","Eureka Municipal","46-0079","PU",null,"Basic","GA","GA",0,1,931579]
["GL","BIS","SD","Faith","Faith Municipal","D07","SD","Faith Municipal","46-0076","PU",null,"Basic","GA","GA",0,6,986000]
["GL","BIS","SD","Faulkton","Faulkton Municipal","3FU","SD","Faulkton Municipal","46-0016","PU",null,"Local","GA","GA",0,19,1756842]
["GL","BIS","SD","Flandreau","Flandreau Municipal","4P3","SD","Flandreau Municipal","46-0077","PU",null,"Basic","GA","GA",0,10,2647895]
["GL","BIS","SD","Gettysburg","Gettysburg Municipal","0D8","SD","Gettysburg Municipal","46-0017","PU",null,"Basic","GA","GA",0,13,830000]
["GL","BIS","SD","Gregory","Gregory Municipal - Flynn Field","9D1","SD","Gregory Municipal - Flynn Field","46-0018","PU",null,"Other","GA","GA",5,7,860526]
["GL","BIS","SD","Highmore","Highmore Municipal","9D0","SD","Highmore Municipal","46-0019","PU",null,"Other","GA","GA",0,6,763158]
["GL","BIS","SD","Hot Springs","Hot Springs Municipal","HSR","SD","Hot Springs Municipal","46-0020","PU",null,"Local","GA","GA",0,16,852105]
["GL","BIS","SD","Hoven","Hoven Municipal","9F8","SD","Hoven Municipal","46-0021","PU",null,"Other","GA","GA",0,3,781842]
["GL","BIS","SD","Howard","Howard Municipal","8D9","SD","Howard Municipal","46-0070","PU",null,"Other","GA","GA",0,4,1976579]
["GL","BIS","SD","Huron","Huron Regional","HON","SD","Huron Regional","46-0022","PU",null,"Local","GA","GA",2016,35,14131579]
["GL","BIS","SD","Kadoka","Kadoka Municipal","5V8","SD","Kadoka Municipal","46-0023","PU",null,"Other","GA","GA",0,3,0]
["GL","BIS","SD","Lemmon","Lemmon Municipal","LEM","SD","Lemmon Municipal","46-0027","PU",null,"Basic","GA","GA",0,12,1030000]
["GL","BIS","SD","Madison","Madison Municipal","MDS","SD","Madison Municipal","46-0029","PU",null,"Local","GA","GA",14,53,1000000]
["GL","BIS","SD","Martin","Martin Municipal","9V6","SD","Martin Municipal","46-0030","PU",null,"Basic","GA","GA",0,5,1250000]
["GL","BIS","SD","McLaughlin","Mc Laughlin Municipal","5P2","SD","Mc Laughlin Municipal","46-0031","PU",null,"Other","GA","GA",0,1,1010000]
["GL","BIS","SD","Milbank","Milbank Municipal","1D1","SD","Milbank Municipal","46-0034","PU",null,"Basic","GA","GA",0,13,1450526]
["GL","BIS","SD","Miller","Miller Municipal","MKA","SD","Miller Municipal","46-0035","PU",null,"Basic","GA","GA",6,11,1292139]
["GL","BIS","SD","Mitchell","Mitchell Municipal","MHE","SD","Mitchell Municipal","46-0037","PU",null,"Local","GA","GA",15,30,968947]
["GL","BIS","SD","Mobridge","Mobridge Municipal","MBG","SD","Mobridge Municipal","46-0038","PU",null,"Basic","GA","GA",0,11,1657895]
["GL","BIS","SD","Murdo","Murdo Municipal","8F6","SD","Murdo Municipal","46-0039","PU",null,"Basic","GA","GA",0,2,1246079]
["GL","BIS","SD","Onida","Onida Municipal","98D","SD","Onida Municipal","46-0041","PU",null,"Basic","GA","GA",0,14,776316]
["GL","BIS","SD","Parkston","Parkston Municipal","8V3","SD","Parkston Municipal","46-0042","PU",null,"Other","GA","GA",0,9,765178]
["GL","BIS","SD","Philip","Philip","PHP","SD","Philip","46-0043","PU",null,"Other","GA","GA",0,2,1169539]
["GL","BIS","SD","Pierre","Pierre Regional","PIR","SD","Pierre Regional","46-0044","PU","N",null,"P","P",14686,101,8918808]
["GL","BIS","SD","Pine Ridge","Pine Ridge","IEN","SD","Pine Ridge","46-0045","NA",null,"Other","GA","GA",0,0,940403]
["GL","BIS","SD","Platte","Platte Municipal","1D3","SD","Platte Municipal","46-0066","PU",null,"Basic","GA","GA",0,13,3477158]
["GL","BIS","SD","Presho","Presho Municipal","5P5","SD","Presho Municipal","46-0047","PU",null,"Basic","GA","GA",0,0,0]
["GL","BIS","SD","Rapid City","Rapid City Regional","RAP","SD","Rapid City Regional","46-0048","PU","N",null,"P","P",284126,115,23539474]
["GL","BIS","SD","Redfield","Redfield Municipal","1D8","SD","Redfield Municipal","46-0049","PU",null,"Basic","GA","GA",2,12,6361829]
["GL","BIS","SD","Rosebud","Rosebud Sioux Tribal","SUO","SD","Rosebud Sioux Tribal","46-0082","PU",null,"Basic","GA","GA",0,0,2433948]
["GL","BIS","SD","Sioux Falls","Joe Foss Field","FSD","SD","Joe Foss Field","46-0050","PU","N",null,"P","P",355939,93,13125404]
["GL","BIS","SD","Sisseton","Sisseton Municipal","8D3","SD","Sisseton Municipal","46-0051","PU",null,"Other","GA","GA",0,8,1261000]
["GL","BIS","SD","Spearfish","Black Hills-Clyde Ice Field","SPF","SD","Black Hills-Clyde Ice Field","46-0065","PU",null,"Local","GA","GA",6,61,4644737]
["GL","BIS","SD","Springfield","Springfield Municipal","Y03","SD","Springfield Municipal","46-0052","PU",null,"Basic","GA","GA",0,13,1078947]
["GL","BIS","SD","Sturgis","Sturgis Municipal","49B","SD","Sturgis Municipal","46-0054","PU",null,"Local","GA","GA",0,26,1900000]
["GL","BIS","SD","Tea","Marv Skie-Lincoln County","Y14","SD","Marv Skie-Lincoln County","46-0078","PU",null,"Local","GA","GA",0,83,1065000]
["GL","BIS","SD","Vermillion","Harold Davidson Field","VMR","SD","Harold Davidson Field","46-0056","PU",null,"Local","GA","GA",0,25,1142968]
["GL","BIS","SD","Wagner","Wagner Municipal","AGZ","SD","Wagner Municipal","46-0057","PU",null,"Basic","GA","GA",0,13,1280000]
["GL","BIS","SD","Wall","Wall Municipal","6V4","SD","Wall Municipal","46-0069","PU",null,"Basic","GA","GA",0,9,2271169]
["GL","BIS","SD","Watertown","Watertown Regional","ATY","SD","Watertown Regional","46-0058","PU",null,"Regional","CS","CS",7814,38,12307534]
["GL","BIS","SD","Webster","The Sigurd Anderson","1D7","SD","The Sigurd Anderson","46-0059","PU",null,"Other","GA","GA",0,5,1531053]
["GL","BIS","SD","Wessington Springs","Wessington Springs","4X4","SD","Wessington Springs","46-0080","PU",null,"Basic","GA","GA",0,1,1170000]
["GL","BIS","SD","Winner","Winner Regional","ICR","SD","Winner Regional","46-0061","PU",null,"Basic","GA","GA",16,12,2345855]
["GL","BIS","SD","Yankton","Chan Gurney Municipal","YKN","SD","Chan Gurney Municipal","46-0062","PU",null,"Regional","GA","GA",0,43,4456542]
["GL","CHI","IL","Aledo","Mercer County","C00","IL","Mercer County","17-0001","PU",null,"Other","GA","GA",0,7,4733832]
["GL","CHI","IL","Alton/St Louis","St Louis Regional","ALN","IL","St Louis Regional","17-0002","PU",null,"Regional","R","R",32,107,15147307]
["GL","CHI","IL","Beardstown","Greater Beardstown","K06","IL","Greater Beardstown","17-0004","PU",null,"Other","GA","GA",0,3,1920000]
["GL","CHI","IL","Belleville","Scott AFB/Midamerica","BLV","IL","Scott AFB/Midamerica","17-0146","PU",null,"Basic","GA","GA",1183,6,26660000]
["GL","CHI","IL","Benton","Benton Municipal","H96","IL","Benton Municipal","17-0005","PU",null,"Basic","GA","GA",0,10,1483684]
["GL","CHI","IL","Bloomington/Normal","Central IL Regional Airport at Bloomington-Normal","BMI","IL","Central IL Regional Airport at Bloomington-Normal","17-0006","PU","N",null,"P","P",274677,99,30792799]
["GL","CHI","IL","Bolingbrook","Bolingbrook's Clow International","1C5","IL","Bolingbrook's Clow International","17-0135","PU",null,"Local","GA","GA",18,81,13100000]
["GL","CHI","IL","Cahokia/St Louis","St Louis Downtown","CPS","IL","St Louis Downtown","17-0039","PU",null,"National","R","R",429,177,8979500]
["GL","CHI","IL","Cairo","Cairo Regional","CIR","IL","Cairo Regional","17-0007","PU",null,"Basic","GA","GA",0,14,3054816]
["GL","CHI","IL","Canton","Ingersoll","CTK","IL","Ingersoll","17-0008","PU",null,"Local","GA","GA",14,28,1913948]
["GL","CHI","IL","Carbondale/Murphysboro","Southern Illinois","MDH","IL","Southern Illinois","17-0009","PU",null,"Regional","GA","GA",3,88,6345789]
["GL","CHI","IL","Carmi","Carmi Municipal","CUL","IL","Carmi Municipal","17-0109","PU",null,"Local","GA","GA",2,17,2593579]
["GL","CHI","IL","Casey","Casey Municipal","1H8","IL","Casey Municipal","17-0014","PU",null,"Basic","GA","GA",0,8,1378000]
["GL","CHI","IL","Centralia","Centralia Municipal","ENL","IL","Centralia Municipal","17-0015","PU",null,"Local","GA","GA",0,24,2026722]
["GL","CHI","IL","Champaign/Urbana","University of Illinois-Willard","CMI","IL","University of Illinois-Willard","17-0016","PU","N",null,"P","P",85715,86,15900322]
["GL","CHI","IL","Chicago","New","07W","IL","New","17-0027",null,null,null,null,"P",0,0,40000000]
["GL","CHI","IL","Chicago","Lansing Municipal","IGQ","IL","Lansing Municipal","17-0121","PU",null,"Regional","R","R",12,186,22700684]
["GL","CHI","IL","Chicago","Chicago Midway International","MDW","IL","Chicago Midway International","17-0025","PU","L",null,"P","P",8518957,44,111264927]
["GL","CHI","IL","Chicago","Chicago O'Hare International","ORD","IL","Chicago O'Hare International","17-0022","PU","L",null,"P","P",32171831,0,2541721908]
["GL","CHI","IL","Chicago/Aurora","Aurora Municipal","ARR","IL","Aurora Municipal","17-0003","PU",null,"National","R","R",3,284,38195473]
["GL","CHI","IL","Chicago/Lake In The Hills","Lake in the Hills","3CK","IL","Lake in the Hills","17-0112","PU",null,"Regional","R","R",9,102,17810600]
["GL","CHI","IL","Chicago/Prospect Heights/Wheeling","Chicago Executive","PWK","IL","Chicago Executive","17-0018","PU",null,"National","R","R",1708,265,87173368]
["GL","CHI","IL","Chicago/Rockford","Chicago/Rockford International","RFD","IL","Chicago/Rockford International","17-0088","PU","N",null,"P","P",96974,114,58340935]
["GL","CHI","IL","Chicago/Romeoville","Lewis University","LOT","IL","Lewis University","17-0140","PU",null,"Regional","R","R",13,172,36912000]
["GL","CHI","IL","Chicago/Schaumburg","Schaumburg Regional","06C","IL","Schaumburg Regional","17-0124","PU",null,"Local","GA","GA",16,69,8196895]
["GL","CHI","IL","Chicago/Schaumburg","Schaumburg Municipal Helistop","4H1","IL","Schaumburg Municipal Helistop","17-0144","PU",null,"Other","GA","GA",0,0,0]
["GL","CHI","IL","Chicago/Waukegan","Waukegan Regional","UGN","IL","Waukegan Regional","17-0105","PU",null,"National","R","R",164,168,34338500]
["GL","CHI","IL","Chicago/West Chicago","Dupage","DPA","IL","Dupage","17-0017","PU",null,"National","R","R",300,365,77165568]
["GL","CHI","IL","Danville","Vermilion Regional","DNV","IL","Vermilion Regional","17-0032","PU",null,"Local","GA","GA",3,62,10631179]
["GL","CHI","IL","De Kalb","De Kalb Taylor Municipal","DKB","IL","De Kalb Taylor Municipal","17-0139","PU",null,"Regional","GA","GA",0,44,12365000]
["GL","CHI","IL","Decatur","Decatur","DEC","IL","Decatur","17-0033","PU",null,"Regional","GA","GA",2456,76,6367555]
["GL","CHI","IL","Dixon","Dixon Municipal-Charles R. Walgreen Field","C73","IL","Dixon Municipal-Charles R. Walgreen Field","17-0036","PU",null,"Local","GA","GA",0,28,18299900]
["GL","CHI","IL","Effingham","Effingham County Memorial","1H2","IL","Effingham County Memorial","17-0040","PU",null,"Local","GA","GA",2,16,2963800]
["GL","CHI","IL","Fairfield","Fairfield Municipal","FWC","IL","Fairfield Municipal","17-0043","PU",null,"Other","GA","GA",0,8,6604842]
["GL","CHI","IL","Flora","Flora Municipal","FOA","IL","Flora Municipal","17-0044","PU",null,"Other","GA","GA",0,9,8001317]
["GL","CHI","IL","Freeport","Albertus","FEP","IL","Albertus","17-0045","PU",null,"Local","GA","GA",1,57,7832326]
["GL","CHI","IL","Galesburg","Galesburg Municipal","GBG","IL","Galesburg Municipal","17-0047","PU",null,"Local","GA","GA",2,30,2964241]
["GL","CHI","IL","Grays Lake","Campbell","C81","IL","Campbell","17-0113","PR",null,"Other","GA","GA",3,85,0]
["GL","CHI","IL","Greenville","Greenville","GRE","IL","Greenville","17-0049","PU",null,"Local","GA","GA",0,24,4746316]
["GL","CHI","IL","Greenwood/Wonder Lake","Galt Field","10C","IL","Galt Field","17-0114","PR",null,"Other","GA","GA",0,75,0]
["GL","CHI","IL","Harrisburg","Harrisburg-Raleigh","HSB","IL","Harrisburg-Raleigh","17-0050","PU",null,"Local","GA","GA",0,21,2063684]
["GL","CHI","IL","Harvard","Dacy","0C0","IL","Dacy","17-0126","PR",null,"Other","GA","GA",0,42,0]
["GL","CHI","IL","Havana","Havana Regional","9I0","IL","Havana Regional","17-0133","PU",null,"Other","GA","GA",0,5,4644475]
["GL","CHI","IL","Jacksonville","Jacksonville Municipal","IJX","IL","Jacksonville Municipal","17-0054","PU",null,"Local","GA","GA",1,27,3612842]
["GL","CHI","IL","Joliet","Joliet Regional","JOT","IL","Joliet Regional","17-0056","PU",null,"Local","GA","GA",0,87,8923500]
["GL","CHI","IL","Kankakee","Greater Kankakee","IKK","IL","Greater Kankakee","17-0057","PU",null,"Local","GA","GA",10,99,55825490]
["GL","CHI","IL","Kewanee","Kewanee Municipal","EZI","IL","Kewanee Municipal","17-0058","PU",null,"Local","GA","GA",0,27,2588005]
["GL","CHI","IL","Lacon","Marshall County","C75","IL","Marshall County","17-0059","PU",null,"Local","GA","GA",0,40,4134053]
["GL","CHI","IL","Lawrenceville","Lawrenceville-Vincennes International","LWV","IL","Lawrenceville-Vincennes International","17-0061","PU",null,"Local","GA","GA",4,46,1702200]
["GL","CHI","IL","Lincoln","Logan County","AAA","IL","Logan County","17-0062","PU",null,"Local","GA","GA",0,32,2994150]
["GL","CHI","IL","Litchfield","Litchfield Municipal","3LF","IL","Litchfield Municipal","17-0063","PU",null,"Local","GA","GA",0,32,1167425]
["GL","CHI","IL","Macomb","Macomb Municipal","MQB","IL","Macomb Municipal","17-0064","PU",null,"Local","GA","GA",385,26,7564947]
["GL","CHI","IL","Marion","Williamson County Regional","MWA","IL","Williamson County Regional","17-0065","PU",null,"Regional","CS","CS",8047,49,7179474]
["GL","CHI","IL","Mattoon/Charleston","Coles County Memorial","MTO","IL","Coles County Memorial","17-0066","PU",null,"Local","GA","GA",46,51,13532208]
["GL","CHI","IL","Metropolis","Metropolis Municipal","M30","IL","Metropolis Municipal","17-0067","PU",null,"Local","GA","GA",0,19,4397368]
["GL","CHI","IL","Moline","Quad City International","MLI","IL","Quad City International","17-0068","PU","S",null,"P","P",477086,88,63066846]
["GL","CHI","IL","Monee","Bult Field","C56","IL","Bult Field","17-0118","PR",null,"Other","GA","GA",0,134,0]
["GL","CHI","IL","Monmouth","Monmouth Municipal","C66","IL","Monmouth Municipal","17-0069","PU",null,"Other","GA","GA",0,4,8572228]
["GL","CHI","IL","Monticello","New","087","IL","New","17-0150","PU",null,null,null,"GA",0,0,6552632]
["GL","CHI","IL","Monticello","Piatt County","2K0","IL","Piatt County","17-0149","PR",null,"Other","GA","GA",0,12,0]
["GL","CHI","IL","Morris","Morris Municipal - James R. Washburn Field","C09","IL","Morris Municipal - James R. Washburn Field","17-0071","PU",null,"Local","GA","GA",1,68,15277362]
["GL","CHI","IL","Mount Carmel","Mount Carmel Municipal","AJG","IL","Mount Carmel Municipal","17-0073","PU",null,"Local","GA","GA",0,14,3052131]
["GL","CHI","IL","Mount Sterling","Mount Sterling Municipal","I63","IL","Mount Sterling Municipal","17-0147","PU",null,"Other","GA","GA",4,5,4697950]
["GL","CHI","IL","Mount Vernon","Mount Vernon","MVN","IL","Mount Vernon","17-0074","PU",null,"Local","GA","GA",0,31,10771800]
["GL","CHI","IL","Olney-Noble","Olney-Noble","OLY","IL","Olney-Noble","17-0076","PU",null,"Basic","GA","GA",0,14,870150]
["GL","CHI","IL","Paris","Edgar County","PRG","IL","Edgar County","17-0077","PU",null,"Local","GA","GA",0,21,5092895]
["GL","CHI","IL","Pekin","Pekin Municipal","C15","IL","Pekin Municipal","17-0078","PU",null,"Local","GA","GA",0,38,7270895]
["GL","CHI","IL","Peoria","Mount Hawley Auxiliary","3MY","IL","Mount Hawley Auxiliary","17-0079","PU",null,"Local","GA","GA",1,63,12975000]
["GL","CHI","IL","Peoria","General Downing - Peoria International","PIA","IL","General Downing - Peoria International","17-0080","PU","N",null,"P","P",249595,71,28558926]
["GL","CHI","IL","Peru","Illinois Valley Regional-Walter A Duncan Field","VYS","IL","Illinois Valley Regional-Walter A Duncan Field","17-0060","PU",null,"Local","GA","GA",50,32,5906421]
["GL","CHI","IL","Pinckneyville","Pinckneyville-Du Quoin","PJY","IL","Pinckneyville-Du Quoin","17-0037","PU",null,"Other","GA","GA",0,9,3481000]
["GL","CHI","IL","Pittsfield","Pittsfield Penstone Municipal","PPQ","IL","Pittsfield Penstone Municipal","17-0081","PU",null,"Basic","GA","GA",0,9,2802189]
["GL","CHI","IL","Pontiac","Pontiac Municipal","PNT","IL","Pontiac Municipal","17-0148","PU",null,"Basic","GA","GA",0,10,8770801]
["GL","CHI","IL","Poplar Grove","Poplar Grove","C77","IL","Poplar Grove","17-0111","PR",null,"Other","GA","GA",0,451,0]
["GL","CHI","IL","Quincy","Quincy Regional-Baldwin Field","UIN","IL","Quincy Regional-Baldwin Field","17-0085","PU",null,"Regional","CS","CS",7783,47,5087480]
["GL","CHI","IL","Rantoul","Rantoul National Aviation Center-Frank Elliott Field","TIP","IL","Rantoul National Aviation Center-Frank Elliott Field","17-0136","PU",null,"Basic","GA","GA",0,12,9837560]
["GL","CHI","IL","Robinson","Crawford Co","RSV","IL","Crawford Co","17-0086","PU",null,"Other","GA","GA",0,4,6018000]
["GL","CHI","IL","Rochelle","Rochelle Municipal Airport-Koritz Field","RPJ","IL","Rochelle Municipal Airport-Koritz Field","17-0087","PU",null,"Local","GA","GA",0,26,6925000]
["GL","CHI","IL","Salem","Salem-Leckrone","SLO","IL","Salem-Leckrone","17-0089","PU",null,"Other","GA","GA",0,8,1908767]
["GL","CHI","IL","Savanna","Tri-Township","SFY","IL","Tri-Township","17-0091","PU",null,"Other","GA","GA",0,4,4680000]
["GL","CHI","IL","Shelbyville","Shelby County","2H0","IL","Shelby County","17-0093","PU",null,"Local","GA","GA",0,28,1453236]
["GL","CHI","IL","Sparta","Sparta Community-Hunter Field","SAR","IL","Sparta Community-Hunter Field","17-0094","PU",null,"Local","GA","GA",0,28,8287000]
["GL","CHI","IL","Springfield","Abraham Lincoln Capital","SPI","IL","Abraham Lincoln Capital","17-0096","PU","N",null,"P","P",61413,169,13119031]
["GL","CHI","IL","St Jacob","St Louis Metro-East/Shafer Field","3K6","IL","St Louis Metro-East/Shafer Field","17-0142","PR",null,"Other","GA","GA",0,40,0]
["GL","CHI","IL","Sterling/Rockfalls","Whiteside County-Jos H Bittorf Field","SQI","IL","Whiteside County-Jos H Bittorf Field","17-0098","PU",null,"Local","GA","GA",0,34,4095263]
["GL","CHI","IL","Taylorville","Taylorville Municipal","TAZ","IL","Taylorville Municipal","17-0100","PU",null,"Local","GA","GA",0,16,3440000]
["GL","CHI","IL","Tuscola","Tuscola","K96","IL","Tuscola","17-0101","PR",null,"Other","GA","GA",0,0,0]
["GL","CHI","IL","Vandalia","Vandalia Municipal","VLA","IL","Vandalia Municipal","17-0102","PU",null,"Basic","GA","GA",0,11,3255605]
["GL","CHI","IN","Anderson","Anderson Municipal-Darlington Field","AID","IN","Anderson Municipal-Darlington Field","18-0001","PU",null,"Local","GA","GA",8,71,15455630]
["GL","CHI","IN","Angola","Tri-State Steuben County","ANQ","IN","Tri-State Steuben County","18-0002","PU",null,"Local","GA","GA",0,38,2622144]
["GL","CHI","IN","Auburn","De Kalb County","GWB","IN","De Kalb County","18-0004","PU",null,"Regional","GA","GA",7,61,14474867]
["GL","CHI","IN","Bedford","Virgil I Grissom Municipal","BFR","IN","Virgil I Grissom Municipal","18-0005","PU",null,"Local","GA","GA",0,35,2966871]
["GL","CHI","IN","Bloomington","Monroe County","BMG","IN","Monroe County","18-0006","PU",null,"Regional","GA","GA",1312,91,10537655]
["GL","CHI","IN","Brazil","New","02E","IN","New","18-0116",null,null,null,null,"GA",0,0,895538]
["GL","CHI","IN","Columbus","Columbus Municipal","BAK","IN","Columbus Municipal","18-0012","PU",null,"Regional","GA","GA",0,58,21538435]
["GL","CHI","IN","Connersville","Mettel Field","CEV","IN","Mettel Field","18-0013","PU",null,"Basic","GA","GA",3,10,4606969]
["GL","CHI","IN","Crawfordsville","Crawfordsville Municipal","CFJ","IN","Crawfordsville Municipal","18-0015","PU",null,"Local","GA","GA",0,27,4153421]
["GL","CHI","IN","Delphi","Delphi Municipal","1I9","IN","Delphi Municipal","18-0117","PU",null,"Basic","GA","GA",0,23,8768444]
["GL","CHI","IN","Elkhart","Elkhart Municipal","EKM","IN","Elkhart Municipal","18-0018","PU",null,"Regional","GA","GA",18,62,10952133]
["GL","CHI","IN","Evansville","Evansville Regional","EVV","IN","Evansville Regional","18-0020","PU","N",null,"P","P",169967,74,65048626]
["GL","CHI","IN","Fort Wayne","Fort Wayne International","FWA","IN","Fort Wayne International","18-0022","PU","N",null,"P","P",273056,70,25908487]
["GL","CHI","IN","Fort Wayne","Smith Field","SMD","IN","Smith Field","18-0024","PU",null,"Local","GA","GA",0,56,19829000]
["GL","CHI","IN","Frankfort","Frankfort Municipal","FKR","IN","Frankfort Municipal","18-0026","PU",null,"Basic","GA","GA",0,14,11734783]
["GL","CHI","IN","French Lick","French Lick Municipal","FRH","IN","French Lick Municipal","18-0027","PU",null,"Basic","GA","GA",0,10,2327276]
["GL","CHI","IN","Gary","Gary/Chicago International","GYY","IN","Gary/Chicago International","18-0028","PU",null,"National","GA","GA",2143,88,48779311]
["GL","CHI","IN","Goshen","Goshen Municipal","GSH","IN","Goshen Municipal","18-0029","PU",null,"Regional","GA","GA",6,70,4862446]
["GL","CHI","IN","Greencastle","Putnam County","4I7","IN","Putnam County","18-0030","PU",null,"Local","GA","GA",10,29,5109323]
["GL","CHI","IN","Greensburg","Greensburg Municipal","I34","IN","Greensburg Municipal","18-0031","PU",null,"Local","GA","GA",0,37,3940499]
["GL","CHI","IN","Griffith","Griffith-Merrillville","05C","IN","Griffith-Merrillville","18-0101","PR",null,"Other","R","R",0,62,7388940]
["GL","CHI","IN","Huntingburg","Huntingburg","HNB","IN","Huntingburg","18-0035","PU",null,"Regional","GA","GA",7,29,8048290]
["GL","CHI","IN","Huntington","Huntington Municipal","HHG","IN","Huntington Municipal","18-0036","PU",null,"Local","GA","GA",0,59,3432691]
["GL","CHI","IN","Indianapolis","Hendricks County-Gordon Graham Field","2R2","IN","Hendricks County-Gordon Graham Field","18-0093","PU",null,"Local","R","R",0,65,5737622]
["GL","CHI","IN","Indianapolis","Indianapolis Downtown","8A4","IN","Indianapolis Downtown","18-0118","PU",null,"Basic","GA","GA",0,9,817842]
["GL","CHI","IN","Indianapolis","Eagle Creek Airpark","EYE","IN","Eagle Creek Airpark","18-0039","PU",null,"Regional","R","R",23,95,2935450]
["GL","CHI","IN","Indianapolis","Greenwood Municipal","HFY","IN","Greenwood Municipal","18-0097","PU",null,"Local","GA","GA",3,96,3907173]
["GL","CHI","IN","Indianapolis","Indianapolis International","IND","IN","Indianapolis International","18-0038","PU","M",null,"P","P",3728698,70,146763997]
["GL","CHI","IN","Indianapolis","Indianapolis Regional","MQJ","IN","Indianapolis Regional","18-0037","PU",null,"Regional","R","R",16,124,11709885]
["GL","CHI","IN","Indianapolis","Indianapolis Executive","TYQ","IN","Indianapolis Executive","18-0103","PU",null,"Regional","R","R",36,70,21133579]
["GL","CHI","IN","Indianapolis","Indianapolis Metropolitan","UMP","IN","Indianapolis Metropolitan","18-0040","PU",null,"Regional","R","R",4,73,2733447]
["GL","CHI","IN","Jeffersonville","Clark Regional","JVY","IN","Clark Regional","18-0041","PU",null,"Regional","R","R",28,130,3480968]
["GL","CHI","IN","Kendallville","Kendallville Municipal","C62","IN","Kendallville Municipal","18-0042","PU",null,"Local","GA","GA",0,38,1528675]
["GL","CHI","IN","Kentland","Kentland Municipal","50I","IN","Kentland Municipal","18-0025","PU",null,"Basic","GA","GA",0,14,7082960]
["GL","CHI","IN","Knox","Starke County","OXI","IN","Starke County","18-0043","PU",null,"Local","GA","GA",0,19,3866689]
["GL","CHI","IN","Kokomo","Kokomo Municipal","OKK","IN","Kokomo Municipal","18-0044","PU",null,"Local","GA","GA",0,52,7525414]
["GL","CHI","IN","La Porte","La Porte Municipal","PPO","IN","La Porte Municipal","18-0047","PU",null,"Local","GA","GA",0,70,4030665]
["GL","CHI","IN","Lafayette","Purdue University","LAF","IN","Purdue University","18-0045","PU",null,"Regional","GA","GA",1405,104,6368422]
["GL","CHI","IN","Logansport","Logansport/Cass County","GGP","IN","Logansport/Cass County","18-0051","PU",null,"Basic","GA","GA",0,12,8667078]
["GL","CHI","IN","Madison","Madison Municipal","IMS","IN","Madison Municipal","18-0052","PU",null,"Local","GA","GA",14,54,2587043]
["GL","CHI","IN","Marion","Marion Municipal","MZZ","IN","Marion Municipal","18-0053","PU",null,"Regional","GA","GA",0,50,14217707]
["GL","CHI","IN","Michigan City","Michigan City Municipal-Phillips Field","MGC","IN","Michigan City Municipal-Phillips Field","18-0055","PU",null,"Local","GA","GA",0,41,6185053]
["GL","CHI","IN","Monticello","White County","MCX","IN","White County","18-0057","PU",null,"Local","GA","GA",0,21,12485411]
["GL","CHI","IN","Muncie","Delaware County Regional","MIE","IN","Delaware County Regional","18-0059","PU",null,"Regional","GA","GA",457,47,9640989]
["GL","CHI","IN","New Castle","New Castle-Henry Co Municipal","UWL","IN","New Castle-Henry Co Municipal","18-0061","PU",null,"Local","GA","GA",0,23,8007979]
["GL","CHI","IN","North Vernon","North Vernon","OVO","IN","North Vernon","18-0063","PU",null,"Local","GA","GA",0,29,2129625]
["GL","CHI","IN","Paoli","Paoli Municipal","I42","IN","Paoli Municipal","18-0064","PU",null,"Local","GA","GA",0,24,1252211]
["GL","CHI","IN","Peru","Peru Municipal","I76","IN","Peru Municipal","18-0066","PU",null,"Local","GA","GA",0,18,1033100]
["GL","CHI","IN","Plymouth","Plymouth Municipal","C65","IN","Plymouth Municipal","18-0067","PU",null,"Local","GA","GA",8,16,3368266]
["GL","CHI","IN","Portland","Portland Municipal","PLD","IN","Portland Municipal","18-0068","PU",null,"Local","GA","GA",0,21,15903315]
["GL","CHI","IN","Rensselaer","Jasper County","RZL","IN","Jasper County","18-0070","PU",null,"Local","GA","GA",0,15,13158250]
["GL","CHI","IN","Richmond","Richmond Municipal","RID","IN","Richmond Municipal","18-0071","PU",null,"Local","GA","GA",114,27,10542951]
["GL","CHI","IN","Rochester","Fulton County","RCR","IN","Fulton County","18-0072","PU",null,"Basic","GA","GA",0,9,3485651]
["GL","CHI","IN","Salem","Salem Municipal","I83","IN","Salem Municipal","18-0075","PU",null,"Local","GA","GA",0,40,15970217]
["GL","CHI","IN","Seymour","Freeman Municipal","SER","IN","Freeman Municipal","18-0076","PU",null,"Local","GA","GA",8,54,6200018]
["GL","CHI","IN","Shelbyville","Shelbyville Municipal","GEZ","IN","Shelbyville Municipal","18-0077","PU",null,"Local","GA","GA",0,62,6575189]
["GL","CHI","IN","South Bend","South Bend","SBN","IN","South Bend","18-0079","PU","N",null,"P","P",317096,46,20747038]
["GL","CHI","IN","Sullivan","Sullivan County","SIV","IN","Sullivan County","18-0080","PU",null,"Local","GA","GA",0,28,956707]
["GL","CHI","IN","Tell City","Perry County Municipal","TEL","IN","Perry County Municipal","18-0081","PU",null,"Basic","GA","GA",0,14,818336]
["GL","CHI","IN","Terre Haute","Terre Haute International-Hulman Field","HUF","IN","Terre Haute International-Hulman Field","18-0082","PU",null,"Local","GA","GA",491,46,23058978]
["GL","CHI","IN","Valparaiso","Porter County Regional","VPZ","IN","Porter County Regional","18-0083","PU",null,"Regional","GA","GA",2,147,15979313]
["GL","CHI","IN","Wabash","Wabash Municipal","IWH","IN","Wabash Municipal","18-0084","PU",null,"Local","GA","GA",0,15,5480632]
["GL","CHI","IN","Warsaw","Warsaw Municipal","ASW","IN","Warsaw Municipal","18-0085","PU",null,"Regional","GA","GA",3,40,9719835]
["GL","CHI","IN","Washington","Daviess County","DCY","IN","Daviess County","18-0086","PU",null,"Local","GA","GA",7,42,1478575]
["GL","CHI","IN","Winamac","Arens Field","RWN","IN","Arens Field","18-0087","PU",null,"Basic","GA","GA",0,10,6043456]
["GL","CHI","IN","Winchester","Randolph County","I22","IN","Randolph County","18-0088","PU",null,"Basic","GA","GA",0,10,2062982]
["GL","DET","MI","Adrian","Lenawee County","ADG","MI","Lenawee County","26-0001","PU",null,"Local","GA","GA",0,33,2830842]
["GL","DET","MI","Allegan","Padgham Field","35D","MI","Padgham Field","26-0002","PU",null,"Local","GA","GA",16,15,750000]
["GL","DET","MI","Alma","Gratiot Community","AMN","MI","Gratiot Community","26-0003","PU",null,"Local","GA","GA",3,35,1320000]
["GL","DET","MI","Alpena","Alpena County Regional","APN","MI","Alpena County Regional","26-0004","PU",null,"Regional","CS","CS",8737,22,2518115]
["GL","DET","MI","Ann Arbor","Ann Arbor Municipal","ARB","MI","Ann Arbor Municipal","26-0005","PU",null,"Regional","GA","GA",11,129,2616900]
["GL","DET","MI","Atlanta","Atlanta Municipal","Y93","MI","Atlanta Municipal","26-0132","PU",null,"Basic","GA","GA",0,10,1048904]
["GL","DET","MI","Bad Axe","Huron County Memorial","BAX","MI","Huron County Memorial","26-0006","PU",null,"Local","GA","GA",0,20,1700000]
["GL","DET","MI","Battle Creek","W K Kellogg","BTL","MI","W K Kellogg","26-0008","PU",null,"Regional","GA","GA",269,95,11556105]
["GL","DET","MI","Bay City","James Clements Municipal","3CM","MI","James Clements Municipal","26-0010","PU",null,"Local","GA","GA",0,59,2670679]
["GL","DET","MI","Beaver Island","Beaver Island","SJX","MI","Beaver Island","26-0090","PU",null,"Basic","GA","GA",0,3,1126000]
["GL","DET","MI","Bellaire","Antrim County","ACB","MI","Antrim County","26-0011","PU",null,"Local","GA","GA",0,25,4108000]
["GL","DET","MI","Benton Harbor","Southwest Michigan Regional","BEH","MI","Southwest Michigan Regional","26-0012","PU",null,"Regional","GA","GA",29,55,3970000]
["GL","DET","MI","Big Rapids","Roben-Hood","RQB","MI","Roben-Hood","26-0013","PU",null,"Local","GA","GA",3,15,3783000]
["GL","DET","MI","Bois Blanc Island","Bois Blanc Island","6Y1","MI","Bois Blanc Island","26-0155","PU",null,"Basic","GA","GA",0,7,1630991]
["GL","DET","MI","Cadillac","Wexford County","CAD","MI","Wexford County","26-0015","PU",null,"Local","GA","GA",57,42,1748895]
["GL","DET","MI","Caro","Tuscola Area","CFS","MI","Tuscola Area","26-0016","PU",null,"Local","GA","GA",0,48,4049750]
["GL","DET","MI","Charlevoix","Charlevoix Municipal","CVX","MI","Charlevoix Municipal","26-0017","PU","N",null,"P","P",14966,14,7946750]
["GL","DET","MI","Charlotte","Fitch H Beach","FPK","MI","Fitch H Beach","26-0018","PU",null,"Local","GA","GA",0,23,1181281]
["GL","DET","MI","Cheboygan","Cheboygan County","SLH","MI","Cheboygan County","26-0019","PU",null,"Local","GA","GA",6,17,1419684]
["GL","DET","MI","Clare","Clare Municipal","48D","MI","Clare Municipal","26-0020","PU",null,"Local","GA","GA",0,23,2679079]
["GL","DET","MI","Coldwater","Branch County Memorial","OEB","MI","Branch County Memorial","26-0021","PU",null,"Local","GA","GA",0,20,2079539]
["GL","DET","MI","Detroit","Coleman A. Young Municipal","DET","MI","Coleman A. Young Municipal","26-0027","PU",null,"Regional","GA","GA",181,88,14459052]
["GL","DET","MI","Detroit","Detroit Metropolitan Wayne County","DTW","MI","Detroit Metropolitan Wayne County","26-0026","PU","L",null,"P","P",15643890,6,252304135]
["GL","DET","MI","Detroit","Willow Run","YIP","MI","Willow Run","26-0024","PU",null,"National","R","R",3008,262,65940894]
["GL","DET","MI","Detroit/Grosse Ile","Grosse Ile Municipal","ONZ","MI","Grosse Ile Municipal","26-0025","PU",null,"Local","R","R",0,77,2014820]
["GL","DET","MI","Dowagiac","Dowagiac Municipal","C91","MI","Dowagiac Municipal","26-0029","PU",null,"Local","GA","GA",0,17,2598474]
["GL","DET","MI","Drummond Island","Drummond Island","DRM","MI","Drummond Island","26-0100","PU",null,"Basic","GA","GA",2,7,1235000]
["GL","DET","MI","Escanaba","Delta County","ESC","MI","Delta County","26-0031","PU",null,"Regional","CS","CS",9246,30,5773754]
["GL","DET","MI","Evart","Evart Municipal","9C8","MI","Evart Municipal","26-0141","PU",null,"Other","GA","GA",0,0,1531250]
["GL","DET","MI","Flint","Bishop International","FNT","MI","Bishop International","26-0032","PU","S",null,"P","P",497649,96,32497627]
["GL","DET","MI","Frankfort","Frankfort Dow Memorial Field","FKS","MI","Frankfort Dow Memorial Field","26-0102","PU",null,"Local","GA","GA",3,16,1974131]
["GL","DET","MI","Fremont","Fremont Municipal","FFX","MI","Fremont Municipal","26-0035","PU",null,"Local","GA","GA",3,34,1423790]
["GL","DET","MI","Gaylord","Gaylord Regional","GLR","MI","Gaylord Regional","26-0036","PU",null,"Local","GA","GA",642,38,2066632]
["GL","DET","MI","Gladwin","Gladwin Zettel Memorial","GDW","MI","Gladwin Zettel Memorial","26-0037","PU",null,"Basic","GA","GA",0,14,1062451]
["GL","DET","MI","Grand Haven","Grand Haven Memorial Airpark","3GM","MI","Grand Haven Memorial Airpark","26-0038","PU",null,"Local","GA","GA",0,33,930150]
["GL","DET","MI","Grand Ledge","Abrams Municipal","4D0","MI","Abrams Municipal","26-0103","PU",null,"Local","GA","GA",42,26,1667579]
["GL","DET","MI","Grand Rapids","Gerald R. Ford International","GRR","MI","Gerald R. Ford International","26-0039","PU","S",null,"P","P",1089002,81,45361894]
["GL","DET","MI","Grayling","Grayling AAF","GOV","MI","Grayling AAF","26-0133","MR",null,"Other","GA","GA",0,0,3280934]
["GL","DET","MI","Greenville","Greenville Municipal","6D6","MI","Greenville Municipal","26-0040","PU",null,"Local","GA","GA",3,51,1135895]
["GL","DET","MI","Hancock","Houghton County Memorial","CMX","MI","Houghton County Memorial","26-0041","PU","N",null,"P","P",21186,18,4700553]
["GL","DET","MI","Harbor Springs","Harbor Springs","MGN","MI","Harbor Springs","26-0105","PU",null,"Local","GA","GA",4019,15,1238474]
["GL","DET","MI","Hart/Shelby","Oceana County","C04","MI","Oceana County","26-0154","PU",null,"Local","GA","GA",1,39,1270895]
["GL","DET","MI","Hastings","Hastings","9D9","MI","Hastings","26-0043","PU",null,"Local","GA","GA",0,32,1272000]
["GL","DET","MI","Hillsdale","Hillsdale Municipal","JYM","MI","Hillsdale Municipal","26-0044","PU",null,"Basic","GA","GA",0,11,5026833]
["GL","DET","MI","Holland","West Michigan Regional","BIV","MI","West Michigan Regional","26-0045","PU",null,"Regional","GA","GA",450,51,10465684]
["GL","DET","MI","Houghton Lake","Roscommon County - Blodgett Memorial","HTL","MI","Roscommon County - Blodgett Memorial","26-0046","PU",null,"Basic","GA","GA",8,13,2426479]
["GL","DET","MI","Howell","Livingston County Spencer J. Hardy","OZW","MI","Livingston County Spencer J. Hardy","26-0047","PU",null,"Regional","R","R",6,117,4027395]
["GL","DET","MI","Ionia","Ionia County","Y70","MI","Ionia County","26-0048","PU",null,"Local","GA","GA",0,30,833395]
["GL","DET","MI","Iron Mountain Kingsford","Ford","IMT","MI","Ford","26-0049","PU",null,"Regional","CS","CS",6943,31,1442000]
["GL","DET","MI","Ironwood","Gogebic-Iron County","IWD","MI","Gogebic-Iron County","26-0050","PU",null,"Basic","GA","GA",944,11,9364789]
["GL","DET","MI","Jackson","Jackson County-Reynolds Field","JXN","MI","Jackson County-Reynolds Field","26-0051","PU",null,"Regional","GA","GA",10,102,23689474]
["GL","DET","MI","Kalamazoo","Kalamazoo/Battle Creek International","AZO","MI","Kalamazoo/Battle Creek International","26-0052","PU","N",null,"P","P",135555,143,35365175]
["GL","DET","MI","Lakeview","Lakeview-Griffith Field","13C","MI","Lakeview-Griffith Field","26-0054","PU",null,"Local","GA","GA",0,33,1127506]
["GL","DET","MI","Lambertville","Toledo Suburban","DUH","MI","Toledo Suburban","26-0107","PR",null,"Other","GA","GA",0,47,0]
["GL","DET","MI","Lansing","Capital Region International","LAN","MI","Capital Region International","26-0055","PU","N",null,"P","P",136548,79,13315424]
["GL","DET","MI","Lapeer","Dupont-Lapeer","D95","MI","Dupont-Lapeer","26-0056","PU",null,"Local","GA","GA",0,52,6440000]
["GL","DET","MI","Ludington","Mason County","LDM","MI","Mason County","26-0057","PU",null,"Local","GA","GA",7,26,978000]
["GL","DET","MI","Mackinac Island","Mackinac Island","MCD","MI","Mackinac Island","26-0058","PU",null,"Basic","GA","GA",185,2,1467000]
["GL","DET","MI","Manistee","Manistee County-Blacker","MBL","MI","Manistee County-Blacker","26-0059","PU",null,"Local","CS","CS",3413,7,6401684]
["GL","DET","MI","Manistique","Schoolcraft County","ISQ","MI","Schoolcraft County","26-0060","PU",null,"Basic","GA","GA",3,7,1558750]
["GL","DET","MI","Marlette","Marlette","77G","MI","Marlette","26-0062","PU",null,"Local","GA","GA",0,35,2790021]
["GL","DET","MI","Marquette","Sawyer International","SAW","MI","Sawyer International","26-0153","PU","N",null,"P","P",57371,44,9565260]
["GL","DET","MI","Marshall","Brooks Field","RMY","MI","Brooks Field","26-0064","PU",null,"Local","GA","GA",5,19,902244]
["GL","DET","MI","Mason","Mason Jewett Field","TEW","MI","Mason Jewett Field","26-0106","PU",null,"Local","GA","GA",0,62,2710000]
["GL","DET","MI","Menominee","Menominee-Marinette Twin County","MNM","MI","Menominee-Marinette Twin County","26-0065","PU",null,"Local","GA","GA",26,47,5181647]
["GL","DET","MI","Midland","Jack Barstow","IKW","MI","Jack Barstow","26-0066","PU",null,"Local","GA","GA",5,55,1562601]
["GL","DET","MI","Mio","Oscoda County Dennis Kauffman Memorial","51M","MI","Oscoda County Dennis Kauffman Memorial","26-0156","PU",null,"Other","GA","GA",0,3,1803784]
["GL","DET","MI","Monroe","Custer","TTF","MI","Custer","26-0067","PU",null,"Local","GA","GA",0,37,3565684]
["GL","DET","MI","Mount Pleasant","Mount Pleasant Municipal","MOP","MI","Mount Pleasant Municipal","26-0069","PU",null,"Local","GA","GA",19,33,920600]
["GL","DET","MI","Muskegon","Muskegon County","MKG","MI","Muskegon County","26-0071","PU","N",null,"P","P",13088,85,8820085]
["GL","DET","MI","New Hudson","Oakland Southwest","Y47","MI","Oakland Southwest","26-0152","PU",null,"Local","R","R",0,60,3519671]
["GL","DET","MI","Newberry","Luce County","ERY","MI","Luce County","26-0042","PU",null,"Basic","GA","GA",0,11,2295000]
["GL","DET","MI","Niles","Jerry Tyler Memorial","3TR","MI","Jerry Tyler Memorial","26-0073","PU",null,"Local","GA","GA",1,32,2122000]
["GL","DET","MI","Ontonagon","Ontonagon County - Schuster Field","OGM","MI","Ontonagon County - Schuster Field","26-0074","PU",null,"Basic","GA","GA",0,6,1308684]
["GL","DET","MI","Oscoda","Oscoda-Wurtsmith","OSC","MI","Oscoda-Wurtsmith","26-0151","PU",null,"Local","GA","GA",0,19,6092551]
["GL","DET","MI","Owosso","Owosso Community","RNP","MI","Owosso Community","26-0075","PU",null,"Local","GA","GA",0,61,1073000]
["GL","DET","MI","Pellston","Pellston Regional Airport of Emmet County","PLN","MI","Pellston Regional Airport of Emmet County","26-0076","PU","N",null,"P","P",23324,36,2390000]
["GL","DET","MI","Plymouth","Canton-Plymouth-Mettetal","1D2","MI","Canton-Plymouth-Mettetal","26-0077","PU",null,"Local","R","R",0,92,1238000]
["GL","DET","MI","Pontiac","Oakland County International","PTK","MI","Oakland County International","26-0079","PU",null,"National","R","R",1689,531,7716558]
["GL","DET","MI","Port Huron","St Clair County International","PHN","MI","St Clair County International","26-0080","PU",null,"Regional","R","R",17,87,4409895]
["GL","DET","MI","Rogers City","Presque Isle County","PZQ","MI","Presque Isle County","26-0135","PU",null,"Other","GA","GA",10,2,1470584]
["GL","DET","MI","Romeo","Romeo State","D98","MI","Romeo State","26-0082","PU",null,"Local","R","R",10,68,4128000]
["GL","DET","MI","Saginaw","Saginaw County H.W. Browne","HYX","MI","Saginaw County H.W. Browne","26-0114","PU",null,"Local","GA","GA",5,66,5330744]
["GL","DET","MI","Saginaw","MBS International","MBS","MI","MBS International","26-0083","PU","N",null,"P","P",146870,26,28673028]
["GL","DET","MI","Sandusky","Sandusky City","Y83","MI","Sandusky City","26-0084","PU",null,"Local","GA","GA",0,26,1279000]
["GL","DET","MI","Sault Ste. Marie","Chippewa County International","CIU","MI","Chippewa County International","26-0139","PU","N",null,"P","P",14349,20,4618632]
["GL","DET","MI","South Haven","South Haven Area Regional","LWA","MI","South Haven Area Regional","26-0087","PU",null,"Local","GA","GA",22,23,1730862]
["GL","DET","MI","Sparta","Paul C. Miller-Sparta","8D4","MI","Paul C. Miller-Sparta","26-0088","PU",null,"Local","GA","GA",11,59,3652737]
["GL","DET","MI","St. Ignace","Mackinac County","83D","MI","Mackinac County","26-0089","PU",null,"Basic","GA","GA",0,14,1873000]
["GL","DET","MI","Sturgis","Kirsch Municipal","IRS","MI","Kirsch Municipal","26-0092","PU",null,"Local","GA","GA",0,23,3095711]
["GL","DET","MI","Three Rivers","Three Rivers Municipal Dr Haines","HAI","MI","Three Rivers Municipal Dr Haines","26-0093","PU",null,"Local","GA","GA",1,38,3152189]
["GL","DET","MI","Traverse City","Cherry Capital","TVC","MI","Cherry Capital","26-0094","PU","N",null,"P","P",167488,97,11235150]
["GL","DET","MI","Troy","Oakland/Troy","VLL","MI","Oakland/Troy","26-0118","PU",null,"Regional","R","R",10,102,1483264]
["GL","DET","MI","West Branch","West Branch Community","Y31","MI","West Branch Community","26-0097","PU",null,"Local","GA","GA",0,17,1974211]
["GL","DET","MI","White Cloud","White Cloud","42C","MI","White Cloud","26-0137","PU",null,"Basic","GA","GA",0,10,2173263]
["GL","DET","OH","Akron","Akron Fulton International","AKR","OH","Akron Fulton International","39-0002","PU",null,"Regional","GA","GA",7,74,6547179]
["GL","DET","OH","Akron","Akron-Canton Regional","CAK","OH","Akron-Canton Regional","39-0001","PU","S",null,"P","P",771107,133,16631055]
["GL","DET","OH","Alliance","Barber","2D1","OH","Barber","39-0104","PR",null,"Other","GA","GA",0,15,0]
["GL","DET","OH","Ashland","Ashland County","3G4","OH","Ashland County","39-0004","PU",null,"Local","GA","GA",0,37,1643484]
["GL","DET","OH","Ashtabula","Ashtabula County","HZY","OH","Ashtabula County","39-0005","PU",null,"Local","GA","GA",0,44,3547901]
["GL","DET","OH","Athens/Albany","Ohio University Snyder Field","UNI","OH","Ohio University Snyder Field","39-0006","PU",null,"Regional","GA","GA",4,53,3440789]
["GL","DET","OH","Barnesville","Barnesville-Bradfield","6G5","OH","Barnesville-Bradfield","39-0007","PU",null,"Basic","GA","GA",0,10,906233]
["GL","DET","OH","Batavia","Clermont County","I69","OH","Clermont County","39-0008","PU",null,"Other","GA","GA",6,0,0]
["GL","DET","OH","Bellefontaine","Bellefontaine Regional","EDJ","OH","Bellefontaine Regional","39-0125","PU",null,"Local","GA","GA",0,28,1142895]
["GL","DET","OH","Bluffton","Bluffton","5G7","OH","Bluffton","39-0115","PU",null,"Local","GA","GA",0,24,3201983]
["GL","DET","OH","Bowling Green","Wood County","1G0","OH","Wood County","39-0010","PU",null,"Local","GA","GA",0,45,1957080]
["GL","DET","OH","Bryan","Williams County","0G6","OH","Williams County","39-0100","PU",null,"Local","GA","GA",0,21,1088320]
["GL","DET","OH","Bucyrus","Port Bucyrus-Crawford County","17G","OH","Port Bucyrus-Crawford County","39-0011","PU",null,"Local","GA","GA",0,26,1335857]
["GL","DET","OH","Cadiz","Harrison County","8G6","OH","Harrison County","39-0012","PU",null,"Local","GA","GA",0,23,1584900]
["GL","DET","OH","Cambridge","Cambridge Municipal","CDI","OH","Cambridge Municipal","39-0013","PU",null,"Local","GA","GA",0,20,1546632]
["GL","DET","OH","Carrollton","Carroll County-Tolson","TSO","OH","Carroll County-Tolson","39-0015","PU",null,"Local","GA","GA",0,17,1200000]
["GL","DET","OH","Celina","Lakefield","CQA","OH","Lakefield","39-0016","PU",null,"Local","GA","GA",0,17,1831479]
["GL","DET","OH","Chesapeake/Huntington Wva","Lawrence County Airpark","HTW","OH","Lawrence County Airpark","39-0107","PU",null,"Local","GA","GA",0,32,860860]
["GL","DET","OH","Chillicothe","Ross County","RZT","OH","Ross County","39-0017","PU",null,"Local","GA","GA",0,26,1502219]
["GL","DET","OH","Cincinnati","Cincinnati-Blue Ash","ISZ","OH","Cincinnati-Blue Ash","39-0103","PU",null,"Regional","R","R",10,80,0]
["GL","DET","OH","Cincinnati","Cincinnati Municipal Airport Lunken Field","LUK","OH","Cincinnati Municipal Airport Lunken Field","39-0018","PU",null,"National","R","R",1008,237,6815500]
["GL","DET","OH","Circleville","Pickaway County Memorial","CYO","OH","Pickaway County Memorial","39-0020","PU",null,"Local","GA","GA",0,33,1032000]
["GL","DET","OH","Cleveland","Burke Lakefront","BKL","OH","Burke Lakefront","39-0022","PU",null,"Regional","R","R",1713,35,17218421]
["GL","DET","OH","Cleveland","Cuyahoga County","CGF","OH","Cuyahoga County","39-0021","PU",null,"National","R","R",46,133,47035439]
["GL","DET","OH","Cleveland","Cleveland-Hopkins International","CLE","OH","Cleveland-Hopkins International","39-0023","PU","M",null,"P","P",4591097,24,151254866]
["GL","DET","OH","Columbus","Port Columbus International","CMH","OH","Port Columbus International","39-0025","PU","M",null,"P","P",3145962,93,233572345]
["GL","DET","OH","Columbus","Rickenbacker International","LCK","OH","Rickenbacker International","39-0117","PU",null,"National","GA","GA",4445,72,4252632]
["GL","DET","OH","Columbus","Ohio State University","OSU","OH","Ohio State University","39-0027","PU",null,"National","R","R",93,171,11621316]
["GL","DET","OH","Columbus","Bolton Field","TZR","OH","Bolton Field","39-0026","PU",null,"Regional","R","R",11,83,940000]
["GL","DET","OH","Coshocton","Richard Downing","I40","OH","Richard Downing","39-0028","PU",null,"Local","GA","GA",0,23,2414316]
["GL","DET","OH","Dayton","James M Cox Dayton International","DAY","OH","James M Cox Dayton International","39-0029","PU","S",null,"P","P",1248787,38,30788877]
["GL","DET","OH","Dayton","Greene County-Lewis A. Jackson Regional","I19","OH","Greene County-Lewis A. Jackson Regional","39-0094","PU",null,"Local","GA","GA",0,69,2942630]
["GL","DET","OH","Dayton","Dayton-Wright Brothers","MGY","OH","Dayton-Wright Brothers","39-0030","PU",null,"Regional","R","R",1,92,4845650]
["GL","DET","OH","Defiance","Defiance Memorial","DFI","OH","Defiance Memorial","39-0031","PU",null,"Local","GA","GA",0,22,1872295]
["GL","DET","OH","Delaware","Delaware Municipal - Jim Moore Field","DLZ","OH","Delaware Municipal - Jim Moore Field","39-0032","PU",null,"Regional","GA","GA",24,121,6119803]
["GL","DET","OH","East Liverpool","Columbiana County","02G","OH","Columbiana County","39-0033","PU",null,"Local","GA","GA",0,29,1135000]
["GL","DET","OH","Findlay","Findlay","FDY","OH","Findlay","39-0034","PU",null,"Regional","GA","GA",7,27,3191805]
["GL","DET","OH","Fostoria","Fostoria Metropolitan","FZI","OH","Fostoria Metropolitan","39-0035","PU",null,"Basic","GA","GA",0,14,844631]
["GL","DET","OH","Fremont","Sandusky County Regional","S24","OH","Sandusky County Regional","39-0121","PU",null,"Local","GA","GA",0,16,3531570]
["GL","DET","OH","Galion","Galion Municipal","GQQ","OH","Galion Municipal","39-0037","PU",null,"Local","GA","GA",0,31,1313526]
["GL","DET","OH","Gallipolis","Gallia-Meigs Regional","GAS","OH","Gallia-Meigs Regional","39-0101","PU",null,"Basic","GA","GA",0,14,1245000]
["GL","DET","OH","Georgetown","Brown County","GEO","OH","Brown County","39-0038","PU",null,"Local","GA","GA",0,19,1159736]
["GL","DET","OH","Hamilton","Butler County Regional","HAO","OH","Butler County Regional","39-0039","PU",null,"Regional","R","R",17,172,4638469]
["GL","DET","OH","Harrison","Cincinnati West","I67","OH","Cincinnati West","39-0113","PU",null,"Local","GA","GA",0,38,2700000]
["GL","DET","OH","Hillsboro","Highland County","HOC","OH","Highland County","39-0040","PU",null,"Local","GA","GA",0,21,934624]
["GL","DET","OH","Jackson","James A Rhodes","I43","OH","James A Rhodes","39-0041","PU",null,"Local","GA","GA",2,23,1767871]
["GL","DET","OH","Kelleys Island","Kelleys Island Land Field","89D","OH","Kelleys Island Land Field","39-0098","PU",null,"Basic","GA","GA",0,5,6440000]
["GL","DET","OH","Kent","Kent State University","1G3","OH","Kent State University","39-0042","PU",null,"Local","GA","GA",0,42,2123500]
["GL","DET","OH","Kenton","Hardin County","I95","OH","Hardin County","39-0043","PU",null,"Basic","GA","GA",0,13,1463735]
["GL","DET","OH","Lancaster","Fairfield County","LHQ","OH","Fairfield County","39-0044","PU",null,"Local","GA","GA",0,97,2227000]
["GL","DET","OH","Lebanon","Lebanon-Warren County","I68","OH","Lebanon-Warren County","39-0045","PU",null,"Local","GA","GA",0,89,1262397]
["GL","DET","OH","Lima","Lima Allen County","AOH","OH","Lima Allen County","39-0046","PU",null,"Local","GA","GA",1,28,813567]
["GL","DET","OH","London","Madison County","UYF","OH","Madison County","39-0047","PU",null,"Local","GA","GA",0,48,928227]
["GL","DET","OH","Lorain/Elyria","Lorain County Regional","LPR","OH","Lorain County Regional","39-0048","PU",null,"Regional","R","R",2,88,2807500]
["GL","DET","OH","Mansfield","Mansfield Lahm Regional","MFD","OH","Mansfield Lahm Regional","39-0049","PU",null,"Regional","GA","GA",392,71,6085410]
["GL","DET","OH","Marion","Marion Municipal","MNN","OH","Marion Municipal","39-0050","PU",null,"Local","GA","GA",0,42,1465795]
["GL","DET","OH","Marysville","Union County","MRT","OH","Union County","39-0051","PU",null,"Local","GA","GA",0,64,1007685]
["GL","DET","OH","McArthur","Vinton County","22I","OH","Vinton County","39-0108","PU",null,"Basic","GA","GA",0,15,2822843]
["GL","DET","OH","Medina","Medina Municipal","1G5","OH","Medina Municipal","39-0053","PU",null,"Local","R","R",0,61,1604368]
["GL","DET","OH","Middle Bass Island","Middle Bass Island","3T7","OH","Middle Bass Island","39-0124","PU",null,"Basic","GA","GA",0,1,890000]
["GL","DET","OH","Middlefield","Geauga County","7G8","OH","Geauga County","39-0054","PU",null,"Local","GA","GA",3,34,1951237]
["GL","DET","OH","Middletown","Middletown Regional/Hook Field","MWO","OH","Middletown Regional/Hook Field","39-0055","PU",null,"Local","GA","GA",0,84,2598287]
["GL","DET","OH","Millersburg","Holmes County","10G","OH","Holmes County","39-0056","PU",null,"Local","GA","GA",0,23,5131879]
["GL","DET","OH","Mount Gilead","Morrow County","4I9","OH","Morrow County","39-0114","PU",null,"Local","GA","GA",0,17,1540569]
["GL","DET","OH","Mount Vernon","Knox County","4I3","OH","Knox County","39-0058","PU",null,"Local","GA","GA",47,80,1365215]
["GL","DET","OH","Napoleon","Henry County","7W5","OH","Henry County","39-0109","PU",null,"Local","GA","GA",0,21,1163500]
["GL","DET","OH","New Lexington","Perry County","I86","OH","Perry County","39-0059","PU",null,"Basic","GA","GA",0,12,990162]
["GL","DET","OH","New Philadelphia","Harry Clever Field","PHD","OH","Harry Clever Field","39-0060","PU",null,"Local","GA","GA",1,39,2660000]
["GL","DET","OH","Newark","Newark-Heath","VTA","OH","Newark-Heath","39-0061","PU",null,"Regional","GA","GA",14,58,6785557]
["GL","DET","OH","North Bass Island","North Bass Island","3X5","OH","North Bass Island","39-0123","PU",null,"Basic","GA","GA",0,0,1707750]
["GL","DET","OH","Norwalk","Norwalk-Huron County","5A1","OH","Norwalk-Huron County","39-0062","PU",null,"Local","GA","GA",0,21,2799037]
["GL","DET","OH","Ottawa","Putnam County","OWX","OH","Putnam County","39-0110","PU",null,"Local","GA","GA",0,22,2154610]
["GL","DET","OH","Oxford","Miami University","OXD","OH","Miami University","39-0064","PU",null,"Basic","GA","GA",7,10,988699]
["GL","DET","OH","Port Clinton","Carl R Keller Field","PCW","OH","Carl R Keller Field","39-0068","PU",null,"Local","GA","GA",0,26,3955733]
["GL","DET","OH","Portsmouth","Greater Portsmouth Regional","PMH","OH","Greater Portsmouth Regional","39-0069","PU",null,"Local","GA","GA",1,34,1326690]
["GL","DET","OH","Put-in-Bay","Put-in-Bay","3W2","OH","Put-in-Bay","39-0122","PU",null,"Basic","GA","GA",0,3,1275215]
["GL","DET","OH","Ravenna","Portage County","POV","OH","Portage County","39-0099","PU",null,"Local","GA","GA",0,57,4510956]
["GL","DET","OH","Sidney","Sidney Municipal","I12","OH","Sidney Municipal","39-0071","PU",null,"Local","GA","GA",10,49,3731251]
["GL","DET","OH","Springfield","Springfield-Beckley Municipal","SGH","OH","Springfield-Beckley Municipal","39-0072","PU",null,"Regional","GA","GA",109,48,13276072]
["GL","DET","OH","Steubenville","Jefferson County Airpark","2G2","OH","Jefferson County Airpark","39-0074","PU",null,"Local","GA","GA",0,24,1656761]
["GL","DET","OH","Tiffin","Seneca County","16G","OH","Seneca County","39-0076","PU",null,"Local","GA","GA",0,39,835589]
["GL","DET","OH","Toledo","Toledo Executive","TDZ","OH","Toledo Executive","39-0078","PU",null,"Regional","R","R",44,83,1401760]
["GL","DET","OH","Toledo","Toledo Express","TOL","OH","Toledo Express","39-0077","PU","N",null,"P","P",88578,70,15397685]
["GL","DET","OH","Upper Sandusky","Wyandot County","56D","OH","Wyandot County","39-0079","PU",null,"Other","GA","GA",0,4,0]
["GL","DET","OH","Urbana","Grimes Field","I74","OH","Grimes Field","39-0080","PU",null,"Local","GA","GA",0,32,2376132]
["GL","DET","OH","Van Wert","Van Wert County","VNW","OH","Van Wert County","39-0081","PU",null,"Local","GA","GA",0,30,990099]
["GL","DET","OH","Versailles","Darke County","VES","OH","Darke County","39-0082","PU",null,"Local","GA","GA",3,29,2464349]
["GL","DET","OH","Wadsworth","Wadsworth Municipal","3G3","OH","Wadsworth Municipal","39-0083","PU",null,"Regional","GA","GA",0,83,1598000]
["GL","DET","OH","Wapakoneta","Neil Armstrong","AXV","OH","Neil Armstrong","39-0084","PU",null,"Local","GA","GA",0,23,1294177]
["GL","DET","OH","Warren","Warren","62D","OH","Warren","39-0085","PR",null,"Other","GA","GA",0,38,0]
["GL","DET","OH","Washington Court House","Fayette County","I23","OH","Fayette County","39-0086","PU",null,"Local","GA","GA",10,15,2824526]
["GL","DET","OH","Wauseon","Fulton County","USE","OH","Fulton County","39-0087","PU",null,"Local","GA","GA",0,21,1617734]
["GL","DET","OH","Waverly","Pike County","EOP","OH","Pike County","39-0088","PU",null,"Other","GA","GA",0,6,1243833]
["GL","DET","OH","West Union","Alexander Salamon","AMT","OH","Alexander Salamon","39-0112","PU",null,"Basic","GA","GA",0,12,1352527]
["GL","DET","OH","Willoughby","Willoughby Lost Nation Municipal","LNN","OH","Willoughby Lost Nation Municipal","39-0090","PU",null,"Regional","R","R",0,88,1263158]
["GL","DET","OH","Wilmington","Clinton Field","I66","OH","Clinton Field","39-0091","PU",null,"Local","GA","GA",0,28,1156658]
["GL","DET","OH","Woodsfield","Monroe County","4G5","OH","Monroe County","39-0092","PU",null,"Basic","GA","GA",0,10,1122843]
["GL","DET","OH","Wooster","Wayne County","BJJ","OH","Wayne County","39-0093","PU",null,"Regional","GA","GA",3,32,2179711]
["GL","DET","OH","Youngstown/Warren","Youngstown-Warren Regional","YNG","OH","Youngstown-Warren Regional","39-0096","PU","N",null,"P","P",27717,32,5285556]
["GL","DET","OH","Zanesville","Zanesville Municipal","ZZV","OH","Zanesville Municipal","39-0097","PU",null,"Local","GA","GA",0,19,2547547]
["GL","MSP","MN","Aitkin","Aitkin Municipal-Steve Kurtz Field","AIT","MN","Aitkin Municipal-Steve Kurtz Field","27-0002","PU",null,"Local","GA","GA",0,24,2281000]
["GL","MSP","MN","Albert Lea","Albert Lea Municipal","AEL","MN","Albert Lea Municipal","27-0003","PU",null,"Local","GA","GA",8,32,2286088]
["GL","MSP","MN","Alexandria","Chandler Field","AXN","MN","Chandler Field","27-0004","PU",null,"Local","GA","GA",156,51,860527]
["GL","MSP","MN","Austin","Austin Municipal","AUM","MN","Austin Municipal","27-0007","PU",null,"Local","GA","GA",0,24,2135673]
["GL","MSP","MN","Baudette","Baudette International","BDE","MN","Baudette International","27-0009","PU",null,"Basic","GA","GA",2,10,1154737]
["GL","MSP","MN","Bemidji","Bemidji Regional","BJI","MN","Bemidji Regional","27-0010","PU","N",null,"P","P",21498,36,15991842]
["GL","MSP","MN","Benson","Benson Municipal","BBB","MN","Benson Municipal","27-0011","PU",null,"Basic","GA","GA",0,14,7705000]
["GL","MSP","MN","Blue Earth","Blue Earth Municipal","SBU","MN","Blue Earth Municipal","27-0013","PU",null,"Local","GA","GA",1,23,1155580]
["GL","MSP","MN","Brainerd","Brainerd Lakes Regional","BRD","MN","Brainerd Lakes Regional","27-0014","PU","N",null,"P","P",16404,88,2625800]
["GL","MSP","MN","Buffalo","Buffalo Municipal","CFE","MN","Buffalo Municipal","27-0015","PU",null,"Local","GA","GA",0,51,3712308]
["GL","MSP","MN","Caledonia","Houston County","CHU","MN","Houston County","27-0016","PU",null,"Basic","GA","GA",0,8,2500737]
["GL","MSP","MN","Cambridge","Cambridge Municipal","CBG","MN","Cambridge Municipal","27-0017","PU",null,"Local","GA","GA",0,42,1510000]
["GL","MSP","MN","Canby","Myers Field","CNB","MN","Myers Field","27-0144","PU",null,"Local","GA","GA",0,22,2795263]
["GL","MSP","MN","Cloquet","Cloquet Carlton County","COQ","MN","Cloquet Carlton County","27-0018","PU",null,"Local","GA","GA",12,48,2260000]
["GL","MSP","MN","Cook","Cook Municipal","CQM","MN","Cook Municipal","27-0157","PU",null,"Local","GA","GA",12,15,1525845]
["GL","MSP","MN","Crookston","Crookston Municipal Kirkwood Field","CKN","MN","Crookston Municipal Kirkwood Field","27-0019","PU",null,"Local","GA","GA",0,32,1979215]
["GL","MSP","MN","Detroit Lakes","Detroit Lakes-Wething Field","DTL","MN","Detroit Lakes-Wething Field","27-0021","PU",null,"Local","GA","GA",2,43,48171651]
["GL","MSP","MN","Dodge Center","Dodge Center","TOB","MN","Dodge Center","27-0022","PU",null,"Local","GA","GA",0,34,2249211]
["GL","MSP","MN","Duluth","Duluth International","DLH","MN","Duluth International","27-0024","PU","N",null,"P","P",150556,64,27712829]
["GL","MSP","MN","Duluth","Sky Harbor","DYT","MN","Sky Harbor","27-0025","PU",null,"Local","GA","GA",0,33,9284401]
["GL","MSP","MN","Elbow Lake","Elbow Lake Municipal - Pride of the Prairie","Y63","MN","Elbow Lake Municipal - Pride of the Prairie","27-0026","PU",null,"Local","GA","GA",0,16,999000]
["GL","MSP","MN","Ely","Ely Municipal","ELO","MN","Ely Municipal","27-0027","PU",null,"Local","GA","GA",0,21,6012523]
["GL","MSP","MN","Eveleth","Eveleth-Virginia Municipal","EVM","MN","Eveleth-Virginia Municipal","27-0028","PU",null,"Local","GA","GA",3,33,4600185]
["GL","MSP","MN","Fairmont","Fairmont Municipal","FRM","MN","Fairmont Municipal","27-0029","PU",null,"Regional","GA","GA",0,29,3386579]
["GL","MSP","MN","Faribault","Faribault Municipal","FBL","MN","Faribault Municipal","27-0030","PU",null,"Local","GA","GA",13,56,1436842]
["GL","MSP","MN","Fergus Falls","Fergus Falls Municipal-Einar Mickelson Field","FFM","MN","Fergus Falls Municipal-Einar Mickelson Field","27-0031","PU",null,"Local","GA","GA",1,39,1666897]
["GL","MSP","MN","Fosston","Fosston Municipal","FSE","MN","Fosston Municipal","27-0032","PU",null,"Basic","GA","GA",0,10,2504750]
["GL","MSP","MN","Glencoe","Glencoe Municipal","GYL","MN","Glencoe Municipal","27-0158","PU",null,"Local","GA","GA",0,24,3608210]
["GL","MSP","MN","Glenwood","Glenwood Municipal","GHW","MN","Glenwood Municipal","27-0150","PU",null,"Basic","GA","GA",0,10,763206]
["GL","MSP","MN","Grand Marais","Grand Marais/Cook County","CKC","MN","Grand Marais/Cook County","27-0036","PU",null,"Local","GA","GA",0,19,16762842]
["GL","MSP","MN","Grand Rapids","Grand Rapids/Itasca County Airport-Gordon Newstrom Field","GPZ","MN","Grand Rapids/Itasca County Airport-Gordon Newstrom Field","27-0037","PU",null,"Local","GA","GA",2,64,6375926]
["GL","MSP","MN","Hallock","Hallock Municipal","HCO","MN","Hallock Municipal","27-0039","PU",null,"Local","GA","GA",0,17,986000]
["GL","MSP","MN","Hawley","Hawley Municipal","04Y","MN","Hawley Municipal","27-0118","PU",null,"Basic","GA","GA",0,13,947000]
["GL","MSP","MN","Hector","Hector Municipal","1D6","MN","Hector Municipal","27-0040","PU",null,"Basic","GA","GA",0,40,500000]
["GL","MSP","MN","Hibbing","Range Regional","HIB","MN","Range Regional","27-0041","PU","N",null,"P","P",11227,52,8478665]
["GL","MSP","MN","Hutchinson","Hutchinson Municipal-Butler Field","HCD","MN","Hutchinson Municipal-Butler Field","27-0042","PU",null,"Local","GA","GA",0,39,1600000]
["GL","MSP","MN","International Falls","Falls International","INL","MN","Falls International","27-0043","PU","N",null,"P","P",14051,20,25954518]
["GL","MSP","MN","Jackson","Jackson Municipal","MJQ","MN","Jackson Municipal","27-0045","PU",null,"Local","GA","GA",0,17,10492626]
["GL","MSP","MN","Le Sueur","Le Sueur Municipal","12Y","MN","Le Sueur Municipal","27-0046","PU",null,"Local","GA","GA",0,43,2378948]
["GL","MSP","MN","Litchfield","Litchfield Municipal","LJF","MN","Litchfield Municipal","27-0117","PU",null,"Local","GA","GA",0,29,3010000]
["GL","MSP","MN","Little Falls","Little Falls/Morrison County-Lindbergh Field","LXL","MN","Little Falls/Morrison County-Lindbergh Field","27-0048","PU",null,"Local","GA","GA",0,28,3657725]
["GL","MSP","MN","Long Prairie","Todd Field","14Y","MN","Todd Field","27-0049","PU",null,"Basic","GA","GA",0,14,4040369]
["GL","MSP","MN","Longville","Longville Municipal","XVG","MN","Longville Municipal","27-0050","PU",null,"Other","GA","GA",0,7,1897500]
["GL","MSP","MN","Luverne","Quentin Aanenson Field","LYV","MN","Quentin Aanenson Field","27-0051","PU",null,"Local","GA","GA",0,8,1601843]
["GL","MSP","MN","Madison","Lac qui Parle County","DXX","MN","Lac qui Parle County","27-0131","PU",null,"Other","GA","GA",0,4,2380000]
["GL","MSP","MN","Mahnomen","Mahnomen County","3N8","MN","Mahnomen County","27-0146","PU",null,"Basic","GA","GA",0,18,1027500]
["GL","MSP","MN","Mankato","Mankato Regional","MKT","MN","Mankato Regional","27-0055","PU",null,"Regional","GA","GA",10,50,1760779]
["GL","MSP","MN","Marshall","Southwest Minnesota Regional Marshall/Ryan Field","MML","MN","Southwest Minnesota Regional Marshall/Ryan Field","27-0056","PU",null,"Regional","GA","GA",2,30,3487964]
["GL","MSP","MN","Minneapolis","Anoka County-Blaine Airport(Janes Field)","ANE","MN","Anoka County-Blaine Airport(Janes Field)","27-0062","PU",null,"National","R","R",87,386,4010000]
["GL","MSP","MN","Minneapolis","Flying Cloud","FCM","MN","Flying Cloud","27-0061","PU",null,"National","R","R",245,370,4888211]
["GL","MSP","MN","Minneapolis","Airlake","LVN","MN","Airlake","27-0140","PU",null,"Regional","R","R",6,137,9400000]
["GL","MSP","MN","Minneapolis","Crystal","MIC","MN","Crystal","27-0064","PU",null,"Regional","R","R",6,207,2500000]
["GL","MSP","MN","Minneapolis","Minneapolis-St Paul International/Wold-Chamberlain","MSP","MN","Minneapolis-St Paul International/Wold-Chamberlain","27-0059","PU","L",null,"P","P",15512487,127,39725000]
["GL","MSP","MN","Montevideo","Montevideo-Chippewa County","MVE","MN","Montevideo-Chippewa County","27-0065","PU",null,"Local","GA","GA",0,19,686950]
["GL","MSP","MN","Moorhead","Moorhead Municipal","JKJ","MN","Moorhead Municipal","27-0147","PU",null,"Local","GA","GA",0,32,1466500]
["GL","MSP","MN","Moose Lake","Moose Lake Carlton County","MZH","MN","Moose Lake Carlton County","27-0154","PU",null,"Basic","GA","GA",0,10,1030000]
["GL","MSP","MN","Mora","Mora Municipal","JMR","MN","Mora Municipal","27-0068","PU",null,"Local","GA","GA",0,21,3402744]
["GL","MSP","MN","Morris","Morris Municipal - Charlie Schmidt Field","MOX","MN","Morris Municipal - Charlie Schmidt Field","27-0069","PU",null,"Basic","GA","GA",5,10,3397500]
["GL","MSP","MN","New Ulm","New Ulm Municipal","ULM","MN","New Ulm Municipal","27-0070","PU",null,"Local","GA","GA",0,19,3122721]
["GL","MSP","MN","Orr","Orr Regional","ORB","MN","Orr Regional","27-0142","PU",null,"Other","GA","GA",0,9,1115789]
["GL","MSP","MN","Ortonville","Ortonville Municipal-Martinson Field","VVV","MN","Ortonville Municipal-Martinson Field","27-0073","PU",null,"Other","GA","GA",2,4,2504211]
["GL","MSP","MN","Owatonna","Owatonna Degner Regional","OWA","MN","Owatonna Degner Regional","27-0074","PU",null,"Local","GA","GA",5,59,7721053]
["GL","MSP","MN","Park Rapids","Park Rapids Municipal-Konshok Field","PKD","MN","Park Rapids Municipal-Konshok Field","27-0075","PU",null,"Local","GA","GA",0,31,4109211]
["GL","MSP","MN","Paynesville","Paynesville Municipal","PEX","MN","Paynesville Municipal","27-0152","PU",null,"Basic","GA","GA",0,13,1726315]
["GL","MSP","MN","Pine River","Pine River Regional","PWC","MN","Pine River Regional","27-0149","PU",null,"Local","GA","GA",0,31,2206128]
["GL","MSP","MN","Pipestone","Pipestone Municipal","PQN","MN","Pipestone Municipal","27-0079","PU",null,"Basic","GA","GA",3,7,2878947]
["GL","MSP","MN","Preston","Fillmore County","FKA","MN","Fillmore County","27-0080","PU",null,"Basic","GA","GA",0,12,1282369]
["GL","MSP","MN","Princeton","Princeton Municipal","PNM","MN","Princeton Municipal","27-0081","PU",null,"Local","GA","GA",0,29,4001000]
["GL","MSP","MN","Red Wing","Red Wing Regional","RGK","MN","Red Wing Regional","27-0082","PU",null,"Local","GA","GA",2,36,11190258]
["GL","MSP","MN","Redwood Falls","Redwood Falls Municipal","RWF","MN","Redwood Falls Municipal","27-0083","PU",null,"Local","GA","GA",0,16,5184727]
["GL","MSP","MN","Rochester","Rochester International","RST","MN","Rochester International","27-0084","PU","N",null,"P","P",120063,64,56385626]
["GL","MSP","MN","Roseau","Roseau Municipal/Rudy Billberg Field","ROX","MN","Roseau Municipal/Rudy Billberg Field","27-0085","PU",null,"Basic","GA","GA",0,12,5154000]
["GL","MSP","MN","Rush City","Rush City Regional","ROS","MN","Rush City Regional","27-0087","PU",null,"Local","GA","GA",0,51,10546615]
["GL","MSP","MN","Rushford","Rushford Municipal","55Y","MN","Rushford Municipal","27-0155","PU",null,"Basic","GA","GA",0,10,3180264]
["GL","MSP","MN","Sauk Centre","Sauk Centre Municipal","D39","MN","Sauk Centre Municipal","27-0156","PU",null,"Basic","GA","GA",0,10,3278026]
["GL","MSP","MN","Silver Bay","Silver Bay Municipal","BFW","MN","Silver Bay Municipal","27-0090","PU",null,"Other","GA","GA",0,2,860000]
["GL","MSP","MN","South St. Paul","South St Paul Municipal-Richard E Fleming Field","SGS","MN","South St Paul Municipal-Richard E Fleming Field","27-0093","PU",null,"Regional","R","R",6,223,2232560]
["GL","MSP","MN","Springfield","Springfield Municipal","D42","MN","Springfield Municipal","27-0119","PU",null,"Other","GA","GA",0,3,1052159]
["GL","MSP","MN","St. Cloud","St. Cloud Regional","STC","MN","St. Cloud Regional","27-0095","PU",null,"Regional","GA","GA",1198,105,7660000]
["GL","MSP","MN","St. James","St James Municipal","JYG","MN","St James Municipal","27-0137","PU",null,"Other","GA","GA",0,8,1441578]
["GL","MSP","MN","St. Paul","Lake Elmo","21D","MN","Lake Elmo","27-0097","PU",null,"Local","R","R",0,183,7444737]
["GL","MSP","MN","St. Paul","St Paul Downtown Holman Field","STP","MN","St Paul Downtown Holman Field","27-0098","PU",null,"National","R","R",150,73,4200000]
["GL","MSP","MN","Staples","Staples Municipal","SAZ","MN","Staples Municipal","27-0145","PU",null,"Local","GA","GA",0,13,1428145]
["GL","MSP","MN","Thief River Falls","Thief River Falls Regional","TVF","MN","Thief River Falls Regional","27-0100","PU",null,"Local","GA","GA",2479,19,11635289]
["GL","MSP","MN","Tower","Tower Municipal","12D","MN","Tower Municipal","27-0148","PU",null,"Local","GA","GA",0,22,1253261]
["GL","MSP","MN","Tracy","Tracy Municipal","TKC","MN","Tracy Municipal","27-0102","PU",null,"Other","GA","GA",0,6,1733999]
["GL","MSP","MN","Two Harbors","Richard B Helgeson","TWM","MN","Richard B Helgeson","27-0103","PU",null,"Local","GA","GA",0,38,161000]
["GL","MSP","MN","Wadena","Wadena Municipal","ADC","MN","Wadena Municipal","27-0123","PU",null,"Basic","GA","GA",0,12,1990000]
["GL","MSP","MN","Walker","Walker Municipal","Y49","MN","Walker Municipal","27-0151","PU",null,"Basic","GA","GA",0,13,960000]
["GL","MSP","MN","Warroad","Warroad International Memorial","RRT","MN","Warroad International Memorial","27-0108","PU",null,"Basic","GA","GA",0,12,1600000]
["GL","MSP","MN","Waseca","Waseca Municipal","ACQ","MN","Waseca Municipal","27-0109","PU",null,"Local","GA","GA",0,20,884421]
["GL","MSP","MN","Wheaton","Wheaton Municipal","ETH","MN","Wheaton Municipal","27-0111","PU",null,"Other","GA","GA",0,5,1714211]
["GL","MSP","MN","Willmar","Willmar Municipal-John L Rice Field","BDH","MN","Willmar Municipal-John L Rice Field","27-0115","PU",null,"Local","GA","GA",5,51,10030009]
["GL","MSP","MN","Windom","Windom Municipal","MWM","MN","Windom Municipal","27-0113","PU",null,"Basic","GA","GA",0,14,2656092]
["GL","MSP","MN","Winona","Winona Municipal-Max Conrad Field","ONA","MN","Winona Municipal-Max Conrad Field","27-0114","PU",null,"Local","GA","GA",12,46,10452085]
["GL","MSP","MN","Winsted","Winsted Municipal","10D","MN","Winsted Municipal","27-0139","PU",null,"Basic","GA","GA",0,44,4000000]
["GL","MSP","MN","Worthington","Worthington Municipal","OTG","MN","Worthington Municipal","27-0116","PU",null,"Local","GA","GA",3,17,1573316]
["GL","MSP","WI","Amery","Amery Municipal","AHH","WI","Amery Municipal","55-0097","PU",null,"Local","GA","GA",0,19,2484210]
["GL","MSP","WI","Antigo","Langlade County","AIG","WI","Langlade County","55-0001","PU",null,"Basic","GA","GA",0,13,3290852]
["GL","MSP","WI","Appleton","Outagamie County Regional","ATW","WI","Outagamie County Regional","55-0002","PU","N",null,"P","P",272471,69,22606362]
["GL","MSP","WI","Ashland","John F Kennedy Memorial","ASX","WI","John F Kennedy Memorial","55-0003","PU",null,"Local","GA","GA",11,31,948684]
["GL","MSP","WI","Baraboo","Baraboo Wisconsin Dells","DLL","WI","Baraboo Wisconsin Dells","55-0004","PU",null,"Regional","GA","GA",7,49,6265486]
["GL","MSP","WI","Black River Falls","Black River Falls Area","BCK","WI","Black River Falls Area","55-0008","PU",null,"Local","GA","GA",0,20,2732641]
["GL","MSP","WI","Boscobel","Boscobel","OVS","WI","Boscobel","55-0119","PU",null,"Local","GA","GA",0,26,2349020]
["GL","MSP","WI","Boyceville","Boyceville Municipal","3T3","WI","Boyceville Municipal","55-0123","PU",null,"Basic","GA","GA",0,11,2002632]
["GL","MSP","WI","Brookfield","Capitol","02C","WI","Capitol","55-0122","PR",null,"Local","R","R",0,101,1592104]
["GL","MSP","WI","Burlington","Burlington Municipal","BUU","WI","Burlington Municipal","55-0010","PU",null,"Local","GA","GA",1,75,3289211]
["GL","MSP","WI","Cable","Cable Union","3CU","WI","Cable Union","55-0011","PU",null,"Other","GA","GA",2,2,1134211]
["GL","MSP","WI","Clintonville","Clintonville Municipal","CLI","WI","Clintonville Municipal","55-0013","PU",null,"Local","GA","GA",0,19,2632895]
["GL","MSP","WI","Crandon","Crandon/Steve Conway Municipal","Y55","WI","Crandon/Steve Conway Municipal","55-0015","PU",null,"Other","GA","GA",0,3,1754637]
["GL","MSP","WI","Crivitz","Crivitz Municipal","3D1","WI","Crivitz Municipal","55-0129","PU",null,"Other","GA","GA",0,8,500211]
["GL","MSP","WI","Cumberland","Cumberland Municipal","UBE","WI","Cumberland Municipal","55-0016","PU",null,"Local","GA","GA",4,24,270329]
["GL","MSP","WI","Eagle River","Eagle River Union","EGV","WI","Eagle River Union","55-0017","PU",null,"Local","GA","GA",11,52,4757896]
["GL","MSP","WI","East Troy","East Troy Municipal","57C","WI","East Troy Municipal","55-0018","PU",null,"Local","GA","GA",0,71,1132456]
["GL","MSP","WI","Eau Claire","Chippewa Valley Regional","EAU","WI","Chippewa Valley Regional","55-0019","PU","N",null,"P","P",18369,78,2055422]
["GL","MSP","WI","Ephraim","Ephraim-Gibraltar","3D2","WI","Ephraim-Gibraltar","55-0020","PU",null,"Other","GA","GA",2,8,1456000]
["GL","MSP","WI","Fond du Lac","Fond du Lac County","FLD","WI","Fond du Lac County","55-0021","PU",null,"Regional","GA","GA",22,78,1728668]
["GL","MSP","WI","Fort Atkinson","Fort Atkinson Municipal","61C","WI","Fort Atkinson Municipal","55-0120","PU",null,"Local","GA","GA",0,25,1463157]
["GL","MSP","WI","Friendship (Adams)","Adams County Legion Field","63C","WI","Adams County Legion Field","55-0104","PU",null,"Local","GA","GA",0,17,2535789]
["GL","MSP","WI","Grantsburg","Grantsburg Municipal","GTG","WI","Grantsburg Municipal","55-0128","PU",null,"Local","GA","GA",0,17,1241092]
["GL","MSP","WI","Green Bay","Austin Straubel International","GRB","WI","Austin Straubel International","55-0025","PU","N",null,"P","P",349733,130,12912562]
["GL","MSP","WI","Hartford","Hartford Municipal","HXF","WI","Hartford Municipal","55-0026","PU",null,"Local","GA","GA",0,95,2468479]
["GL","MSP","WI","Hayward","Sawyer County","HYR","WI","Sawyer County","55-0027","PU",null,"Local","GA","GA",22,27,3809474]
["GL","MSP","WI","Janesville","Southern Wisconsin Regional","JVL","WI","Southern Wisconsin Regional","55-0028","PU",null,"Regional","GA","GA",137,69,12044308]
["GL","MSP","WI","Juneau","Dodge County","UNU","WI","Dodge County","55-0115","PU",null,"Local","GA","GA",0,63,4489643]
["GL","MSP","WI","Kenosha","Kenosha Regional","ENW","WI","Kenosha Regional","55-0029","PU",null,"Regional","R","R",27,164,2059869]
["GL","MSP","WI","La Crosse","La Crosse Municipal","LSE","WI","La Crosse Municipal","55-0030","PU","N",null,"P","P",109962,84,7527363]
["GL","MSP","WI","La Pointe","Major Gilbert Field","4R5","WI","Major Gilbert Field","55-0031","PU",null,"Other","GA","GA",0,1,1000789]
["GL","MSP","WI","Ladysmith","Rusk County","RCX","WI","Rusk County","55-0032","PU",null,"Basic","GA","GA",0,14,1086580]
["GL","MSP","WI","Lancaster","Lancaster Municipal","73C","WI","Lancaster Municipal","55-0106","PU",null,"Other","GA","GA",0,6,1458421]
["GL","MSP","WI","Land O'Lakes","Kings Land O' Lakes","LNL","WI","Kings Land O' Lakes","55-0124","PU",null,"Basic","GA","GA",0,10,615790]
["GL","MSP","WI","Lone Rock","Tri-County Regional","LNR","WI","Tri-County Regional","55-0126","PU",null,"Local","GA","GA",2,27,2735000]
["GL","MSP","WI","Madison","Dane County Regional-Truax Field","MSN","WI","Dane County Regional-Truax Field","55-0036","PU","S",null,"P","P",766953,238,25327833]
["GL","MSP","WI","Manitowish Waters","Manitowish Waters","D25","WI","Manitowish Waters","55-0037","PU",null,"Basic","GA","GA",0,11,2695304]
["GL","MSP","WI","Manitowoc","Manitowoc County","MTW","WI","Manitowoc County","55-0038","PU",null,"Regional","GA","GA",87,63,992383]
["GL","MSP","WI","Marshfield","Marshfield Municipal","MFI","WI","Marshfield Municipal","55-0039","PU",null,"Local","GA","GA",6,21,6950000]
["GL","MSP","WI","Medford","Taylor County","MDZ","WI","Taylor County","55-0041","PU",null,"Basic","GA","GA",5,14,4963684]
["GL","MSP","WI","Menomonie","Menomonie Municipal-Score Field","LUM","WI","Menomonie Municipal-Score Field","55-0043","PU",null,"Local","GA","GA",6,15,2075790]
["GL","MSP","WI","Merrill","Merrill Municipal","RRL","WI","Merrill Municipal","55-0044","PU",null,"Local","GA","GA",8,31,4318479]
["GL","MSP","WI","Middleton","Middleton Municipal - Morey Field","C29","WI","Middleton Municipal - Morey Field","55-0116","PU",null,"Regional","GA","GA",269,61,10600000]
["GL","MSP","WI","Milwaukee","General Mitchell International","MKE","WI","General Mitchell International","55-0045","PU","M",null,"P","P",4760170,38,80928098]
["GL","MSP","WI","Milwaukee","Lawrence J Timmerman","MWC","WI","Lawrence J Timmerman","55-0046","PU",null,"Regional","R","R",33,108,818000]
["GL","MSP","WI","Mineral Point","Iowa County","MRJ","WI","Iowa County","55-0048","PU",null,"Local","GA","GA",4,23,1903684]
["GL","MSP","WI","Minocqua-Woodruff","Lakeland/Noble F. Lee Memorial Field","ARV","WI","Lakeland/Noble F. Lee Memorial Field","55-0049","PU",null,"Local","GA","GA",0,27,4576316]
["GL","MSP","WI","Monroe","Monroe Municipal","EFT","WI","Monroe Municipal","55-0050","PU",null,"Local","GA","GA",5,29,1835000]
["GL","MSP","WI","Mosinee","Central Wisconsin","CWA","WI","Central Wisconsin","55-0052","PU","N",null,"P","P",156251,26,17611260]
["GL","MSP","WI","Neillsville","Neillsville Municipal","VIQ","WI","Neillsville Municipal","55-0054","PU",null,"Basic","GA","GA",0,37,2840791]
["GL","MSP","WI","New Holstein","New Holstein Municipal","8D1","WI","New Holstein Municipal","55-0055","PU",null,"Local","GA","GA",0,16,3965790]
["GL","MSP","WI","New Lisbon","Mauston-New Lisbon Union","82C","WI","Mauston-New Lisbon Union","55-0040","PU",null,"Other","GA","GA",0,9,1394739]
["GL","MSP","WI","New Richmond","New Richmond Regional","RNH","WI","New Richmond Regional","55-0057","PU",null,"Local","GA","GA",2,150,2945001]
["GL","MSP","WI","Oconto","J. Douglas Bake Memorial.","OCQ","WI","J. Douglas Bake Memorial.","55-0059","PU",null,"Local","GA","GA",0,17,1320000]
["GL","MSP","WI","Osceola","L O Simenstad Municipal","OEO","WI","L O Simenstad Municipal","55-0060","PU",null,"Local","GA","GA",7,70,789474]
["GL","MSP","WI","Oshkosh","Wittman Regional","OSH","WI","Wittman Regional","55-0061","PU",null,"Regional","GA","GA",173,164,10236842]
["GL","MSP","WI","Palmyra","Palmyra Municipal","88C","WI","Palmyra Municipal","55-0117","PU",null,"Basic","GA","GA",0,65,1039473]
["GL","MSP","WI","Park Falls","Park Falls Municipal","PKF","WI","Park Falls Municipal","55-0063","PU",null,"Other","GA","GA",0,4,1314474]
["GL","MSP","WI","Phillips","Price County","PBH","WI","Price County","55-0064","PU",null,"Local","GA","GA",4,26,2615684]
["GL","MSP","WI","Platteville","Platteville Municipal","PVB","WI","Platteville Municipal","55-0065","PU",null,"Local","GA","GA",0,22,7295110]
["GL","MSP","WI","Portage","Portage Municipal","C47","WI","Portage Municipal","55-0066","PU",null,"Local","GA","GA",0,25,4000000]
["GL","MSP","WI","Prairie du Chien","Prairie Du Chien Municipal","PDC","WI","Prairie Du Chien Municipal","55-0067","PU",null,"Basic","GA","GA",2,13,2305263]
["GL","MSP","WI","Prairie du Sac","Sauk-Prairie","91C","WI","Sauk-Prairie","55-0111","PU",null,"Other","GA","GA",0,25,0]
["GL","MSP","WI","Racine","John H Batten","RAC","WI","John H Batten","55-0068","PR",null,"Other","R","R",13,58,3018737]
["GL","MSP","WI","Reedsburg","Reedsburg Municipal","C35","WI","Reedsburg Municipal","55-0069","PU",null,"Local","GA","GA",0,20,1304737]
["GL","MSP","WI","Rhinelander","Rhinelander-Oneida County","RHI","WI","Rhinelander-Oneida County","55-0070","PU","N",null,"P","P",25137,31,7968422]
["GL","MSP","WI","Rice Lake","Rice Lake Regional - Carl's Field","RPD","WI","Rice Lake Regional - Carl's Field","55-0112","PU",null,"Local","GA","GA",96,29,5262829]
["GL","MSP","WI","Richland Center","Richland","93C","WI","Richland","55-0073","PU",null,"Other","GA","GA",0,3,1679825]
["GL","MSP","WI","Shawano","Shawano Municipal","EZS","WI","Shawano Municipal","55-0074","PU",null,"Local","GA","GA",2,29,643684]
["GL","MSP","WI","Sheboygan","Sheboygan County Memorial","SBM","WI","Sheboygan County Memorial","55-0075","PU",null,"Regional","GA","GA",114,81,2617895]
["GL","MSP","WI","Shell Lake","Shell Lake Municipal","SSQ","WI","Shell Lake Municipal","55-0076","PU",null,"Local","GA","GA",0,15,964474]
["GL","MSP","WI","Siren","Burnett County","RZN","WI","Burnett County","55-0077","PU",null,"Local","GA","GA",25,24,4709003]
["GL","MSP","WI","Solon Springs","Solon Springs Municipal","OLG","WI","Solon Springs Municipal","55-0130","PU",null,"Basic","GA","GA",0,12,1443684]
["GL","MSP","WI","Sparta","Sparta/Fort McCoy","CMY","WI","Sparta/Fort McCoy","55-0079","MR",null,"Basic","GA","GA",5,10,4141841]
["GL","MSP","WI","Stevens Point","Stevens Point Municipal","STE","WI","Stevens Point Municipal","55-0080","PU",null,"Regional","GA","GA",5,43,1423684]
["GL","MSP","WI","Sturgeon Bay","Door County Cherryland","SUE","WI","Door County Cherryland","55-0082","PU",null,"Local","GA","GA",59,43,5705263]
["GL","MSP","WI","Superior","Richard I Bong","SUW","WI","Richard I Bong","55-0083","PU",null,"Local","GA","GA",3,48,2080000]
["GL","MSP","WI","Tomahawk","Tomahawk Regional","TKV","WI","Tomahawk Regional","55-0086","PU",null,"Local","GA","GA",0,30,2806578]
["GL","MSP","WI","Viroqua","Viroqua Municipal","Y51","WI","Viroqua Municipal","55-0087","PU",null,"Local","GA","GA",0,22,889473]
["GL","MSP","WI","Washington Island","Washington Island","2P2","WI","Washington Island","55-0121","PU",null,"Basic","GA","GA",0,10,1860000]
["GL","MSP","WI","Watertown","Watertown Municipal","RYV","WI","Watertown Municipal","55-0089","PU",null,"Regional","GA","GA",1,57,3472369]
["GL","MSP","WI","Waukesha","Waukesha County","UES","WI","Waukesha County","55-0090","PU",null,"National","R","R",166,221,16355739]
["GL","MSP","WI","Waupaca","Waupaca Municipal","PCZ","WI","Waupaca Municipal","55-0091","PU",null,"Local","GA","GA",6,32,1344079]
["GL","MSP","WI","Wausau","Wausau Downtown","AUW","WI","Wausau Downtown","55-0093","PU",null,"Local","GA","GA",79,54,2607895]
["GL","MSP","WI","Wautoma","Wautoma Municipal","Y50","WI","Wautoma Municipal","55-0094","PU",null,"Local","GA","GA",0,22,1400000]
["GL","MSP","WI","West Bend","West Bend Municipal","ETB","WI","West Bend Municipal","55-0095","PU",null,"Regional","R","R",15,94,3141578]
["GL","MSP","WI","Wisconsin Rapids","Alexander Field South Wood County","ISW","WI","Alexander Field South Wood County","55-0096","PU",null,"Local","GA","GA",16,33,1979421]
["NE","ANE","CT","Bridgeport","Igor I Sikorsky Memorial","BDR","CT","Igor I Sikorsky Memorial","09-0002","PU",null,"National","GA","GA",240,190,29261885]
["NE","ANE","CT","Chester","Chester","SNC","CT","Chester","09-0004","PR",null,"Other","GA","GA",0,123,0]
["NE","ANE","CT","Danbury","Danbury Municipal","DXR","CT","Danbury Municipal","09-0006","PU",null,"Regional","R","R",406,265,12336105]
["NE","ANE","CT","Danielson","Danielson","LZD","CT","Danielson","09-0007","PU",null,"Local","GA","GA",0,36,1168420]
["NE","ANE","CT","Groton (New London)","Groton-New London","GON","CT","Groton-New London","09-0009","PU",null,"Regional","GA","GA",75,30,4526316]
["NE","ANE","CT","Hartford","Hartford-Brainard","HFD","CT","Hartford-Brainard","09-0010","PU",null,"Regional","R","R",47,139,6151169]
["NE","ANE","CT","Meriden","Meriden Markham Municipal","MMK","CT","Meriden Markham Municipal","09-0012","PU",null,"Local","GA","GA",28,65,1381661]
["NE","ANE","CT","New Haven","Tweed-New Haven","HVN","CT","Tweed-New Haven","09-0013","PU","N",null,"P","P",35854,58,7678947]
["NE","ANE","CT","Oxford","Waterbury-Oxford","OXC","CT","Waterbury-Oxford","09-0017","PU",null,"National","GA","GA",148,175,19257895]
["NE","ANE","CT","Plainville","Robertson Field","4B8","CT","Robertson Field","09-0018","PU",null,"Local","R","R",6,110,4578948]
["NE","ANE","CT","Simsbury","Simsbury","4B9","CT","Simsbury","09-0019","PR",null,"Other","GA","GA",0,52,6315789]
["NE","ANE","CT","Willimantic","Windham","IJD","CT","Windham","09-0021","PU",null,"Local","GA","GA",2,67,8715790]
["NE","ANE","CT","Windsor Locks","Bradley International","BDL","CT","Bradley International","09-0022","PU","M",null,"P","P",2640155,48,74585173]
["NE","ANE","MA","Bedford","Laurence G Hanscom Field","BED","MA","Laurence G Hanscom Field","25-0003","PU",null,"National","R","R",7952,290,11342106]
["NE","ANE","MA","Beverly","Beverly Municipal","BVY","MA","Beverly Municipal","25-0006","PU",null,"Regional","R","R",83,112,6811052]
["NE","ANE","MA","Boston","General Edward Lawrence Logan International","BOS","MA","General Edward Lawrence Logan International","25-0010","PU","L",null,"P","P",13561814,0,87479680]
["NE","ANE","MA","Chatham","Chatham Municipal","CQX","MA","Chatham Municipal","25-0015","PU",null,"Local","GA","GA",44,34,2129369]
["NE","ANE","MA","Fitchburg","Fitchburg Municipal","FIT","MA","Fitchburg Municipal","25-0018","PU",null,"Local","GA","GA",2,119,12088421]
["NE","ANE","MA","Gardner","Gardner Municipal","GDM","MA","Gardner Municipal","25-0020","PU",null,"Local","GA","GA",0,16,3100439]
["NE","ANE","MA","Great Barrington","Walter J. Koladza","GBR","MA","Walter J. Koladza","25-0021","PR",null,"Other","GA","GA",3,0,0]
["NE","ANE","MA","Hyannis","Barnstable Municipal-Boardman/Polando Field","HYA","MA","Barnstable Municipal-Boardman/Polando Field","25-0025","PU","N",null,"P","P",124560,58,42965706]
["NE","ANE","MA","Lawrence","Lawrence Municipal","LWM","MA","Lawrence Municipal","25-0026","PU",null,"Regional","R","R",33,212,5599921]
["NE","ANE","MA","Mansfield","Mansfield Municipal","1B9","MA","Mansfield Municipal","25-0028","PU",null,"Local","GA","GA",32,110,6310118]
["NE","ANE","MA","Marshfield","Marshfield Municipal - George Harlow Field","GHG","MA","Marshfield Municipal - George Harlow Field","25-0030","PU",null,"Local","GA","GA",0,47,12822591]
["NE","ANE","MA","Montague","Turners Falls","0B5","MA","Turners Falls","25-0032","PU",null,"Local","GA","GA",0,29,9194828]
["NE","ANE","MA","Nantucket","Nantucket Memorial","ACK","MA","Nantucket Memorial","25-0033","PU","N",null,"P","P",201390,27,16267969]
["NE","ANE","MA","New Bedford","New Bedford Regional","EWB","MA","New Bedford Regional","25-0034","PU","N",null,"P","P",12363,120,17631579]
["NE","ANE","MA","North Adams","Harriman-And-West","AQW","MA","Harriman-And-West","25-0036","PU",null,"Local","GA","GA",0,16,5961346]
["NE","ANE","MA","Northampton","Northampton","7B2","MA","Northampton","25-0060","PR",null,"Other","GA","GA",14,59,0]
["NE","ANE","MA","Norwood","Norwood Memorial","OWD","MA","Norwood Memorial","25-0037","PU",null,"National","R","R",66,164,16157894]
["NE","ANE","MA","Orange","Orange Municipal","ORE","MA","Orange Municipal","25-0039","PU",null,"Local","GA","GA",5,42,7423952]
["NE","ANE","MA","Pittsfield","Pittsfield Municipal","PSF","MA","Pittsfield Municipal","25-0041","PU",null,"Regional","GA","GA",29,41,10152903]
["NE","ANE","MA","Plymouth","Plymouth Municipal","PYM","MA","Plymouth Municipal","25-0042","PU",null,"Regional","GA","GA",14,133,18019884]
["NE","ANE","MA","Provincetown","Provincetown Municipal","PVC","MA","Provincetown Municipal","25-0043","PU","N",null,"P","P",11450,7,8472606]
["NE","ANE","MA","Southbridge","Southbridge Municipal","3B0","MA","Southbridge Municipal","25-0046","PU",null,"Local","GA","GA",0,33,3437949]
["NE","ANE","MA","Springfield/Chicopee","Westover ARB/Metropolitan","CEF","MA","Westover ARB/Metropolitan","25-0061","MA",null,"Regional","GA","GA",2227,30,11115791]
["NE","ANE","MA","Stow","Minute Man Air Field","6B6","MA","Minute Man Air Field","25-0057","PR",null,"Other","GA","GA",0,67,0]
["NE","ANE","MA","Taunton","Taunton Municipal - King Field","TAN","MA","Taunton Municipal - King Field","25-0047","PU",null,"Local","GA","GA",0,110,10318421]
["NE","ANE","MA","Vineyard Haven","Marthas Vineyard","MVY","MA","Marthas Vineyard","25-0031","PU","N",null,"P","P",43904,87,14115790]
["NE","ANE","MA","Westfield/Springfield","Barnes Municipal","BAF","MA","Barnes Municipal","25-0052","PU",null,"National","GA","GA",366,118,20690195]
["NE","ANE","MA","Worcester","Worcester Regional","ORH","MA","Worcester Regional","25-0053","PU",null,"National","GA","GA",35833,63,16335154]
["NE","ANE","ME","Auburn/Lewiston","Auburn/Lewiston Municipal","LEW","ME","Auburn/Lewiston Municipal","23-0002","PU",null,"Regional","R","R",25,112,20073158]
["NE","ANE","ME","Augusta","Augusta State","AUG","ME","Augusta State","23-0003","PU",null,"Regional","CS","CS",4300,27,7426315]
["NE","ANE","ME","Bangor","Bangor International","BGR","ME","Bangor International","23-0005","PU","S",null,"P","P",416328,43,20307006]
["NE","ANE","ME","Bar Harbor","Hancock County-Bar Harbor","BHB","ME","Hancock County-Bar Harbor","23-0006","PU","N",null,"P","P",11109,43,11952633]
["NE","ANE","ME","Belfast","Belfast Municipal","BST","ME","Belfast Municipal","23-0007","PU",null,"Local","GA","GA",0,25,6621316]
["NE","ANE","ME","Bethel","Bethel Regional","0B1","ME","Bethel Regional","23-0008","PU",null,"Basic","GA","GA",0,10,2413159]
["NE","ANE","ME","Biddeford","Biddeford Municipal","B19","ME","Biddeford Municipal","23-0009","PU",null,"Local","GA","GA",1,36,4329520]
["NE","ANE","ME","Brunswick","Brunswick Executive","BXM","ME","Brunswick Executive","23-0056","MN",null,"Other","GA","GA",0,0,10496083]
["NE","ANE","ME","Caribou","Caribou Municipal","CAR","ME","Caribou Municipal","23-0012","PU",null,"Other","GA","GA",35,7,5536842]
["NE","ANE","ME","Carrabassett","Sugarloaf Regional","B21","ME","Sugarloaf Regional","23-0013","PU",null,"Basic","GA","GA",0,11,1589474]
["NE","ANE","ME","Dexter","Dexter Regional","1B0","ME","Dexter Regional","23-0016","PU",null,"Local","GA","GA",0,19,1291169]
["NE","ANE","ME","Dover/Foxcroft","Charles A. Chase Jr. Memorial Field","44B","ME","Charles A. Chase Jr. Memorial Field","23-0052","PU",null,"Other","GA","GA",0,4,0]
["NE","ANE","ME","Eastport","Eastport Municipal","EPM","ME","Eastport Municipal","23-0053","PU",null,"Basic","GA","GA",3,1,1565010]
["NE","ANE","ME","Frenchville","Northern Aroostook Regional","FVE","ME","Northern Aroostook Regional","23-0021","PU",null,"Basic","GA","GA",12,5,1444737]
["NE","ANE","ME","Fryeburg","Eastern Slopes Regional","IZG","ME","Eastern Slopes Regional","23-0022","PU",null,"Local","GA","GA",20,37,9451968]
["NE","ANE","ME","Greenville","Greenville Municipal","3B1","ME","Greenville Municipal","23-0023","PU",null,"Basic","GA","GA",11,8,3008720]
["NE","ANE","ME","Houlton","Houlton International","HUL","ME","Houlton International","23-0024","PU",null,"Local","GA","GA",0,20,5061579]
["NE","ANE","ME","Islesboro","Islesboro","57B","ME","Islesboro","23-0025","PU",null,"Other","GA","GA",75,2,0]
["NE","ANE","ME","Jackman","Newton Field","59B","ME","Newton Field","23-0026","PU",null,"Basic","GA","GA",0,8,1942511]
["NE","ANE","ME","Lincoln","Lincoln Regional","LRG","ME","Lincoln Regional","23-0027","PU",null,"Local","GA","GA",0,30,1575195]
["NE","ANE","ME","Machias","Machias Valley","MVM","ME","Machias Valley","23-0029","PU",null,"Other","GA","GA",0,9,3012869]
["NE","ANE","ME","Millinocket","Millinocket Municipal","MLT","ME","Millinocket Municipal","23-0030","PU",null,"Local","GA","GA",3,15,6940907]
["NE","ANE","ME","Norridgewock","Central Maine Airport of Norridgewock","OWK","ME","Central Maine Airport of Norridgewock","23-0032","PU",null,"Local","GA","GA",0,48,3063158]
["NE","ANE","ME","Old Town","Dewitt Field,Old Town Municipal","OLD","ME","Dewitt Field,Old Town Municipal","23-0034","PU",null,"Local","GA","GA",0,46,7139855]
["NE","ANE","ME","Oxford","Oxford County Regional","81B","ME","Oxford County Regional","23-0033","PU",null,"Other","GA","GA",1,9,1144651]
["NE","ANE","ME","Pittsfield","Pittsfield Municipal","2B7","ME","Pittsfield Municipal","23-0036","PU",null,"Local","GA","GA",0,38,1656203]
["NE","ANE","ME","Portland","Portland International Jetport","PWM","ME","Portland International Jetport","23-0038","PU","S",null,"P","P",851566,55,29737081]
["NE","ANE","ME","Presque Isle","Northern Maine Regional Airport at Presque Isle","PQI","ME","Northern Maine Regional Airport at Presque Isle","23-0039","PU","N",null,"P","P",15052,24,5451754]
["NE","ANE","ME","Princeton","Princeton Municipal","PNN","ME","Princeton Municipal","23-0040","PU",null,"Basic","GA","GA",2,8,3800501]
["NE","ANE","ME","Rangeley","Steven A. Bean Municipal","8B0","ME","Steven A. Bean Municipal","23-0041","PU",null,"Other","GA","GA",3,6,1165790]
["NE","ANE","ME","Rockland","Knox County Regional","RKD","ME","Knox County Regional","23-0042","PU","N",null,"P","P",17657,80,9743188]
["NE","ANE","ME","Sanford","Sanford Regional","SFM","ME","Sanford Regional","23-0044","PU",null,"Local","R","R",4,86,1215789]
["NE","ANE","ME","Stonington","Stonington Municipal","93B","ME","Stonington Municipal","23-0045","PU",null,"Other","GA","GA",0,3,0]
["NE","ANE","ME","Waterville","Waterville Robert Lafleur","WVL","ME","Waterville Robert Lafleur","23-0047","PU",null,"Local","GA","GA",2,27,4870526]
["NE","ANE","ME","Wiscasset","Wiscasset","IWI","ME","Wiscasset","23-0049","PU",null,"Local","GA","GA",9,40,4396375]
["NE","ANE","NH","Berlin","Berlin Regional","BML","NH","Berlin Regional","33-0001","PU",null,"Local","GA","GA",0,20,5867106]
["NE","ANE","NH","Claremont","Claremont Municipal","CNH","NH","Claremont Municipal","33-0002","PU",null,"Local","GA","GA",0,17,4501474]
["NE","ANE","NH","Concord","Concord Municipal","CON","NH","Concord Municipal","33-0004","PU",null,"Regional","GA","GA",115,107,11242884]
["NE","ANE","NH","Haverhill","Dean Memorial","5B9","NH","Dean Memorial","33-0018","PU",null,"Basic","GA","GA",0,11,2626816]
["NE","ANE","NH","Jaffrey","Jaffrey Airport-Silver Ranch","AFN","NH","Jaffrey Airport-Silver Ranch","33-0007","PR",null,"Other","GA","GA",0,23,0]
["NE","ANE","NH","Keene","Dillant-Hopkins","EEN","NH","Dillant-Hopkins","33-0008","PU",null,"Regional","GA","GA",18,78,11687093]
["NE","ANE","NH","Laconia","Laconia Municipal","LCI","NH","Laconia Municipal","33-0009","PU",null,"Regional","GA","GA",200,151,6168205]
["NE","ANE","NH","Lebanon","Lebanon Municipal","LEB","NH","Lebanon Municipal","33-0010","PU",null,"Regional","CS","CS",7832,47,12745443]
["NE","ANE","NH","Manchester","Manchester","MHT","NH","Manchester","33-0011","PU","S",null,"P","P",1391797,70,41022206]
["NE","ANE","NH","Nashua","Boire Field","ASH","NH","Boire Field","33-0012","PU",null,"National","R","R",39,333,8837135]
["NE","ANE","NH","Newport","Parlin Field","2B3","NH","Parlin Field","33-0013","PU",null,"Local","GA","GA",0,30,0]
["NE","ANE","NH","Plymouth","Plymouth Municipal","1P1","NH","Plymouth Municipal","33-0014","PU",null,"Local","GA","GA",0,15,0]
["NE","ANE","NH","Portsmouth","Portsmouth International at Pease","PSM","NH","Portsmouth International at Pease","33-0016","PU",null,"National","GA","GA",10257,114,14684217]
["NE","ANE","NH","Rochester","Skyhaven","DAW","NH","Skyhaven","33-0015","PU",null,"Local","GA","GA",0,73,12068416]
["NE","ANE","NH","Whitefield","Mount Washington Regional","HIE","NH","Mount Washington Regional","33-0017","PU",null,"Local","GA","GA",0,29,9983559]
["NE","ANE","RI","Block Island","Block Island State","BID","RI","Block Island State","44-0001","PU",null,"Regional","CS","CS",9821,4,3994738]
["NE","ANE","RI","Newport","Newport State","UUU","RI","Newport State","44-0002","PU",null,"Local","GA","GA",93,34,14167485]
["NE","ANE","RI","North Kingstown","Quonset State","OQU","RI","Quonset State","44-0006","PU",null,"Local","R","R",65,20,11522632]
["NE","ANE","RI","Pawtucket","North Central State","SFZ","RI","North Central State","44-0004","PU",null,"Local","R","R",15,89,7418068]
["NE","ANE","RI","Providence","Theodore Francis Green State","PVD","RI","Theodore Francis Green State","44-0003","PU","M",null,"P","P",1951566,72,336292896]
["NE","ANE","RI","Westerly","Westerly State","WST","RI","Westerly State","44-0005","PU","N",null,"P","P",11402,54,2621637]
["NE","ANE","VT","Barre/Montpelier","Edward F Knapp State","MPV","VT","Edward F Knapp State","50-0001","PU",null,"Local","GA","GA",9,54,5181228]
["NE","ANE","VT","Bennington","William H. Morse State","DDH","VT","William H. Morse State","50-0003","PU",null,"Local","GA","GA",6,36,3275206]
["NE","ANE","VT","Burlington","Burlington International","BTV","VT","Burlington International","50-0005","PU","S",null,"P","P",640790,73,35775930]
["NE","ANE","VT","Highgate","Franklin County State","FSO","VT","Franklin County State","50-0007","PU",null,"Local","GA","GA",0,49,3035427]
["NE","ANE","VT","Lyndonville","Caledonia County","CDA","VT","Caledonia County","50-0009","PU",null,"Local","GA","GA",0,18,5591521]
["NE","ANE","VT","Middlebury","Middlebury State","6B0","VT","Middlebury State","50-0011","PU",null,"Local","GA","GA",13,46,4089363]
["NE","ANE","VT","Morrisville","Morrisville-Stowe State","MVL","VT","Morrisville-Stowe State","50-0012","PU",null,"Local","GA","GA",10,29,4130702]
["NE","ANE","VT","Newport","Newport State","EFK","VT","Newport State","50-0013","PU",null,"Local","GA","GA",0,20,2417544]
["NE","ANE","VT","Post Mills","Post Mills","2B9","VT","Post Mills","50-0019","PR",null,"Other","GA","GA",0,24,0]
["NE","ANE","VT","Rutland","Rutland - Southern Vermont Regional","RUT","VT","Rutland - Southern Vermont Regional","50-0015","PU",null,"Regional","CS","CS",5530,43,7134289]
["NE","ANE","VT","Springfield","Hartness State (Springfield)","VSF","VT","Hartness State (Springfield)","50-0016","PU",null,"Local","GA","GA",34,38,1453510]
["NE","ANE","VT","Warren","Warren-Sugarbush","0B7","VT","Warren-Sugarbush","50-0017","PR",null,"Other","GA","GA",0,20,0]
["NM","DEN","CO","Akron","Colorado Plains Regional","AKO","CO","Colorado Plains Regional","08-0001","PU",null,"Local","GA","GA",0,16,939474]
["NM","DEN","CO","Alamosa","San Luis Valley Regional/Bergman Field","ALS","CO","San Luis Valley Regional/Bergman Field","08-0002","PU",null,"Local","CS","CS",6737,53,5362573]
["NM","DEN","CO","Aspen","Aspen-Pitkin County/Sardy Field","ASE","CO","Aspen-Pitkin County/Sardy Field","08-0003","PU","N",null,"P","P",222755,81,15378947]
["NM","DEN","CO","Boulder","Boulder Municipal","BDU","CO","Boulder Municipal","08-0004","PU",null,"Local","GA","GA",0,114,2935793]
["NM","DEN","CO","Buena Vista","Central Colorado Regional","AEJ","CO","Central Colorado Regional","08-0082","PU",null,"Local","GA","GA",0,18,4715790]
["NM","DEN","CO","Burlington","Kit Carson County","ITR","CO","Kit Carson County","08-0057","PU",null,"Local","GA","GA",0,20,5789474]
["NM","DEN","CO","Canon City","Fremont County","1V6","CO","Fremont County","08-0009","PU",null,"Local","GA","GA",9,78,11740779]
["NM","DEN","CO","Colorado Springs","City of Colorado Springs Municipal","COS","CO","City of Colorado Springs Municipal","08-0010","PU","S",null,"P","P",877367,246,144369913]
["NM","DEN","CO","Colorado Springs","Meadow Lake","FLY","CO","Meadow Lake","08-0063","PR",null,"Local","R","R",0,243,814390]
["NM","DEN","CO","Cortez","Cortez Municipal","CEZ","CO","Cortez Municipal","08-0011","PU",null,"Local","CS","CS",6342,27,7421052]
["NM","DEN","CO","Craig","Craig-Moffat","CAG","CO","Craig-Moffat","08-0012","PU",null,"Local","GA","GA",0,20,2060526]
["NM","DEN","CO","Delta","Blake Field","AJZ","CO","Blake Field","08-0014","PU",null,"Local","GA","GA",0,50,2210943]
["NM","DEN","CO","Denver","Centennial","APA","CO","Centennial","08-0029","PU",null,"National","R","R",507,836,37710527]
["NM","DEN","CO","Denver","Rocky Mountain Metropolitan","BJC","CO","Rocky Mountain Metropolitan","08-0006","PU",null,"National","R","R",269,393,20686171]
["NM","DEN","CO","Denver","Denver International","DEN","CO","Denver International","08-0086","PU","L",null,"P","P",25241962,2,1189166516]
["NM","DEN","CO","Denver","Front Range","FTG","CO","Front Range","08-0016","PU",null,"Regional","R","R",6,377,9781578]
["NM","DEN","CO","Durango","Durango-La Plata County","DRO","CO","Durango-La Plata County","08-0019","PU","N",null,"P","P",163611,73,14900293]
["NM","DEN","CO","Eagle","Eagle County Regional","EGE","CO","Eagle County Regional","08-0020","PU","N",null,"P","P",201010,100,9381711]
["NM","DEN","CO","Erie","Erie Municipal","EIK","CO","Erie Municipal","08-0090","PU",null,"Local","GA","GA",0,173,2131579]
["NM","DEN","CO","Fort Collins/Loveland","Fort Collins-Loveland Municipal","FNL","CO","Fort Collins-Loveland Municipal","08-0023","PU","N",null,"P","P",35671,219,5345859]
["NM","DEN","CO","Fort Morgan","Fort Morgan Municipal","FMM","CO","Fort Morgan Municipal","08-0024","PU",null,"Local","GA","GA",0,24,7800000]
["NM","DEN","CO","Granby","Granby-Grand County","GNB","CO","Granby-Grand County","08-0075","PU",null,"Local","GA","GA",0,28,1368422]
["NM","DEN","CO","Grand Junction","Grand Junction Regional","GJT","CO","Grand Junction Regional","08-0027","PU","N",null,"P","P",219358,114,42842426]
["NM","DEN","CO","Greeley","Greeley-Weld County","GXY","CO","Greeley-Weld County","08-0028","PU",null,"Regional","GA","GA",5,223,3789474]
["NM","DEN","CO","Gunnison","Gunnison-Crested Butte Regional","GUC","CO","Gunnison-Crested Butte Regional","08-0030","PU","N",null,"P","P",37316,23,9594737]
["NM","DEN","CO","Hayden","Yampa Valley","HDN","CO","Yampa Valley","08-0031","PU","N",null,"P","P",110044,7,9263157]
["NM","DEN","CO","Holyoke","Holyoke","HEQ","CO","Holyoke","08-0032","PU",null,"Local","GA","GA",5,16,1105263]
["NM","DEN","CO","Kremmling","Mc Elroy Airfield","20V","CO","Mc Elroy Airfield","08-0034","PU",null,"Local","GA","GA",5,23,789473]
["NM","DEN","CO","La Junta","La Junta Municipal","LHX","CO","La Junta Municipal","08-0035","PU",null,"Local","GA","GA",0,16,4723684]
["NM","DEN","CO","Lamar","Lamar Municipal","LAA","CO","Lamar Municipal","08-0036","PU",null,"Local","GA","GA",0,31,6120201]
["NM","DEN","CO","Leadville","Lake County","LXV","CO","Lake County","08-0038","PU",null,"Basic","GA","GA",0,11,5512866]
["NM","DEN","CO","Limon","Limon Municipal","LIC","CO","Limon Municipal","08-0039","PU",null,"Basic","GA","GA",0,17,2607018]
["NM","DEN","CO","Longmont","Vance Brand","LMO","CO","Vance Brand","08-0040","PU",null,"Local","GA","GA",2,265,1128947]
["NM","DEN","CO","Meeker","Meeker","EEO","CO","Meeker","08-0041","PU",null,"Basic","GA","GA",0,13,3052632]
["NM","DEN","CO","Monte Vista","Monte Vista Municipal","MVI","CO","Monte Vista Municipal","08-0042","PU",null,"Local","GA","GA",0,22,825407]
["NM","DEN","CO","Montrose","Montrose Regional","MTJ","CO","Montrose Regional","08-0043","PU","N",null,"P","P",96601,85,8105263]
["NM","DEN","CO","Nucla","Hopkins Field","AIB","CO","Hopkins Field","08-0044","PU",null,"Basic","GA","GA",2,14,6032693]
["NM","DEN","CO","Pagosa Springs","Stevens Field","PSO","CO","Stevens Field","08-0066","PU",null,"Local","GA","GA",3,55,939474]
["NM","DEN","CO","Pueblo","Pueblo Memorial","PUB","CO","Pueblo Memorial","08-0046","PU","N",null,"P","P",11641,129,19178948]
["NM","DEN","CO","Rangely","Rangely","4V0","CO","Rangely","08-0047","PU",null,"Local","GA","GA",0,21,465789]
["NM","DEN","CO","Rifle","Garfield County Regional","RIL","CO","Garfield County Regional","08-0048","PU",null,"Local","GA","GA",79,58,2344737]
["NM","DEN","CO","Salida","Harriet Alexander Field","ANK","CO","Harriet Alexander Field","08-0049","PU",null,"Local","GA","GA",0,19,1490616]
["NM","DEN","CO","Steamboat Springs","Steamboat Springs/Bob Adams Field","SBS","CO","Steamboat Springs/Bob Adams Field","08-0069","PU",null,"Local","GA","GA",0,82,5819211]
["NM","DEN","CO","Sterling","Sterling Municipal","STK","CO","Sterling Municipal","08-0052","PU",null,"Local","GA","GA",0,29,947369]
["NM","DEN","CO","Telluride","Telluride Regional","TEX","CO","Telluride Regional","08-0088","PU",null,"Local","CS","CS",9677,38,21315348]
["NM","DEN","CO","Trinidad","Perry Stokes","TAD","CO","Perry Stokes","08-0053","PU",null,"Basic","GA","GA",1,13,850000]
["NM","DEN","CO","Walsenburg","Spanish Peaks Airfield","4V1","CO","Spanish Peaks Airfield","08-0079","PU",null,"Basic","GA","GA",0,13,10692106]
["NM","DEN","CO","Wray","Wray Municipal","2V5","CO","Wray Municipal","08-0055","PU",null,"Local","GA","GA",0,23,990420]
["NM","DEN","CO","Yuma","Yuma Municipal","2V6","CO","Yuma Municipal","08-0056","PU",null,"Basic","GA","GA",0,14,4684211]
["NM","DEN","UT","Beaver","Beaver Municipal","U52","UT","Beaver Municipal","49-0001","PU",null,"Other","GA","GA",18,5,2936282]
["NM","DEN","UT","Blanding","Blanding Municipal","BDG","UT","Blanding Municipal","49-0002","PU",null,"Basic","GA","GA",1,10,3397732]
["NM","DEN","UT","Brigham City","Brigham City","BMC","UT","Brigham City","49-0003","PU",null,"Local","GA","GA",6,70,3542105]
["NM","DEN","UT","Bryce Canyon","Bryce Canyon","BCE","UT","Bryce Canyon","49-0041","PU",null,"Other","GA","GA",23,7,7634959]
["NM","DEN","UT","Cedar City","Cedar City Regional","CDC","UT","Cedar City Regional","49-0005","PU",null,"Regional","CS","CS",5997,69,15121053]
["NM","DEN","UT","Delta","Delta Municipal","DTA","UT","Delta Municipal","49-0006","PU",null,"Basic","GA","GA",0,9,3660681]
["NM","DEN","UT","Duchesne","Duchesne Municipal","U69","UT","Duchesne Municipal","49-0045","PU",null,"Other","GA","GA",0,6,1541264]
["NM","DEN","UT","Escalante","Escalante Municipal","1L7","UT","Escalante Municipal","49-0007","PU",null,"Basic","GA","GA",0,2,1859992]
["NM","DEN","UT","Green River","Green River Municipal","U34","UT","Green River Municipal","49-0010","PU",null,"Other","GA","GA",0,3,2226316]
["NM","DEN","UT","Halls Crossing","Cal Black Memorial","U96","UT","Cal Black Memorial","49-0055","PU",null,"Basic","GA","GA",0,5,2915790]
["NM","DEN","UT","Hanksville","Hanksville","HVE","UT","Hanksville","49-0052","PU",null,"Basic","GA","GA",0,4,4152631]
["NM","DEN","UT","Heber","Heber City Municipal - Russ McDonald Field","36U","UT","Heber City Municipal - Russ McDonald Field","49-0011","PU",null,"Regional","GA","GA",21,97,7879998]
["NM","DEN","UT","Hurricane","General Dick Stout Field","1L8","UT","General Dick Stout Field","49-0012","PU",null,"Basic","GA","GA",0,56,2194736]
["NM","DEN","UT","Kanab","Kanab Municipal","KNB","UT","Kanab Municipal","49-0013","PU",null,"Local","GA","GA",9,21,3270414]
["NM","DEN","UT","Loa","Wayne Wonderland","38U","UT","Wayne Wonderland","49-0015","PU",null,"Basic","GA","GA",0,3,2842104]
["NM","DEN","UT","Logan","Logan-Cache","LGU","UT","Logan-Cache","49-0016","PU",null,"Regional","GA","GA",1176,128,5884945]
["NM","DEN","UT","Manila","Manila","40U","UT","Manila","49-0017","PU",null,"Basic","GA","GA",0,0,0]
["NM","DEN","UT","Manti","Manti-Ephraim","41U","UT","Manti-Ephraim","49-0018","PU",null,"Basic","GA","GA",0,4,3928488]
["NM","DEN","UT","Milford","Milford Municipal/Ben and Judy Briscoe Field","MLF","UT","Milford Municipal/Ben and Judy Briscoe Field","49-0019","PU",null,"Other","GA","GA",0,0,3157895]
["NM","DEN","UT","Moab","Canyonlands Field","CNY","UT","Canyonlands Field","49-0020","PU",null,"Local","CS","CS",2701,12,8939066]
["NM","DEN","UT","Monticello","Monticello","U64","UT","Monticello","49-0061","PU",null,"Basic","GA","GA",0,11,947368]
["NM","DEN","UT","Nephi","Nephi Municipal","U14","UT","Nephi Municipal","49-0023","PU",null,"Basic","GA","GA",0,11,2692104]
["NM","DEN","UT","Ogden","Ogden-Hinckley","OGD","UT","Ogden-Hinckley","49-0024","PU",null,"Regional","R","R",101,251,5210526]
["NM","DEN","UT","Panguitch","Panguitch Municipal","U55","UT","Panguitch Municipal","49-0025","PU",null,"Other","GA","GA",42,5,3581579]
["NM","DEN","UT","Parowan","Parowan","1L9","UT","Parowan","49-0050","PU",null,"Local","GA","GA",0,20,2031579]
["NM","DEN","UT","Price","Carbon County Regional/Buck Davis Field","PUC","UT","Carbon County Regional/Buck Davis Field","49-0026","PU",null,"Basic","GA","GA",14,14,12337237]
["NM","DEN","UT","Provo","Provo Municipal","PVU","UT","Provo Municipal","49-0027","PU",null,"Regional","GA","GA",1124,114,22591268]
["NM","DEN","UT","Richfield","Richfield Municipal","RIF","UT","Richfield Municipal","49-0028","PU",null,"Local","GA","GA",20,24,16139463]
["NM","DEN","UT","Roosevelt","Roosevelt Municipal","74V","UT","Roosevelt Municipal","49-0047","PU",null,"Local","GA","GA",37,21,2773370]
["NM","DEN","UT","Salt Lake City","Salt Lake City International","SLC","UT","Salt Lake City International","49-0033","PU","L",null,"P","P",9910493,366,332343083]
["NM","DEN","UT","Salt Lake City","South Valley Regional","U42","UT","South Valley Regional","49-0032","PU",null,"Regional","R","R",0,269,5318421]
["NM","DEN","UT","Spanish Fork","Spanish Fork-Springville","U77","UT","Spanish Fork-Springville","49-0034","PU",null,"Local","GA","GA",0,125,5941012]
["NM","DEN","UT","St. George","St George Municipal","SGU","UT","St George Municipal","49-0060","PU","N",null,"P","P",37596,173,40398775]
["NM","DEN","UT","Tooele","Bolinder Field-Tooele Valley","TVY","UT","Bolinder Field-Tooele Valley","49-0048","PU",null,"Local","GA","GA",0,19,4265788]
["NM","DEN","UT","Vernal","Vernal Regional","VEL","UT","Vernal Regional","49-0037","PU",null,"Regional","CS","CS",4461,27,28168421]
["NM","DEN","UT","Wendover","Wendover","ENV","UT","Wendover","49-0046","PU",null,"National","GA","GA",50734,7,21608836]
["NM","DEN","WY","Afton","Afton Municipal","AFO","WY","Afton Municipal","56-0037","PU",null,"Local","GA","GA",9,43,6559688]
["NM","DEN","WY","Big Piney","Miley Memorial Field","BPI","WY","Miley Memorial Field","56-0002","PU",null,"Other","GA","GA",1,7,2516144]
["NM","DEN","WY","Buffalo","Johnson County","BYG","WY","Johnson County","56-0003","PU",null,"Basic","GA","GA",8,14,3634211]
["NM","DEN","WY","Casper","Casper/Natrona County International","CPR","WY","Casper/Natrona County International","56-0004","PU","N",null,"P","P",83342,97,32422105]
["NM","DEN","WY","Cheyenne","Cheyenne Regional/Jerry Olson Field","CYS","WY","Cheyenne Regional/Jerry Olson Field","56-0005","PU","N",null,"P","P",19507,86,19947370]
["NM","DEN","WY","Cody","Yellowstone Regional","COD","WY","Yellowstone Regional","56-0006","PU","N",null,"P","P",28454,68,10789474]
["NM","DEN","WY","Cowley/Lovell/Byron","North Big Horn County","U68","WY","North Big Horn County","56-0008","PU",null,"Local","GA","GA",0,17,2000000]
["NM","DEN","WY","Dixon","Dixon","DWX","WY","Dixon","56-0038","PU",null,"Basic","GA","GA",0,5,8421053]
["NM","DEN","WY","Douglas","Converse County","DGW","WY","Converse County","56-0035","PU",null,"Local","GA","GA",5,39,1578946]
["NM","DEN","WY","Dubois","Dubois Municipal","DUB","WY","Dubois Municipal","56-0010","PU",null,"Basic","GA","GA",0,13,9684211]
["NM","DEN","WY","Evanston","Evanston-Uinta County Burns Field","EVW","WY","Evanston-Uinta County Burns Field","56-0036","PU",null,"Local","GA","GA",0,19,4541861]
["NM","DEN","WY","Fort Bridger","Fort Bridger","FBR","WY","Fort Bridger","56-0042","PU",null,"Basic","GA","GA",0,8,6894736]
["NM","DEN","WY","Gillette","Gillette-Campbell County","GCC","WY","Gillette-Campbell County","56-0012","PU","N",null,"P","P",29230,52,11122766]
["NM","DEN","WY","Greybull","South Big Horn County","GEY","WY","South Big Horn County","56-0013","PU",null,"Local","GA","GA",0,24,2684210]
["NM","DEN","WY","Hulett","Hulett Municipal","W43","WY","Hulett Municipal","56-0041","PU",null,"Basic","GA","GA",0,1,2558999]
["NM","DEN","WY","Jackson","Jackson Hole","JAC","WY","Jackson Hole","56-0014","PU","N",null,"P","P",288325,50,16104421]
["NM","DEN","WY","Kemmerer","Kemmerer Municipal","EMM","WY","Kemmerer Municipal","56-0015","PU",null,"Basic","GA","GA",3,3,2431938]
["NM","DEN","WY","Lander","Hunt Field","LND","WY","Hunt Field","56-0016","PU",null,"Local","GA","GA",18,38,10631579]
["NM","DEN","WY","Laramie","Laramie Regional","LAR","WY","Laramie Regional","56-0017","PU",null,"Regional","CS","CS",8999,38,2557894]
["NM","DEN","WY","Lusk","Lusk Municipal","LSK","WY","Lusk Municipal","56-0018","PU",null,"Basic","GA","GA",0,1,2121053]
["NM","DEN","WY","Newcastle","Mondell Field","ECS","WY","Mondell Field","56-0019","PU",null,"Basic","GA","GA",0,8,9736843]
["NM","DEN","WY","Pine Bluffs","Pine Bluffs Municipal","82V","WY","Pine Bluffs Municipal","56-0020","PU",null,"Basic","GA","GA",0,13,3473681]
["NM","DEN","WY","Pinedale","Ralph Wenz Field","PNA","WY","Ralph Wenz Field","56-0021","PU",null,"Local","GA","GA",5,19,1855262]
["NM","DEN","WY","Powell","Powell Municipal","POY","WY","Powell Municipal","56-0022","PU",null,"Basic","GA","GA",4,9,2134210]
["NM","DEN","WY","Rawlins","Rawlins Municipal/Harvey Field","RWL","WY","Rawlins Municipal/Harvey Field","56-0023","PU",null,"Local","GA","GA",0,16,5973521]
["NM","DEN","WY","Riverton","Riverton Regional","RIW","WY","Riverton Regional","56-0024","PU","N",null,"P","P",14361,44,20665716]
["NM","DEN","WY","Rock Springs","Rock Springs-Sweetwater County","RKS","WY","Rock Springs-Sweetwater County","56-0025","PU","N",null,"P","P",20993,42,8673533]
["NM","DEN","WY","Saratoga","Shively Field","SAA","WY","Shively Field","56-0026","PU",null,"Local","GA","GA",14,24,3141535]
["NM","DEN","WY","Sheridan","Sheridan County","SHR","WY","Sheridan County","56-0027","PU","N",null,"P","P",14146,92,9310527]
["NM","DEN","WY","Thermopolis","New (Replacement Airport)","09F","WY","New (Replacement Airport)","56-0043","PU",null,null,null,"GA",0,0,12489724]
["NM","DEN","WY","Thermopolis","Hot Springs County-Thermopolis Municipal","THP","WY","Hot Springs County-Thermopolis Municipal","56-0032","PU",null,"Basic","GA","GA",0,11,0]
["NM","DEN","WY","Torrington","Torrington Municipal","TOR","WY","Torrington Municipal","56-0029","PU",null,"Local","GA","GA",3,24,3752631]
["NM","DEN","WY","Wheatland","Phifer Airfield","EAN","WY","Phifer Airfield","56-0030","PU",null,"Basic","GA","GA",6,0,11953509]
["NM","DEN","WY","Worland","Worland Municipal","WRL","WY","Worland Municipal","56-0031","PU",null,"Local","CS","CS",2737,13,5173685]
["NM","HLN","MT","Anaconda","Bowman Field","3U3","MT","Bowman Field","30-0002","PU",null,"Basic","GA","GA",0,11,1508698]
["NM","HLN","MT","Baker","Baker Municipal","BHK","MT","Baker Municipal","30-0004","PU",null,"Local","GA","GA",0,23,1210526]
["NM","HLN","MT","Big Sandy","Big Sandy","3U8","MT","Big Sandy","30-0006","PU",null,"Local","GA","GA",0,17,792158]
["NM","HLN","MT","Big Timber","Big Timber","6S0","MT","Big Timber","30-0007","PU",null,"Basic","GA","GA",6,13,2355263]
["NM","HLN","MT","Billings","Billings Logan International","BIL","MT","Billings Logan International","30-0008","PU","S",null,"P","P",388329,167,22253674]
["NM","HLN","MT","Bozeman","Bozeman Yellowstone International","BZN","MT","Bozeman Yellowstone International","30-0010","PU","S",null,"P","P",364521,277,15415100]
["NM","HLN","MT","Broadus","Broadus","00F","MT","Broadus","30-0103","PU",null,"Basic","GA","GA",0,1,789474]
["NM","HLN","MT","Butte","Bert Mooney","BTM","MT","Bert Mooney","30-0012","PU","N",null,"P","P",25433,36,8457895]
["NM","HLN","MT","Chester","Liberty County","LTY","MT","Liberty County","30-0013","PU",null,"Basic","GA","GA",0,9,836842]
["NM","HLN","MT","Chinook","Edgar G Obie","S71","MT","Edgar G Obie","30-0014","PU",null,"Basic","GA","GA",0,11,833000]
["NM","HLN","MT","Choteau","Choteau","CII","MT","Choteau","30-0015","PU",null,"Basic","GA","GA",0,13,2617097]
["NM","HLN","MT","Circle","Circle Town County","4U6","MT","Circle Town County","30-0016","PU",null,"Basic","GA","GA",0,1,1548421]
["NM","HLN","MT","Colstrip","Colstrip","M46","MT","Colstrip","30-0095","PU",null,"Basic","GA","GA",0,14,1126316]
["NM","HLN","MT","Columbus","Woltermann Memorial","6S3","MT","Woltermann Memorial","30-0017","PU",null,"Local","GA","GA",0,29,2591316]
["NM","HLN","MT","Conrad","Conrad","S01","MT","Conrad","30-0018","PU",null,"Basic","GA","GA",0,14,2288421]
["NM","HLN","MT","Culbertson","Big Sky Field","S85","MT","Big Sky Field","30-0019","PU",null,"Basic","GA","GA",0,8,868421]
["NM","HLN","MT","Cut Bank","Cut Bank Municipal","CTB","MT","Cut Bank Municipal","30-0020","PU",null,"Local","GA","GA",9,28,1399999]
["NM","HLN","MT","Deer Lodge","Deer Lodge-City-County","38S","MT","Deer Lodge-City-County","30-0021","PU",null,"Local","GA","GA",0,15,1037033]
["NM","HLN","MT","Dillon","Dillon","DLN","MT","Dillon","30-0022","PU",null,"Local","GA","GA",18,21,1177526]
["NM","HLN","MT","Ekalaka","Ekalaka","97M","MT","Ekalaka","30-0025","PU",null,"Basic","GA","GA",0,3,792632]
["NM","HLN","MT","Ennis","Ennis - Big Sky","EKS","MT","Ennis - Big Sky","30-0090","PU",null,"Local","GA","GA",3,19,3514736]
["NM","HLN","MT","Eureka","Eureka","88M","MT","Eureka","30-0027","PU",null,"Local","GA","GA",1,30,947368]
["NM","HLN","MT","Forsyth","Tillitt Field","1S3","MT","Tillitt Field","30-0029","PU",null,"Local","GA","GA",0,25,2542924]
["NM","HLN","MT","Fort Benton","Fort Benton","79S","MT","Fort Benton","30-0030","PU",null,"Basic","GA","GA",0,25,1484211]
["NM","HLN","MT","Gardiner","Gardiner","29S","MT","Gardiner","30-0031","PU",null,"Basic","GA","GA",0,9,0]
["NM","HLN","MT","Geraldine","Geraldine","5U8","MT","Geraldine","30-0102","PU",null,"Other","GA","GA",0,5,0]
["NM","HLN","MT","Glasgow","Wokal Field/Glasgow International","GGW","MT","Wokal Field/Glasgow International","30-0033","PU",null,"Local","GA","GA",1630,79,1328337]
["NM","HLN","MT","Glendive","Dawson Community","GDV","MT","Dawson Community","30-0035","PU",null,"Local","GA","GA",427,17,1760526]
["NM","HLN","MT","Great Falls","Great Falls International","GTF","MT","Great Falls International","30-0036","PU","N",null,"P","P",155204,88,25781201]
["NM","HLN","MT","Hamilton","Ravalli County","6S5","MT","Ravalli County","30-0037","PU",null,"Local","GA","GA",112,99,13291105]
["NM","HLN","MT","Hardin","New","00U","MT","New","30-0038","PU",null,null,null,"GA",0,0,2479228]
["NM","HLN","MT","Harlem","Harlem","48S","MT","Harlem","30-0039","PU",null,"Other","GA","GA",0,5,1017000]
["NM","HLN","MT","Harlowton","Wheatland County at Harlowton","HWQ","MT","Wheatland County at Harlowton","30-0040","PU",null,"Basic","GA","GA",0,7,1474211]
["NM","HLN","MT","Havre","Havre City-County","HVR","MT","Havre City-County","30-0041","PU",null,"Local","GA","GA",961,27,2500000]
["NM","HLN","MT","Helena","Helena Regional","HLN","MT","Helena Regional","30-0042","PU","N",null,"P","P",98193,247,15436633]
["NM","HLN","MT","Jordan","Jordan","JDN","MT","Jordan","30-0045","PU",null,"Basic","GA","GA",0,1,1074000]
["NM","HLN","MT","Kalispell","Glacier Park International","GPI","MT","Glacier Park International","30-0046","PU","N",null,"P","P",175222,159,24146021]
["NM","HLN","MT","Kalispell","Kalispell City","S27","MT","Kalispell City","30-0043","PU",null,"Local","GA","GA",5,67,8776316]
["NM","HLN","MT","Laurel","Laurel Municipal","6S8","MT","Laurel Municipal","30-0047","PU",null,"Local","GA","GA",29,86,3773684]
["NM","HLN","MT","Lewistown","Lewistown Municipal","LWT","MT","Lewistown Municipal","30-0048","PU",null,"Local","GA","GA",704,58,2786316]
["NM","HLN","MT","Libby","Libby","S59","MT","Libby","30-0049","PU",null,"Local","GA","GA",53,18,1908947]
["NM","HLN","MT","Lincoln","Lincoln","S69","MT","Lincoln","30-0050","PU",null,"Basic","GA","GA",0,11,1191316]
["NM","HLN","MT","Livingston","Mission Field","LVM","MT","Mission Field","30-0051","PU",null,"Local","GA","GA",4,21,782632]
["NM","HLN","MT","Malta","Malta","M75","MT","Malta","30-0099","PU",null,"Basic","GA","GA",28,11,1022105]
["NM","HLN","MT","Miles City","Frank Wiley Field","MLS","MT","Frank Wiley Field","30-0055","PU",null,"Local","GA","GA",1033,22,3894737]
["NM","HLN","MT","Missoula","Missoula International","MSO","MT","Missoula International","30-0056","PU","N",null,"P","P",289875,137,11590587]
["NM","HLN","MT","Philipsburg","Riddick Field","U05","MT","Riddick Field","30-0058","PU",null,"Other","GA","GA",0,7,0]
["NM","HLN","MT","Plains","Plains","S34","MT","Plains","30-0059","PU",null,"Basic","GA","GA",25,3,1578947]
["NM","HLN","MT","Plentywood","Sher-Wood","PWD","MT","Sher-Wood","30-0060","PU",null,"Basic","GA","GA",0,8,1105263]
["NM","HLN","MT","Polson","Polson","8S1","MT","Polson","30-0061","PU",null,"Local","GA","GA",0,55,2205381]
["NM","HLN","MT","Poplar","Poplar Municipal","PO1","MT","Poplar Municipal","30-0100","PU",null,"Basic","GA","GA",0,7,961053]
["NM","HLN","MT","Red Lodge","Red Lodge","RED","MT","Red Lodge","30-0064","PU",null,"Basic","GA","GA",0,10,0]
["NM","HLN","MT","Ronan","Ronan","7S0","MT","Ronan","30-0065","PU",null,"Local","GA","GA",2,43,1008421]
["NM","HLN","MT","Roundup","Roundup","RPX","MT","Roundup","30-0066","PU",null,"Basic","GA","GA",0,9,2398077]
["NM","HLN","MT","Scobey","Scobey","9S2","MT","Scobey","30-0068","PU",null,"Basic","GA","GA",0,10,1684210]
["NM","HLN","MT","Shelby","Shelby","SBX","MT","Shelby","30-0069","PU",null,"Local","GA","GA",2,19,1473684]
["NM","HLN","MT","Sidney","Sidney-Richland Municipal","SDY","MT","Sidney-Richland Municipal","30-0070","PU",null,"Local","CS","CS",3659,32,1148948]
["NM","HLN","MT","Stanford","Stanford","S64","MT","Stanford","30-0072","PU",null,"Basic","GA","GA",0,10,1227311]
["NM","HLN","MT","Stevensville","Stevensville","32S","MT","Stevensville","30-0044","PU",null,"Local","GA","GA",590,78,2007116]
["NM","HLN","MT","Superior","Mineral County","9S4","MT","Mineral County","30-0074","PU",null,"Basic","GA","GA",0,10,803158]
["NM","HLN","MT","Terry","Terry","8U6","MT","Terry","30-0075","PU",null,"Basic","GA","GA",0,1,857632]
["NM","HLN","MT","Thompson Falls","Thompson Falls","THM","MT","Thompson Falls","30-0076","PU",null,"Basic","GA","GA",5,12,2515225]
["NM","HLN","MT","Three Forks","Three Forks","9S5","MT","Three Forks","30-0077","PU",null,"Local","GA","GA",0,27,917994]
["NM","HLN","MT","Townsend","Townsend","8U8","MT","Townsend","30-0078","PU",null,"Basic","GA","GA",0,8,1047368]
["NM","HLN","MT","Turner","Turner","9U0","MT","Turner","30-0079","PU",null,"Basic","GA","GA",0,14,991737]
["NM","HLN","MT","Twin Bridges","Twin Bridges","7S1","MT","Twin Bridges","30-0080","PU",null,"Basic","GA","GA",0,10,1437744]
["NM","HLN","MT","Valier","Valier","7S7","MT","Valier","30-0081","PU",null,"Other","GA","GA",0,8,0]
["NM","HLN","MT","West Yellowstone","Yellowstone","WYS","MT","Yellowstone","30-0082","PU",null,"Regional","CS","CS",4451,0,8450000]
["NM","HLN","MT","White Sulphur Springs","White Sulphur Springs","7S6","MT","White Sulphur Springs","30-0083","PU",null,"Basic","GA","GA",0,6,901842]
["NM","HLN","MT","Winifred","Winifred","9S7","MT","Winifred","30-0084","PU",null,"Basic","GA","GA",0,7,0]
["NM","HLN","MT","Wolf Point","L M Clayton","OLF","MT","L M Clayton","30-0086","PU",null,"Basic","GA","GA",494,7,1000000]
["NM","SEA","ID","Aberdeen","Aberdeen Municipal","U36","ID","Aberdeen Municipal","16-0038","PU",null,"Other","GA","GA",1,8,2921088]
["NM","SEA","ID","Arco","Arco-Butte County","AOC","ID","Arco-Butte County","16-0001","PU",null,"Basic","GA","GA",0,11,1028504]
["NM","SEA","ID","Blackfoot","McCarley Field","U02","ID","McCarley Field","16-0002","PU",null,"Local","GA","GA",2,70,1876661]
["NM","SEA","ID","Boise","Boise Air Terminal/Gowen Field","BOI","ID","Boise Air Terminal/Gowen Field","16-0003","PU","S",null,"P","P",1406750,188,33764587]
["NM","SEA","ID","Bonners Ferry","Boundary County","65S","ID","Boundary County","16-0004","PU",null,"Local","GA","GA",79,37,3169105]
["NM","SEA","ID","Buhl","Buhl Municipal","U03","ID","Buhl Municipal","16-0005","PU",null,"Basic","GA","GA",0,31,2078573]
["NM","SEA","ID","Burley","New (Replacement)","095","ID","New (Replacement)","16-0064","PU",null,null,null,"GA",0,0,14473684]
["NM","SEA","ID","Burley","Burley Municipal","BYI","ID","Burley Municipal","16-0006","PU",null,"Local","GA","GA",18,79,5813158]
["NM","SEA","ID","Caldwell","Caldwell Industrial","EUL","ID","Caldwell Industrial","16-0045","PU",null,"Local","R","R",0,237,5535052]
["NM","SEA","ID","Cascade","Cascade","U70","ID","Cascade","16-0061","PU",null,"Local","GA","GA",0,23,2371859]
["NM","SEA","ID","Challis","Challis","LLJ","ID","Challis","16-0009","PU",null,"Local","GA","GA",0,27,1906053]
["NM","SEA","ID","Coeur d'Alene","Coeur D'Alene - Pappy Boyington Field","COE","ID","Coeur D'Alene - Pappy Boyington Field","16-0010","PU",null,"Regional","GA","GA",162,206,10315789]
["NM","SEA","ID","Council","Council Municipal","U82","ID","Council Municipal","16-0011","PU",null,"Other","GA","GA",0,8,298948]
["NM","SEA","ID","Craigmont","Craigmont Municipal","S89","ID","Craigmont Municipal","16-0059","PU",null,"Other","GA","GA",0,7,0]
["NM","SEA","ID","Driggs","Driggs-Reed Memorial","DIJ","ID","Driggs-Reed Memorial","16-0012","PU",null,"Local","GA","GA",26,89,4860526]
["NM","SEA","ID","Gooding","Gooding Municipal","GNG","ID","Gooding Municipal","16-0014","PU",null,"Local","GA","GA",0,62,2452578]
["NM","SEA","ID","Grangeville","Idaho County","GIC","ID","Idaho County","16-0015","PU",null,"Basic","GA","GA",2,13,7050000]
["NM","SEA","ID","Hailey","New","094","ID","New","16-0063","PU",null,null,null,"P",0,0,144072498]
["NM","SEA","ID","Hailey","Friedman Memorial","SUN","ID","Friedman Memorial","16-0016","PU","N",null,"P","P",52755,148,7668421]
["NM","SEA","ID","Homedale","Homedale Municipal","S66","ID","Homedale Municipal","16-0041","PU",null,"Basic","GA","GA",0,14,242106]
["NM","SEA","ID","Idaho Falls","Idaho Falls Regional","IDA","ID","Idaho Falls Regional","16-0018","PU","N",null,"P","P",144365,151,10943038]
["NM","SEA","ID","Jerome","Jerome County","JER","ID","Jerome County","16-0020","PU",null,"Local","GA","GA",0,50,2024289]
["NM","SEA","ID","Kamiah","Kamiah Municipal","S73","ID","Kamiah Municipal","16-0042","PU",null,"Other","GA","GA",0,9,0]
["NM","SEA","ID","Kellogg","Shoshone County","S83","ID","Shoshone County","16-0021","PU",null,"Other","GA","GA",0,7,1465790]
["NM","SEA","ID","Lewiston","Lewiston-Nez Perce County","LWS","ID","Lewiston-Nez Perce County","16-0022","PU","N",null,"P","P",61737,144,8712370]
["NM","SEA","ID","McCall","McCall Municipal","MYL","ID","McCall Municipal","16-0023","PU",null,"Local","GA","GA",4,94,14694737]
["NM","SEA","ID","Mountain Home","Mountain Home Municipal","U76","ID","Mountain Home Municipal","16-0025","PU",null,"Local","GA","GA",0,21,1789474]
["NM","SEA","ID","Nampa","Nampa Municipal","MAN","ID","Nampa Municipal","16-0043","PU",null,"Local","GA","GA",7,252,4283685]
["NM","SEA","ID","Orofino","Orofino Municipal","S68","ID","Orofino Municipal","16-0026","PU",null,"Basic","GA","GA",0,13,2100000]
["NM","SEA","ID","Paris","Bear Lake County","1U7","ID","Bear Lake County","16-0027","PU",null,"Basic","GA","GA",0,4,1200056]
["NM","SEA","ID","Pocatello","Pocatello Regional","PIH","ID","Pocatello Regional","16-0028","PU","N",null,"P","P",20825,70,3389473]
["NM","SEA","ID","Preston","Preston","U10","ID","Preston","16-0030","PU",null,"Other","GA","GA",0,9,2132632]
["NM","SEA","ID","Priest River","Priest River Municipal","1S6","ID","Priest River Municipal","16-0058","PU",null,"Basic","GA","GA",10,13,1991262]
["NM","SEA","ID","Rexburg","Rexburg-Madison County","RXE","ID","Rexburg-Madison County","16-0031","PU",null,"Local","GA","GA",14,78,2055548]
["NM","SEA","ID","Salmon","Lemhi County","SMN","ID","Lemhi County","16-0032","PU",null,"Local","GA","GA",0,63,6331579]
["NM","SEA","ID","Sandpoint","Sandpoint","SZT","ID","Sandpoint","16-0033","PU",null,"Local","GA","GA",138,97,23841129]
["NM","SEA","ID","St Maries","St Maries Municipal","S72","ID","St Maries Municipal","16-0035","PU",null,"Local","GA","GA",10,19,2176315]
["NM","SEA","ID","Twin Falls","Joslin Field - Magic Valley Regional","TWF","ID","Joslin Field - Magic Valley Regional","16-0036","PU","N",null,"P","P",35576,108,6715001]
["NM","SEA","ID","Weiser","Weiser Municipal","S87","ID","Weiser Municipal","16-0037","PU",null,"Basic","GA","GA",0,52,1423684]
["NM","SEA","OR","Albany","Albany Municipal","S12","OR","Albany Municipal","41-0001","PU",null,"Local","GA","GA",0,58,6092638]
["NM","SEA","OR","Ashland","Ashland Municipal-Sumner Parker Field","S03","OR","Ashland Municipal-Sumner Parker Field","41-0002","PU",null,"Local","GA","GA",0,67,1341053]
["NM","SEA","OR","Astoria","Astoria Regional","AST","OR","Astoria Regional","41-0003","PU",null,"Regional","CS","CS",3482,44,8635526]
["NM","SEA","OR","Aurora","Aurora State","UAO","OR","Aurora State","41-0004","PU",null,"National","GA","GA",5,324,2205263]
["NM","SEA","OR","Baker City","Baker City Municipal","BKE","OR","Baker City Municipal","41-0005","PU",null,"Local","GA","GA",4,35,4368422]
["NM","SEA","OR","Bandon","Bandon State","S05","OR","Bandon State","41-0006","PU",null,"Local","GA","GA",14,49,1177895]
["NM","SEA","OR","Bend","Bend Municipal","BDN","OR","Bend Municipal","41-0007","PU",null,"Regional","GA","GA",93,185,1637448]
["NM","SEA","OR","Boardman","Boardman","M50","OR","Boardman","41-0090","PU",null,"Other","GA","GA",0,1,1134211]
["NM","SEA","OR","Brookings","Brookings","BOK","OR","Brookings","41-0008","PU",null,"Local","GA","GA",0,33,776491]
["NM","SEA","OR","Burns","Burns Municipal","BNO","OR","Burns Municipal","41-0009","PU",null,"Basic","GA","GA",0,14,5013686]
["NM","SEA","OR","Cave Junction","Illinois Valley","3S4","OR","Illinois Valley","41-0011","PU",null,"Other","GA","GA",0,5,1641717]
["NM","SEA","OR","Chiloquin","Chiloquin State","2S7","OR","Chiloquin State","41-0012","PU",null,"Basic","GA","GA",0,8,2057369]
["NM","SEA","OR","Christmas Valley","Christmas Valley","62S","OR","Christmas Valley","41-0089","PU",null,"Basic","GA","GA",0,0,2052106]
["NM","SEA","OR","Condon","Condon State Pauling Field","3S9","OR","Condon State Pauling Field","41-0013","PU",null,"Basic","GA","GA",0,11,1939475]
["NM","SEA","OR","Corvallis","Corvallis Municipal","CVO","OR","Corvallis Municipal","41-0014","PU",null,"Regional","GA","GA",12,146,4512654]
["NM","SEA","OR","Cottage Grove","Cottage Grove State","61S","OR","Cottage Grove State","41-0015","PU",null,"Local","GA","GA",0,52,3482316]
["NM","SEA","OR","Creswell","Hobby Field","77S","OR","Hobby Field","41-0083","PU",null,"Local","GA","GA",0,126,2705263]
["NM","SEA","OR","Eugene","Mahlon Sweet Field","EUG","OR","Mahlon Sweet Field","41-0018","PU","S",null,"P","P",369397,201,10981838]
["NM","SEA","OR","Florence","Florence Municipal","6S2","OR","Florence Municipal","41-0019","PU",null,"Local","GA","GA",0,15,920000]
["NM","SEA","OR","Gleneden Beach","Siletz Bay State","S45","OR","Siletz Bay State","41-0020","PU",null,"Basic","GA","GA",0,14,1903949]
["NM","SEA","OR","Gold Beach","Gold Beach Municipal","4S1","OR","Gold Beach Municipal","41-0021","PU",null,"Basic","GA","GA",0,12,848422]
["NM","SEA","OR","Grants Pass","Grants Pass","3S8","OR","Grants Pass","41-0023","PU",null,"Local","GA","GA",0,154,8021053]
["NM","SEA","OR","Hermiston","Hermiston Municipal","HRI","OR","Hermiston Municipal","41-0024","PU",null,"Local","GA","GA",0,38,2394736]
["NM","SEA","OR","Hood River","Ken Jernstedt Airfield","4S2","OR","Ken Jernstedt Airfield","41-0026","PU",null,"Local","GA","GA",10,88,1231579]
["NM","SEA","OR","Independence","Independence State","7S5","OR","Independence State","41-0027","PU",null,"Local","GA","GA",0,184,1378948]
["NM","SEA","OR","John Day","Grant County Regional/Ogilvie Field","GCD","OR","Grant County Regional/Ogilvie Field","41-0028","PU",null,"Local","GA","GA",0,21,5022897]
["NM","SEA","OR","Joseph","Joseph State","JSY","OR","Joseph State","41-0092","PU",null,"Basic","GA","GA",0,13,821842]
["NM","SEA","OR","Klamath Falls","Klamath Falls","LMT","OR","Klamath Falls","41-0030","PU","N",null,"P","P",21353,143,28451248]
["NM","SEA","OR","La Grande","La Grande/Union County","LGD","OR","La Grande/Union County","41-0031","PU",null,"Regional","GA","GA",0,64,5383158]
["NM","SEA","OR","Lakeview","Lake County","LKV","OR","Lake County","41-0032","PU",null,"Basic","GA","GA",0,9,6158113]
["NM","SEA","OR","Lebanon","Lebanon State","S30","OR","Lebanon State","41-0033","PU",null,"Local","GA","GA",0,59,1042106]
["NM","SEA","OR","Lexington","Lexington","9S9","OR","Lexington","41-0034","PU",null,"Other","GA","GA",0,9,1500000]
["NM","SEA","OR","Madras","Madras Municipal","S33","OR","Madras Municipal","41-0035","PU",null,"Local","GA","GA",4,50,5352614]
["NM","SEA","OR","McDermitt","McDermitt State","26U","OR","McDermitt State","41-0071","PU",null,"Basic","GA","GA",0,1,1225790]
["NM","SEA","OR","McMinnville","McMinnville Municipal","MMV","OR","McMinnville Municipal","41-0036","PU",null,"Regional","GA","GA",46,115,3889166]
["NM","SEA","OR","Medford","Rogue Valley International - Medford","MFR","OR","Rogue Valley International - Medford","41-0037","PU","N",null,"P","P",310824,211,39168684]
["NM","SEA","OR","Myrtle Creek","Myrtle Creek Municipal","16S","OR","Myrtle Creek Municipal","41-0038","PU",null,"Other","GA","GA",0,6,968421]
["NM","SEA","OR","Newberg","Sportsman Airpark","2S6","OR","Sportsman Airpark","41-0039","PR",null,"Other","GA","GA",0,64,0]
["NM","SEA","OR","Newport","Newport Municipal","ONP","OR","Newport Municipal","41-0040","PU",null,"Local","CS","CS",3027,28,189271]
["NM","SEA","OR","North Bend","Southwest Oregon Regional","OTH","OR","Southwest Oregon Regional","41-0041","PU","N",null,"P","P",23124,51,4842161]
["NM","SEA","OR","Ontario","Ontario Municipal","ONO","OR","Ontario Municipal","41-0044","PU",null,"Local","GA","GA",2,69,1142053]
["NM","SEA","OR","Pendleton","Eastern Oregon Regional at Pendleton","PDT","OR","Eastern Oregon Regional at Pendleton","41-0046","PU",null,"Regional","CS","CS",4898,39,7351316]
["NM","SEA","OR","Portland","Portland Downtown","61J","OR","Portland Downtown","41-0088","PU",null,"Other","GA","GA",0,0,0]
["NM","SEA","OR","Portland","Portland-Hillsboro","HIO","OR","Portland-Hillsboro","41-0025","PU",null,"National","R","R",24,253,49982398]
["NM","SEA","OR","Portland","Portland International","PDX","OR","Portland International","41-0048","PU","M",null,"P","P",6582227,87,116417762]
["NM","SEA","OR","Portland","Portland-Troutdale","TTD","OR","Portland-Troutdale","41-0061","PU",null,"Regional","R","R",15,154,14502106]
["NM","SEA","OR","Portland-Mulino","Mulino State","4S9","OR","Mulino State","41-0072","PU",null,"Local","GA","GA",0,44,6845842]
["NM","SEA","OR","Prineville","Prineville","S39","OR","Prineville","41-0051","PU",null,"Local","GA","GA",0,74,1934211]
["NM","SEA","OR","Redmond","Roberts Field","RDM","OR","Roberts Field","41-0052","PU","N",null,"P","P",226400,118,27373684]
["NM","SEA","OR","Roseburg","Roseburg Regional","RBG","OR","Roseburg Regional","41-0054","PU",null,"Regional","GA","GA",5,121,6232228]
["NM","SEA","OR","Salem","McNary Field","SLE","OR","McNary Field","41-0055","PU",null,"Regional","GA","GA",1,196,16517473]
["NM","SEA","OR","Scappoose","Scappoose Industrial Airpark","SPB","OR","Scappoose Industrial Airpark","41-0056","PU",null,"Local","GA","GA",0,45,1812632]
["NM","SEA","OR","Seaside","Seaside Municipal","56S","OR","Seaside Municipal","41-0057","PU",null,"Other","GA","GA",0,3,2705790]
["NM","SEA","OR","Sunriver","Sunriver","S21","OR","Sunriver","41-0065","PR",null,"Other","GA","GA",1,69,0]
["NM","SEA","OR","The Dalles","Columbia Gorge Regional/The Dalles Municipal","DLS","OR","Columbia Gorge Regional/The Dalles Municipal","41-0059","PU",null,"Local","GA","GA",27,66,1178948]
["NM","SEA","OR","Tillamook","Tillamook","TMK","OR","Tillamook","41-0060","PU",null,"Local","GA","GA",0,44,2303684]
["NM","SEA","OR","Wasco","Wasco State","35S","OR","Wasco State","41-0068","PU",null,"Other","GA","GA",0,6,831579]
["NM","SEA","WA","Anacortes","Anacortes","74S","WA","Anacortes","53-0001","PU",null,"Local","GA","GA",765,43,1907168]
["NM","SEA","WA","Arlington","Arlington Municipal","AWO","WA","Arlington Municipal","53-0002","PU",null,"Local","GA","GA",3,477,2473685]
["NM","SEA","WA","Auburn","Auburn Municipal","S50","WA","Auburn Municipal","53-0003","PU",null,"Regional","R","R",9,241,13052632]
["NM","SEA","WA","Bellingham","Bellingham International","BLI","WA","Bellingham International","53-0005","PU","S",null,"P","P",398368,192,9537230]
["NM","SEA","WA","Bremerton","Bremerton National","PWT","WA","Bremerton National","53-0007","PU",null,"Regional","GA","GA",192,191,3000000]
["NM","SEA","WA","Brewster","Anderson Field","S97","WA","Anderson Field","53-0009","PU",null,"Local","GA","GA",0,24,1376445]
["NM","SEA","WA","Burlington/Mount Vernon","Skagit Regional","BVS","WA","Skagit Regional","53-0010","PU",null,"Regional","GA","GA",39,156,3684210]
["NM","SEA","WA","Camas","Grove Field","1W1","WA","Grove Field","53-0123","PU",null,"Local","GA","GA",0,73,0]
["NM","SEA","WA","Cashmere","Cashmere-Dryden","8S2","WA","Cashmere-Dryden","53-0011","PU",null,"Basic","GA","GA",0,40,2406026]
["NM","SEA","WA","Chehalis","Chehalis-Centralia","CLS","WA","Chehalis-Centralia","53-0012","PU",null,"Local","GA","GA",0,34,1790850]
["NM","SEA","WA","Chelan","Lake Chelan","S10","WA","Lake Chelan","53-0013","PU",null,"Local","GA","GA",11,54,4471842]
["NM","SEA","WA","Cle Elum","Cle Elum Municipal","S93","WA","Cle Elum Municipal","53-0014","PU",null,"Other","GA","GA",0,4,1421578]
["NM","SEA","WA","Colfax","Port of Whitman Business Air Center","S94","WA","Port of Whitman Business Air Center","53-0015","PU",null,"Basic","GA","GA",0,18,2226315]
["NM","SEA","WA","Colville","Colville Municipal","63S","WA","Colville Municipal","53-0170","PU",null,"Basic","GA","GA",8,35,0]
["NM","SEA","WA","Davenport","Davenport","68S","WA","Davenport","53-0095","PU",null,"Basic","GA","GA",14,11,3543684]
["NM","SEA","WA","Deer Park","Deer Park","DEW","WA","Deer Park","53-0022","PU",null,"Local","GA","GA",2,66,6105263]
["NM","SEA","WA","Eastsound","Orcas Island","ORS","WA","Orcas Island","53-0023","PU",null,"Local","CS","CS",3982,69,6643509]
["NM","SEA","WA","Electric City","Grand Coulee Dam","3W7","WA","Grand Coulee Dam","53-0025","PU",null,"Other","GA","GA",0,7,1679705]
["NM","SEA","WA","Ellensburg","Bowers Field","ELN","WA","Bowers Field","53-0026","PU",null,"Local","GA","GA",18,49,6877678]
["NM","SEA","WA","Ephrata","Ephrata Municipal","EPH","WA","Ephrata Municipal","53-0027","PU",null,"Local","GA","GA",1,17,3119855]
["NM","SEA","WA","Everett","Snohomish County (Paine Field)","PAE","WA","Snohomish County (Paine Field)","53-0028","PU",null,"National","R","R",514,646,19234211]
["NM","SEA","WA","Friday Harbor","Friday Harbor","FHR","WA","Friday Harbor","53-0152","PU","N",null,"P","P",12381,145,7739631]
["NM","SEA","WA","Friday Harbor","Friday Harbor","W33","WA","Friday Harbor","53-0090","PU",null,"Basic","GA","GA",0,0,0]
["NM","SEA","WA","Hoquiam","Bowerman","HQM","WA","Bowerman","53-0032","PU",null,"Local","GA","GA",28,25,1141052]
["NM","SEA","WA","Ione","Ione Municipal","S23","WA","Ione Municipal","53-0033","PU",null,"Other","GA","GA",16,4,1743249]
["NM","SEA","WA","Kelso","Southwest Washington Regional","KLS","WA","Southwest Washington Regional","53-0034","PU",null,"Local","GA","GA",0,68,3731935]
["NM","SEA","WA","Kenmore","Kenmore Air Harbor Inc","S60","WA","Kenmore Air Harbor Inc","53-0035","PR",null,"Other","GA","GA",5336,60,0]
["NM","SEA","WA","Langley","Whidbey Air Park","W10","WA","Whidbey Air Park","53-0160","PR",null,"Other","GA","GA",0,7,0]
["NM","SEA","WA","Lopez","Lopez Island","S31","WA","Lopez Island","53-0037","PU",null,"Local","GA","GA",891,34,2289474]
["NM","SEA","WA","Moses Lake","Grant County International","MWH","WA","Grant County International","53-0039","PU",null,"Regional","GA","GA",1442,37,17559378]
["NM","SEA","WA","Ocean Shores","Ocean Shores Municipal","W04","WA","Ocean Shores Municipal","53-0099","PU",null,"Other","GA","GA",0,2,1691062]
["NM","SEA","WA","Odessa","Odessa Municipal","43D","WA","Odessa Municipal","53-0040","PU",null,"Other","GA","GA",0,9,5677488]
["NM","SEA","WA","Olympia","Olympia Regional","OLM","WA","Olympia Regional","53-0041","PU",null,"Regional","GA","GA",55,147,6375621]
["NM","SEA","WA","Omak","Omak","OMK","WA","Omak","53-0042","PU",null,"Basic","GA","GA",23,12,2278947]
["NM","SEA","WA","Oroville","Dorothy Scott","0S7","WA","Dorothy Scott","53-0043","PU",null,"Basic","GA","GA",2,14,2067201]
["NM","SEA","WA","Othello","Othello Municipal","S70","WA","Othello Municipal","53-0044","PU",null,"Basic","GA","GA",0,10,7640338]
["NM","SEA","WA","Packwood","Packwood","55S","WA","Packwood","53-0156","PU",null,"Basic","GA","GA",0,3,2882895]
["NM","SEA","WA","Pasco","Tri-Cities","PSC","WA","Tri-Cities","53-0046","PU","N",null,"P","P",312915,119,6517500]
["NM","SEA","WA","Port Angeles","William R Fairchild International","CLM","WA","William R Fairchild International","53-0047","PU","N",null,"P","P",10616,85,10662023]
["NM","SEA","WA","Port Townsend","Jefferson County International","0S9","WA","Jefferson County International","53-0134","PU",null,"Local","GA","GA",33,106,6678714]
["NM","SEA","WA","Prosser","Prosser","S40","WA","Prosser","53-0050","PU",null,"Local","GA","GA",0,53,956053]
["NM","SEA","WA","Pullman/Moscow,Id","Pullman/Moscow Regional","PUW","WA","Pullman/Moscow Regional","53-0051","PU","N",null,"P","P",35248,70,74944211]
["NM","SEA","WA","Puyallup","Pierce County - Thun Field","PLU","WA","Pierce County - Thun Field","53-0052","PU",null,"Regional","GA","GA",11,195,13118970]
["NM","SEA","WA","Quillayute","Quillayute","UIL","WA","Quillayute","53-0168","PU",null,"Basic","GA","GA",0,0,1119473]
["NM","SEA","WA","Renton","Renton Municipal","RNT","WA","Renton Municipal","53-0055","PU",null,"Regional","R","R",55,312,20345673]
["NM","SEA","WA","Richland","Richland","RLD","WA","Richland","53-0056","PU",null,"Regional","GA","GA",4,173,2271316]
["NM","SEA","WA","Ritzville","Pru Field","33S","WA","Pru Field","53-0057","PU",null,"Other","GA","GA",0,3,4957158]
["NM","SEA","WA","Rosalia","Rosalia Municipal","72S","WA","Rosalia Municipal","53-0165","PU",null,"Other","GA","GA",0,9,815790]
["NM","SEA","WA","Seattle","Boeing Field/King County International","BFI","WA","Boeing Field/King County International","53-0058","PU","N",null,"P","P",33656,443,55109054]
["NM","SEA","WA","Seattle","Seattle-Tacoma International","SEA","WA","Seattle-Tacoma International","53-0062","PU","L",null,"P","P",15406243,7,172554217]
["NM","SEA","WA","Shelton","Sanderson Field","SHN","WA","Sanderson Field","53-0069","PU",null,"Local","GA","GA",0,73,1230000]
["NM","SEA","WA","Snohomish","Harvey Field","S43","WA","Harvey Field","53-0070","PR",null,"Local","R","R",0,203,0]
["NM","SEA","WA","Spokane","Spokane International","GEG","WA","Spokane International","53-0072","PU","S",null,"P","P",1545115,67,43594736]
["NM","SEA","WA","Spokane","Felts Field","SFF","WA","Felts Field","53-0073","PU",null,"Regional","R","R",20,163,8555263]
["NM","SEA","WA","Sunnyside","Sunnyside Municipal","1S5","WA","Sunnyside Municipal","53-0074","PU",null,"Local","GA","GA",0,15,2093789]
["NM","SEA","WA","Tacoma","Tacoma Narrows","TIW","WA","Tacoma Narrows","53-0076","PU",null,"Regional","GA","GA",147,156,14766368]
["NM","SEA","WA","Toledo","Ed Carlson Memorial Field - South Lewis County","TDO","WA","Ed Carlson Memorial Field - South Lewis County","53-0078","PU",null,"Local","GA","GA",0,54,1786861]
["NM","SEA","WA","Vancouver","Pearson Field","VUO","WA","Pearson Field","53-0139","PU",null,"Local","GA","GA",0,175,2672367]
["NM","SEA","WA","Vashon","Vashon Municipal","2S1","WA","Vashon Municipal","53-0147","PU",null,"Local","GA","GA",0,31,1013158]
["NM","SEA","WA","Walla Walla","Walla Walla Regional","ALW","WA","Walla Walla Regional","53-0083","PU","N",null,"P","P",29064,131,6017526]
["NM","SEA","WA","Wenatchee","Pangborn Memorial","EAT","WA","Pangborn Memorial","53-0084","PU","N",null,"P","P",46837,111,25602216]
["NM","SEA","WA","Wilbur","Wilbur","2S8","WA","Wilbur","53-0087","PU",null,"Basic","GA","GA",0,16,934211]
["NM","SEA","WA","Winthrop","Methow Valley State","S52","WA","Methow Valley State","53-0110","PU",null,"Other","GA","GA",3,7,4915263]
["NM","SEA","WA","Yakima","Yakima Air Terminal/McAllister Field","YKM","WA","Yakima Air Terminal/McAllister Field","53-0089","PU","N",null,"P","P",53832,162,13595174]
["SO","ATL","GA","Adel","Cook County","15J","GA","Cook County","13-0001","PU",null,"Local","GA","GA",0,11,7954263]
["SO","ATL","GA","Albany","Southwest Georgia Regional","ABY","GA","Southwest Georgia Regional","13-0002","PU","N",null,"P","P",35494,40,6656915]
["SO","ATL","GA","Alma","Bacon County","AMG","GA","Bacon County","13-0003","PU",null,"Basic","GA","GA",0,10,4093126]
["SO","ATL","GA","Americus","Jimmy Carter Regional","ACJ","GA","Jimmy Carter Regional","13-0004","PU",null,"Local","GA","GA",0,27,1872631]
["SO","ATL","GA","Ashburn","Turner County","75J","GA","Turner County","13-0005","PU",null,"Other","GA","GA",0,3,4209762]
["SO","ATL","GA","Athens","Athens/Ben Epps","AHN","GA","Athens/Ben Epps","13-0006","PU",null,"Regional","CS","CS",5751,45,16879043]
["SO","ATL","GA","Atlanta","Hartsfield - Jackson Atlanta International","ATL","GA","Hartsfield - Jackson Atlanta International","13-0008","PU","L",null,"P","P",43130585,3,1654538939]
["SO","ATL","GA","Atlanta","Newnan Coweta County","CCO","GA","Newnan Coweta County","13-0093","PU",null,"Regional","GA","GA",0,133,9292315]
["SO","ATL","GA","Atlanta","Atlanta Regional Falcon Field","FFC","GA","Atlanta Regional Falcon Field","13-0146","PU",null,"Regional","GA","GA",0,134,20290526]
["SO","ATL","GA","Atlanta","Fulton County Airport-Brown Field","FTY","GA","Fulton County Airport-Brown Field","13-0007","PU",null,"National","R","R",725,123,33473685]
["SO","ATL","GA","Atlanta","Dekalb-Peachtree","PDK","GA","Dekalb-Peachtree","13-0010","PU",null,"National","R","R",463,447,14510274]
["SO","ATL","GA","Atlanta","Paulding Northwest Atlanta","PUJ","GA","Paulding Northwest Atlanta","13-0130","PU",null,"Basic","GA","GA",0,0,3157894]
["SO","ATL","GA","Atlanta","Cobb County-McCollum Field","RYY","GA","Cobb County-McCollum Field","13-0081","PU",null,"National","R","R",110,193,22209685]
["SO","ATL","GA","Augusta","Augusta Regional at Bush Field","AGS","GA","Augusta Regional at Bush Field","13-0011","PU","N",null,"P","P",246587,23,40852097]
["SO","ATL","GA","Augusta","Daniel Field","DNL","GA","Daniel Field","13-0012","PU",null,"Local","GA","GA",10,48,5336632]
["SO","ATL","GA","Bainbridge","Decatur County Industrial Air Park","BGE","GA","Decatur County Industrial Air Park","13-0136","PU",null,"Regional","GA","GA",0,40,3259474]
["SO","ATL","GA","Baxley","Baxley Municipal","BHC","GA","Baxley Municipal","13-0014","PU",null,"Basic","GA","GA",0,13,2577496]
["SO","ATL","GA","Blairsville","Blairsville","DZJ","GA","Blairsville","13-0015","PU",null,"Local","GA","GA",0,47,4223139]
["SO","ATL","GA","Blakely","Early County","BIJ","GA","Early County","13-0016","PU",null,"Other","GA","GA",0,2,1123395]
["SO","ATL","GA","Brunswick","Brunswick Golden Isles","BQK","GA","Brunswick Golden Isles","13-0018","PU","N",null,"P","P",30059,57,18727752]
["SO","ATL","GA","Brunswick","Malcolm McKinnon","SSI","GA","Malcolm McKinnon","13-0020","PU",null,"Regional","GA","GA",91,76,8869211]
["SO","ATL","GA","Butler","Butler Municipal","6A1","GA","Butler Municipal","13-0022","PU",null,"Other","GA","GA",0,8,1702895]
["SO","ATL","GA","Cairo","Cairo-Grady County","70J","GA","Cairo-Grady County","13-0023","PU",null,"Local","GA","GA",0,20,3542569]
["SO","ATL","GA","Calhoun","Tom B. David Field","CZL","GA","Tom B. David Field","13-0024","PU",null,"Local","GA","GA",0,123,2778684]
["SO","ATL","GA","Camilla","Camilla-Mitchell County","CXU","GA","Camilla-Mitchell County","13-0025","PU",null,"Local","GA","GA",9,21,1846315]
["SO","ATL","GA","Canon","Franklin County","18A","GA","Franklin County","13-0026","PU",null,"Local","GA","GA",0,24,2058158]
["SO","ATL","GA","Canton","Cherokee County","CNI","GA","Cherokee County","13-0027","PU",null,"Local","GA","GA",0,82,7418421]
["SO","ATL","GA","Carrollton","West Georgia Regional - O V Gray Field","CTJ","GA","West Georgia Regional - O V Gray Field","13-0028","PU",null,"Regional","GA","GA",0,75,2490527]
["SO","ATL","GA","Cartersville","Cartersville","VPC","GA","Cartersville","13-0029","PU",null,"Regional","GA","GA",0,128,11097624]
["SO","ATL","GA","Cedartown","Polk County Airport- Cornelius Moore Field","4A4","GA","Polk County Airport- Cornelius Moore Field","13-0030","PU",null,"Local","GA","GA",0,50,1537895]
["SO","ATL","GA","Claxton","Claxton-Evans County","CWV","GA","Claxton-Evans County","13-0031","PU",null,"Basic","GA","GA",0,11,4655317]
["SO","ATL","GA","Cochran","Cochran","48A","GA","Cochran","13-0034","PU",null,"Local","GA","GA",0,16,4255263]
["SO","ATL","GA","Columbus","Columbus Metropolitan","CSG","GA","Columbus Metropolitan","13-0035","PU","N",null,"P","P",63726,236,14730418]
["SO","ATL","GA","Cordele","Crisp County-Cordele","CKF","GA","Crisp County-Cordele","13-0036","PU",null,"Local","GA","GA",0,18,2214991]
["SO","ATL","GA","Cornelia","Habersham County","AJR","GA","Habersham County","13-0037","PU",null,"Local","GA","GA",0,61,11755789]
["SO","ATL","GA","Covington","Covington Municipal","9A1","GA","Covington Municipal","13-0038","PU",null,"Local","GA","GA",0,37,7992702]
["SO","ATL","GA","Cuthbert","Lower Chattahoochee Regional","25J","GA","Lower Chattahoochee Regional","13-0040","PU",null,"Other","GA","GA",0,2,4879053]
["SO","ATL","GA","Dalton","Dalton Municipal","DNN","GA","Dalton Municipal","13-0043","PU",null,"Regional","GA","GA",22,40,7892106]
["SO","ATL","GA","Dawson","Dawson Municipal","16J","GA","Dawson Municipal","13-0045","PU",null,"Local","GA","GA",0,50,2709474]
["SO","ATL","GA","Donalsonville","Donalsonville Municipal","17J","GA","Donalsonville Municipal","13-0046","PU",null,"Basic","GA","GA",0,14,3904737]
["SO","ATL","GA","Douglas","Douglas Municipal","DQH","GA","Douglas Municipal","13-0047","PU",null,"Local","GA","GA",2,32,2969737]
["SO","ATL","GA","Dublin","W H 'Bud' Barron","DBN","GA","W H 'Bud' Barron","13-0049","PU",null,"Local","GA","GA",10,28,2237422]
["SO","ATL","GA","Eastman","Heart of Georgia Regional","EZM","GA","Heart of Georgia Regional","13-0050","PU",null,"Local","GA","GA",0,39,2014632]
["SO","ATL","GA","Elberton","Elbert County-Patz Field","27A","GA","Elbert County-Patz Field","13-0052","PU",null,"Local","GA","GA",0,17,3152632]
["SO","ATL","GA","Ellijay","Gilmer County","49A","GA","Gilmer County","13-0053","PU",null,"Other","GA","GA",0,0,2547895]
["SO","ATL","GA","Fitzgerald","Fitzgerald Municipal","FZG","GA","Fitzgerald Municipal","13-0056","PU",null,"Local","GA","GA",0,25,2058842]
["SO","ATL","GA","Fort Stewart(Hinesville)","Wright AAF (Fort Stewart)/Midcoast Regional","LHW","GA","Wright AAF (Fort Stewart)/Midcoast Regional","13-0127","MR",null,"Basic","GA","GA",0,13,12159143]
["SO","ATL","GA","Gainesville","Lee Gilmer Memorial","GVL","GA","Lee Gilmer Memorial","13-0060","PU",null,"Regional","GA","GA",46,140,3109632]
["SO","ATL","GA","Greensboro","Greene County Regional","3J7","GA","Greene County Regional","13-0061","PU",null,"Other","GA","GA",12,9,3231579]
["SO","ATL","GA","Griffin","Griffin-Spalding County","6A2","GA","Griffin-Spalding County","13-0145","PU",null,"Regional","GA","GA",0,90,1200789]
["SO","ATL","GA","Hampton","Clayton County - Tara Field","4A7","GA","Clayton County - Tara Field","13-0062","PU",null,"Regional","GA","GA",0,91,10223528]
["SO","ATL","GA","Hazlehurst","Hazlehurst","AZE","GA","Hazlehurst","13-0064","PU",null,"Local","GA","GA",5,16,3462632]
["SO","ATL","GA","Homerville","Homerville","HOE","GA","Homerville","13-0066","PU",null,"Other","GA","GA",0,0,3894209]
["SO","ATL","GA","Jasper","Pickens County","JZP","GA","Pickens County","13-0124","PU",null,"Local","GA","GA",1,57,10896843]
["SO","ATL","GA","Jefferson","Jackson County","19A","GA","Jackson County","13-0068","PU",null,"Local","GA","GA",4,45,8094053]
["SO","ATL","GA","Jekyll Island","Jekyll Island","09J","GA","Jekyll Island","13-0069","PU",null,"Other","GA","GA",0,3,2310000]
["SO","ATL","GA","Jesup","Jesup-Wayne County","JES","GA","Jesup-Wayne County","13-0070","PU",null,"Basic","GA","GA",0,10,4839500]
["SO","ATL","GA","La Fayette","Barwick Lafayette","9A5","GA","Barwick Lafayette","13-1302","PU",null,"Local","GA","GA",2,46,4626106]
["SO","ATL","GA","La Grange","La Grange-Callaway","LGC","GA","La Grange-Callaway","13-0072","PU",null,"Regional","GA","GA",22,56,10898158]
["SO","ATL","GA","Lawrenceville","Gwinnett County - Briscoe Field","LZU","GA","Gwinnett County - Briscoe Field","13-0074","PU",null,"National","R","R",16,252,18849559]
["SO","ATL","GA","Louisville","Louisville Municipal","2J3","GA","Louisville Municipal","13-0076","PU",null,"Basic","GA","GA",0,9,936842]
["SO","ATL","GA","Macon","Macon Downtown","MAC","GA","Macon Downtown","13-0078","PU",null,"Local","GA","GA",0,43,2638000]
["SO","ATL","GA","Macon","Middle Georgia Regional","MCN","GA","Middle Georgia Regional","13-0079","PU",null,"Regional","GA","GA",1296,76,5243128]
["SO","ATL","GA","Madison","Madison Municipal","52A","GA","Madison Municipal","13-0080","PU",null,"Basic","GA","GA",0,18,6621054]
["SO","ATL","GA","McRae","Telfair-Wheeler","MQW","GA","Telfair-Wheeler","13-0082","PU",null,"Basic","GA","GA",0,11,1946937]
["SO","ATL","GA","Metter","Metter Municipal","MHP","GA","Metter Municipal","13-0084","PU",null,"Basic","GA","GA",0,10,2030981]
["SO","ATL","GA","Milledgeville","Baldwin County","MLJ","GA","Baldwin County","13-0085","PU",null,"Local","GA","GA",0,26,1742000]
["SO","ATL","GA","Millen","Millen","2J5","GA","Millen","13-0086","PU",null,"Other","GA","GA",0,3,2105262]
["SO","ATL","GA","Monroe","Monroe-Walton County","D73","GA","Monroe-Walton County","13-0087","PU",null,"Local","GA","GA",0,34,6515789]
["SO","ATL","GA","Montezuma","Dr. C P Savage Sr.","53A","GA","Dr. C P Savage Sr.","13-0088","PU",null,"Other","GA","GA",0,8,2774738]
["SO","ATL","GA","Moultrie","Moultrie Municipal","MGR","GA","Moultrie Municipal","13-0090","PU",null,"Local","GA","GA",0,23,2194738]
["SO","ATL","GA","Nahunta","Brantley County","4J1","GA","Brantley County","13-0091","PU",null,"Other","GA","GA",0,0,2189475]
["SO","ATL","GA","Nashville","Berrien County","4J2","GA","Berrien County","13-0092","PU",null,"Basic","GA","GA",0,9,3210527]
["SO","ATL","GA","Perry","Perry-Houston County","PXE","GA","Perry-Houston County","13-0094","PU",null,"Regional","GA","GA",0,62,6133473]
["SO","ATL","GA","Pine Mountain","Harris County","PIM","GA","Harris County","13-0095","PU",null,"Other","GA","GA",0,4,3494737]
["SO","ATL","GA","Quitman","Quitman Brooks County","4J5","GA","Quitman Brooks County","13-0096","PU",null,"Local","GA","GA",0,34,1842105]
["SO","ATL","GA","Reidsville","Swinton Smith Field at Reidsville Municipal","RVJ","GA","Swinton Smith Field at Reidsville Municipal","13-0097","PU",null,"Other","GA","GA",0,8,2026578]
["SO","ATL","GA","Rome","Richard B Russell","RMG","GA","Richard B Russell","13-0098","PU",null,"Regional","GA","GA",5,762,8467106]
["SO","ATL","GA","Sandersville","Kaolin Field","OKZ","GA","Kaolin Field","13-0099","PU",null,"Local","GA","GA",0,16,1827632]
["SO","ATL","GA","Savannah","Savannah/Hilton Head International","SAV","GA","Savannah/Hilton Head International","13-0100","PU","S",null,"P","P",798194,120,21167087]
["SO","ATL","GA","St Marys","New","07H","GA","New","13-0129",null,null,null,null,"GA",0,0,36842105]
["SO","ATL","GA","St Marys","St Marys","4J6","GA","St Marys","13-0103","PU",null,"Local","GA","GA",0,19,4088000]
["SO","ATL","GA","Statesboro","Statesboro-Bulloch County","TBR","GA","Statesboro-Bulloch County","13-0123","PU",null,"Local","GA","GA",4,42,1920789]
["SO","ATL","GA","Swainsboro","Emanuel County","SBO","GA","Emanuel County","13-0106","PU",null,"Basic","GA","GA",0,13,1918947]
["SO","ATL","GA","Sylvania","Plantation Airpark","JYL","GA","Plantation Airpark","13-0107","PU",null,"Local","GA","GA",0,22,3978420]
["SO","ATL","GA","Sylvester","Sylvester","SYV","GA","Sylvester","13-0108","PU",null,"Other","GA","GA",0,2,2325500]
["SO","ATL","GA","Thomaston","Thomaston-Upson County","OPN","GA","Thomaston-Upson County","13-0150","PU",null,"Local","GA","GA",0,56,5090789]
["SO","ATL","GA","Thomasville","Thomasville Regional","TVI","GA","Thomasville Regional","13-0110","PU",null,"Regional","GA","GA",4,48,5247369]
["SO","ATL","GA","Thomson","Thomson-McDuffie County","HQU","GA","Thomson-McDuffie County","13-0111","PU",null,"Regional","GA","GA",0,28,3856764]
["SO","ATL","GA","Tifton","Henry Tift Myers","TMA","GA","Henry Tift Myers","13-0112","PU",null,"Regional","GA","GA",0,38,1595000]
["SO","ATL","GA","Toccoa","Toccoa - R G LeTourneau Field","TOC","GA","Toccoa - R G LeTourneau Field","13-0113","PU",null,"Local","GA","GA",4,32,3422000]
["SO","ATL","GA","Valdosta","Valdosta Regional","VLD","GA","Valdosta Regional","13-0115","PU","N",null,"P","P",42537,56,4905324]
["SO","ATL","GA","Vidalia","Vidalia Regional","VDI","GA","Vidalia Regional","13-0116","PU",null,"Local","GA","GA",1,20,3994422]
["SO","ATL","GA","Warm Springs","Roosevelt Memorial","5A9","GA","Roosevelt Memorial","13-0117","PU",null,"Other","GA","GA",0,2,2681580]
["SO","ATL","GA","Washington","Washington-Wilkes County","IIY","GA","Washington-Wilkes County","13-0118","PU",null,"Other","GA","GA",0,7,3131679]
["SO","ATL","GA","Waycross","Waycross-Ware County","AYS","GA","Waycross-Ware County","13-0119","PU",null,"Local","GA","GA",6,29,0]
["SO","ATL","GA","Waynesboro","Burke County","BXG","GA","Burke County","13-0120","PU",null,"Basic","GA","GA",0,9,4766579]
["SO","ATL","GA","Winder","Barrow County","WDR","GA","Barrow County","13-0121","PU",null,"Local","GA","GA",0,83,8857222]
["SO","ATL","GA","Wrens","Wrens Memorial","65J","GA","Wrens Memorial","13-0122","PU",null,"Other","GA","GA",0,7,2772128]
["SO","ATL","NC","Ahoskie","Tri-County","ASJ","NC","Tri-County","37-0001","PU",null,"Other","GA","GA",0,9,2985000]
["SO","ATL","NC","Albemarle","Stanly County","VUJ","NC","Stanly County","37-0091","PU",null,"Local","GA","GA",1,18,25550700]
["SO","ATL","NC","Andrews","Western Carolina Regional","RHP","NC","Western Carolina Regional","37-0003","PU",null,"Local","GA","GA",2,73,12076000]
["SO","ATL","NC","Asheboro","Asheboro Regional","HBI","NC","Asheboro Regional","37-0004","PU",null,"Regional","GA","GA",1,45,4409000]
["SO","ATL","NC","Asheville","Asheville Regional","AVL","NC","Asheville Regional","37-0005","PU","S",null,"P","P",371226,124,28640398]
["SO","ATL","NC","Beaufort","Michael J. Smith Field","MRH","NC","Michael J. Smith Field","37-0006","PU",null,"Regional","GA","GA",4,63,13245000]
["SO","ATL","NC","Burlington","Burlington-Alamance Regional","BUY","NC","Burlington-Alamance Regional","37-0010","PU",null,"Regional","GA","GA",10,123,18146800]
["SO","ATL","NC","Charlotte","Charlotte/Douglas International","CLT","NC","Charlotte/Douglas International","37-0012","PU","L",null,"P","P",18629181,82,217327804]
["SO","ATL","NC","Clinton","Clinton-Sampson County","CTZ","NC","Clinton-Sampson County","37-0014","PU",null,"Local","GA","GA",0,27,9073000]
["SO","ATL","NC","Concord","Concord Regional","JQF","NC","Concord Regional","37-0015","PU",null,"National","R","R",9358,181,35632000]
["SO","ATL","NC","Currituck","Currituck County Regional","ONX","NC","Currituck County Regional","37-0013","PU",null,"Local","GA","GA",20,27,24840000]
["SO","ATL","NC","Edenton","Northeastern Regional","EDE","NC","Northeastern Regional","37-0016","PU",null,"Local","GA","GA",0,34,4046975]
["SO","ATL","NC","Elizabeth City","Elizabeth City CG Air Station/Regional","ECG","NC","Elizabeth City CG Air Station/Regional","37-0017","MC",null,"Local","GA","GA",0,29,10803000]
["SO","ATL","NC","Elizabethtown","Curtis L Brown Jr Field","EYF","NC","Curtis L Brown Jr Field","37-0101","PU",null,"Basic","GA","GA",0,13,13252000]
["SO","ATL","NC","Elkin","Elkin Municipal","ZEF","NC","Elkin Municipal","37-0019","PU",null,"Local","GA","GA",0,17,19270000]
["SO","ATL","NC","Engelhard","Hyde County","7W6","NC","Hyde County","37-0099","PU",null,"Other","GA","GA",0,0,3472333]
["SO","ATL","NC","Erwin","Harnett Regional Jetport","HRJ","NC","Harnett Regional Jetport","37-0088","PU",null,"Regional","GA","GA",0,39,14188052]
["SO","ATL","NC","Fayetteville","Fayetteville Regional/Grannis Field","FAY","NC","Fayetteville Regional/Grannis Field","37-0021","PU","N",null,"P","P",258986,56,27247225]
["SO","ATL","NC","Franklin","Macon County","1A5","NC","Macon County","37-0022","PU",null,"Local","GA","GA",2,29,14354685]
["SO","ATL","NC","Gastonia","Gastonia Municipal","AKH","NC","Gastonia Municipal","37-0110","PU",null,"Local","GA","GA",0,34,1519000]
["SO","ATL","NC","Goldsboro","Wayne Executive Jetport","GWW","NC","Wayne Executive Jetport","37-0024","PU",null,"Regional","GA","GA",0,41,3177500]
["SO","ATL","NC","Greensboro","Piedmont Triad International","GSO","NC","Piedmont Triad International","37-0026","PU","S",null,"P","P",855073,96,102384111]
["SO","ATL","NC","Greenville","Pitt-Greenville","PGV","NC","Pitt-Greenville","37-0028","PU","N",null,"P","P",61899,61,4003077]
["SO","ATL","NC","Hatteras","Billy Mitchell","HSE","NC","Billy Mitchell","37-0029","PU",null,"Basic","GA","GA",0,0,1000000]
["SO","ATL","NC","Hickory","Hickory Regional","HKY","NC","Hickory Regional","37-0031","PU",null,"Regional","GA","GA",319,70,8191000]
["SO","ATL","NC","Jacksonville","Albert J Ellis","OAJ","NC","Albert J Ellis","37-0033","PU","N",null,"P","P",154307,21,27376201]
["SO","ATL","NC","Jefferson","Ashe County","GEV","NC","Ashe County","37-0080","PU",null,"Local","GA","GA",2,23,7386000]
["SO","ATL","NC","Kenansville","Duplin County","DPL","NC","Duplin County","37-0077","PU",null,"Local","GA","GA",0,17,8228000]
["SO","ATL","NC","Kill Devil Hills","First Flight","FFA","NC","First Flight","37-0034","PU",null,"Basic","GA","GA",4,0,1700000]
["SO","ATL","NC","Kinston","Kinston Regional Jetport at Stallings Field","ISO","NC","Kinston Regional Jetport at Stallings Field","37-0035","PU",null,"Regional","GA","GA",5228,47,14700000]
["SO","ATL","NC","Lexington","Davidson County","EXX","NC","Davidson County","37-0103","PU",null,"Regional","GA","GA",0,59,6749000]
["SO","ATL","NC","Lincolnton","Lincolnton-Lincoln County Regional","IPJ","NC","Lincolnton-Lincoln County Regional","37-0037","PU",null,"Local","GA","GA",0,74,9216000]
["SO","ATL","NC","Louisburg","Triangle North Executive","LHZ","NC","Triangle North Executive","37-0039","PU",null,"Regional","GA","GA",0,71,9665000]
["SO","ATL","NC","Lumberton","Lumberton Municipal","LBT","NC","Lumberton Municipal","37-0040","PU",null,"Local","GA","GA",0,39,11289500]
["SO","ATL","NC","Manteo","Dare County Regional","MQI","NC","Dare County Regional","37-0041","PU",null,"Local","GA","GA",34,48,14783000]
["SO","ATL","NC","Maxton","Laurinburg-Maxton","MEB","NC","Laurinburg-Maxton","37-0044","PU",null,"Basic","GA","GA",0,13,10263161]
["SO","ATL","NC","Monroe","Charlotte-Monroe Executive","EQY","NC","Charlotte-Monroe Executive","37-0045","PU",null,"Regional","R","R",12,86,39105200]
["SO","ATL","NC","Morganton","Foothills Regional","MRN","NC","Foothills Regional","37-0047","PU",null,"Local","GA","GA",2,64,4053000]
["SO","ATL","NC","Mount Airy","Mount Airy/Surry County","MWK","NC","Mount Airy/Surry County","37-0049","PU",null,"Regional","GA","GA",0,39,20150000]
["SO","ATL","NC","Mount Olive","Mount Olive Municipal","W40","NC","Mount Olive Municipal","37-0048","PU",null,"Basic","GA","GA",0,11,5220000]
["SO","ATL","NC","New Bern","Coastal Carolina Regional","EWN","NC","Coastal Carolina Regional","37-0050","PU","N",null,"P","P",126800,80,6831758]
["SO","ATL","NC","North Wilkesboro","Wilkes County","UKF","NC","Wilkes County","37-0102","PU",null,"Local","GA","GA",2,30,12963000]
["SO","ATL","NC","Oak Island","Cape Fear Regional Jetport/Howie Franklin Field","SUT","NC","Cape Fear Regional Jetport/Howie Franklin Field","37-0038","PU",null,"Local","GA","GA",0,49,15194000]
["SO","ATL","NC","Ocean Isle Beach","Odell Williamson Municipal","60J","NC","Odell Williamson Municipal","37-0111","PU",null,"Basic","GA","GA",0,10,2575000]
["SO","ATL","NC","Ocracoke","Ocracoke Island","W95","NC","Ocracoke Island","37-0051","PU",null,"Basic","GA","GA",0,0,1000000]
["SO","ATL","NC","Oxford","Henderson-Oxford","HNZ","NC","Henderson-Oxford","37-0052","PU",null,"Local","GA","GA",1,45,10905000]
["SO","ATL","NC","Pinehurst/Southern Pines","Moore County","SOP","NC","Moore County","37-0069","PU",null,"Regional","GA","GA",47,71,14286000]
["SO","ATL","NC","Plymouth","Plymouth Municipal","PMZ","NC","Plymouth Municipal","37-0053","PU",null,"Basic","GA","GA",0,13,8460000]
["SO","ATL","NC","Raleigh/Durham","Raleigh-Durham International","RDU","NC","Raleigh-Durham International","37-0056","PU","M",null,"P","P",4465736,187,22781378]
["SO","ATL","NC","Reidsville","Rockingham County Nc Shiloh","SIF","NC","Rockingham County Nc Shiloh","37-0057","PU",null,"Local","GA","GA",0,51,9081000]
["SO","ATL","NC","Roanoke Rapids","Halifax-Northampton Regional","IXA","NC","Halifax-Northampton Regional","37-0112","PU",null,"Local","GA","GA",1,18,4770000]
["SO","ATL","NC","Rockingham","Richmond County","RCZ","NC","Richmond County","37-0059","PU",null,"Basic","GA","GA",0,11,11006000]
["SO","ATL","NC","Rocky Mount","Rocky Mount-Wilson Regional","RWI","NC","Rocky Mount-Wilson Regional","37-0060","PU",null,"Regional","GA","GA",1,16,8440600]
["SO","ATL","NC","Roxboro","Person County","TDF","NC","Person County","37-0062","PU",null,"Local","GA","GA",37,34,9938500]
["SO","ATL","NC","Rutherfordton","Rutherford County-Marchman Field","FQD","NC","Rutherford County-Marchman Field","37-0063","PU",null,"Regional","GA","GA",0,55,11537000]
["SO","ATL","NC","Salisbury","Rowan County","RUQ","NC","Rowan County","37-0064","PU",null,"Regional","GA","GA",0,81,30034204]
["SO","ATL","NC","Sanford","Raleigh Exec Jetport at Sanford-Lee County","TTA","NC","Raleigh Exec Jetport at Sanford-Lee County","37-0108","PU",null,"Regional","R","R",0,111,13335000]
["SO","ATL","NC","Shelby","Shelby-Cleveland County Regional","EHO","NC","Shelby-Cleveland County Regional","37-0066","PU",null,"Local","GA","GA",0,32,13195000]
["SO","ATL","NC","Siler City","Siler City Municipal","5W8","NC","Siler City Municipal","37-0067","PU",null,"Local","GA","GA",0,24,2390000]
["SO","ATL","NC","Smithfield","Johnston County","JNX","NC","Johnston County","37-0068","PU",null,"Regional","GA","GA",15,94,14710000]
["SO","ATL","NC","Spruce Pine","Avery County/Morrison Field/","7A8","NC","Avery County/Morrison Field/","37-0070","PU",null,"Local","GA","GA",0,25,800000]
["SO","ATL","NC","Star","Montgomery County","43A","NC","Montgomery County","37-0071","PU",null,"Local","GA","GA",0,16,1540000]
["SO","ATL","NC","Statesville","Statesville Regional","SVH","NC","Statesville Regional","37-0072","PU",null,"Regional","GA","GA",7,69,39706000]
["SO","ATL","NC","Sylva","Jackson County","24A","NC","Jackson County","37-0087","PU",null,"Basic","GA","GA",0,13,2596000]
["SO","ATL","NC","Tarboro","Tarboro-Edgecombe","ETC","NC","Tarboro-Edgecombe","37-0096","PU",null,"Other","GA","GA",0,5,2485000]
["SO","ATL","NC","Wadesboro","Anson County - Jeff Cloud Field","AFP","NC","Anson County - Jeff Cloud Field","37-0075","PU",null,"Local","GA","GA",0,22,4569000]
["SO","ATL","NC","Wallace","Henderson Field","ACZ","NC","Henderson Field","37-0076","PU",null,"Local","GA","GA",0,21,4645000]
["SO","ATL","NC","Washington","Warren Field","OCW","NC","Warren Field","37-0078","PU",null,"Local","GA","GA",0,30,7915000]
["SO","ATL","NC","Whiteville","Columbus County Municipal","CPC","NC","Columbus County Municipal","37-0081","PU",null,"Local","GA","GA",0,20,7155000]
["SO","ATL","NC","Williamston","Martin County","MCZ","NC","Martin County","37-0083","PU",null,"Other","GA","GA",0,5,2950000]
["SO","ATL","NC","Wilmington","Wilmington International","ILM","NC","Wilmington International","37-0084","PU","S",null,"P","P",408058,136,25604090]
["SO","ATL","NC","Winston-Salem","Smith Reynolds","INT","NC","Smith Reynolds","37-0086","PU",null,"National","GA","GA",1558,98,15200000]
["SO","ATL","SC","Aiken","Aiken Municipal","AIK","SC","Aiken Municipal","45-0002","PU",null,"Regional","GA","GA",262,49,5067444]
["SO","ATL","SC","Allendale","Allendale County","88J","SC","Allendale County","45-0003","PU",null,"Basic","GA","GA",0,12,5185537]
["SO","ATL","SC","Anderson","Anderson Regional","AND","SC","Anderson Regional","45-0004","PU",null,"Regional","GA","GA",293,77,2736865]
["SO","ATL","SC","Andrews","Robert F Swinnie","PHH","SC","Robert F Swinnie","45-0005","PU",null,"Other","GA","GA",0,3,2229684]
["SO","ATL","SC","Bamberg","Bamberg County","99N","SC","Bamberg County","45-0068","PU",null,"Other","GA","GA",0,0,1633973]
["SO","ATL","SC","Barnwell","Barnwell Regional","BNL","SC","Barnwell Regional","45-0007","PU",null,"Local","GA","GA",0,30,3231551]
["SO","ATL","SC","Beaufort","Beaufort County","ARW","SC","Beaufort County","45-0008","PU",null,"Local","GA","GA",727,57,6960526]
["SO","ATL","SC","Bennettsville","Marlboro County Jetport - H.E. Avent Field","BBP","SC","Marlboro County Jetport - H.E. Avent Field","45-0009","PU",null,"Basic","GA","GA",0,13,2429450]
["SO","ATL","SC","Bishopville","Lee County-Butters Field","52J","SC","Lee County-Butters Field","45-0010","PU",null,"Other","GA","GA",0,3,986031]
["SO","ATL","SC","Camden","Woodward Field","CDN","SC","Woodward Field","45-0011","PU",null,"Regional","GA","GA",5,36,4616790]
["SO","ATL","SC","Charleston","Charleston AFB/International","CHS","SC","Charleston AFB/International","45-0012","MA","S",null,"P","P",1013418,45,54112770]
["SO","ATL","SC","Charleston","Charleston Executive","JZI","SC","Charleston Executive","45-0013","PU",null,"Regional","GA","GA",73,58,1230000]
["SO","ATL","SC","Cheraw","Cheraw Municipal/Lynch Bellinger Field","CQW","SC","Cheraw Municipal/Lynch Bellinger Field","45-0014","PU",null,"Local","GA","GA",0,18,1359064]
["SO","ATL","SC","Chester","Chester Catawba Regional","DCM","SC","Chester Catawba Regional","45-0015","PU",null,"Local","GA","GA",0,31,3417668]
["SO","ATL","SC","Clemson","Oconee County Regional","CEU","SC","Oconee County Regional","45-0016","PU",null,"Local","GA","GA",26,59,1397368]
["SO","ATL","SC","Columbia","Columbia Metropolitan","CAE","SC","Columbia Metropolitan","45-0018","PU","S",null,"P","P",486879,75,21980403]
["SO","ATL","SC","Columbia","Jim Hamilton L.B. Owens","CUB","SC","Jim Hamilton L.B. Owens","45-0017","PU",null,"Regional","R","R",4,126,4311345]
["SO","ATL","SC","Conway","Conway-Horry County","HYW","SC","Conway-Horry County","45-0020","PU",null,"Local","GA","GA",4,35,2030994]
["SO","ATL","SC","Darlington","Darlington County Jetport","UDG","SC","Darlington County Jetport","45-0021","PU",null,"Regional","GA","GA",0,13,2275196]
["SO","ATL","SC","Dillon","Dillon County","DLC","SC","Dillon County","45-0070","PU",null,"Other","GA","GA",0,3,1236842]
["SO","ATL","SC","Florence","Florence Regional","FLO","SC","Florence Regional","45-0023","PU","N",null,"P","P",82961,37,3218568]
["SO","ATL","SC","Georgetown","Georgetown County","GGE","SC","Georgetown County","45-0025","PU",null,"Regional","GA","GA",6,30,1759357]
["SO","ATL","SC","Greenville","Greenville Downtown","GMU","SC","Greenville Downtown","45-0026","PU",null,"National","GA","GA",23,228,1683343]
["SO","ATL","SC","Greenville","Donaldson Center","GYH","SC","Donaldson Center","45-0031","PU",null,"Regional","GA","GA",2,56,14314737]
["SO","ATL","SC","Greenwood","Greenwood County","GRD","SC","Greenwood County","45-0027","PU",null,"Local","GA","GA",2,53,7318684]
["SO","ATL","SC","Greer","Greenville Spartanburg International","GSP","SC","Greenville Spartanburg International","45-0028","PU","S",null,"P","P",642512,15,48604918]
["SO","ATL","SC","Hartsville","Hartsville Regional","HVS","SC","Hartsville Regional","45-0029","PU",null,"Basic","GA","GA",0,12,3123427]
["SO","ATL","SC","Hilton Head Island","Hilton Head","HXD","SC","Hilton Head","45-0030","PU","N",null,"P","P",73776,86,30814892]
["SO","ATL","SC","Kingstree","Williamsburg Regional","CKI","SC","Williamsburg Regional","45-0033","PU",null,"Basic","GA","GA",0,10,600000]
["SO","ATL","SC","Lancaster","Lancaster County-Mc Whirter Field","LKR","SC","Lancaster County-Mc Whirter Field","45-0034","PU",null,"Local","GA","GA",0,49,2975453]
["SO","ATL","SC","Laurens","Laurens County","LUX","SC","Laurens County","45-0036","PU",null,"Basic","GA","GA",0,13,908730]
["SO","ATL","SC","Loris","Twin City","5J9","SC","Twin City","45-0037","PU",null,"Other","GA","GA",0,9,930263]
["SO","ATL","SC","Manning","Santee Cooper Regional","MNI","SC","Santee Cooper Regional","45-0038","PU",null,"Local","GA","GA",0,16,1310363]
["SO","ATL","SC","Marion","Marion County","MAO","SC","Marion County","45-0039","PU",null,"Other","GA","GA",0,9,2906510]
["SO","ATL","SC","Moncks Corner","Berkeley County","MKS","SC","Berkeley County","45-0041","PU",null,"Local","GA","GA",3,45,5758789]
["SO","ATL","SC","Mount Pleasant","Mt Pleasant Regional-Faison Field","LRO","SC","Mt Pleasant Regional-Faison Field","45-0042","PU",null,"Local","GA","GA",0,79,1880551]
["SO","ATL","SC","Myrtle Beach","Myrtle Beach International","MYR","SC","Myrtle Beach International","45-0065","PU","S",null,"P","P",782737,43,45283177]
["SO","ATL","SC","Newberry","Newberry County","EOE","SC","Newberry County","45-0066","PU",null,"Local","GA","GA",0,15,1961240]
["SO","ATL","SC","North Myrtle Beach","Grand Strand","CRE","SC","Grand Strand","45-0044","PU",null,"Regional","GA","GA",36,47,5967881]
["SO","ATL","SC","Orangeburg","Orangeburg Municipal","OGB","SC","Orangeburg Municipal","45-0045","PU",null,"Regional","GA","GA",2,41,4180000]
["SO","ATL","SC","Pageland","Pageland","PYG","SC","Pageland","45-0046","PU",null,"Other","GA","GA",0,0,2793661]
["SO","ATL","SC","Pelion","Lexington County at Pelion","6J0","SC","Lexington County at Pelion","45-0067","PU",null,"Basic","GA","GA",0,11,1059211]
["SO","ATL","SC","Pickens","Pickens County","LQK","SC","Pickens County","45-0047","PU",null,"Local","GA","GA",1,33,5718975]
["SO","ATL","SC","Ridgeland","Ridgeland","3J1","SC","Ridgeland","45-0048","PU",null,"Local","GA","GA",0,50,3106715]
["SO","ATL","SC","Rock Hill","Rock Hill/York County/Bryant Field","UZA","SC","Rock Hill/York County/Bryant Field","45-0049","PU",null,"Regional","R","R",8,107,10291884]
["SO","ATL","SC","Saluda","Saluda County","6J4","SC","Saluda County","45-0050","PU",null,"Other","GA","GA",0,1,4232141]
["SO","ATL","SC","Spartanburg","Spartanburg Downtown Memorial","SPA","SC","Spartanburg Downtown Memorial","45-0051","PU",null,"Regional","GA","GA",7,75,9336843]
["SO","ATL","SC","St. George","St George","6J2","SC","St George","45-0052","PU",null,"Other","GA","GA",0,7,1054250]
["SO","ATL","SC","Summerville","Summerville","DYB","SC","Summerville","45-0062","PU",null,"Local","GA","GA",0,55,2066993]
["SO","ATL","SC","Sumter","Sumter","SMS","SC","Sumter","45-0054","PU",null,"Local","GA","GA",0,48,1456292]
["SO","ATL","SC","Union","Union County, Troy Shelton Field","35A","SC","Union County, Troy Shelton Field","45-0056","PU",null,"Local","GA","GA",0,18,4717963]
["SO","ATL","SC","Walterboro","Lowcountry Regional","RBW","SC","Lowcountry Regional","45-0057","PU",null,"Regional","GA","GA",11,22,1728504]
["SO","ATL","SC","Winnsboro","Fairfield County","FDW","SC","Fairfield County","45-0058","PU",null,"Local","GA","GA",0,27,3896600]
["SO","JAN","AL","Abbeville","Abbeville Municipal","0J0","AL","Abbeville Municipal","01-0112","PU",null,"Other","GA","GA",0,0,3214905]
["SO","JAN","AL","Alabaster","Shelby County","EET","AL","Shelby County","01-0003","PU",null,"Regional","GA","GA",2,83,821053]
["SO","JAN","AL","Albertville","Albertville Regional-Thomas J Brumlik Field","8A0","AL","Albertville Regional-Thomas J Brumlik Field","01-0004","PU",null,"Regional","GA","GA",0,41,7162953]
["SO","JAN","AL","Alexander City","Thomas C Russell Field","ALX","AL","Thomas C Russell Field","01-0005","PU",null,"Regional","GA","GA",0,32,2820304]
["SO","JAN","AL","Aliceville","George Downer","AIV","AL","George Downer","01-0006","PU",null,"Other","GA","GA",0,3,868789]
["SO","JAN","AL","Andalusia/Opp","South Alabama Regional at Bill Benton Field","79J","AL","South Alabama Regional at Bill Benton Field","01-0007","PU",null,"Local","GA","GA",114,21,1097194]
["SO","JAN","AL","Anniston","Anniston Regional","ANB","AL","Anniston Regional","01-0008","PU",null,"Regional","GA","GA",494,34,2979684]
["SO","JAN","AL","Ashland/Lineville","Ashland/Lineville","26A","AL","Ashland/Lineville","01-0105","PU",null,"Other","GA","GA",0,6,1557500]
["SO","JAN","AL","Atmore","Atmore Municipal","0R1","AL","Atmore Municipal","01-0113","PU",null,"Other","GA","GA",0,6,1975000]
["SO","JAN","AL","Auburn","Auburn University Regional","AUO","AL","Auburn University Regional","01-0011","PU",null,"Regional","GA","GA",6,51,5877376]
["SO","JAN","AL","Bay Minette","Bay Minette Municipal","1R8","AL","Bay Minette Municipal","01-0012","PU",null,"Local","GA","GA",0,30,3401502]
["SO","JAN","AL","Bessemer","Bessemer","EKY","AL","Bessemer","01-0013","PU",null,"Regional","R","R",8,99,1507571]
["SO","JAN","AL","Birmingham","Birmingham-Shuttlesworth International","BHM","AL","Birmingham-Shuttlesworth International","01-0014","PU","S",null,"P","P",1443215,233,80369193]
["SO","JAN","AL","Brewton","Brewton Municipal","12J","AL","Brewton Municipal","01-0080","PU",null,"Local","GA","GA",0,22,957895]
["SO","JAN","AL","Butler","Butler-Choctaw County","09A","AL","Butler-Choctaw County","01-0015","PU",null,"Other","GA","GA",0,0,1950000]
["SO","JAN","AL","Camden","Camden Municipal","61A","AL","Camden Municipal","01-0106","PU",null,"Basic","GA","GA",0,6,944211]
["SO","JAN","AL","Centre","Centre Municipal","C22","AL","Centre Municipal","01-0017","PU",null,"Other","GA","GA",0,8,0]
["SO","JAN","AL","Centre","Centre-Piedmont-Cherokee County Regional","PYP","AL","Centre-Piedmont-Cherokee County Regional","01-0101","PU",null,"Basic","GA","GA",0,0,3749807]
["SO","JAN","AL","Centreville","Bibb County","0A8","AL","Bibb County","01-0018","PU",null,"Basic","GA","GA",0,14,2275000]
["SO","JAN","AL","Clanton","Chilton County","02A","AL","Chilton County","01-0020","PU",null,"Local","GA","GA",0,23,2495786]
["SO","JAN","AL","Clayton","Clayton Municipal","11A","AL","Clayton Municipal","01-0111","PU",null,"Other","GA","GA",0,1,2109223]
["SO","JAN","AL","Courtland","Courtland","9A4","AL","Courtland","01-0108","PU",null,"Local","GA","GA",0,32,3686316]
["SO","JAN","AL","Cullman","Folsom Field","3A1","AL","Folsom Field","01-0022","PU",null,"Local","GA","GA",35,57,1539414]
["SO","JAN","AL","Dauphin Island","Dauphin Island","4R9","AL","Dauphin Island","01-0023","PU",null,"Basic","GA","GA",0,0,1659946]
["SO","JAN","AL","Decatur","Pryor Field Regional","DCU","AL","Pryor Field Regional","01-0024","PU",null,"Regional","GA","GA",0,146,621233]
["SO","JAN","AL","Demopolis","Demopolis Municipal","DYA","AL","Demopolis Municipal","01-0025","PU",null,"Local","GA","GA",7,18,2528014]
["SO","JAN","AL","Dothan","Dothan Regional","DHN","AL","Dothan Regional","01-0026","PU","N",null,"P","P",41453,91,5058758]
["SO","JAN","AL","Elba","Carl Folsom","14J","AL","Carl Folsom","01-0083","PU",null,"Local","GA","GA",0,22,1699932]
["SO","JAN","AL","Enterprise","Enterprise Municipal","EDN","AL","Enterprise Municipal","01-0027","PU",null,"Local","GA","GA",0,60,8502319]
["SO","JAN","AL","Eufaula","Weedon Field","EUF","AL","Weedon Field","01-0028","PU",null,"Regional","GA","GA",0,15,1255790]
["SO","JAN","AL","Evergreen","Middleton Field","GZH","AL","Middleton Field","01-0092","PU",null,"Other","GA","GA",0,4,2460318]
["SO","JAN","AL","Fairhope","H. L. (Sonny) Callahan","CQF","AL","H. L. (Sonny) Callahan","01-0029","PU",null,"Regional","GA","GA",0,37,9378954]
["SO","JAN","AL","Fayette","Richard Arthur Field","M95","AL","Richard Arthur Field","01-0030","PU",null,"Basic","GA","GA",0,11,1289474]
["SO","JAN","AL","Florala","Florala Municipal","0J4","AL","Florala Municipal","01-0094","PU",null,"Basic","GA","GA",0,11,976591]
["SO","JAN","AL","Foley","Foley Municipal","5R4","AL","Foley Municipal","01-0031","PU",null,"Local","GA","GA",0,28,3267496]
["SO","JAN","AL","Fort Payne","Isbell Field","4A9","AL","Isbell Field","01-0032","PU",null,"Local","GA","GA",2,31,2689503]
["SO","JAN","AL","Gadsden","Northeast Alabama Regional","GAD","AL","Northeast Alabama Regional","01-0033","PU",null,"Regional","GA","GA",1,93,5321282]
["SO","JAN","AL","Geneva","Geneva Municipal","33J","AL","Geneva Municipal","01-0034","PU",null,"Local","GA","GA",0,21,1380986]
["SO","JAN","AL","Greensboro","Greensboro Municipal","7A0","AL","Greensboro Municipal","01-0035","PU",null,"Other","GA","GA",0,9,1269918]
["SO","JAN","AL","Greenville","MacCrenshaw Memorial","PRN","AL","MacCrenshaw Memorial","01-0036","PU",null,"Basic","GA","GA",2,7,2173550]
["SO","JAN","AL","Grove Hill","Grove Hill Municipal","3A0","AL","Grove Hill Municipal","01-0107","PU",null,"Other","GA","GA",0,6,0]
["SO","JAN","AL","Gulf Shores","Jack Edwards","JKA","AL","Jack Edwards","01-0090","PU",null,"Regional","GA","GA",333,67,6160493]
["SO","JAN","AL","Guntersville","Guntersville Municipal - Joe Starnes Field","8A1","AL","Guntersville Municipal - Joe Starnes Field","01-0038","PU",null,"Local","GA","GA",0,39,9715942]
["SO","JAN","AL","Haleyville","Posey Field","1M4","AL","Posey Field","01-0039","PU",null,"Basic","GA","GA",0,14,1000000]
["SO","JAN","AL","Hamilton","Marion County-Rankin Fite","HAB","AL","Marion County-Rankin Fite","01-0040","PU",null,"Basic","GA","GA",0,14,826316]
["SO","JAN","AL","Hartselle","Hartselle-Morgan County Regional","5M0","AL","Hartselle-Morgan County Regional","01-0041","PU",null,"Local","GA","GA",0,30,848105]
["SO","JAN","AL","Headland","Headland Municipal","0J6","AL","Headland Municipal","01-0093","PU",null,"Local","GA","GA",0,48,2714684]
["SO","JAN","AL","Huntsville","Huntsville International-Carl T Jones Field","HSV","AL","Huntsville International-Carl T Jones Field","01-0042","PU","S",null,"P","P",606127,88,55188913]
["SO","JAN","AL","Huntsville","Madison County Executive/Tom Sharp Jr Field","MDQ","AL","Madison County Executive/Tom Sharp Jr Field","01-0087","PU",null,"Regional","GA","GA",0,102,1402165]
["SO","JAN","AL","Jackson","Jackson Municipal","4R3","AL","Jackson Municipal","01-0043","PU",null,"Other","GA","GA",0,4,1708404]
["SO","JAN","AL","Jasper","Walker County-Bevill Field","JFX","AL","Walker County-Bevill Field","01-0096","PU",null,"Regional","GA","GA",0,51,1020535]
["SO","JAN","AL","Lanett","Lanett Municipal","7A3","AL","Lanett Municipal","01-0046","PU",null,"Basic","GA","GA",0,12,6810171]
["SO","JAN","AL","Marion","Vaiden Field","A08","AL","Vaiden Field","01-0104","PU",null,"Other","GA","GA",0,6,1845709]
["SO","JAN","AL","Mobile","Mobile Downtown","BFM","AL","Mobile Downtown","01-0050","PU",null,"Regional","GA","GA",13,34,29393157]
["SO","JAN","AL","Mobile","Mobile Regional","MOB","AL","Mobile Regional","01-0051","PU","N",null,"P","P",277232,69,21617217]
["SO","JAN","AL","Monroeville","Monroe County","MVC","AL","Monroe County","01-0052","PU",null,"Local","GA","GA",0,16,1669392]
["SO","JAN","AL","Montgomery","Montgomery Regional (Dannelly Field)","MGM","AL","Montgomery Regional (Dannelly Field)","01-0053","PU","N",null,"P","P",194540,79,5221673]
["SO","JAN","AL","Muscle Shoals","Northwest Alabama Regional","MSL","AL","Northwest Alabama Regional","01-0054","PU",null,"Regional","CS","CS",8680,58,10678705]
["SO","JAN","AL","Oneonta","Robbins Field","20A","AL","Robbins Field","01-0055","PU",null,"Local","GA","GA",0,17,1946846]
["SO","JAN","AL","Ozark","Blackwell Field","71J","AL","Blackwell Field","01-0056","PU",null,"Local","GA","GA",0,30,2586868]
["SO","JAN","AL","Pell City","St Clair County","PLR","AL","St Clair County","01-0057","PU",null,"Local","R","R",0,79,5110989]
["SO","JAN","AL","Prattville","Prattville - Grouby Field","1A9","AL","Prattville - Grouby Field","01-0060","PU",null,"Local","GA","GA",0,38,900000]
["SO","JAN","AL","Reform","North Pickens","3M8","AL","North Pickens","01-0110","PU",null,"Basic","GA","GA",0,11,847567]
["SO","JAN","AL","Roanoke","Roanoke Municipal","7A5","AL","Roanoke Municipal","01-0062","PU",null,"Local","GA","GA",0,15,1837713]
["SO","JAN","AL","Russellville","Bill Pugh Field","M22","AL","Bill Pugh Field","01-0063","PU",null,"Basic","GA","GA",0,14,1043542]
["SO","JAN","AL","Scottsboro","Scottsboro Municipal-Word Field","4A6","AL","Scottsboro Municipal-Word Field","01-0109","PU",null,"Local","GA","GA",0,34,1260264]
["SO","JAN","AL","Selma","Craig Field","SEM","AL","Craig Field","01-0100","PU",null,"Other","GA","GA",2,8,1167748]
["SO","JAN","AL","St. Elmo","St Elmo","2R5","AL","St Elmo","01-0066","PU",null,"Local","GA","GA",0,26,3357053]
["SO","JAN","AL","Sylacauga","Merkel Field Sylacauga Municipal","SCD","AL","Merkel Field Sylacauga Municipal","01-0068","PU",null,"Local","GA","GA",6,59,1398107]
["SO","JAN","AL","Talladega","Talladega Municipal","ASN","AL","Talladega Municipal","01-0069","PU",null,"Regional","GA","GA",5,43,3228478]
["SO","JAN","AL","Troy","Troy Municipal","TOI","AL","Troy Municipal","01-0071","PU",null,"Regional","GA","GA",36,39,1945000]
["SO","JAN","AL","Tuscaloosa","Tuscaloosa Regional","TCL","AL","Tuscaloosa Regional","01-0072","PU",null,"Regional","GA","GA",2931,74,2519946]
["SO","JAN","AL","Tuskegee","Moton Field Municipal","06A","AL","Moton Field Municipal","01-0078","PU",null,"Other","GA","GA",0,9,1120526]
["SO","JAN","AL","Union Springs","Franklin Field","07A","AL","Franklin Field","01-0114","PU",null,"Basic","GA","GA",0,11,4682895]
["SO","JAN","AL","Wetumpka","Wetumpka Municipal","08A","AL","Wetumpka Municipal","01-0076","PU",null,"Local","GA","GA",0,87,2827214]
["SO","JAN","MS","Aberdeen/Amory","Monroe County","M40","MS","Monroe County","28-0001","PU",null,"Local","GA","GA",0,16,1363454]
["SO","JAN","MS","Ackerman","Ackerman Choctaw County","9M4","MS","Ackerman Choctaw County","28-0002","PU",null,"Other","GA","GA",0,2,1051076]
["SO","JAN","MS","Batesville","Panola County","PMU","MS","Panola County","28-0003","PU",null,"Local","GA","GA",0,16,1273684]
["SO","JAN","MS","Bay Springs","Thigpen Field","00M","MS","Thigpen Field","28-0004","PU",null,"Other","GA","GA",0,1,3159688]
["SO","JAN","MS","Bay St. Louis","Stennis International","HSA","MS","Stennis International","28-0005","PU",null,"Regional","GA","GA",118,38,10702988]
["SO","JAN","MS","Belmont","Tishomingo County","01M","MS","Tishomingo County","28-0006","PU",null,"Basic","GA","GA",0,10,937665]
["SO","JAN","MS","Belzoni","Belzoni Municipal","1M2","MS","Belzoni Municipal","28-0007","PU",null,"Other","GA","GA",0,4,2648174]
["SO","JAN","MS","Booneville/Baldwyn","Booneville/Baldwyn","8M1","MS","Booneville/Baldwyn","28-0008","PU",null,"Other","GA","GA",0,9,1105323]
["SO","JAN","MS","Brookhaven","Brookhaven-Lincoln County","1R7","MS","Brookhaven-Lincoln County","28-0009","PU",null,"Local","GA","GA",0,28,1268159]
["SO","JAN","MS","Carthage","Carthage-Leake County","08M","MS","Carthage-Leake County","28-0012","PU",null,"Basic","GA","GA",0,11,1758229]
["SO","JAN","MS","Charleston","Charleston Municipal","09M","MS","Charleston Municipal","28-0013","PU",null,"Other","GA","GA",0,2,0]
["SO","JAN","MS","Clarksdale","Fletcher Field","CKM","MS","Fletcher Field","28-0014","PU",null,"Basic","GA","GA",0,13,13177442]
["SO","JAN","MS","Cleveland","Cleveland Municipal","RNV","MS","Cleveland Municipal","28-0015","PU",null,"Local","GA","GA",0,49,1781578]
["SO","JAN","MS","Columbia","Columbia-Marion County","0R0","MS","Columbia-Marion County","28-0018","PU",null,"Local","GA","GA",0,31,1979738]
["SO","JAN","MS","Columbus","Columbus-Lowndes County","UBS","MS","Columbus-Lowndes County","28-0019","PU",null,"Local","GA","GA",0,22,1285684]
["SO","JAN","MS","Columbus/W Point/Starkville","Golden Triangle Regional","GTR","MS","Golden Triangle Regional","28-0020","PU","N",null,"P","P",36329,31,14716505]
["SO","JAN","MS","Corinth","Roscoe Turner","CRX","MS","Roscoe Turner","28-0021","PU",null,"Basic","GA","GA",0,14,3268289]
["SO","JAN","MS","Crosby","Crosby Municipal","C71","MS","Crosby Municipal","28-0103","PU",null,"Other","GA","GA",0,0,1113158]
["SO","JAN","MS","Crystal Springs","Copiah County","M11","MS","Copiah County","28-0023","PU",null,"Local","GA","GA",0,18,2305032]
["SO","JAN","MS","Drew","Ruleville-Drew","M37","MS","Ruleville-Drew","28-0024","PU",null,"Other","GA","GA",0,6,1209633]
["SO","JAN","MS","Eupora","Eupora","06M","MS","Eupora","28-0025","PU",null,"Other","GA","GA",0,0,560484]
["SO","JAN","MS","Forest","G. V. Montgomery","2M4","MS","G. V. Montgomery","28-0026","PU",null,"Other","GA","GA",0,2,1927889]
["SO","JAN","MS","Greenville","Mid Delta Regional","GLH","MS","Mid Delta Regional","28-0027","PU",null,"Regional","CS","CS",6609,17,4986660]
["SO","JAN","MS","Greenwood","Greenwood-Leflore","GWO","MS","Greenwood-Leflore","28-0028","PU",null,"Regional","GA","GA",7,59,2616707]
["SO","JAN","MS","Grenada","Grenada Municipal","GNF","MS","Grenada Municipal","28-0029","PU",null,"Basic","GA","GA",0,13,1066074]
["SO","JAN","MS","Gulfport","Gulfport-Biloxi International","GPT","MS","Gulfport-Biloxi International","28-0030","PU","S",null,"P","P",461072,31,97228383]
["SO","JAN","MS","Hattiesburg","Hattiesburg Bobby L Chain Municipal","HBG","MS","Hattiesburg Bobby L Chain Municipal","28-0031","PU",null,"Local","GA","GA",1,52,3921264]
["SO","JAN","MS","Hattiesburg/Laurel","Hattiesburg-Laurel Regional","PIB","MS","Hattiesburg-Laurel Regional","28-0041","PU","N",null,"P","P",13766,56,7651453]
["SO","JAN","MS","Hollandale","Hollandale Municipal","14M","MS","Hollandale Municipal","28-0032","PU",null,"Other","GA","GA",0,1,1601053]
["SO","JAN","MS","Holly Springs","Holly Springs-Marshall County","M41","MS","Holly Springs-Marshall County","28-0033","PU",null,"Basic","GA","GA",0,8,5742233]
["SO","JAN","MS","Houston","Houston Municipal","M44","MS","Houston Municipal","28-0034","PU",null,"Basic","GA","GA",0,9,1283707]
["SO","JAN","MS","Indianola","Indianola Municipal","IDL","MS","Indianola Municipal","28-0035","PU",null,"Local","GA","GA",0,24,1157894]
["SO","JAN","MS","Iuka","Iuka","15M","MS","Iuka","28-0036","PU",null,"Basic","GA","GA",0,10,3416943]
["SO","JAN","MS","Jackson","Hawkins Field","HKS","MS","Hawkins Field","28-0038","PU",null,"Regional","GA","GA",15,92,9436842]
["SO","JAN","MS","Jackson","Jackson-Evers International","JAN","MS","Jackson-Evers International","28-0037","PU","S",null,"P","P",618373,28,46306759]
["SO","JAN","MS","Kosciusko","Kosciusko-Attala County","OSX","MS","Kosciusko-Attala County","28-0039","PU",null,"Basic","GA","GA",0,10,895673]
["SO","JAN","MS","Laurel","Hesler-Noble Field","LUL","MS","Hesler-Noble Field","28-0040","PU",null,"Regional","GA","GA",1,45,3699737]
["SO","JAN","MS","Lexington","C. A. Moore","19M","MS","C. A. Moore","28-0042","PU",null,"Other","GA","GA",0,3,1900004]
["SO","JAN","MS","Louisville","Louisville Winston County","LMS","MS","Louisville Winston County","28-0043","PU",null,"Other","GA","GA",0,5,2738073]
["SO","JAN","MS","Lumberton","I H Bass Jr Memorial","4R1","MS","I H Bass Jr Memorial","28-0044","PU",null,"Other","GA","GA",0,0,1594736]
["SO","JAN","MS","Macon","Macon Municipal","20M","MS","Macon Municipal","28-0045","PU",null,"Basic","GA","GA",0,10,1545048]
["SO","JAN","MS","Madison","Bruce Campbell Field","MBO","MS","Bruce Campbell Field","28-0046","PU",null,"Local","GA","GA",3,66,7994737]
["SO","JAN","MS","Magee","Magee Municipal","17M","MS","Magee Municipal","28-0047","PU",null,"Basic","GA","GA",0,9,1215000]
["SO","JAN","MS","McComb","McComb/Pike County/John E Lewis Field","MCB","MS","McComb/Pike County/John E Lewis Field","28-0049","PU",null,"Basic","GA","GA",17,10,7658237]
["SO","JAN","MS","Meridian","Key Field","MEI","MS","Key Field","28-0050","PU","N",null,"P","P",16871,58,4329825]
["SO","JAN","MS","Natchez","Hardy-Anders Field Natchez-Adams County","HEZ","MS","Hardy-Anders Field Natchez-Adams County","28-0052","PU",null,"Regional","GA","GA",0,25,1896842]
["SO","JAN","MS","New Albany","New Albany-Union County","M72","MS","New Albany-Union County","28-0053","PU",null,"Local","GA","GA",0,16,1333863]
["SO","JAN","MS","Newton","James H Easom Field","M23","MS","James H Easom Field","28-0054","PU",null,"Other","GA","GA",0,4,2653151]
["SO","JAN","MS","Okolona","Okolona Municipal-Richard Stovall Field","5A4","MS","Okolona Municipal-Richard Stovall Field","28-0093","PU",null,"Other","GA","GA",0,9,869627]
["SO","JAN","MS","Olive Branch","Olive Branch","OLV","MS","Olive Branch","28-0056","PR",null,"Regional","R","R",8,138,26879558]
["SO","JAN","MS","Oxford","University-Oxford","UOX","MS","University-Oxford","28-0057","PU",null,"Regional","GA","GA",8,38,15478916]
["SO","JAN","MS","Pascagoula","Trent Lott International","PQL","MS","Trent Lott International","28-0101","PU",null,"Regional","GA","GA",1,21,9826685]
["SO","JAN","MS","Philadelphia","Philadelphia Municipal","MPE","MS","Philadelphia Municipal","28-0059","PU",null,"Other","GA","GA",0,9,3120261]
["SO","JAN","MS","Picayune","Picayune Municipal","MJD","MS","Picayune Municipal","28-0060","PU",null,"Local","GA","GA",0,62,4775779]
["SO","JAN","MS","Pittsboro","Calhoun County","04M","MS","Calhoun County","28-0010","PU",null,"Other","GA","GA",0,3,1669387]
["SO","JAN","MS","Pontotoc","Pontotoc County","22M","MS","Pontotoc County","28-0061","PU",null,"Local","GA","GA",0,18,969649]
["SO","JAN","MS","Poplarville","Poplarville-Pearl River County","M13","MS","Poplarville-Pearl River County","28-0096","PU",null,"Other","GA","GA",0,5,1478793]
["SO","JAN","MS","Prentiss","Prentiss-Jefferson Davis County","M43","MS","Prentiss-Jefferson Davis County","28-0062","PU",null,"Other","GA","GA",0,3,1404493]
["SO","JAN","MS","Quitman","Clarke County","23M","MS","Clarke County","28-0063","PU",null,"Other","GA","GA",0,5,1565316]
["SO","JAN","MS","Raymond","John Bell Williams","JVW","MS","John Bell Williams","28-0064","PU",null,"Local","GA","GA",0,88,8462527]
["SO","JAN","MS","Richton","Richton-Perry County","M59","MS","Richton-Perry County","28-0065","PU",null,"Other","GA","GA",0,0,1700000]
["SO","JAN","MS","Ripley","Ripley","25M","MS","Ripley","28-0066","PU",null,"Other","GA","GA",0,4,1374854]
["SO","JAN","MS","Starkville","George M Bryan","STF","MS","George M Bryan","28-0068","PU",null,"Regional","GA","GA",0,34,3741456]
["SO","JAN","MS","Tunica","Tunica Municipal","UTA","MS","Tunica Municipal","28-0069","PU","N",null,"P","P",65907,7,15927769]
["SO","JAN","MS","Tupelo","Tupelo Regional","TUP","MS","Tupelo Regional","28-0070","PU","N",null,"P","P",12749,34,21467713]
["SO","JAN","MS","Tylertown","Paul Pittman Memorial","T36","MS","Paul Pittman Memorial","28-0071","PU",null,"Local","GA","GA",0,16,1903224]
["SO","JAN","MS","Vicksburg","Vicksburg Municipal","VKS","MS","Vicksburg Municipal","28-0073","PU",null,"Other","GA","GA",0,15,1977534]
["SO","JAN","MS","Water Valley","Water Valley Municipal","33M","MS","Water Valley Municipal","28-0075","PU",null,"Other","GA","GA",0,0,818513]
["SO","JAN","MS","Waynesboro","Waynesboro Municipal","2R0","MS","Waynesboro Municipal","28-0076","PU",null,"Basic","GA","GA",0,10,4411415]
["SO","JAN","MS","West Point","McCharen Field","M83","MS","McCharen Field","28-0077","PU",null,"Basic","GA","GA",0,14,1381672]
["SO","JAN","MS","Wiggins","Dean Griffin Memorial","M24","MS","Dean Griffin Memorial","28-0078","PU",null,"Basic","GA","GA",0,11,4310828]
["SO","JAN","MS","Winona","Winona-Montgomery County","5A6","MS","Winona-Montgomery County","28-0079","PU",null,"Other","GA","GA",0,6,2421776]
["SO","JAN","MS","Yazoo City","Yazoo County","87I","MS","Yazoo County","28-0102","PU",null,"Basic","GA","GA",14,10,2842107]
["SO","MEM","KY","Ashland","Ashland Regional","DWU","KY","Ashland Regional","21-0003","PU",null,"Regional","GA","GA",0,41,3495019]
["SO","MEM","KY","Bardstown","Samuels Field","BRY","KY","Samuels Field","21-0004","PU",null,"Local","GA","GA",0,22,1946750]
["SO","MEM","KY","Bowling Green","Bowling Green-Warren County Regional","BWG","KY","Bowling Green-Warren County Regional","21-0006","PU",null,"Regional","GA","GA",409,58,963159]
["SO","MEM","KY","Cadiz","Lake Barkley State Park","1M9","KY","Lake Barkley State Park","21-0086","PU",null,"Other","GA","GA",0,0,3996553]
["SO","MEM","KY","Campbellsville","Taylor County","AAS","KY","Taylor County","21-0008","PU",null,"Basic","GA","GA",1,12,3300526]
["SO","MEM","KY","Covington","Cincinnati/Northern Kentucky International","CVG","KY","Cincinnati/Northern Kentucky International","21-0010","PU","M",null,"P","P",3906826,11,83019209]
["SO","MEM","KY","Cynthiana","Cynthiana-Harrison County","0I8","KY","Cynthiana-Harrison County","21-0011","PU",null,"Local","GA","GA",0,17,345290]
["SO","MEM","KY","Danville","Stuart Powell Field","DVK","KY","Stuart Powell Field","21-0012","PU",null,"Local","GA","GA",20,36,631580]
["SO","MEM","KY","Elizabethtown","Addington Field","EKX","KY","Addington Field","21-0074","PU",null,"Local","GA","GA",4,51,3398027]
["SO","MEM","KY","Falls of Rough","Rough River State Park","2I3","KY","Rough River State Park","21-0090","PU",null,"Other","GA","GA",0,0,2290197]
["SO","MEM","KY","Falmouth","Gene Snyder","K62","KY","Gene Snyder","21-0064","PU",null,"Local","GA","GA",0,22,1433994]
["SO","MEM","KY","Flemingsburg","Fleming-Mason","FGX","KY","Fleming-Mason","21-0015","PU",null,"Local","GA","GA",3,18,2979211]
["SO","MEM","KY","Frankfort","Capital City","FFT","KY","Capital City","21-0016","PU",null,"Local","GA","GA",15,64,2423684]
["SO","MEM","KY","Fulton","Fulton","1M7","KY","Fulton","21-0062","PU",null,"Basic","GA","GA",0,10,2304368]
["SO","MEM","KY","Georgetown","Georgetown Scott County - Marshall Field","27K","KY","Georgetown Scott County - Marshall Field","21-0017","PU",null,"Regional","GA","GA",7,76,981545]
["SO","MEM","KY","Gilbertsville","Kentucky Dam State Park","M34","KY","Kentucky Dam State Park","21-0018","PU",null,"Other","GA","GA",3,3,2369125]
["SO","MEM","KY","Glasgow","Glasgow Municipal","GLW","KY","Glasgow Municipal","21-0019","PU",null,"Local","GA","GA",0,23,1694434]
["SO","MEM","KY","Greenville","Muhlenberg County","M21","KY","Muhlenberg County","21-0020","PU",null,"Local","GA","GA",0,17,2986740]
["SO","MEM","KY","Hardinsburg","Breckinridge County","I93","KY","Breckinridge County","21-0021","PU",null,"Other","GA","GA",0,8,5365263]
["SO","MEM","KY","Harlan","Tucker-Guthrie Memorial","I35","KY","Tucker-Guthrie Memorial","21-0022","PU",null,"Basic","GA","GA",0,12,5618421]
["SO","MEM","KY","Hartford","Ohio County","7K4","KY","Ohio County","21-0063","PU",null,"Other","GA","GA",0,2,3373822]
["SO","MEM","KY","Hazard","Wendell H Ford","K20","KY","Wendell H Ford","21-0024","PU",null,"Local","GA","GA",4,25,2443138]
["SO","MEM","KY","Henderson","Henderson City-County","EHR","KY","Henderson City-County","21-0025","PU",null,"Regional","GA","GA",0,40,3591100]
["SO","MEM","KY","Hopkinsville","Hopkinsville-Christian County","HVC","KY","Hopkinsville-Christian County","21-0026","PU",null,"Local","GA","GA",29,50,929353]
["SO","MEM","KY","Jackson","Julian Carroll","JKL","KY","Julian Carroll","21-0075","PU",null,"Other","GA","GA",0,4,1301579]
["SO","MEM","KY","Jamestown","Russell County","K24","KY","Russell County","21-0079","PU",null,"Basic","GA","GA",3,10,1993158]
["SO","MEM","KY","Leitchfield","Grayson County","M20","KY","Grayson County","21-0084","PU",null,"Other","GA","GA",0,9,1363158]
["SO","MEM","KY","Lewisport","Hancock Co-Ron Lewis Field","KY8","KY","Hancock Co-Ron Lewis Field","21-0023","PU",null,"Basic","GA","GA",0,0,4492503]
["SO","MEM","KY","Lexington","Blue Grass","LEX","KY","Blue Grass","21-0028","PU","S",null,"P","P",539492,143,15942088]
["SO","MEM","KY","London","London-Corbin Airport-Magee Field","LOZ","KY","London-Corbin Airport-Magee Field","21-0029","PU",null,"Local","GA","GA",0,75,3160526]
["SO","MEM","KY","Louisville","Bowman Field","LOU","KY","Bowman Field","21-0032","PU",null,"Regional","R","R",16,221,4897828]
["SO","MEM","KY","Louisville","Louisville International-Standiford Field","SDF","KY","Louisville International-Standiford Field","21-0031","PU","S",null,"P","P",1651037,30,47432609]
["SO","MEM","KY","Madisonville","Madisonville Municipal","2I0","KY","Madisonville Municipal","21-0033","PU",null,"Regional","GA","GA",0,15,1075790]
["SO","MEM","KY","Marion","Marion-Crittenden County","5M9","KY","Marion-Crittenden County","21-0071","PU",null,"Other","GA","GA",0,4,2747631]
["SO","MEM","KY","Mayfield","Mayfield Graves County","M25","KY","Mayfield Graves County","21-0034","PU",null,"Local","GA","GA",0,15,3500263]
["SO","MEM","KY","Middlesboro","Middlesboro-Bell County","1A6","KY","Middlesboro-Bell County","21-0035","PU",null,"Local","GA","GA",0,46,1768594]
["SO","MEM","KY","Monticello","Wayne County","EKQ","KY","Wayne County","21-0036","PU",null,"Local","GA","GA",2,16,4153553]
["SO","MEM","KY","Morehead","Morehead-Rowan County Clyde A. Thomas Regional","M97","KY","Morehead-Rowan County Clyde A. Thomas Regional","21-0087","PU",null,"Basic","GA","GA",0,7,814945]
["SO","MEM","KY","Mount Sterling","Mount Sterling-Montgomery County","IOB","KY","Mount Sterling-Montgomery County","21-0038","PU",null,"Regional","GA","GA",0,70,1389176]
["SO","MEM","KY","Murray","Kyle-Oakley Field","CEY","KY","Kyle-Oakley Field","21-0040","PU",null,"Local","GA","GA",16,32,1438213]
["SO","MEM","KY","Owensboro","Owensboro-Daviess County","OWB","KY","Owensboro-Daviess County","21-0042","PU","N",null,"P","P",16193,46,6713249]
["SO","MEM","KY","Paducah","Barkley Regional","PAH","KY","Barkley Regional","21-0043","PU","N",null,"P","P",19903,41,25027086]
["SO","MEM","KY","Pikeville","Pike County-Hatcher Field","PBX","KY","Pike County-Hatcher Field","21-0044","PU",null,"Local","GA","GA",12,23,2950000]
["SO","MEM","KY","Pine Knot","McCreary County","18I","KY","McCreary County","21-0081","PU",null,"Other","GA","GA",0,1,1513972]
["SO","MEM","KY","Prestonsburg","Big Sandy Regional","K22","KY","Big Sandy Regional","21-0072","PU",null,"Local","GA","GA",5,17,750725]
["SO","MEM","KY","Princeton","Princeton-Caldwell County","2M0","KY","Princeton-Caldwell County","21-0046","PU",null,"Basic","GA","GA",0,10,897368]
["SO","MEM","KY","Richmond","Madison","I39","KY","Madison","21-0066","PU",null,"Local","GA","GA",0,21,2347549]
["SO","MEM","KY","Russellville","Russellville-Logan County","4M7","KY","Russellville-Logan County","21-0047","PU",null,"Basic","GA","GA",0,11,3866197]
["SO","MEM","KY","Somerset","Lake Cumberland Regional","SME","KY","Lake Cumberland Regional","21-0048","PU",null,"Local","GA","GA",11,20,1557039]
["SO","MEM","KY","Sparta","New","071","KY","New","21-0009","PU",null,null,null,"GA",0,0,14210526]
["SO","MEM","KY","Springfield","Lebanon-Springfield","6I2","KY","Lebanon-Springfield","21-0049","PU",null,"Local","GA","GA",0,19,609838]
["SO","MEM","KY","Stanton","Stanton","I50","KY","Stanton","21-0050","PU",null,"Basic","GA","GA",0,12,3486621]
["SO","MEM","KY","Sturgis","Sturgis Municipal","TWT","KY","Sturgis Municipal","21-0051","PU",null,"Basic","GA","GA",0,13,1740895]
["SO","MEM","KY","Tompkinsville","Tompkinsville-Monroe County","TZV","KY","Tompkinsville-Monroe County","21-0061","PU",null,"Other","GA","GA",0,6,1250789]
["SO","MEM","KY","West Liberty","West Liberty","9I3","KY","West Liberty","21-0053","PU",null,"Other","GA","GA",0,7,2168931]
["SO","MEM","KY","Williamsburg","Williamsburg-Whitley County","W38","KY","Williamsburg-Whitley County","21-0077","PU",null,"Basic","GA","GA",0,5,5275000]
["SO","MEM","TN","Athens","McMinn County","MMI","TN","McMinn County","47-0002","PU",null,"Local","GA","GA",0,30,2600000]
["SO","MEM","TN","Bolivar","William L. Whitehurst Field","M08","TN","William L. Whitehurst Field","47-0003","PU",null,"Basic","GA","GA",0,8,1975000]
["SO","MEM","TN","Bristol/Johnson/Kingsport","Tri-Cities Regional TN/VA","TRI","TN","Tri-Cities Regional TN/VA","47-0004","PU","N",null,"P","P",202114,64,24807847]
["SO","MEM","TN","Camden","Benton County","0M4","TN","Benton County","47-0005","PU",null,"Local","GA","GA",0,22,2265789]
["SO","MEM","TN","Centerville","Centerville Municipal","GHM","TN","Centerville Municipal","47-0007","PU",null,"Other","GA","GA",0,4,1541000]
["SO","MEM","TN","Chattanooga","Lovell Field","CHA","TN","Lovell Field","47-0009","PU","N",null,"P","P",292830,96,28092703]
["SO","MEM","TN","Clarksville","Outlaw Field","CKV","TN","Outlaw Field","47-0010","PU",null,"Regional","GA","GA",9,40,2265000]
["SO","MEM","TN","Cleveland","New","09D","TN","New","47-0115","PU",null,null,null,"GA",0,0,11342105]
["SO","MEM","TN","Cleveland","Hardwick Field","HDI","TN","Hardwick Field","47-0011","PU",null,"Local","GA","GA",0,31,0]
["SO","MEM","TN","Clifton","Hassell Field","M29","TN","Hassell Field","47-0012","PU",null,"Other","GA","GA",0,1,3750000]
["SO","MEM","TN","Columbia/Mount Pleasant","Maury County","MRC","TN","Maury County","47-0013","PU",null,"Local","GA","GA",0,25,3275000]
["SO","MEM","TN","Copperhill","Martin Campbell Field","1A3","TN","Martin Campbell Field","47-0015","PU",null,"Other","GA","GA",0,7,2650000]
["SO","MEM","TN","Covington","Covington Municipal","M04","TN","Covington Municipal","47-0016","PU",null,"Local","GA","GA",6,40,1650000]
["SO","MEM","TN","Crossville","Crossville Memorial-Whitson Field","CSV","TN","Crossville Memorial-Whitson Field","47-0017","PU",null,"Local","GA","GA",3,39,3133333]
["SO","MEM","TN","Dayton","Mark Anton","2A0","TN","Mark Anton","47-0018","PU",null,"Local","GA","GA",0,22,5089768]
["SO","MEM","TN","Dickson","Dickson Municipal","M02","TN","Dickson Municipal","47-0019","PU",null,"Local","GA","GA",0,38,2100000]
["SO","MEM","TN","Dyersburg","Dyersburg Regional","DYR","TN","Dyersburg Regional","47-0021","PU",null,"Local","GA","GA",2,20,2600000]
["SO","MEM","TN","Elizabethton","Elizabethton Municipal","0A9","TN","Elizabethton Municipal","47-0022","PU",null,"Regional","GA","GA",9,48,3300000]
["SO","MEM","TN","Fayetteville","Fayetteville Municipal","FYM","TN","Fayetteville Municipal","47-0023","PU",null,"Local","GA","GA",0,25,1573684]
["SO","MEM","TN","Gainesboro","Jackson County","1A7","TN","Jackson County","47-0025","PU",null,"Other","GA","GA",0,5,810526]
["SO","MEM","TN","Gallatin","Sumner County Regional","M33","TN","Sumner County Regional","47-0026","PU",null,"Regional","GA","GA",0,63,12891369]
["SO","MEM","TN","Greeneville","Greeneville-Greene County Municipal","GCY","TN","Greeneville-Greene County Municipal","47-0027","PU",null,"Local","GA","GA",0,63,1556316]
["SO","MEM","TN","Humboldt","Humboldt Municipal","M53","TN","Humboldt Municipal","47-0030","PU",null,"Local","GA","GA",2,19,3300000]
["SO","MEM","TN","Huntingdon","Carroll County","HZD","TN","Carroll County","47-0086","PU",null,"Local","GA","GA",11,21,2100000]
["SO","MEM","TN","Jacksboro","Campbell County","JAU","TN","Campbell County","47-0031","PU",null,"Basic","GA","GA",3,10,2350000]
["SO","MEM","TN","Jackson","McKellar-Sipes Regional","MKL","TN","McKellar-Sipes Regional","47-0032","PU",null,"Regional","CS","CS",2545,40,1850000]
["SO","MEM","TN","Jamestown","Jamestown Municipal","2A1","TN","Jamestown Municipal","47-0033","PU",null,"Basic","GA","GA",0,14,3110526]
["SO","MEM","TN","Jasper","Marion County-Brown Field","APT","TN","Marion County-Brown Field","47-0034","PU",null,"Basic","GA","GA",0,12,2330000]
["SO","MEM","TN","Knoxville","Knoxville Downtown Island","DKX","TN","Knoxville Downtown Island","47-0036","PU",null,"Regional","R","R",1,101,2016194]
["SO","MEM","TN","Knoxville","McGhee Tyson","TYS","TN","McGhee Tyson","47-0037","PU","S",null,"P","P",804917,138,52130428]
["SO","MEM","TN","Lafayette","Lafayette Municipal","3M7","TN","Lafayette Municipal","47-0038","PU",null,"Other","GA","GA",0,4,3795000]
["SO","MEM","TN","Lawrenceburg","Lawrenceburg-Lawrence County","2M2","TN","Lawrenceburg-Lawrence County","47-0039","PU",null,"Local","GA","GA",0,17,6768421]
["SO","MEM","TN","Lebanon","Lebanon Municipal","M54","TN","Lebanon Municipal","47-0040","PU",null,"Regional","GA","GA",0,72,1681053]
["SO","MEM","TN","Lewisburg","Ellington","LUG","TN","Ellington","47-0041","PU",null,"Local","GA","GA",1,30,4200000]
["SO","MEM","TN","Lexington-Parsons","Beech River Regional","PVE","TN","Beech River Regional","47-0114","PU",null,"Local","GA","GA",0,24,2000000]
["SO","MEM","TN","Linden","Perry County","M15","TN","Perry County","47-0043","PU",null,"Other","GA","GA",0,2,2073684]
["SO","MEM","TN","Livingston","Livingston Municipal","8A3","TN","Livingston Municipal","47-0044","PU",null,"Other","GA","GA",0,8,3900000]
["SO","MEM","TN","Madisonville","Monroe County","MNV","TN","Monroe County","47-0045","PU",null,"Local","GA","GA",0,20,3485000]
["SO","MEM","TN","McMinnville","Warren County Memorial","RNC","TN","Warren County Memorial","47-0048","PU",null,"Local","GA","GA",5,51,3100000]
["SO","MEM","TN","Memphis","General Dewitt Spain","M01","TN","General Dewitt Spain","47-0050","PU",null,"Local","R","R",0,78,1320000]
["SO","MEM","TN","Memphis","Memphis International","MEM","TN","Memphis International","47-0049","PU","M",null,"P","P",4930935,64,197296798]
["SO","MEM","TN","Millington","Charles W. Baker","2M8","TN","Charles W. Baker","47-0051","PU",null,"Local","R","R",0,103,1223158]
["SO","MEM","TN","Millington","Millington Regional Jetport","NQA","TN","Millington Regional Jetport","47-0047","PU",null,"Regional","GA","GA",116,33,3200000]
["SO","MEM","TN","Morristown","Moore-Murrell","MOR","TN","Moore-Murrell","47-0052","PU",null,"Regional","GA","GA",30,40,2600000]
["SO","MEM","TN","Mountain City","Johnson County","6A4","TN","Johnson County","47-0053","PU",null,"Basic","GA","GA",0,10,1850000]
["SO","MEM","TN","Murfreesboro","Murfreesboro Municipal","MBT","TN","Murfreesboro Municipal","47-0054","PU",null,"Regional","GA","GA",3,116,7950000]
["SO","MEM","TN","Nashville","Nashville International","BNA","TN","Nashville International","47-0055","PU","M",null,"P","P",4432527,100,88776090]
["SO","MEM","TN","Nashville","John C Tune","JWN","TN","John C Tune","47-0056","PU",null,"Regional","R","R",23,117,12234245]
["SO","MEM","TN","Oneida","Scott Municipal","SCX","TN","Scott Municipal","47-0058","PU",null,"Local","GA","GA",0,20,1000000]
["SO","MEM","TN","Paris","Henry County","PHT","TN","Henry County","47-0059","PU",null,"Local","GA","GA",0,27,4830000]
["SO","MEM","TN","Portland","Portland Municipal","1M5","TN","Portland Municipal","47-0062","PU",null,"Local","GA","GA",8,15,1503000]
["SO","MEM","TN","Pulaski","Abernathy Field","GZS","TN","Abernathy Field","47-0063","PU",null,"Basic","GA","GA",0,10,4376316]
["SO","MEM","TN","Rockwood","Rockwood Municipal","RKW","TN","Rockwood Municipal","47-0064","PU",null,"Local","GA","GA",0,15,1473684]
["SO","MEM","TN","Rogersville","Hawkins County","RVN","TN","Hawkins County","47-0065","PU",null,"Local","GA","GA",0,31,2265000]
["SO","MEM","TN","Savannah","Savannah-Hardin County","SNH","TN","Savannah-Hardin County","47-0066","PU",null,"Local","GA","GA",3,9,3890000]
["SO","MEM","TN","Selmer","Robert Sibley","SZY","TN","Robert Sibley","47-0067","PU",null,"Local","GA","GA",2,22,5994900]
["SO","MEM","TN","Sevierville","Gatlinburg-Pigeon Forge","GKT","TN","Gatlinburg-Pigeon Forge","47-0068","PU",null,"Regional","GA","GA",1,82,9450000]
["SO","MEM","TN","Sewanee","Franklin County","UOS","TN","Franklin County","47-0069","PU",null,"Basic","GA","GA",1,11,2257895]
["SO","MEM","TN","Shelbyville","Bomar Field-Shelbyville Municipal","SYI","TN","Bomar Field-Shelbyville Municipal","47-0070","PU",null,"Regional","GA","GA",6,59,1249122]
["SO","MEM","TN","Smithville","Smithville Municipal","0A3","TN","Smithville Municipal","47-0071","PU",null,"Other","GA","GA",0,8,1550000]
["SO","MEM","TN","Smyrna","Smyrna","MQY","TN","Smyrna","47-0072","PU",null,"National","R","R",1187,167,7050000]
["SO","MEM","TN","Somerville","Fayette County","FYE","TN","Fayette County","47-0090","PU",null,"Local","GA","GA",0,37,3200000]
["SO","MEM","TN","Sparta","Upper Cumberland Regional","SRB","TN","Upper Cumberland Regional","47-0082","PU",null,"Local","GA","GA",15,34,7152632]
["SO","MEM","TN","Springfield","Springfield Robertson County","M91","TN","Springfield Robertson County","47-0074","PU",null,"Basic","GA","GA",0,18,6319000]
["SO","MEM","TN","Tazewell","New Tazewell Municipal","3A2","TN","New Tazewell Municipal","47-0075","PU",null,"Basic","GA","GA",0,10,4678948]
["SO","MEM","TN","Trenton","Gibson County","TGC","TN","Gibson County","47-0077","PU",null,"Local","GA","GA",0,23,1450000]
["SO","MEM","TN","Tullahoma","Tullahoma Regional Airport/Wm Northern Field","THA","TN","Tullahoma Regional Airport/Wm Northern Field","47-0078","PU",null,"Local","GA","GA",2,122,3050000]
["SO","MEM","TN","Union City","Everett-Stewart Regional","UCY","TN","Everett-Stewart Regional","47-0079","PU",null,"Local","GA","GA",4,25,2900000]
["SO","MEM","TN","Waverly","Humphreys County","0M5","TN","Humphreys County","47-0080","PU",null,"Other","GA","GA",0,9,6800000]
["SO","MEM","TN","Winchester","Winchester Municipal","BGF","TN","Winchester Municipal","47-0081","PU",null,"Local","GA","GA",0,35,1405263]
["SO","ORL","FL","Apalachicola","Apalachicola Regional","AAF","FL","Apalachicola Regional","12-0001","PU",null,"Local","GA","GA",1,22,8136712]
["SO","ORL","FL","Arcadia","Arcadia Municipal","X06","FL","Arcadia Municipal","12-0093","PU",null,"Local","GA","GA",0,28,700000]
["SO","ORL","FL","Avon Park","Avon Park Executive","AVO","FL","Avon Park Executive","12-0004","PU",null,"Local","GA","GA",0,48,7411873]
["SO","ORL","FL","Bartow","Bartow Municipal","BOW","FL","Bartow Municipal","12-0005","PU",null,"Regional","GA","GA",69,100,29158106]
["SO","ORL","FL","Belle Glade","Belle Glade State Municipal","X10","FL","Belle Glade State Municipal","12-0091","PU",null,"Basic","GA","GA",0,12,7263158]
["SO","ORL","FL","Blountstown","Calhoun County","F95","FL","Calhoun County","12-0158","PU",null,"Basic","GA","GA",0,13,4372554]
["SO","ORL","FL","Boca Raton","Boca Raton","BCT","FL","Boca Raton","12-0006","PU",null,"National","R","R",403,297,7970527]
["SO","ORL","FL","Bonifay","Tri-County","1J0","FL","Tri-County","12-0007","PU",null,"Basic","GA","GA",0,11,5251744]
["SO","ORL","FL","Brooksville","Hernando County","BKV","FL","Hernando County","12-0008","PU",null,"Regional","GA","GA",3,141,13386118]
["SO","ORL","FL","Cedar Key","George T Lewis","CDK","FL","George T Lewis","12-0010","PU",null,"Basic","GA","GA",2,4,0]
["SO","ORL","FL","Clearwater","Clearwater Air Park","CLW","FL","Clearwater Air Park","12-0011","PU",null,"Regional","R","R",0,106,0]
["SO","ORL","FL","Clewiston","Airglades","2IS","FL","Airglades","12-0012","PU",null,"Local","GA","GA",0,20,2752474]
["SO","ORL","FL","Crestview","Bob Sikes","CEW","FL","Bob Sikes","12-0014","PU",null,"Regional","GA","GA",4,42,22347368]
["SO","ORL","FL","Cross City","Cross City","CTY","FL","Cross City","12-0015","PU",null,"Basic","GA","GA",0,11,6378887]
["SO","ORL","FL","Crystal River","Crystal River","CGC","FL","Crystal River","12-0156","PU",null,"Local","GA","GA",13,30,17182144]
["SO","ORL","FL","Daytona Beach","Daytona Beach International","DAB","FL","Daytona Beach International","12-0017","PU","N",null,"P","P",246627,231,77919546]
["SO","ORL","FL","De Funiak Springs","Defuniak Springs","54J","FL","Defuniak Springs","12-0018","PU",null,"Local","GA","GA",0,26,10869387]
["SO","ORL","FL","DeLand","DeLand Municipal-Sidney H Taylor Field","DED","FL","DeLand Municipal-Sidney H Taylor Field","12-0019","PU",null,"Regional","R","R",2,201,18136059]
["SO","ORL","FL","Destin","Destin-Fort Walton Beach","DTS","FL","Destin-Fort Walton Beach","12-0020","PU",null,"Regional","GA","GA",139,25,40697368]
["SO","ORL","FL","Dunnellon","Marion County","X35","FL","Marion County","12-0147","PU",null,"Local","GA","GA",0,84,7485935]
["SO","ORL","FL","Everglades","Everglades Airpark","X01","FL","Everglades Airpark","12-0021","PU",null,"Other","GA","GA",0,7,850000]
["SO","ORL","FL","Fernandina Beach","Fernandina Beach Municipal","FHB","FL","Fernandina Beach Municipal","12-0022","PU",null,"Regional","GA","GA",29,55,16172361]
["SO","ORL","FL","Fort Lauderdale","Fort Lauderdale/Hollywood International","FLL","FL","Fort Lauderdale/Hollywood International","12-0025","PU","L",null,"P","P",10829810,57,461156992]
["SO","ORL","FL","Fort Lauderdale","Fort Lauderdale Executive","FXE","FL","Fort Lauderdale Executive","12-0024","PU",null,"National","R","R",322,708,80631558]
["SO","ORL","FL","Fort Myers","Page Field","FMY","FL","Page Field","12-0027","PU",null,"Regional","R","R",100,229,20469287]
["SO","ORL","FL","Fort Myers","Southwest Florida International","RSW","FL","Southwest Florida International","12-0135","PU","M",null,"P","P",3714157,8,39686301]
["SO","ORL","FL","Fort Pierce","St Lucie County International","FPR","FL","St Lucie County International","12-0023","PU",null,"National","GA","GA",33,202,11451646]
["SO","ORL","FL","Gainesville","Gainesville Regional","GNV","FL","Gainesville Regional","12-0028","PU","N",null,"P","P",159499,160,31596020]
["SO","ORL","FL","Hilliard","Hilliard Airpark","01J","FL","Hilliard Airpark","12-0099","PU",null,"Local","GA","GA",0,27,883552]
["SO","ORL","FL","Hollywood","North Perry","HWO","FL","North Perry","12-0029","PU",null,"Regional","R","R",0,247,19011639]
["SO","ORL","FL","Homestead","Homestead General Aviation","X51","FL","Homestead General Aviation","12-0030","PU",null,"Local","GA","GA",6,31,10551188]
["SO","ORL","FL","Immokalee","Immokalee Regional","IMM","FL","Immokalee Regional","12-0031","PU",null,"Local","GA","GA",0,21,20144090]
["SO","ORL","FL","Inverness","Inverness","INF","FL","Inverness","12-0157","PU",null,"Local","GA","GA",0,28,16484038]
["SO","ORL","FL","Jacksonville","Craig Municipal","CRG","FL","Craig Municipal","12-0033","PU",null,"National","R","R",11,239,13952632]
["SO","ORL","FL","Jacksonville","Herlong Recreational","HEG","FL","Herlong Recreational","12-0034","PU",null,"Regional","R","R",0,142,22144851]
["SO","ORL","FL","Jacksonville","Jacksonville International","JAX","FL","Jacksonville International","12-0035","PU","M",null,"P","P",2755719,34,236865013]
["SO","ORL","FL","Jacksonville","Cecil","VQQ","FL","Cecil","12-0032","PU",null,"Regional","GA","GA",0,18,56923463]
["SO","ORL","FL","Key West","Key West International","EYW","FL","Key West International","12-0037","PU","N",null,"P","P",287359,45,21423407]
["SO","ORL","FL","Keystone Heights","Keystone Airpark","42J","FL","Keystone Airpark","12-0036","PU",null,"Local","GA","GA",0,54,8377527]
["SO","ORL","FL","La Belle","La Belle Municipal","X14","FL","La Belle Municipal","12-0125","PU",null,"Local","GA","GA",0,40,10206579]
["SO","ORL","FL","Lake City","Lake City Municipal","LCQ","FL","Lake City Municipal","12-0039","PU",null,"Local","GA","GA",0,36,15614247]
["SO","ORL","FL","Lake Wales","Lake Wales Municipal","X07","FL","Lake Wales Municipal","12-0040","PU",null,"Basic","GA","GA",0,14,5748741]
["SO","ORL","FL","Lakeland","Lakeland Linder Regional","LAL","FL","Lakeland Linder Regional","12-0041","PU",null,"Regional","R","R",179,178,30486345]
["SO","ORL","FL","Leesburg","Leesburg International","LEE","FL","Leesburg International","12-0042","PU",null,"Regional","GA","GA",9,90,5753606]
["SO","ORL","FL","Live Oak","Suwannee County","24J","FL","Suwannee County","12-0043","PU",null,"Local","GA","GA",0,39,9591284]
["SO","ORL","FL","Marathon","The Florida Keys Marathon","MTH","FL","The Florida Keys Marathon","12-0044","PU",null,"Regional","GA","GA",36,71,47156395]
["SO","ORL","FL","Marco Island","Marco Island","MKY","FL","Marco Island","12-0142","PU",null,"Regional","GA","GA",31,27,1750000]
["SO","ORL","FL","Marianna","Marianna Municipal","MAI","FL","Marianna Municipal","12-0045","PU",null,"Local","GA","GA",0,28,3940550]
["SO","ORL","FL","Melbourne","Melbourne International","MLB","FL","Melbourne International","12-0046","PU","N",null,"P","P",180441,247,40459474]
["SO","ORL","FL","Merritt Island","Merritt Island","COI","FL","Merritt Island","12-0013","PU",null,"Regional","GA","GA",0,162,6943502]
["SO","ORL","FL","Miami","Miami International","MIA","FL","Miami International","12-0049","PU","L",null,"P","P",17017654,28,116785142]
["SO","ORL","FL","Miami","Opa- Locka Executive","OPF","FL","Opa- Locka Executive","12-0047","PU",null,"National","R","R",668,253,10887692]
["SO","ORL","FL","Miami","Kendall-Tamiami Executive","TMB","FL","Kendall-Tamiami Executive","12-0050","PU",null,"National","R","R",82,452,290000]
["SO","ORL","FL","Miami","Dade-Collier Training and Transition","TNT","FL","Dade-Collier Training and Transition","12-0048","PU",null,"Basic","GA","GA",0,0,368500]
["SO","ORL","FL","Miami","Miami","X44","FL","Miami","12-0143","PU",null,"Other","GA","GA",0,0,982505]
["SO","ORL","FL","Milton","Peter Prince Field","2R4","FL","Peter Prince Field","12-0052","PU",null,"Local","GA","GA",0,85,3615011]
["SO","ORL","FL","Naples","Naples Municipal","APF","FL","Naples Municipal","12-0053","PU",null,"Regional","GA","GA",581,156,44155263]
["SO","ORL","FL","New Smyrna Beach","New Smyrna Beach Municipal","EVB","FL","New Smyrna Beach Municipal","12-0054","PU",null,"Regional","R","R",13,114,8343395]
["SO","ORL","FL","Ocala","Ocala International-Jim Taylor Field","OCF","FL","Ocala International-Jim Taylor Field","12-0055","PU",null,"National","GA","GA",204,162,39981982]
["SO","ORL","FL","Okeechobee","Okeechobee County","OBE","FL","Okeechobee County","12-0056","PU",null,"Local","GA","GA",0,36,17900000]
["SO","ORL","FL","Orlando","Kissimmee Gateway","ISM","FL","Kissimmee Gateway","12-0038","PU",null,"Regional","R","R",84,175,16708771]
["SO","ORL","FL","Orlando","Orlando International","MCO","FL","Orlando International","12-0057","PU","L",null,"P","P",17017491,22,562157894]
["SO","ORL","FL","Orlando","Executive","ORL","FL","Executive","12-0058","PU",null,"National","R","R",170,223,27019661]
["SO","ORL","FL","Orlando","Orlando Sanford International","SFB","FL","Orlando Sanford International","12-0069","PU","S",null,"P","P",553892,368,175779544]
["SO","ORL","FL","Ormond Beach","Ormond Beach Municipal","OMN","FL","Ormond Beach Municipal","12-0059","PU",null,"Regional","R","R",0,99,15871422]
["SO","ORL","FL","Pahokee","Palm Beach County Glades","PHK","FL","Palm Beach County Glades","12-0060","PU",null,"Other","GA","GA",0,7,7227500]
["SO","ORL","FL","Palatka","Palatka Municipal - Lt. Kay Larkin Field","28J","FL","Palatka Municipal - Lt. Kay Larkin Field","12-0061","PU",null,"Local","GA","GA",0,49,34903711]
["SO","ORL","FL","Palm Coast","Flagler County","XFL","FL","Flagler County","12-0009","PU",null,"Regional","GA","GA",7,53,24206879]
["SO","ORL","FL","Panama City","Northwest Florida Beaches International","ECP","FL","Northwest Florida Beaches International","12-0159","PU","N",null,"P","P",312114,0,47195595]
["SO","ORL","FL","Pensacola","Pensacola Gulf Coast Regional","PNS","FL","Pensacola Gulf Coast Regional","12-0063","PU","S",null,"P","P",729748,95,24803327]
["SO","ORL","FL","Perry","Perry-Foley","40J","FL","Perry-Foley","12-0064","PU",null,"Basic","GA","GA",0,13,6768972]
["SO","ORL","FL","Plant City","Plant City","PCM","FL","Plant City","12-0065","PU",null,"Local","GA","GA",0,89,3630004]
["SO","ORL","FL","Pompano Beach","Pompano Beach Airpark","PMP","FL","Pompano Beach Airpark","12-0066","PU",null,"Local","GA","GA",0,68,16844127]
["SO","ORL","FL","Punta Gorda","Punta Gorda","PGD","FL","Punta Gorda","12-0067","PU","N",null,"P","P",87041,290,19015026]
["SO","ORL","FL","Quincy","Quincy Municipal","2J9","FL","Quincy Municipal","12-0068","PU",null,"Local","GA","GA",0,50,10982916]
["SO","ORL","FL","Sarasota/Bradenton","Sarasota/Bradenton International","SRQ","FL","Sarasota/Bradenton International","12-0071","PU","S",null,"P","P",670992,247,73982895]
["SO","ORL","FL","Sebastian","Sebastian Municipal","X26","FL","Sebastian Municipal","12-0145","PU",null,"Local","GA","GA",0,39,11225831]
["SO","ORL","FL","Sebring","Sebring Regional","SEF","FL","Sebring Regional","12-0072","PU",null,"Local","GA","GA",1,38,23427019]
["SO","ORL","FL","St Augustine","Northeast Florida Regional","SGJ","FL","Northeast Florida Regional","12-0073","PU",null,"Regional","GA","GA",58,256,51178580]
["SO","ORL","FL","St Petersburg","Albert Whitted","SPG","FL","Albert Whitted","12-0074","PU",null,"Regional","R","R",0,160,9669515]
["SO","ORL","FL","St Petersburg-Clearwater","St Petersburg-Clearwater International","PIE","FL","St Petersburg-Clearwater International","12-0075","PU","S",null,"P","P",384394,288,28532655]
["SO","ORL","FL","Stuart","Witham Field","SUA","FL","Witham Field","12-0076","PU",null,"National","GA","GA",480,194,7102395]
["SO","ORL","FL","Tallahassee","Tallahassee Regional","TLH","FL","Tallahassee Regional","12-0077","PU","N",null,"P","P",325097,127,74634372]
["SO","ORL","FL","Tampa","Tampa International","TPA","FL","Tampa International","12-0078","PU","L",null,"P","P",8137222,80,148794851]
["SO","ORL","FL","Tampa","Peter O Knight","TPF","FL","Peter O Knight","12-0079","PU",null,"Regional","R","R",0,122,6542460]
["SO","ORL","FL","Tampa","Tampa Executive","VDF","FL","Tampa Executive","12-0097","PU",null,"Regional","R","R",3,151,3501620]
["SO","ORL","FL","Titusville","Space Coast Regional","TIX","FL","Space Coast Regional","12-0080","PU",null,"Regional","GA","GA",11,135,19147632]
["SO","ORL","FL","Titusville","Arthur Dunn Air Park","X21","FL","Arthur Dunn Air Park","12-0101","PU",null,"Local","GA","GA",0,54,2499453]
["SO","ORL","FL","Umatilla","Umatilla Municipal","X23","FL","Umatilla Municipal","12-0026","PU",null,"Basic","GA","GA",0,11,3610526]
["SO","ORL","FL","Valkaria","Valkaria","X59","FL","Valkaria","12-0144","PU",null,"Local","GA","GA",0,56,6471138]
["SO","ORL","FL","Valparaiso","Eglin AFB","VPS","FL","Eglin AFB","12-0081","MA","N",null,"P","P",348979,14,16123467]
["SO","ORL","FL","Venice","Venice Municipal","VNC","FL","Venice Municipal","12-0082","PU",null,"Regional","R","R",18,225,23047552]
["SO","ORL","FL","Vero Beach","Vero Beach Municipal","VRB","FL","Vero Beach Municipal","12-0083","PU",null,"Regional","GA","GA",228,190,28706156]
["SO","ORL","FL","Wauchula","Wauchula Municipal","CHN","FL","Wauchula Municipal","12-0084","PU",null,"Local","GA","GA",0,41,12345783]
["SO","ORL","FL","West Palm Beach","North Palm Beach County General Aviation","F45","FL","North Palm Beach County General Aviation","12-0113","PU",null,"Regional","R","R",22,219,19404376]
["SO","ORL","FL","West Palm Beach","Palm Beach County Park","LNA","FL","Palm Beach County Park","12-0086","PU",null,"Regional","R","R",0,258,19612500]
["SO","ORL","FL","West Palm Beach","Palm Beach International","PBI","FL","Palm Beach International","12-0085","PU","M",null,"P","P",2958416,127,156998437]
["SO","ORL","FL","Williston","Williston Municipal","X60","FL","Williston Municipal","12-0087","PU",null,"Local","GA","GA",0,50,11175229]
["SO","ORL","FL","Winter Haven","Winter Haven's Gilbert","GIF","FL","Winter Haven's Gilbert","12-0088","PU",null,"Regional","GA","GA",5,165,5748685]
["SO","ORL","FL","Zephyrhills","Zephyrhills Municipal","ZPH","FL","Zephyrhills Municipal","12-0089","PU",null,"Regional","GA","GA",0,101,5923421]
["SO","ORL","PR","Aguadilla","Rafael Hernandez","BQN","PR","Rafael Hernandez","72-0020","PU","N",null,"P","P",241976,81,33526387]
["SO","ORL","PR","Arecibo","Antonio/Nery/Juarbe Pol","ABO","PR","Antonio/Nery/Juarbe Pol","72-0002","PU",null,"Basic","GA","GA",0,13,2178947]
["SO","ORL","PR","Ceiba","Jose Aponte De La Torre","RVR","PR","Jose Aponte De La Torre","72-0023","PU","N",null,"P","P",11308,0,79928119]
["SO","ORL","PR","Fajardo","Diego Jimenez Torres","X95","PR","Diego Jimenez Torres","72-0005","PU",null,"Basic","GA","GA",0,13,5052632]
["SO","ORL","PR","Humacao","Humacao","X63","PR","Humacao","72-0006","PU",null,"Basic","GA","GA",26,12,820000]
["SO","ORL","PR","Isla De Culebra","Benjamin Rivera Noriega","CPX","PR","Benjamin Rivera Noriega","72-0009","PU",null,"Basic","GA","GA",1603,3,710526]
["SO","ORL","PR","Isla De Vieques","Antonio Rivera Rodriguez","VQS","PR","Antonio Rivera Rodriguez","72-0008","PU","N",null,"P","P",46267,19,6939526]
["SO","ORL","PR","Mayaguez","Eugenio Maria De Hostos","MAZ","PR","Eugenio Maria De Hostos","72-0010","PU",null,"Regional","CS","CS",4466,9,2931579]
["SO","ORL","PR","Ponce","Mercedita","PSE","PR","Mercedita","72-0012","PU","N",null,"P","P",97660,30,5161320]
["SO","ORL","PR","San Juan","Fernando Luis Ribas Dominicci","SIG","PR","Fernando Luis Ribas Dominicci","72-0015","PU","N",null,"P","P",38363,281,2789737]
["SO","ORL","PR","San Juan","Luis Munoz Marin International","SJU","PR","Luis Munoz Marin International","72-0016","PU","M",null,"P","P",4243475,78,135581794]
["SO","ORL","VI","Charlotte Amalie","Cyril E King","STT","VI","Cyril E King","78-0001","PU","S",null,"P","P",606137,83,60193924]
["SO","ORL","VI","Christiansted","Henry E Rohlsen","STX","VI","Henry E Rohlsen","78-0002","PU","N",null,"P","P",187211,35,26757894]
["SW","AROK","AR","Almyra","Almyra Municipal","M73","AR","Almyra Municipal","05-0001","PU",null,"Other","GA","GA",0,7,1702500]
["SW","AROK","AR","Arkadelphia","Dexter B Florence Memorial Field","M89","AR","Dexter B Florence Memorial Field","05-0002","PU",null,"Local","GA","GA",0,30,2256578]
["SW","AROK","AR","Ash Flat","Sharp County Regional","CVK","AR","Sharp County Regional","05-0082","PU",null,"Other","GA","GA",1,7,2997244]
["SW","AROK","AR","Augusta","Woodruff County","M60","AR","Woodruff County","05-0003","PU",null,"Other","GA","GA",0,0,1285000]
["SW","AROK","AR","Batesville","Batesville Regional","BVX","AR","Batesville Regional","05-0004","PU",null,"Local","GA","GA",0,53,2850280]
["SW","AROK","AR","Benton","Saline County Regional","SUZ","AR","Saline County Regional","05-0090","PU",null,"Local","GA","GA",0,33,797368]
["SW","AROK","AR","Bentonville","Bentonville Municipal/Louise M Thaden Field","VBT","AR","Bentonville Municipal/Louise M Thaden Field","05-0006","PU",null,"Local","GA","GA",6,31,29884895]
["SW","AROK","AR","Berryville","Carroll County","4M1","AR","Carroll County","05-0007","PU",null,"Local","GA","GA",0,24,2891826]
["SW","AROK","AR","Blytheville","Arkansas International","BYH","AR","Arkansas International","05-0086","PU",null,"Local","GA","GA",0,15,5176398]
["SW","AROK","AR","Blytheville","Blytheville Municipal","HKA","AR","Blytheville Municipal","05-0008","PU",null,"Local","GA","GA",0,16,1831779]
["SW","AROK","AR","Brinkley","Frank Federer Memorial","M36","AR","Frank Federer Memorial","05-0009","PU",null,"Basic","GA","GA",0,11,2895267]
["SW","AROK","AR","Calico Rock","Calico Rock-Izard County","37T","AR","Calico Rock-Izard County","05-0085","PU",null,"Other","GA","GA",0,1,1088483]
["SW","AROK","AR","Camden","Harrell Field","CDH","AR","Harrell Field","05-0010","PU",null,"Local","GA","GA",4,15,1609645]
["SW","AROK","AR","Carlisle","Carlisle Municipal","4M3","AR","Carlisle Municipal","05-0011","PU",null,"Basic","GA","GA",0,14,2170732]
["SW","AROK","AR","Clarendon","Clarendon Municipal","4M8","AR","Clarendon Municipal","05-0012","PU",null,"Other","GA","GA",0,4,2137165]
["SW","AROK","AR","Clarksville","Clarksville Municipal","H35","AR","Clarksville Municipal","05-0013","PU",null,"Basic","GA","GA",0,14,2179606]
["SW","AROK","AR","Clinton","Clinton Municipal","CCA","AR","Clinton Municipal","05-0077","PU",null,"Local","GA","GA",0,25,1143156]
["SW","AROK","AR","Colt","Delta Regional Airport","08B","AR","Delta Regional Airport","05-0091","PU",null,null,null,"GA",0,0,3772303]
["SW","AROK","AR","Conway","Conway Replacement Airport","086","AR","Conway Replacement Airport","05-0089",null,null,null,null,"GA",0,0,9850429]
["SW","AROK","AR","Conway","Dennis F Cantrell Field","CWS","AR","Dennis F Cantrell Field","05-0014","PU",null,"Regional","GA","GA",0,41,0]
["SW","AROK","AR","Corning","Corning Municipal","4M9","AR","Corning Municipal","05-0068","PU",null,"Local","GA","GA",0,21,1639734]
["SW","AROK","AR","Crossett","Z M Jack Stell Field","CRT","AR","Z M Jack Stell Field","05-0015","PU",null,"Basic","GA","GA",5,7,1372500]
["SW","AROK","AR","Danville","Danville Municipal","32A","AR","Danville Municipal","05-0088","PU",null,"Other","GA","GA",0,8,1036842]
["SW","AROK","AR","De Queen","J Lynn Helms Sevier County","DEQ","AR","J Lynn Helms Sevier County","05-0016","PU",null,"Basic","GA","GA",0,8,921684]
["SW","AROK","AR","De Witt","De Witt Municipal","5M1","AR","De Witt Municipal","05-0017","PU",null,"Local","GA","GA",0,14,1678911]
["SW","AROK","AR","Dumas","Billy Free Municipal","0M0","AR","Billy Free Municipal","05-0067","PU",null,"Local","GA","GA",0,18,1175554]
["SW","AROK","AR","El Dorado","South Arkansas Regional at Goodwin Field","ELD","AR","South Arkansas Regional at Goodwin Field","05-0018","PU",null,"Regional","GA","GA",1222,21,3860000]
["SW","AROK","AR","Fayetteville","Drake Field","FYV","AR","Drake Field","05-0020","PU",null,"Regional","GA","GA",1091,85,33325526]
["SW","AROK","AR","Fayetteville/Springdale/","Northwest Arkansas Regional","XNA","AR","Northwest Arkansas Regional","05-0021","PU","S",null,"P","P",549195,8,49819507]
["SW","AROK","AR","Flippin","Marion County Regional","FLP","AR","Marion County Regional","05-0022","PU",null,"Local","GA","GA",11,22,1338832]
["SW","AROK","AR","Fordyce","Fordyce Municipal","5M4","AR","Fordyce Municipal","05-0070","PU",null,"Other","GA","GA",0,2,1652958]
["SW","AROK","AR","Forrest City","Forrest City Municipal","FCY","AR","Forrest City Municipal","05-0023","PU",null,"Other","GA","GA",0,5,1031846]
["SW","AROK","AR","Fort Smith","Fort Smith Regional","FSM","AR","Fort Smith Regional","05-0024","PU","N",null,"P","P",83902,81,5874507]
["SW","AROK","AR","Harrison","Boone County","HRO","AR","Boone County","05-0026","PU",null,"Regional","GA","GA",1778,48,5168312]
["SW","AROK","AR","Heber Springs","Heber Springs Municipal","HBZ","AR","Heber Springs Municipal","05-0028","PU",null,"Local","GA","GA",0,29,1324793]
["SW","AROK","AR","Helena/West Helena","Thompson-Robbins","HEE","AR","Thompson-Robbins","05-0029","PU",null,"Local","GA","GA",2,42,6620015]
["SW","AROK","AR","Hope","Hope Municipal","M18","AR","Hope Municipal","05-0030","PU",null,"Local","GA","GA",0,26,1750000]
["SW","AROK","AR","Horseshoe Bend","Horseshoe Bend","6M2","AR","Horseshoe Bend","05-0083","PU",null,"Basic","GA","GA",0,12,2067369]
["SW","AROK","AR","Hot Springs","Memorial Field","HOT","AR","Memorial Field","05-0031","PU",null,"Regional","GA","GA",799,121,3141741]
["SW","AROK","AR","Jonesboro","Jonesboro Municipal","JBR","AR","Jonesboro Municipal","05-0033","PU",null,"Regional","GA","GA",522,119,4049834]
["SW","AROK","AR","Lake Village","Lake Village Municipal","M32","AR","Lake Village Municipal","05-0034","PU",null,"Basic","GA","GA",0,11,1128750]
["SW","AROK","AR","Little Rock","Adams Field","LIT","AR","Adams Field","05-0035","PU","S",null,"P","P",1097403,135,64708928]
["SW","AROK","AR","Magnolia","Magnolia Municipal","AGO","AR","Magnolia Municipal","05-0036","PU",null,"Basic","GA","GA",0,13,931930]
["SW","AROK","AR","Malvern","Malvern Municipal","M78","AR","Malvern Municipal","05-0037","PU",null,"Local","GA","GA",0,19,1228775]
["SW","AROK","AR","Manila","Manila Municipal","MXA","AR","Manila Municipal","05-0038","PU",null,"Basic","GA","GA",0,13,1123250]
["SW","AROK","AR","Marianna","Marianna/Lee County-Steve Edwards Field","6M7","AR","Marianna/Lee County-Steve Edwards Field","05-0071","PU",null,"Other","GA","GA",0,6,1300000]
["SW","AROK","AR","Marked Tree","Marked Tree Municipal","6M8","AR","Marked Tree Municipal","05-0039","PU",null,"Other","GA","GA",0,1,3351485]
["SW","AROK","AR","Marshall","Searcy County","4A5","AR","Searcy County","05-0084","PU",null,"Other","GA","GA",0,2,1183240]
["SW","AROK","AR","McGehee","McGehee Municipal","7M1","AR","McGehee Municipal","05-0040","PU",null,"Other","GA","GA",0,5,1150298]
["SW","AROK","AR","Melbourne","Melbourne Municipal - John E Miller Field","42A","AR","Melbourne Municipal - John E Miller Field","05-0079","PU",null,"Basic","GA","GA",0,11,1358175]
["SW","AROK","AR","Mena","Mena Intermountain Municipal","MEZ","AR","Mena Intermountain Municipal","05-0041","PU",null,"Local","GA","GA",1,43,8300000]
["SW","AROK","AR","Monticello","Monticello Municipal/Ellis Field","LLQ","AR","Monticello Municipal/Ellis Field","05-0042","PU",null,"Local","GA","GA",0,24,1825000]
["SW","AROK","AR","Morrilton","Morrilton Municipal","BDQ","AR","Morrilton Municipal","05-0043","PU",null,"Local","GA","GA",0,41,1311725]
["SW","AROK","AR","Morrilton","Petit Jean Park","MPJ","AR","Petit Jean Park","05-0044","PU",null,"Other","GA","GA",0,3,2287895]
["SW","AROK","AR","Mount Ida","Bearce","7M3","AR","Bearce","05-0045","PU",null,"Other","GA","GA",0,9,1253045]
["SW","AROK","AR","Mountain Home","Baxter County","BPK","AR","Baxter County","05-0046","PU",null,"Regional","GA","GA",0,49,2319953]
["SW","AROK","AR","Nashville","Howard County","M77","AR","Howard County","05-0048","PU",null,"Other","GA","GA",0,4,2162657]
["SW","AROK","AR","Newport","Newport Municipal","M19","AR","Newport Municipal","05-0049","PU",null,"Local","GA","GA",0,25,3284629]
["SW","AROK","AR","North Little Rock","North Little Rock Municipal","ORK","AR","North Little Rock Municipal","05-0047","PU",null,"Regional","R","R",11,138,2543447]
["SW","AROK","AR","Osceola","Osceola Municipal","7M4","AR","Osceola Municipal","05-0050","PU",null,"Other","GA","GA",0,8,1316500]
["SW","AROK","AR","Ozark","Ozark-Franklin County","7M5","AR","Ozark-Franklin County","05-0072","PU",null,"Local","GA","GA",0,15,1104000]
["SW","AROK","AR","Paragould","Kirk Field","PGR","AR","Kirk Field","05-0051","PU",null,"Local","GA","GA",8,30,1492105]
["SW","AROK","AR","Paris /Subiaco/","Paris Municipal","7M6","AR","Paris Municipal","05-0087","PU",null,"Other","GA","GA",0,4,1635000]
["SW","AROK","AR","Piggott","Piggott Municipal","7M7","AR","Piggott Municipal","05-0078","PU",null,"Other","GA","GA",0,6,2410825]
["SW","AROK","AR","Pine Bluff","Grider Field","PBF","AR","Grider Field","05-0052","PU",null,"Local","GA","GA",1,48,2273500]
["SW","AROK","AR","Pocahontas","Pocahontas Municipal","M70","AR","Pocahontas Municipal","05-0053","PU",null,"Basic","GA","GA",0,14,1875336]
["SW","AROK","AR","Rogers","Rogers Municipal-Carter Field","ROG","AR","Rogers Municipal-Carter Field","05-0055","PU",null,"National","GA","GA",88,100,18219652]
["SW","AROK","AR","Russellville","Russellville Regional","RUE","AR","Russellville Regional","05-0056","PU",null,"Local","GA","GA",3,51,1154098]
["SW","AROK","AR","Searcy","Searcy Municipal","SRC","AR","Searcy Municipal","05-0057","PU",null,"Regional","GA","GA",5,116,3892429]
["SW","AROK","AR","Sheridan","Sheridan Municipal","9M8","AR","Sheridan Municipal","05-0060","PU",null,"Basic","GA","GA",0,12,1467176]
["SW","AROK","AR","Siloam Springs","Smith Field","SLG","AR","Smith Field","05-0058","PU",null,"Regional","GA","GA",0,40,1908000]
["SW","AROK","AR","Springdale","Springdale Municipal","ASG","AR","Springdale Municipal","05-0059","PU",null,"Regional","GA","GA",0,93,3061132]
["SW","AROK","AR","Stuttgart","Stuttgart Municipal","SGT","AR","Stuttgart Municipal","05-0061","PU",null,"Local","GA","GA",0,34,2250000]
["SW","AROK","AR","Texarkana","Texarkana Regional-Webb Field","TXK","AR","Texarkana Regional-Webb Field","05-0062","PU","N",null,"P","P",26690,69,20759473]
["SW","AROK","AR","Waldron","Waldron Municipal","M27","AR","Waldron Municipal","05-0074","PU",null,"Other","GA","GA",0,7,1227305]
["SW","AROK","AR","Walnut Ridge","Walnut Ridge Regional","ARG","AR","Walnut Ridge Regional","05-0063","PU",null,"Local","GA","GA",0,55,16535582]
["SW","AROK","AR","Warren","Warren Municipal","3M9","AR","Warren Municipal","05-0064","PU",null,"Other","GA","GA",0,9,1222790]
["SW","AROK","AR","West Memphis","West Memphis Municipal","AWM","AR","West Memphis Municipal","05-0065","PU",null,"Local","R","R",2,90,28732156]
["SW","AROK","AR","Wynne","Wynne Municipal","M65","AR","Wynne Municipal","05-0066","PU",null,"Other","GA","GA",0,7,1638818]
["SW","AROK","OK","Ada","Ada Municipal","ADH","OK","Ada Municipal","40-0001","PU",null,"Local","GA","GA",0,32,6681179]
["SW","AROK","OK","Altus","Altus/Quartz Mountain Regional","AXS","OK","Altus/Quartz Mountain Regional","40-0002","PU",null,"Local","GA","GA",0,38,1531986]
["SW","AROK","OK","Alva","Alva Regional","AVK","OK","Alva Regional","40-0003","PU",null,"Local","GA","GA",0,51,4328000]
["SW","AROK","OK","Antlers","Antlers Municipal","80F","OK","Antlers Municipal","40-0110","PU",null,"Other","GA","GA",0,6,1557267]
["SW","AROK","OK","Ardmore","Ardmore Downtown Executive","1F0","OK","Ardmore Downtown Executive","40-0006","PU",null,"Local","GA","GA",0,46,825234]
["SW","AROK","OK","Ardmore","Ardmore Municipal","ADM","OK","Ardmore Municipal","40-0005","PU",null,"Local","GA","GA",0,15,3227878]
["SW","AROK","OK","Atoka","Atoka Municipal","AQR","OK","Atoka Municipal","40-0124","PU",null,"Basic","GA","GA",0,4,2367350]
["SW","AROK","OK","Bartlesville","Bartlesville Municipal","BVO","OK","Bartlesville Municipal","40-0007","PU",null,"Regional","GA","GA",5,18,3892800]
["SW","AROK","OK","Beaver","Beaver Municipal","K44","OK","Beaver Municipal","40-0008","PU",null,"Other","GA","GA",0,3,2939794]
["SW","AROK","OK","Blackwell","Blackwell-Tonkawa Municipal","BKN","OK","Blackwell-Tonkawa Municipal","40-0009","PU",null,"Local","GA","GA",0,15,1073016]
["SW","AROK","OK","Boise City","Boise City","17K","OK","Boise City","40-0010","PU",null,"Basic","GA","GA",0,9,1190000]
["SW","AROK","OK","Bristow","Jones Memorial","3F7","OK","Jones Memorial","40-0128","PU",null,"Other","GA","GA",0,6,3272000]
["SW","AROK","OK","Buffalo","Buffalo Municipal","BFK","OK","Buffalo Municipal","40-0012","PU",null,"Basic","GA","GA",0,2,1560621]
["SW","AROK","OK","Canadian","Arrowhead","91F","OK","Arrowhead","40-0030","PU",null,"Other","GA","GA",0,0,2281853]
["SW","AROK","OK","Carnegie","Carnegie Municipal","86F","OK","Carnegie Municipal","40-0014","PU",null,"Other","GA","GA",0,3,760527]
["SW","AROK","OK","Chandler","Chandler Regional","CQB","OK","Chandler Regional","40-0015","PU",null,"Other","GA","GA",0,5,2360321]
["SW","AROK","OK","Cherokee","Cherokee Municipal","4O5","OK","Cherokee Municipal","40-0016","PU",null,"Basic","GA","GA",0,10,1782821]
["SW","AROK","OK","Cheyenne","Mignon Laird Municipal","93F","OK","Mignon Laird Municipal","40-0017","PU",null,"Other","GA","GA",0,1,1977374]
["SW","AROK","OK","Chickasha","Chickasha Municipal","CHK","OK","Chickasha Municipal","40-0018","PU",null,"Local","GA","GA",0,36,3100490]
["SW","AROK","OK","Claremore","Claremore Regional","GCM","OK","Claremore Regional","40-0019","PU",null,"Local","GA","GA",0,42,8120724]
["SW","AROK","OK","Cleveland","Cleveland Municipal","95F","OK","Cleveland Municipal","40-0020","PU",null,"Other","GA","GA",0,5,1361645]
["SW","AROK","OK","Clinton","Clinton Regional","CLK","OK","Clinton Regional","40-0021","PU",null,"Local","GA","GA",0,29,4668072]
["SW","AROK","OK","Clinton","Clinton-Sherman","CSM","OK","Clinton-Sherman","40-0125","PU",null,"Other","GA","GA",68,0,4266527]
["SW","AROK","OK","Cordell","Cordell Municipal","F36","OK","Cordell Municipal","40-0022","PU",null,"Other","GA","GA",0,7,2975753]
["SW","AROK","OK","Cushing","Cushing Municipal","CUH","OK","Cushing Municipal","40-0023","PU",null,"Local","GA","GA",0,19,1315272]
["SW","AROK","OK","Duncan","Halliburton Field","DUC","OK","Halliburton Field","40-0024","PU",null,"Local","GA","GA",0,26,5943191]
["SW","AROK","OK","Durant","Durant Regional - Eaker Field","DUA","OK","Durant Regional - Eaker Field","40-0025","PU",null,"Local","GA","GA",0,56,26980507]
["SW","AROK","OK","El Reno","El Reno Regional","RQO","OK","El Reno Regional","40-0026","PU",null,"Local","GA","GA",0,24,2702128]
["SW","AROK","OK","Elk City","Elk City Regional Business","ELK","OK","Elk City Regional Business","40-0027","PU",null,"Local","GA","GA",0,22,3802789]
["SW","AROK","OK","Enid","Enid Woodring Regional","WDG","OK","Enid Woodring Regional","40-0028","PU",null,"Regional","GA","GA",3,73,5452472]
["SW","AROK","OK","Eufaula","Fountainhead Lodge Airpark","0F7","OK","Fountainhead Lodge Airpark","40-0031","PU",null,"Other","GA","GA",0,0,623685]
["SW","AROK","OK","Eufaula","Eufaula Municipal","F08","OK","Eufaula Municipal","40-0029","PU",null,"Other","GA","GA",0,3,3009184]
["SW","AROK","OK","Fairview","Fairview Municipal","6K4","OK","Fairview Municipal","40-0032","PU",null,"Local","GA","GA",0,22,1139474]
["SW","AROK","OK","Frederick","Frederick Regional","FDR","OK","Frederick Regional","40-0033","PU",null,"Local","GA","GA",0,16,1779057]
["SW","AROK","OK","Gage","Gage","GAG","OK","Gage","40-0034","PU",null,"Other","GA","GA",0,0,2181899]
["SW","AROK","OK","Goldsby","David Jay Perry","1K4","OK","David Jay Perry","40-0066","PU",null,"Local","GA","GA",0,55,4134814]
["SW","AROK","OK","Grandfield","Grandfield Municipal","1O1","OK","Grandfield Municipal","40-0114","PU",null,"Other","GA","GA",0,5,1054716]
["SW","AROK","OK","Grove","Grove Municipal","GMJ","OK","Grove Municipal","40-0035","PU",null,"Local","GA","GA",5,60,13137534]
["SW","AROK","OK","Guthrie","Guthrie-Edmond Regional","GOK","OK","Guthrie-Edmond Regional","40-0036","PU",null,"Local","GA","GA",0,85,10827115]
["SW","AROK","OK","Guymon","Guymon Municipal","GUY","OK","Guymon Municipal","40-0037","PU",null,"Local","GA","GA",35,35,2470996]
["SW","AROK","OK","Healdton","Healdton Municipal","F32","OK","Healdton Municipal","40-0038","PU",null,"Other","GA","GA",0,0,957620]
["SW","AROK","OK","Henryetta","Henryetta Municipal","F10","OK","Henryetta Municipal","40-0039","PU",null,"Other","GA","GA",0,4,2886842]
["SW","AROK","OK","Hinton","Hinton Municipal","2O8","OK","Hinton Municipal","40-0134","PU",null,"Other","GA","GA",0,8,1356632]
["SW","AROK","OK","Hobart","Hobart Regional","HBR","OK","Hobart Regional","40-0040","PU",null,"Basic","GA","GA",0,12,1571065]
["SW","AROK","OK","Holdenville","Holdenville Municipal","F99","OK","Holdenville Municipal","40-0041","PU",null,"Other","GA","GA",0,4,1311933]
["SW","AROK","OK","Hollis","Hollis Municipal","O35","OK","Hollis Municipal","40-0042","PU",null,"Basic","GA","GA",0,8,2461163]
["SW","AROK","OK","Hominy","Hominy Municipal","H92","OK","Hominy Municipal","40-0043","PU",null,"Other","GA","GA",0,0,1025734]
["SW","AROK","OK","Hooker","Hooker Municipal","O45","OK","Hooker Municipal","40-0044","PU",null,"Basic","GA","GA",0,10,1188158]
["SW","AROK","OK","Hugo","Stan Stamper Municipal","HHW","OK","Stan Stamper Municipal","40-0129","PU",null,"Basic","GA","GA",0,13,3223620]
["SW","AROK","OK","Idabel","McCurtain County Regional","4O4","OK","McCurtain County Regional","40-0137","PU",null,"Basic","GA","GA",0,12,3605544]
["SW","AROK","OK","Ketchum","South Grand Lake Regional","1K8","OK","South Grand Lake Regional","40-0142","PU",null,"Other","GA","GA",0,0,2667363]
["SW","AROK","OK","Kingston","Lake Texoma State Park","F31","OK","Lake Texoma State Park","40-0049","PU",null,"Other","GA","GA",0,0,1822000]
["SW","AROK","OK","Lawton","Lawton-Fort Sill Regional","LAW","OK","Lawton-Fort Sill Regional","40-0051","PU","N",null,"P","P",68054,45,3901823]
["SW","AROK","OK","Lindsay","Lindsay Municipal","1K2","OK","Lindsay Municipal","40-0052","PU",null,"Other","GA","GA",0,4,1184497]
["SW","AROK","OK","Madill","Madill Municipal","1F4","OK","Madill Municipal","40-0054","PU",null,"Other","GA","GA",0,4,583000]
["SW","AROK","OK","Mangum","Scott Field","2K4","OK","Scott Field","40-0055","PU",null,"Other","GA","GA",0,2,2204796]
["SW","AROK","OK","McAlester","McAlester Regional","MLC","OK","McAlester Regional","40-0057","PU",null,"Regional","GA","GA",5,42,7347000]
["SW","AROK","OK","Medford","Medford Municipal","O53","OK","Medford Municipal","40-0058","PU",null,"Basic","GA","GA",0,14,2227352]
["SW","AROK","OK","Miami","Miami Municipal","MIO","OK","Miami Municipal","40-0059","PU",null,"Local","GA","GA",0,31,4443072]
["SW","AROK","OK","Mooreland","Mooreland Municipal","MDF","OK","Mooreland Municipal","40-0061","PU",null,"Basic","GA","GA",0,10,2783421]
["SW","AROK","OK","Muskogee","Davis Field","MKO","OK","Davis Field","40-0062","PU",null,"Local","GA","GA",0,57,6494910]
["SW","AROK","OK","Norman","University of Oklahoma Westheimer","OUN","OK","University of Oklahoma Westheimer","40-0064","PU",null,"Regional","R","R",20,90,4804589]
["SW","AROK","OK","Okeene","Christman Airfield","O65","OK","Christman Airfield","40-0068","PU",null,"Other","GA","GA",0,1,5103947]
["SW","AROK","OK","Okemah","Okemah Municipal","08C","OK","Okemah Municipal","40-0141",null,null,null,null,"GA",0,0,1137987]
["SW","AROK","OK","Okemah","Okemah Flying Field","F81","OK","Okemah Flying Field","40-0069","PU",null,"Other","GA","GA",0,0,1425000]
["SW","AROK","OK","Oklahoma City","Will Rogers World","OKC","OK","Will Rogers World","40-0072","PU","S",null,"P","P",1710993,56,28787116]
["SW","AROK","OK","Oklahoma City","Wiley Post","PWA","OK","Wiley Post","40-0073","PU",null,"National","R","R",126,334,7281000]
["SW","AROK","OK","Oklahoma City","Clarence E Page Municipal","RCE","OK","Clarence E Page Municipal","40-0071","PU",null,"Local","GA","GA",0,36,9208928]
["SW","AROK","OK","Okmulgee","Okmulgee Regional","OKM","OK","Okmulgee Regional","40-0074","PU",null,"Local","GA","GA",0,16,2236314]
["SW","AROK","OK","Overbrook","Lake Murray State Park","1F1","OK","Lake Murray State Park","40-0075","PU",null,"Other","GA","GA",0,0,4194500]
["SW","AROK","OK","Pauls Valley","Pauls Valley Municipal","PVJ","OK","Pauls Valley Municipal","40-0076","PU",null,"Local","GA","GA",0,36,8456015]
["SW","AROK","OK","Pawnee","Pawnee Municipal","H97","OK","Pawnee Municipal","40-0136","PU",null,"Other","GA","GA",0,0,315789]
["SW","AROK","OK","Perry","Perry Municipal","F22","OK","Perry Municipal","40-0077","PU",null,"Local","GA","GA",0,19,2218491]
["SW","AROK","OK","Ponca City","Ponca City Regional","PNC","OK","Ponca City Regional","40-0078","PU",null,"Regional","GA","GA",9,63,9456500]
["SW","AROK","OK","Poteau","Robert S Kerr","RKR","OK","Robert S Kerr","40-0080","PU",null,"Local","GA","GA",0,31,2482456]
["SW","AROK","OK","Prague","Prague Municipal","O47","OK","Prague Municipal","40-0081","PU",null,"Other","GA","GA",0,6,1982392]
["SW","AROK","OK","Pryor","Mid-America Industrial","H71","OK","Mid-America Industrial","40-0082","PU",null,"Local","GA","GA",0,19,2072895]
["SW","AROK","OK","Purcell","Purcell Municipal - Steven E. Shephard Field","3O3","OK","Purcell Municipal - Steven E. Shephard Field","40-0130","PU",null,"Other","GA","GA",0,5,1540132]
["SW","AROK","OK","Sallisaw","Sallisaw Municipal","JSV","OK","Sallisaw Municipal","40-0083","PU",null,"Local","GA","GA",0,28,2450674]
["SW","AROK","OK","Sand Springs","William R. Pogue Municipal","OWP","OK","William R. Pogue Municipal","40-0084","PU",null,"Local","GA","GA",0,52,3820954]
["SW","AROK","OK","Sayre","Sayre Municipal","3O4","OK","Sayre Municipal","40-0086","PU",null,"Other","GA","GA",0,5,1462127]
["SW","AROK","OK","Seminole","Seminole Municipal","SRE","OK","Seminole Municipal","40-0087","PU",null,"Other","GA","GA",0,9,2973526]
["SW","AROK","OK","Shawnee","Shawnee Regional","SNL","OK","Shawnee Regional","40-0088","PU",null,"Local","GA","GA",0,38,1910839]
["SW","AROK","OK","Skiatook","Skiatook Municipal","2F6","OK","Skiatook Municipal","40-0089","PU",null,"Basic","GA","GA",0,9,1073790]
["SW","AROK","OK","Stigler","Stigler Regional","GZL","OK","Stigler Regional","40-0115","PU",null,"Other","GA","GA",0,4,4743861]
["SW","AROK","OK","Stillwater","Stillwater Regional","SWO","OK","Stillwater Regional","40-0090","PU",null,"Local","GA","GA",1964,71,6710143]
["SW","AROK","OK","Stroud","Stroud Municipal","SUD","OK","Stroud Municipal","40-0091","PU",null,"Other","GA","GA",0,0,1280895]
["SW","AROK","OK","Sulphur","Sulphur Municipal","F30","OK","Sulphur Municipal","40-0092","PU",null,"Other","GA","GA",0,0,880263]
["SW","AROK","OK","Tahlequah","Tahlequah Municipal","TQH","OK","Tahlequah Municipal","40-0093","PU",null,"Local","GA","GA",0,56,1786750]
["SW","AROK","OK","Talihina","Talihina Municipal","6F1","OK","Talihina Municipal","40-0109","PU",null,"Other","GA","GA",0,0,1160000]
["SW","AROK","OK","Thomas","Thomas Municipal","1O4","OK","Thomas Municipal","40-0095","PU",null,"Basic","GA","GA",0,12,1924699]
["SW","AROK","OK","Tishomingo","Tishomingo Airpark","0F9","OK","Tishomingo Airpark","40-0096","PU",null,"Other","GA","GA",0,1,937158]
["SW","AROK","OK","Tulsa","Richard Lloyd Jones Jr","RVS","OK","Richard Lloyd Jones Jr","40-0098","PU",null,"National","R","R",14,297,10836382]
["SW","AROK","OK","Tulsa","Tulsa International","TUL","OK","Tulsa International","40-0099","PU","S",null,"P","P",1382895,131,141711386]
["SW","AROK","OK","Vinita","Vinita Municipal","H04","OK","Vinita Municipal","40-0100","PU",null,"Basic","GA","GA",0,13,2035974]
["SW","AROK","OK","Wagoner","Hefner-Easley","H68","OK","Hefner-Easley","40-0140","PU",null,"Local","GA","GA",0,47,1122900]
["SW","AROK","OK","Walters","Walters Municipal","3O5","OK","Walters Municipal","40-0103","PU",null,"Other","GA","GA",0,3,4227677]
["SW","AROK","OK","Watonga","Watonga Regional","JWG","OK","Watonga Regional","40-0104","PU",null,"Local","GA","GA",0,18,2319877]
["SW","AROK","OK","Waynoka","Waynoka Municipal","1K5","OK","Waynoka Municipal","40-0105","PU",null,"Other","GA","GA",0,1,1145000]
["SW","AROK","OK","Weatherford","Thomas P Stafford","OJA","OK","Thomas P Stafford","40-0106","PU",null,"Local","GA","GA",0,26,1950891]
["SW","AROK","OK","Wilburton","Wilburton Municipal","H05","OK","Wilburton Municipal","40-0107","PU",null,"Other","GA","GA",0,4,3247413]
["SW","AROK","OK","Woodward","West Woodward","WWR","OK","West Woodward","40-0108","PU",null,"Local","GA","GA",0,32,4105263]
["SW","LANM","LA","Abbeville","Abbeville Chris Crusta Memorial","IYA","LA","Abbeville Chris Crusta Memorial","22-0001","PU",null,"Regional","GA","GA",0,60,2650684]
["SW","LANM","LA","Alexandria","Alexandria International","AEX","LA","Alexandria International","22-0003","PU","N",null,"P","P",179129,49,8862335]
["SW","LANM","LA","Alexandria","Esler Regional","ESF","LA","Esler Regional","22-0002","PU",null,"Local","GA","GA",0,17,1500000]
["SW","LANM","LA","Bastrop","Morehouse Memorial","BQP","LA","Morehouse Memorial","22-0004","PU",null,"Local","GA","GA",0,16,250000]
["SW","LANM","LA","Baton Rouge","Baton Rouge Metropolitan, Ryan Field","BTR","LA","Baton Rouge Metropolitan, Ryan Field","22-0006","PU","S",null,"P","P",382687,144,22632347]
["SW","LANM","LA","Bogalusa","George R Carr Memorial Air Field","BXA","LA","George R Carr Memorial Air Field","22-0007","PU",null,"Local","GA","GA",0,20,2500000]
["SW","LANM","LA","Coushatta","The Red River","0R7","LA","The Red River","22-0011","PU",null,"Other","GA","GA",0,4,2679400]
["SW","LANM","LA","Covington","St. Tammany Regional","L31","LA","St. Tammany Regional","22-0012","PU",null,"Basic","GA","GA",0,10,7473684]
["SW","LANM","LA","Crowley","Le Gros Memorial","3R2","LA","Le Gros Memorial","22-0013","PU",null,"Basic","GA","GA",0,12,4271254]
["SW","LANM","LA","DeQuincy","DeQuincy Industrial Airpark","5R8","LA","DeQuincy Industrial Airpark","22-0014","PU",null,"Other","GA","GA",0,8,8705684]
["SW","LANM","LA","DeRidder","Beauregard Regional","DRI","LA","Beauregard Regional","22-0015","PU",null,"Local","GA","GA",0,21,3788475]
["SW","LANM","LA","Eunice","Eunice","4R7","LA","Eunice","22-0016","PU",null,"Local","GA","GA",0,18,1100000]
["SW","LANM","LA","Farmerville","Union Parish","F87","LA","Union Parish","22-0017","PU",null,"Local","GA","GA",0,19,3768421]
["SW","LANM","LA","Galliano","South Lafourche Leonard Miller Jr","GAO","LA","South Lafourche Leonard Miller Jr","22-0067","PU",null,"Regional","GA","GA",3,11,5150000]
["SW","LANM","LA","Gonzales","Louisiana Regional","L38","LA","Louisiana Regional","22-0058","PU",null,"Regional","GA","GA",0,93,3064178]
["SW","LANM","LA","Hammond","Hammond Northshore Regional","HDC","LA","Hammond Northshore Regional","22-0018","PU",null,"Regional","GA","GA",104,88,1066684]
["SW","LANM","LA","Homer","Homer Municipal","5F4","LA","Homer Municipal","22-0019","PU",null,"Other","GA","GA",0,0,1210526]
["SW","LANM","LA","Houma","Houma-Terrebonne","HUM","LA","Houma-Terrebonne","22-0020","PU",null,"Regional","GA","GA",254,43,2700000]
["SW","LANM","LA","Jena","Jena","1R1","LA","Jena","22-0059","PU",null,"Other","GA","GA",0,7,2307895]
["SW","LANM","LA","Jennings","Jennings","3R7","LA","Jennings","22-0022","PU",null,"Local","GA","GA",0,34,3907895]
["SW","LANM","LA","Jonesboro","Jonesboro","F88","LA","Jonesboro","22-0023","PU",null,"Other","GA","GA",0,7,1583070]
["SW","LANM","LA","Jonesville","Jonesville","L32","LA","Jonesville","22-0087","PU",null,"Other","GA","GA",0,7,1052632]
["SW","LANM","LA","Lafayette","Lafayette Regional","LFT","LA","Lafayette Regional","22-0025","PU","N",null,"P","P",220211,162,23969268]
["SW","LANM","LA","Lake Charles","Chennault International","CWF","LA","Chennault International","22-0086","PU",null,"Regional","GA","GA",4,29,30475739]
["SW","LANM","LA","Lake Charles","Lake Charles Regional","LCH","LA","Lake Charles Regional","22-0026","PU","N",null,"P","P",65340,202,12160809]
["SW","LANM","LA","Lake Providence","Byerley","0M8","LA","Byerley","22-0027","PU",null,"Other","GA","GA",0,5,752632]
["SW","LANM","LA","Leesville","Leesville","L39","LA","Leesville","22-0057","PU",null,"Basic","GA","GA",0,15,2339302]
["SW","LANM","LA","Mansfield","C E 'Rusty' Williams","3F3","LA","C E 'Rusty' Williams","22-0029","PU",null,"Basic","GA","GA",0,10,0]
["SW","LANM","LA","Many","Hart","3R4","LA","Hart","22-0030","PU",null,"Other","GA","GA",0,1,2517105]
["SW","LANM","LA","Marksville","Marksville Municipal","MKV","LA","Marksville Municipal","22-0031","PU",null,"Basic","GA","GA",0,12,1044737]
["SW","LANM","LA","Minden","Minden","MNE","LA","Minden","22-0032","PU",null,"Local","GA","GA",0,20,6750000]
["SW","LANM","LA","Monroe","Monroe Regional","MLU","LA","Monroe Regional","22-0033","PU","N",null,"P","P",100419,93,3495248]
["SW","LANM","LA","Natchitoches","Natchitoches Regional","IER","LA","Natchitoches Regional","22-0034","PU",null,"Local","GA","GA",0,36,1767105]
["SW","LANM","LA","New Iberia","Acadiana Regional","ARA","LA","Acadiana Regional","22-0036","PU",null,"Local","GA","GA",20,56,2180526]
["SW","LANM","LA","New Orleans","New Orleans Downtown","7N0","LA","New Orleans Downtown","22-0075","PU",null,"Other","GA","GA",0,0,0]
["SW","LANM","LA","New Orleans","Louis Armstrong New Orleans International","MSY","LA","Louis Armstrong New Orleans International","22-0037","PU","M",null,"P","P",4088889,18,94819999]
["SW","LANM","LA","New Orleans","Lakefront","NEW","LA","Lakefront","22-0038","PU",null,"Regional","R","R",113,116,34775000]
["SW","LANM","LA","New Roads","False River Regional","HZR","LA","False River Regional","22-0074","PU",null,"Local","GA","GA",0,23,1683000]
["SW","LANM","LA","Oak Grove","Kelly","9M6","LA","Kelly","22-0041","PU",null,"Other","GA","GA",0,4,1778947]
["SW","LANM","LA","Oakdale","Allen Parish","ACP","LA","Allen Parish","22-0042","PU",null,"Other","GA","GA",0,8,4483579]
["SW","LANM","LA","Opelousas","St Landry Parish-Ahart Field","OPL","LA","St Landry Parish-Ahart Field","22-0043","PU",null,"Local","GA","GA",0,43,1605263]
["SW","LANM","LA","Patterson","Harry P Williams Memorial","PTN","LA","Harry P Williams Memorial","22-0044","PU",null,"Local","GA","GA",0,38,2634211]
["SW","LANM","LA","Rayville","John H Hooks Jr Memorial","M79","LA","John H Hooks Jr Memorial","22-0045","PU",null,"Local","GA","GA",0,26,2248421]
["SW","LANM","LA","Reserve","St John the Baptist Parish","1L0","LA","St John the Baptist Parish","22-0064","PU",null,"Local","GA","GA",0,38,6300000]
["SW","LANM","LA","Ruston","Ruston Regional","RSN","LA","Ruston Regional","22-0082","PU",null,"Regional","GA","GA",0,33,5701687]
["SW","LANM","LA","Shreveport","Shreveport Downtown","DTN","LA","Shreveport Downtown","22-0047","PU",null,"Regional","R","R",0,225,4639736]
["SW","LANM","LA","Shreveport","Shreveport Regional","SHV","LA","Shreveport Regional","22-0048","PU","N",null,"P","P",237945,64,16100790]
["SW","LANM","LA","Slidell","Slidell","ASD","LA","Slidell","22-0060","PU",null,"Local","R","R",2,97,4135000]
["SW","LANM","LA","Springhill","Springhill","SPH","LA","Springhill","22-0049","PU",null,"Other","GA","GA",0,5,1747368]
["SW","LANM","LA","Sulphur","Southland Field","UXL","LA","Southland Field","22-0080","PU",null,"Local","GA","GA",0,26,1352632]
["SW","LANM","LA","Tallulah/Vicksburg, Ms","Vicksburg Tallulah Regional","TVR","LA","Vicksburg Tallulah Regional","22-0084","PU",null,"Local","GA","GA",0,23,2873684]
["SW","LANM","LA","Thibodaux","Thibodaux Municipal","L83","LA","Thibodaux Municipal","22-0072","PU",null,"Other","GA","GA",0,6,678948]
["SW","LANM","LA","Vidalia","Concordia Parish","0R4","LA","Concordia Parish","22-0061","PU",null,"Local","GA","GA",0,19,1847369]
["SW","LANM","LA","Vivian","Vivian","3F4","LA","Vivian","22-0070","PU",null,"Basic","GA","GA",0,6,2839579]
["SW","LANM","LA","Winnfield","David G Joyce","0R5","LA","David G Joyce","22-0063","PU",null,"Other","GA","GA",0,4,1236842]
["SW","LANM","LA","Winnsboro","Winnsboro Municipal","F89","LA","Winnsboro Municipal","22-0053","PU",null,"Basic","GA","GA",0,13,810000]
["SW","LANM","NM","Alamogordo","Alamogordo-White Sands Regional","ALM","NM","Alamogordo-White Sands Regional","35-0001","PU",null,"Regional","GA","GA",369,79,6154572]
["SW","LANM","NM","Albuquerque","Albuquerque International Sunport","ABQ","NM","Albuquerque International Sunport","35-0003","PU","M",null,"P","P",2828420,201,95130933]
["SW","LANM","NM","Albuquerque","Double Eagle II","AEG","NM","Double Eagle II","35-0002","PU",null,"Regional","R","R",0,134,15511985]
["SW","LANM","NM","Angel Fire","Angel Fire","AXX","NM","Angel Fire","35-0058","PU",null,"Other","GA","GA",0,2,1752895]
["SW","LANM","NM","Artesia","Artesia Municipal","ATS","NM","Artesia Municipal","35-0005","PU",null,"Regional","GA","GA",0,27,1502911]
["SW","LANM","NM","Aztec","Aztec Municipal","N19","NM","Aztec Municipal","35-0056","PU",null,"Local","GA","GA",0,18,1748006]
["SW","LANM","NM","Belen","Alexander Municipal","E80","NM","Alexander Municipal","35-0006","PU",null,"Local","GA","GA",0,52,6473685]
["SW","LANM","NM","Black Rock","New Airport","083","NM","New Airport","35-0064",null,null,null,null,"GA",0,0,4616280]
["SW","LANM","NM","Carlsbad","Cavern City Air Terminal","CNM","NM","Cavern City Air Terminal","35-0007","PU",null,"Regional","CS","CS",2606,27,6636185]
["SW","LANM","NM","Carrizozo","Carrizozo Municipal","F37","NM","Carrizozo Municipal","35-0008","PU",null,"Other","GA","GA",0,9,1657895]
["SW","LANM","NM","Clayton","Clayton Municipal Airpark","CAO","NM","Clayton Municipal Airpark","35-0010","PU",null,"Basic","GA","GA",0,10,4052631]
["SW","LANM","NM","Clovis","Clovis Municipal","CVN","NM","Clovis Municipal","35-0011","PU",null,"Regional","GA","GA",2165,71,6195527]
["SW","LANM","NM","Conchas Dam","Conchas Lake","E89","NM","Conchas Lake","35-0012","PU",null,"Basic","GA","GA",0,3,1128947]
["SW","LANM","NM","Crownpoint","Crownpoint","0E8","NM","Crownpoint","35-0048","NA",null,"Basic","GA","GA",212,0,1750000]
["SW","LANM","NM","Deming","Deming Municipal","DMN","NM","Deming Municipal","35-0013","PU",null,"Local","GA","GA",3,22,5992315]
["SW","LANM","NM","Dulce","Jicarilla Apache Nation","24N","NM","Jicarilla Apache Nation","35-0505","NA",null,"Basic","GA","GA",0,0,4536842]
["SW","LANM","NM","Espanola","Ohkay Owingeh","E14","NM","Ohkay Owingeh","35-0014","PU",null,"Other","GA","GA",0,2,874109]
["SW","LANM","NM","Farmington","Four Corners Regional","FMN","NM","Four Corners Regional","35-0016","PU","N",null,"P","P",13389,117,1950000]
["SW","LANM","NM","Fort Sumner","Fort Sumner Municipal","FSU","NM","Fort Sumner Municipal","35-0018","PU",null,"Basic","GA","GA",0,5,1417632]
["SW","LANM","NM","Gallup","Gallup Municipal","GUP","NM","Gallup Municipal","35-0019","PU",null,"Local","GA","GA",4187,24,8783441]
["SW","LANM","NM","Glenwood","Glenwood-Catron County","E94","NM","Glenwood-Catron County","35-0507","PU",null,"Other","GA","GA",0,0,0]
["SW","LANM","NM","Grants","Grants-Milan Municipal","GNT","NM","Grants-Milan Municipal","35-0020","PU",null,"Basic","GA","GA",6,14,1762169]
["SW","LANM","NM","Hatch","Hatch Municipal","E05","NM","Hatch Municipal","35-0021","PU",null,"Basic","GA","GA",0,0,2536842]
["SW","LANM","NM","Hobbs","Lea County Regional","HOB","NM","Lea County Regional","35-0022","PU",null,"Regional","GA","GA",334,34,4161106]
["SW","LANM","NM","Jal","Lea County/Jal/","E26","NM","Lea County/Jal/","35-0023","PU",null,"Other","GA","GA",0,2,2021053]
["SW","LANM","NM","Las Cruces","Las Cruces International","LRU","NM","Las Cruces International","35-0024","PU",null,"Regional","GA","GA",227,131,9571578]
["SW","LANM","NM","Las Vegas","Las Vegas Municipal","LVS","NM","Las Vegas Municipal","35-0025","PU",null,"Basic","GA","GA",30,11,2201316]
["SW","LANM","NM","Lordsburg","Lordsburg Municipal","LSB","NM","Lordsburg Municipal","35-0026","PU",null,"Basic","GA","GA",0,4,2550000]
["SW","LANM","NM","Los Alamos","Los Alamos","LAM","NM","Los Alamos","35-0054","PU",null,"Local","GA","GA",0,61,1640790]
["SW","LANM","NM","Lovington","Lea County-Zip Franklin Memorial","E06","NM","Lea County-Zip Franklin Memorial","35-0027","PU",null,"Other","GA","GA",0,7,2944736]
["SW","LANM","NM","Magdalena","Magdalena","N29","NM","Magdalena","35-0004","PU",null,"Other","GA","GA",0,2,8094738]
["SW","LANM","NM","Moriarty","Moriarty","0E0","NM","Moriarty","35-0029","PU",null,"Local","GA","GA",2,40,4993437]
["SW","LANM","NM","Navajo Dam","Navajo Lake","1V0","NM","Navajo Lake","35-0030","PU",null,"Other","GA","GA",0,0,2287632]
["SW","LANM","NM","Portales","Portales Municipal","PRZ","NM","Portales Municipal","35-0061","PU",null,"Local","GA","GA",0,21,1681666]
["SW","LANM","NM","Questa","Questa Municipal Nr 2","N24","NM","Questa Municipal Nr 2","35-0063","PU",null,"Other","GA","GA",0,1,3050000]
["SW","LANM","NM","Raton","Raton Municipal/Crews Field","RTN","NM","Raton Municipal/Crews Field","35-0033","PU",null,"Local","GA","GA",3,19,4536238]
["SW","LANM","NM","Reserve","Reserve","T16","NM","Reserve","35-0034","PU",null,"Other","GA","GA",0,0,2777368]
["SW","LANM","NM","Roswell","Roswell International Air Center","ROW","NM","Roswell International Air Center","35-0035","PU","N",null,"P","P",38850,34,9047084]
["SW","LANM","NM","Ruidoso","Sierra Blanca Regional","SRR","NM","Sierra Blanca Regional","35-0052","PU",null,"Regional","GA","GA",2,37,4407275]
["SW","LANM","NM","Santa Fe","Santa Fe Municipal","SAF","NM","Santa Fe Municipal","35-0037","PU","N",null,"P","P",43807,179,5807939]
["SW","LANM","NM","Santa Rosa","Santa Rosa Route 66","SXU","NM","Santa Rosa Route 66","35-0038","PU",null,"Basic","GA","GA",0,0,3357632]
["SW","LANM","NM","Santa Teresa","Dona Ana County at Santa Teresa","5T6","NM","Dona Ana County at Santa Teresa","35-0055","PU",null,"Regional","GA","GA",14,102,882895]
["SW","LANM","NM","Shiprock","Shiprock Airstrip","5V5","NM","Shiprock Airstrip","35-0049","NA",null,"Other","GA","GA",125,0,1736842]
["SW","LANM","NM","Silver City","Grant County","SVC","NM","Grant County","35-0039","PU",null,"Local","GA","GA",1501,17,4021053]
["SW","LANM","NM","Socorro","Socorro Municipal","ONM","NM","Socorro Municipal","35-0040","PU",null,"Other","GA","GA",0,2,2460986]
["SW","LANM","NM","Springer","Springer Municipal","S42","NM","Springer Municipal","35-0051","PU",null,"Other","GA","GA",0,0,2355263]
["SW","LANM","NM","Taos","Taos Regional","SKX","NM","Taos Regional","35-0041","PU",null,"Local","GA","GA",2,40,9531189]
["SW","LANM","NM","Truth or Consequences","Truth Or Consequences Municipal","TCS","NM","Truth Or Consequences Municipal","35-0042","PU",null,"Local","GA","GA",200,32,2197369]
["SW","LANM","NM","Tucumcari","Tucumcari Municipal","TCC","NM","Tucumcari Municipal","35-0043","PU",null,"Basic","GA","GA",0,9,2473684]
["SW","LANM","NM","Vaughn","Vaughn Municipal","N17","NM","Vaughn Municipal","35-0509","PU",null,"Basic","GA","GA",0,0,1691092]
["SW","LANM","NM","Zuni Pueblo","Black Rock","ZUN","NM","Black Rock","35-0057","NA",null,"Basic","GA","GA",441,0,789474]
["SW","TEX","TX","Abilene","Abilene Regional","ABI","TX","Abilene Regional","48-0002","PU","N",null,"P","P",73605,105,29716507]
["SW","TEX","TX","Alice","Alice International","ALI","TX","Alice International","48-0003","PU",null,"Other","GA","GA",3,7,4382100]
["SW","TEX","TX","Alpine","Alpine-Casparis Municipal","E38","TX","Alpine-Casparis Municipal","48-0004","PU",null,"Local","GA","GA",21,30,5231205]
["SW","TEX","TX","Amarillo","Rick Husband Amarillo International","AMA","TX","Rick Husband Amarillo International","48-0007","PU","S",null,"P","P",394593,40,2807895]
["SW","TEX","TX","Anahuac","Chambers County","T00","TX","Chambers County","48-0355","PU",null,"Basic","GA","GA",0,9,2179031]
["SW","TEX","TX","Andrews","Andrews County","E11","TX","Andrews County","48-0009","PU",null,"Local","GA","GA",20,21,1400930]
["SW","TEX","TX","Angleton/Lake Jackson","Texas Gulf Coast Regional","LBX","TX","Texas Gulf Coast Regional","48-0238","PU",null,"Regional","R","R",4519,71,9384685]
["SW","TEX","TX","Arlington","Arlington Municipal","GKY","TX","Arlington Municipal","48-0010","PU",null,"Regional","R","R",24,250,11833363]
["SW","TEX","TX","Aspermont","Stonewall County","T60","TX","Stonewall County","48-0317","PU",null,"Other","GA","GA",0,0,530086]
["SW","TEX","TX","Athens","Athens Municipal","F44","TX","Athens Municipal","48-0011","PU",null,"Local","GA","GA",0,23,643186]
["SW","TEX","TX","Atlanta","Hall-Miller Municipal","ATA","TX","Hall-Miller Municipal","48-0012","PU",null,"Local","GA","GA",12,40,1197253]
["SW","TEX","TX","Austin","Austin-Bergstrom International","AUS","TX","Austin-Bergstrom International","48-0359","PU","M",null,"P","P",4201136,167,27399061]
["SW","TEX","TX","Bay City","Bay City Municipal","BYY","TX","Bay City Municipal","48-0016","PU",null,"Local","GA","GA",0,26,905376]
["SW","TEX","TX","Beaumont","Beaumont Municipal","BMT","TX","Beaumont Municipal","48-0240","PU",null,"Regional","GA","GA",0,23,2451016]
["SW","TEX","TX","Beaumont/Port Arthur","Jack Brooks Regional","BPT","TX","Jack Brooks Regional","48-0018","PU","N",null,"P","P",17394,124,25321362]
["SW","TEX","TX","Beeville","Beeville Municipal","BEA","TX","Beeville Municipal","48-0019","PU",null,"Basic","GA","GA",0,13,1307000]
["SW","TEX","TX","Big Spring","Big Spring McMahon-Wrinkle","BPG","TX","Big Spring McMahon-Wrinkle","48-0306","PU",null,"Local","GA","GA",1,45,4431014]
["SW","TEX","TX","Bonham","Jones Field","F00","TX","Jones Field","48-0023","PU",null,"Local","GA","GA",0,23,1970079]
["SW","TEX","TX","Borger","Hutchinson County","BGD","TX","Hutchinson County","48-0024","PU",null,"Local","GA","GA",0,21,1666918]
["SW","TEX","TX","Bowie","Bowie Municipal","0F2","TX","Bowie Municipal","48-0025","PU",null,"Local","GA","GA",0,23,1281779]
["SW","TEX","TX","Brady","Curtis Field","BBD","TX","Curtis Field","48-0027","PU",null,"Local","GA","GA",0,47,1031549]
["SW","TEX","TX","Breckenridge","Stephens County","BKD","TX","Stephens County","48-0028","PU",null,"Local","GA","GA",1,24,1564000]
["SW","TEX","TX","Brenham","Brenham Municipal","11R","TX","Brenham Municipal","48-0029","PU",null,"Local","GA","GA",0,35,1278944]
["SW","TEX","TX","Bridgeport","Bridgeport Municipal","XBP","TX","Bridgeport Municipal","48-0265","PU",null,"Local","GA","GA",0,55,7451000]
["SW","TEX","TX","Brownfield","Terry County","BFE","TX","Terry County","48-0030","PU",null,"Local","GA","GA",0,19,6306000]
["SW","TEX","TX","Brownsville","Brownsville/South Padre Island International","BRO","TX","Brownsville/South Padre Island International","48-0031","PU","N",null,"P","P",84401,48,29776316]
["SW","TEX","TX","Brownwood","Brownwood Regional","BWD","TX","Brownwood Regional","48-0032","PU",null,"Regional","GA","GA",0,54,6609848]
["SW","TEX","TX","Bryan","Coulter Field","CFD","TX","Coulter Field","48-0251","PU",null,"Local","GA","GA",0,66,4314309]
["SW","TEX","TX","Burnet","Burnet Municipal Kate Craddock Field","BMQ","TX","Burnet Municipal Kate Craddock Field","48-0302","PU",null,"Local","GA","GA",3,33,13531014]
["SW","TEX","TX","Caddo Mills","Caddo Mills Municipal","7F3","TX","Caddo Mills Municipal","48-0162","PU",null,"Other","GA","GA",0,3,1797220]
["SW","TEX","TX","Cameron","Cameron Municipal Airpark","T35","TX","Cameron Municipal Airpark","48-0036","PU",null,"Other","GA","GA",0,0,1226514]
["SW","TEX","TX","Canadian","Hemphill County","HHF","TX","Hemphill County","48-0292","PU",null,"Basic","GA","GA",0,10,5462552]
["SW","TEX","TX","Carrizo Springs","Dimmit County","CZT","TX","Dimmit County","48-0037","PU",null,"Basic","GA","GA",0,3,2964325]
["SW","TEX","TX","Carthage","Panola County-Sharpe Field","4F2","TX","Panola County-Sharpe Field","48-0038","PU",null,"Basic","GA","GA",0,12,1115423]
["SW","TEX","TX","Castroville","Castroville Municipal","CVB","TX","Castroville Municipal","48-0039","PU",null,"Local","GA","GA",0,39,5050039]
["SW","TEX","TX","Center","Center Municipal","F17","TX","Center Municipal","48-0040","PU",null,"Local","GA","GA",0,20,2057181]
["SW","TEX","TX","Clarksville","Clarksville/Red River County-J D Trissell Field","LBR","TX","Clarksville/Red River County-J D Trissell Field","48-0043","PU",null,"Other","GA","GA",0,6,844135]
["SW","TEX","TX","Cleburne","Cleburne Regional","CPT","TX","Cleburne Regional","48-0044","PU",null,"Regional","GA","GA",0,96,3306161]
["SW","TEX","TX","Cleveland","Cleveland Municipal","6R3","TX","Cleveland Municipal","48-0045","PU",null,"Local","GA","GA",0,46,1975946]
["SW","TEX","TX","Clifton","Clifton Municipal/Isenhower Field","7F7","TX","Clifton Municipal/Isenhower Field","48-0279","PU",null,"Local","GA","GA",0,15,996453]
["SW","TEX","TX","Coleman","Coleman Municipal","COM","TX","Coleman Municipal","48-0046","PU",null,"Local","GA","GA",0,29,1819303]
["SW","TEX","TX","College Station","Easterwood Field","CLL","TX","Easterwood Field","48-0047","PU","N",null,"P","P",72188,50,13165977]
["SW","TEX","TX","Comanche","Comanche County-City","MKN","TX","Comanche County-City","48-0049","PU",null,"Local","GA","GA",0,20,1123984]
["SW","TEX","TX","Commerce","Commerce Municipal","2F7","TX","Commerce Municipal","48-0233","PU",null,"Other","GA","GA",0,6,1735283]
["SW","TEX","TX","Corpus Christi","Corpus Christi International","CRP","TX","Corpus Christi International","48-0051","PU","N",null,"P","P",339193,79,67099914]
["SW","TEX","TX","Corsicana","C David Campbell Field-Corsicana Municipal","CRS","TX","C David Campbell Field-Corsicana Municipal","48-0052","PU",null,"Local","GA","GA",0,48,2842628]
["SW","TEX","TX","Cotulla","Cotulla-La Salle County","COT","TX","Cotulla-La Salle County","48-0053","PU",null,"Basic","GA","GA",56,9,6768300]
["SW","TEX","TX","Crockett","Houston County","DKR","TX","Houston County","48-0054","PU",null,"Local","GA","GA",0,22,3629470]
["SW","TEX","TX","Cuero","Cuero Municipal","T71","TX","Cuero Municipal","48-0303","PU",null,"Other","GA","GA",0,6,755000]
["SW","TEX","TX","Dalhart","Dalhart Municipal","DHT","TX","Dalhart Municipal","48-0060","PU",null,"Local","GA","GA",0,29,1689737]
["SW","TEX","TX","Dallas","Dallas CBD Vertiport","49T","TX","Dallas CBD Vertiport","48-0323","PU",null,"Other","GA","GA",0,0,0]
["SW","TEX","TX","Dallas","Addison","ADS","TX","Addison","48-0063","PU",null,"National","R","R",185,603,25088011]
["SW","TEX","TX","Dallas","Dallas Love Field","DAL","TX","Dallas Love Field","48-0062","PU","M",null,"P","P",3783407,737,735648067]
["SW","TEX","TX","Dallas","Dallas Executive","RBD","TX","Dallas Executive","48-0061","PU",null,"National","R","R",3,185,16209255]
["SW","TEX","TX","Dallas","Collin County Regional at McKinney","TKI","TX","Collin County Regional at McKinney","48-0284","PU",null,"National","R","R",572,174,13705145]
["SW","TEX","TX","Dallas-Fort Worth","Dallas/Fort Worth International","DFW","TX","Dallas/Fort Worth International","48-0064","PU","L",null,"P","P",27100656,0,543407857]
["SW","TEX","TX","Decatur","Decatur Municipal","LUD","TX","Decatur Municipal","48-0065","PU",null,"Local","GA","GA",0,29,2884355]
["SW","TEX","TX","Del Rio","Del Rio International","DRT","TX","Del Rio International","48-0066","PU","N",null,"P","P",13180,42,5231463]
["SW","TEX","TX","Denton","Denton Municipal","DTO","TX","Denton Municipal","48-0067","PU",null,"Regional","R","R",29,216,15011703]
["SW","TEX","TX","Devine","Devine Municipal","23R","TX","Devine Municipal","48-0069","PU",null,"Basic","GA","GA",0,14,1664307]
["SW","TEX","TX","Dimmitt","Dimmitt Municipal","T55","TX","Dimmitt Municipal","48-0070","PU",null,"Other","GA","GA",0,3,1250948]
["SW","TEX","TX","Dumas","Moore County","DUX","TX","Moore County","48-0072","PU",null,"Basic","GA","GA",0,3,2515173]
["SW","TEX","TX","Eagle Lake","Eagle Lake","ELA","TX","Eagle Lake","48-0356","PU",null,"Local","GA","GA",0,23,1051050]
["SW","TEX","TX","Eagle Pass","Maverick County Memorial International","5T9","TX","Maverick County Memorial International","48-0236","PU",null,"Basic","GA","GA",0,2,2660852]
["SW","TEX","TX","Eastland","Eastland Municipal","ETN","TX","Eastland Municipal","48-0288","PU",null,"Local","GA","GA",0,18,832830]
["SW","TEX","TX","Edinburg","South Texas International at Edinburg","EBG","TX","South Texas International at Edinburg","48-0333","PU",null,"Local","GA","GA",0,5,3139711]
["SW","TEX","TX","Edna","Jackson County","26R","TX","Jackson County","48-0075","PU",null,"Local","GA","GA",0,22,1436000]
["SW","TEX","TX","El Paso","El Paso International","ELP","TX","El Paso International","48-0077","PU","S",null,"P","P",1509093,279,89850264]
["SW","TEX","TX","Ennis","Ennis Municipal","F41","TX","Ennis Municipal","48-0079","PU",null,"Basic","GA","GA",0,11,157734]
["SW","TEX","TX","Fabens","Fabens","E35","TX","Fabens","48-0357","PU",null,"Basic","GA","GA",0,13,896732]
["SW","TEX","TX","Falfurrias","Brooks County","BKS","TX","Brooks County","48-0081","PU",null,"Other","GA","GA",0,1,752684]
["SW","TEX","TX","Floydada","Floydada Municipal","41F","TX","Floydada Municipal","48-0082","PU",null,"Local","GA","GA",0,16,811094]
["SW","TEX","TX","Fort Hood/Killeen","Robert Gray AAF","GRK","TX","Robert Gray AAF","48-0361","MR","N",null,"P","P",243861,0,8509184]
["SW","TEX","TX","Fort Stockton","Fort Stockton-Pecos County","FST","TX","Fort Stockton-Pecos County","48-0083","PU",null,"Local","GA","GA",30,19,1575707]
["SW","TEX","TX","Fort Worth","Fort Worth Alliance","AFW","TX","Fort Worth Alliance","48-0296","PU",null,"National","R","R",1518,155,58086655]
["SW","TEX","TX","Fort Worth","Fort Worth Meacham International","FTW","TX","Fort Worth Meacham International","48-0085","PU",null,"National","R","R",809,215,29504734]
["SW","TEX","TX","Fort Worth","Fort Worth Spinks","FWS","TX","Fort Worth Spinks","48-0086","PU",null,"Regional","R","R",115,170,8453066]
["SW","TEX","TX","Fredericksburg","Gillespie County","T82","TX","Gillespie County","48-0087","PU",null,"Regional","GA","GA",8,67,1072508]
["SW","TEX","TX","Gainesville","Gainesville Municipal","GLE","TX","Gainesville Municipal","48-0089","PU",null,"Local","GA","GA",2,63,1452496]
["SW","TEX","TX","Galveston","Scholes International at Galveston","GLS","TX","Scholes International at Galveston","48-0090","PU",null,"Regional","R","R",2,138,12117792]
["SW","TEX","TX","Garland","Garland/DFW Heloplex","T57","TX","Garland/DFW Heloplex","48-0344","PU",null,"Basic","GA","GA",0,14,40350]
["SW","TEX","TX","Gatesville","Gatesville Municipal","GOP","TX","Gatesville Municipal","48-0092","PU",null,"Other","GA","GA",0,2,1009042]
["SW","TEX","TX","Georgetown","Georgetown Municipal","GTU","TX","Georgetown Municipal","48-0093","PU",null,"Regional","R","R",4,216,2548615]
["SW","TEX","TX","Giddings","Giddings-Lee County","GYB","TX","Giddings-Lee County","48-0362","PU",null,"Basic","GA","GA",0,12,2106735]
["SW","TEX","TX","Gilmer","Fox Stephens Field - Gilmer Municipal","JXI","TX","Fox Stephens Field - Gilmer Municipal","48-0094","PU",null,"Local","GA","GA",0,39,2596998]
["SW","TEX","TX","Gladewater","Gladewater Municipal","07F","TX","Gladewater Municipal","48-0095","PU",null,"Other","GA","GA",0,0,758970]
["SW","TEX","TX","Graham","Graham Municipal","RPH","TX","Graham Municipal","48-0096","PU",null,"Local","GA","GA",0,33,936400]
["SW","TEX","TX","Granbury","Granbury Regional","GDJ","TX","Granbury Regional","48-0297","PU",null,"Local","GA","GA",0,74,15255002]
["SW","TEX","TX","Grand Prairie","Grand Prairie Municipal","GPM","TX","Grand Prairie Municipal","48-0097","PU",null,"Regional","R","R",0,186,4870212]
["SW","TEX","TX","Greenville","Majors","GVT","TX","Majors","48-0098","PU",null,"Local","GA","GA",0,31,4907560]
["SW","TEX","TX","Gruver","Gruver Municipal","E19","TX","Gruver Municipal","48-0099","PU",null,"Other","GA","GA",0,5,650069]
["SW","TEX","TX","Hamilton","Hamilton Municipal","MNZ","TX","Hamilton Municipal","48-0261","PU",null,"Basic","GA","GA",0,0,2436025]
["SW","TEX","TX","Harlingen","Valley International","HRL","TX","Valley International","48-0101","PU","S",null,"P","P",373438,33,25940437]
["SW","TEX","TX","Haskell","Haskell Municipal","15F","TX","Haskell Municipal","48-0232","PU",null,"Other","GA","GA",0,8,470000]
["SW","TEX","TX","Hearne","Hearne Municipal","LHB","TX","Hearne Municipal","48-0102","PU",null,"Other","GA","GA",0,0,1198548]
["SW","TEX","TX","Hebbronville","Jim Hogg County","HBV","TX","Jim Hogg County","48-0345","PU",null,"Basic","GA","GA",51,3,1366486]
["SW","TEX","TX","Henderson","Rusk County","RFI","TX","Rusk County","48-0103","PU",null,"Local","GA","GA",0,17,1703207]
["SW","TEX","TX","Hereford","Hereford Municipal","HRX","TX","Hereford Municipal","48-0104","PU",null,"Local","GA","GA",0,34,2425998]
["SW","TEX","TX","Hillsboro","Hillsboro Municipal","INJ","TX","Hillsboro Municipal","48-0283","PU",null,"Local","GA","GA",0,20,1294778]
["SW","TEX","TX","Hondo","Hondo Municipal","HDO","TX","Hondo Municipal","48-0106","PU",null,"Local","GA","GA",0,17,4158639]
["SW","TEX","TX","Houston","Houston-Southwest","AXH","TX","Houston-Southwest","48-0294","PR",null,"Regional","R","R",6,129,24835414]
["SW","TEX","TX","Houston","Lone Star Executive","CXO","TX","Lone Star Executive","48-0050","PU",null,"National","R","R",9,241,1322103]
["SW","TEX","TX","Houston","David Wayne Hooks Memorial","DWH","TX","David Wayne Hooks Memorial","48-0107","PR",null,"Regional","R","R",53,166,6956780]
["SW","TEX","TX","Houston","Ellington Field","EFD","TX","Ellington Field","48-0290","PU",null,"National","R","R",1206,173,50423357]
["SW","TEX","TX","Houston","William P Hobby","HOU","TX","William P Hobby","48-0110","PU","M",null,"P","P",4357835,269,59333333]
["SW","TEX","TX","Houston","George Bush Intercontinental/Houston","IAH","TX","George Bush Intercontinental/Houston","48-0111","PU","L",null,"P","P",19528631,37,774400640]
["SW","TEX","TX","Houston","West Houston","IWS","TX","West Houston","48-0275","PR",null,"Other","R","R",1,0,2479895]
["SW","TEX","TX","Houston","Pearland Regional","LVJ","TX","Pearland Regional","48-0348","PR",null,"Regional","R","R",0,151,17004556]
["SW","TEX","TX","Houston","Sugar Land Regional","SGR","TX","Sugar Land Regional","48-0113","PU",null,"National","R","R",189,129,43960942]
["SW","TEX","TX","Huntsville","Huntsville Municipal","UTS","TX","Huntsville Municipal","48-0114","PU",null,"Local","GA","GA",0,0,3972025]
["SW","TEX","TX","Ingleside","T P McCampbell","TFP","TX","T P McCampbell","48-0255","PU",null,"Local","GA","GA",0,23,780138]
["SW","TEX","TX","Jacksboro","Jacksboro Municipal","21F","TX","Jacksboro Municipal","48-0115","PU",null,"Other","GA","GA",0,3,421140]
["SW","TEX","TX","Jacksonville","Cherokee County","JSO","TX","Cherokee County","48-0116","PU",null,"Local","GA","GA",0,46,3400747]
["SW","TEX","TX","Jasper","Jasper County-Bell Field","JAS","TX","Jasper County-Bell Field","48-0117","PU",null,"Local","GA","GA",0,25,3782042]
["SW","TEX","TX","Junction","Kimble County","JCT","TX","Kimble County","48-0119","PU",null,"Basic","GA","GA",9,10,754502]
["SW","TEX","TX","Kenedy","Karnes County","2R9","TX","Karnes County","48-0120","PU",null,"Other","GA","GA",0,6,1868350]
["SW","TEX","TX","Kerrville","Kerrville Municipal/Louis Schreiner Field","ERV","TX","Kerrville Municipal/Louis Schreiner Field","48-0121","PU",null,"Regional","GA","GA",18,166,9842191]
["SW","TEX","TX","Killeen","Skylark Field","ILE","TX","Skylark Field","48-0122","PU",null,"Local","GA","GA",0,55,1151250]
["SW","TEX","TX","Kingsville","Kleberg County","IKG","TX","Kleberg County","48-0124","PU",null,"Basic","GA","GA",0,14,5729998]
["SW","TEX","TX","Kountze/Silsbee","Hawthorne Field","45R","TX","Hawthorne Field","48-0126","PU",null,"Other","GA","GA",0,0,1635669]
["SW","TEX","TX","La Grange","Fayette Regional Air Center","3T5","TX","Fayette Regional Air Center","48-0244","PU",null,"Local","GA","GA",0,16,1501636]
["SW","TEX","TX","La Porte","La Porte Municipal","T41","TX","La Porte Municipal","48-0127","PU",null,"Local","R","R",0,91,1271563]
["SW","TEX","TX","Lago Vista","Lago Vista Tx - Rusty Allen","RYW","TX","Lago Vista Tx - Rusty Allen","48-0360","PU",null,"Local","GA","GA",0,17,1064841]
["SW","TEX","TX","Lamesa","Lamesa Municipal","2F5","TX","Lamesa Municipal","48-0129","PU",null,"Local","GA","GA",0,29,1231858]
["SW","TEX","TX","Lampasas","Lampasas","LZZ","TX","Lampasas","48-0278","PU",null,"Local","GA","GA",0,15,3618607]
["SW","TEX","TX","Lancaster","Lancaster Regional","LNC","TX","Lancaster Regional","48-0300","PU",null,"Local","R","R",4,138,16055728]
["SW","TEX","TX","Laredo","Laredo International","LRD","TX","Laredo International","48-0136","PU","N",null,"P","P",112520,46,79047288]
["SW","TEX","TX","Levelland","Levelland Municipal","LLN","TX","Levelland Municipal","48-0132","PU",null,"Local","GA","GA",0,38,774688]
["SW","TEX","TX","Liberty","Liberty Municipal","T78","TX","Liberty Municipal","48-0133","PU",null,"Basic","GA","GA",0,12,1274165]
["SW","TEX","TX","Littlefield","Littlefield Municipal","LIU","TX","Littlefield Municipal","48-0134","PU",null,"Basic","GA","GA",0,13,1465367]
["SW","TEX","TX","Livingston","Livingston Municipal","00R","TX","Livingston Municipal","48-0135","PU",null,"Local","GA","GA",0,26,933077]
["SW","TEX","TX","Llano","Llano Municipal","AQO","TX","Llano Municipal","48-0245","PU",null,"Local","GA","GA",0,27,779591]
["SW","TEX","TX","Lockhart","Lockhart Municipal","50R","TX","Lockhart Municipal","48-0347","PU",null,"Local","GA","GA",0,39,472000]
["SW","TEX","TX","Longview","East Texas Regional","GGG","TX","East Texas Regional","48-0137","PU","N",null,"P","P",21830,90,31910159]
["SW","TEX","TX","Lubbock","Lubbock Preston Smith International","LBB","TX","Lubbock Preston Smith International","48-0138","PU","S",null,"P","P",508858,134,66557663]
["SW","TEX","TX","Lufkin","Angelina County","LFK","TX","Angelina County","48-0139","PU",null,"Regional","GA","GA",0,66,1701579]
["SW","TEX","TX","Marfa","Marfa Municipal","MRF","TX","Marfa Municipal","48-0141","PU",null,"Local","GA","GA",0,24,6452179]
["SW","TEX","TX","Marshall","Harrison County","ASL","TX","Harrison County","48-0142","PU",null,"Regional","GA","GA",2,23,3235318]
["SW","TEX","TX","McAllen","McAllen Miller International","MFE","TX","McAllen Miller International","48-0144","PU","N",null,"P","P",344302,104,57397633]
["SW","TEX","TX","Memphis","Memphis Municipal","F21","TX","Memphis Municipal","48-0146","PU",null,"Other","GA","GA",0,2,1227985]
["SW","TEX","TX","Mesquite","Mesquite Metro","HQZ","TX","Mesquite Metro","48-0307","PU",null,"Regional","R","R",15,188,16244895]
["SW","TEX","TX","Mexia","Mexia-Limestone County","LXY","TX","Mexia-Limestone County","48-0274","PU",null,"Basic","GA","GA",0,14,1963225]
["SW","TEX","TX","Midland","Midland International","MAF","TX","Midland International","48-0150","PU","S",null,"P","P",445043,86,18017337]
["SW","TEX","TX","Midland","Midland Airpark","MDD","TX","Midland Airpark","48-0149","PU",null,"Regional","GA","GA",8,90,1282536]
["SW","TEX","TX","Midlothian/Waxahachie","Mid-Way Regional","JWY","TX","Mid-Way Regional","48-0313","PU",null,"Local","GA","GA",4,67,2865000]
["SW","TEX","TX","Mineral Wells","Mineral Wells","MWL","TX","Mineral Wells","48-0151","PU",null,"Local","GA","GA",43,77,2367925]
["SW","TEX","TX","Monahans","Roy Hurd Memorial","E01","TX","Roy Hurd Memorial","48-0152","PU",null,"Local","GA","GA",0,27,2166347]
["SW","TEX","TX","Morton","Cochran County","F85","TX","Cochran County","48-0153","PU",null,"Basic","GA","GA",0,11,1507778]
["SW","TEX","TX","Mount Pleasant","Mount Pleasant Regional","OSA","TX","Mount Pleasant Regional","48-0363","PU",null,"Local","GA","GA",2,47,6128598]
["SW","TEX","TX","Mount Vernon","Franklin County","F53","TX","Franklin County","48-0321","PU",null,"Local","GA","GA",0,14,896027]
["SW","TEX","TX","Muleshoe","Muleshoe Municipal","2T1","TX","Muleshoe Municipal","48-0320","PU",null,"Other","GA","GA",0,7,903766]
["SW","TEX","TX","Nacogdoches","A L Mangham Jr. Regional","OCH","TX","A L Mangham Jr. Regional","48-0156","PU",null,"Local","GA","GA",0,31,1985548]
["SW","TEX","TX","New Braunfels","New Braunfels Municipal","BAZ","TX","New Braunfels Municipal","48-0158","PU",null,"Regional","GA","GA",0,134,16821443]
["SW","TEX","TX","Odessa","Odessa-Schlemeyer Field","ODO","TX","Odessa-Schlemeyer Field","48-0160","PU",null,"Regional","GA","GA",5,92,785910]
["SW","TEX","TX","Olney","Olney Municipal","ONY","TX","Olney Municipal","48-0161","PU",null,"Local","GA","GA",0,22,2081570]
["SW","TEX","TX","Orange","Orange County","ORG","TX","Orange County","48-0163","PU",null,"Local","GA","GA",0,25,991939]
["SW","TEX","TX","Ozona","Ozona Municipal","OZA","TX","Ozona Municipal","48-0164","PU",null,"Basic","GA","GA",20,0,882320]
["SW","TEX","TX","Palacios","Palacios Municipal","PSX","TX","Palacios Municipal","48-0166","PU",null,"Local","GA","GA",100,15,2680299]
["SW","TEX","TX","Palestine","Palestine Municipal","PSN","TX","Palestine Municipal","48-0167","PU",null,"Local","GA","GA",0,27,2497076]
["SW","TEX","TX","Pampa","Perry Lefors Field","PPA","TX","Perry Lefors Field","48-0168","PU",null,"Other","GA","GA",0,0,5962076]
["SW","TEX","TX","Paris","Cox Field","PRX","TX","Cox Field","48-0169","PU",null,"Local","GA","GA",0,45,958880]
["SW","TEX","TX","Pecos","Pecos Municipal","PEQ","TX","Pecos Municipal","48-0171","PU",null,"Local","GA","GA",0,15,2293834]
["SW","TEX","TX","Perryton","Perryton Ochiltree County","PYX","TX","Perryton Ochiltree County","48-0172","PU",null,"Other","GA","GA",0,0,5342264]
["SW","TEX","TX","Plainview","Hale County","PVW","TX","Hale County","48-0175","PU",null,"Local","GA","GA",0,46,4966400]
["SW","TEX","TX","Pleasanton","Pleasanton Municipal","PEZ","TX","Pleasanton Municipal","48-0247","PU",null,"Local","GA","GA",0,25,838455]
["SW","TEX","TX","Port Isabel","Port Isabel-Cameron County","PIL","TX","Port Isabel-Cameron County","48-0176","PU",null,"Regional","GA","GA",0,16,5282677]
["SW","TEX","TX","Port Lavaca","Calhoun County","PKV","TX","Calhoun County","48-0177","PU",null,"Basic","GA","GA",0,10,1178740]
["SW","TEX","TX","Post","Post-Garza County Municipal","5F1","TX","Post-Garza County Municipal","48-0179","PU",null,"Other","GA","GA",0,3,464114]
["SW","TEX","TX","Quanah","Quanah Municipal","F01","TX","Quanah Municipal","48-0180","PU",null,"Other","GA","GA",0,0,905649]
["SW","TEX","TX","Refugio","Rooke Field","RFG","TX","Rooke Field","48-0183","PR",null,"Local","GA","GA",0,19,274057]
["SW","TEX","TX","Robstown","Nueces County","RBO","TX","Nueces County","48-0184","PU",null,"Local","GA","GA",0,17,809745]
["SW","TEX","TX","Rockport","Aransas County","RKP","TX","Aransas County","48-0186","PU",null,"Local","GA","GA",0,66,2778000]
["SW","TEX","TX","Rockwall","Rockwall Municipal","F46","TX","Rockwall Municipal","48-0187","PU",null,"Local","GA","GA",4,68,1038678]
["SW","TEX","TX","San Angelo","San Angelo Regional/Mathis Field","SJT","TX","San Angelo Regional/Mathis Field","48-0191","PU","N",null,"P","P",56021,170,8461862]
["SW","TEX","TX","San Antonio","San Antonio International","SAT","TX","San Antonio International","48-0192","PU","M",null,"P","P",3916320,209,278332525]
["SW","TEX","TX","San Antonio","Stinson Municipal","SSF","TX","Stinson Municipal","48-0194","PU",null,"Local","R","R",0,42,6595663]
["SW","TEX","TX","San Marcos","San Marcos Municipal","HYI","TX","San Marcos Municipal","48-0195","PU",null,"Regional","R","R",8,108,13238910]
["SW","TEX","TX","Seminole","Gaines County","GNC","TX","Gaines County","48-0197","PU",null,"Local","GA","GA",0,25,939747]
["SW","TEX","TX","Seymour","Seymour Municipal","60F","TX","Seymour Municipal","48-0198","PU",null,"Basic","GA","GA",0,2,3058651]
["SW","TEX","TX","Sherman/Denison","North Texas Regional/Perrin Field","GYI","TX","North Texas Regional/Perrin Field","48-0239","PU",null,"Regional","GA","GA",0,149,3812588]
["SW","TEX","TX","Slaton","Slaton Municipal","F49","TX","Slaton Municipal","48-0202","PU",null,"Basic","GA","GA",0,14,1369713]
["SW","TEX","TX","Smithville","Smithville Crawford Municipal","84R","TX","Smithville Crawford Municipal","48-0285","PU",null,"Local","GA","GA",0,22,1567500]
["SW","TEX","TX","Snyder","Winston Field","SNK","TX","Winston Field","48-0203","PU",null,"Local","GA","GA",0,24,1027132]
["SW","TEX","TX","Spearman","Major Samuel B Cornelius Field","E42","TX","Major Samuel B Cornelius Field","48-0204","PU",null,"Basic","GA","GA",0,12,4763955]
["SW","TEX","TX","Stamford","Arledge Field","F56","TX","Arledge Field","48-0205","PU",null,"Other","GA","GA",0,5,2099103]
["SW","TEX","TX","Stephenville","Clark Field Municipal","SEP","TX","Clark Field Municipal","48-0206","PU",null,"Local","GA","GA",0,32,4898998]
["SW","TEX","TX","Sulphur Springs","Sulphur Springs Municipal","SLR","TX","Sulphur Springs Municipal","48-0207","PU",null,"Local","GA","GA",0,72,956704]
["SW","TEX","TX","Sweetwater","Avenger Field","SWW","TX","Avenger Field","48-0209","PU",null,"Local","GA","GA",0,19,1535362]
["SW","TEX","TX","Taylor","Taylor Municipal","T74","TX","Taylor Municipal","48-0210","PU",null,"Basic","GA","GA",0,11,4388023]
["SW","TEX","TX","Temple","Draughon-Miller Central Texas Regional","TPL","TX","Draughon-Miller Central Texas Regional","48-0212","PU",null,"Regional","GA","GA",0,80,9369701]
["SW","TEX","TX","Terrell","Terrell Municipal","TRL","TX","Terrell Municipal","48-0213","PU",null,"Local","GA","GA",0,61,2425914]
["SW","TEX","TX","Tulia","City of Tulia/Swisher County Municipal","I06","TX","City of Tulia/Swisher County Municipal","48-0214","PU",null,"Basic","GA","GA",0,12,3995176]
["SW","TEX","TX","Tyler","Tyler Pounds Regional","TYR","TX","Tyler Pounds Regional","48-0215","PU","N",null,"P","P",74357,149,85213275]
["SW","TEX","TX","Uvalde","Garner Field","UVA","TX","Garner Field","48-0216","PU",null,"Regional","GA","GA",18,32,800326]
["SW","TEX","TX","Van Horn","Culberson County","VHN","TX","Culberson County","48-0217","PU",null,"Basic","GA","GA",10,2,1647663]
["SW","TEX","TX","Vega","Oldham County","E52","TX","Oldham County","48-0293","PU",null,"Other","GA","GA",0,0,2969523]
["SW","TEX","TX","Vernon","Wilbarger County","F05","TX","Wilbarger County","48-0218","PU",null,"Local","GA","GA",1,19,1726148]
["SW","TEX","TX","Victoria","Victoria Regional","VCT","TX","Victoria Regional","48-0219","PU",null,"Regional","CS","CS",5038,47,4175445]
["SW","TEX","TX","Waco","Waco Regional","ACT","TX","Waco Regional","48-0220","PU","N",null,"P","P",61401,62,28217841]
["SW","TEX","TX","Waco","TSTC Waco","CNW","TX","TSTC Waco","48-0271","PU",null,"Basic","GA","GA",0,11,9844299]
["SW","TEX","TX","Waco","McGregor Executive","PWG","TX","McGregor Executive","48-0266","PU",null,"Regional","GA","GA",0,71,2087810]
["SW","TEX","TX","Wellington","Marian Airpark","F06","TX","Marian Airpark","48-0222","PU",null,"Other","GA","GA",0,6,3608705]
["SW","TEX","TX","Weslaco","Mid Valley","T65","TX","Mid Valley","48-0223","PU",null,"Local","GA","GA",0,57,11686404]
["SW","TEX","TX","Wharton","Wharton Regional","ARM","TX","Wharton Regional","48-0224","PU",null,"Local","GA","GA",0,37,2375717]
["SW","TEX","TX","Wichita Falls","Kickapoo Downtown","CWC","TX","Kickapoo Downtown","48-0346","PU",null,"Regional","GA","GA",0,76,3543870]
["SW","TEX","TX","Wichita Falls","Sheppard AFB/Wichita Falls Municipal","SPS","TX","Sheppard AFB/Wichita Falls Municipal","48-0227","MA","N",null,"P","P",44296,21,43005263]
["SW","TEX","TX","Wink","Winkler County","INK","TX","Winkler County","48-0228","PU",null,"Other","GA","GA",0,0,1282506]
["SW","TEX","TX","Winnie/Stowell","Chambers County-Winnie Stowell","T90","TX","Chambers County-Winnie Stowell","48-0336","PU",null,"Basic","GA","GA",0,10,1255000]
["SW","TEX","TX","Winnsboro","Winnsboro Municipal","F51","TX","Winnsboro Municipal","48-0289","PU",null,"Basic","GA","GA",0,12,876650]
["WP","HNL","AS","Fitiuta Village","Fitiuta","FAQ","AS","Fitiuta","60-0003","PU",null,"Basic","GA","GA",0,0,773684]
["WP","HNL","AS","Ofu Village","Ofu","Z08","AS","Ofu","60-0002","PU",null,"Basic","GA","GA",0,0,4300001]
["WP","HNL","AS","Pago Pago","Pago Pago International","PPG","AS","Pago Pago International","60-0001","PU","N",null,"P","P",45206,4,75157894]
["WP","HNL","GU","Agana","Guam International","GUM","GU","Guam International","66-0001","PU","S",null,"P","P",1411024,83,108140557]
["WP","HNL","HI","Hana","Hana","HNM","HI","Hana","15-0001","PU",null,"Other","GA","GA",132,0,5770175]
["WP","HNL","HI","Hanapepe","Port Allen","PAK","HI","Port Allen","15-0002","PU",null,"Other","GA","GA",0,4,1847650]
["WP","HNL","HI","Hawi","Upolu","UPP","HI","Upolu","15-0003","PU",null,"Other","GA","GA",0,1,1000000]
["WP","HNL","HI","Hilo","Hilo International","ITO","HI","Hilo International","15-0004","PU","S",null,"P","P",611782,42,46528522]
["WP","HNL","HI","Honolulu","Honolulu International","HNL","HI","Honolulu International","15-0005","PU","L",null,"P","P",8740077,174,154410243]
["WP","HNL","HI","Kahului","Kahului","OGG","HI","Kahului","15-0006","PU","M",null,"P","P",2587214,54,77331079]
["WP","HNL","HI","Kailua/Kona","Kona International at Keahole","KOA","HI","Kona International at Keahole","15-0008","PU","S",null,"P","P",1276343,57,71347682]
["WP","HNL","HI","Kalaupapa","Kalaupapa","LUP","HI","Kalaupapa","15-0009","PU",null,"Other","GA","GA",1217,0,2968421]
["WP","HNL","HI","Kamuela","Waimea-Kohala","MUE","HI","Waimea-Kohala","15-0010","PU",null,"Other","GA","GA",47,7,578946]
["WP","HNL","HI","Kapolei","Kalaeloa (John Rodgers Field)","JRF","HI","Kalaeloa (John Rodgers Field)","15-0014","PU",null,"Basic","R","R",19,14,24869591]
["WP","HNL","HI","Kaunakakai","Molokai","MKK","HI","Molokai","15-0011","PU","N",null,"P","P",88688,4,2873685]
["WP","HNL","HI","Lahaina","Kapalua","JHM","HI","Kapalua","15-0016","PU",null,"Other","GA","GA",40060,0,0]
["WP","HNL","HI","Lanai City","Lanai","LNY","HI","Lanai","15-0012","PU","N",null,"P","P",43922,0,20302632]
["WP","HNL","HI","Lihue","Lihue","LIH","HI","Lihue","15-0013","PU","S",null,"P","P",1175203,28,46902789]
["WP","HNL","HI","Mokuleia","Dillingham Airfield","HDH","HI","Dillingham Airfield","15-0018","MR",null,"Basic","GA","GA",0,34,2101895]
["WP","HNL","MP","Rota Island","Rota International","GRO","MP","Rota International","69-0003","PU","N",null,"P","P",21964,0,8184211]
["WP","HNL","MP","Saipan Island","Francisco C. Ada/Saipan International","GSN","MP","Francisco C. Ada/Saipan International","69-0002","PU","S",null,"P","P",433577,22,25324493]
["WP","HNL","MP","Shomu-Shon","Pagan Airstrip","TT01","MP","Pagan Airstrip","69-0004","PU",null,"Basic","GA","GA",0,0,0]
["WP","HNL","MP","Tinian Island","Tinian International","TNI","MP","Tinian International","69-0011","PU","N",null,"P","P",19520,6,31147368]
["WP","LAX","AZ","Ajo","Eric Marcus Municipal","P01","AZ","Eric Marcus Municipal","04-0001","PU",null,"Basic","GA","GA",0,3,1912179]
["WP","LAX","AZ","Bagdad","Bagdad","E51","AZ","Bagdad","04-0002","PU",null,"Basic","GA","GA",0,3,1421053]
["WP","LAX","AZ","Benson","Benson Municipal","E95","AZ","Benson Municipal","04-0077","PU",null,"Local","GA","GA",0,42,2007895]
["WP","LAX","AZ","Bisbee","Bisbee Municipal","P04","AZ","Bisbee Municipal","04-0004","PU",null,"Basic","GA","GA",0,13,5232565]
["WP","LAX","AZ","Buckeye","Buckeye Municipal","BXK","AZ","Buckeye Municipal","04-0005","PU",null,"Local","GA","GA",0,39,6102526]
["WP","LAX","AZ","Bullhead City","Laughlin/Bullhead International","IFP","AZ","Laughlin/Bullhead International","04-0006","PU","N",null,"P","P",121468,45,25981800]
["WP","LAX","AZ","Casa Grande","Casa Grande Municipal","CGZ","AZ","Casa Grande Municipal","04-0007","PU",null,"Local","GA","GA",3,67,4283114]
["WP","LAX","AZ","Chandler","Chandler Municipal","CHD","AZ","Chandler Municipal","04-0008","PU",null,"Regional","R","R",8,375,17981328]
["WP","LAX","AZ","Chinle","Chinle Municipal","E91","AZ","Chinle Municipal","04-0066","NA",null,"Basic","GA","GA",710,1,6475381]
["WP","LAX","AZ","Cibecue","Cibecue","Z95","AZ","Cibecue","04-0079","NA",null,"Basic","GA","GA",0,0,9789474]
["WP","LAX","AZ","Clifton/Morenci","Greenlee County","CFT","AZ","Greenlee County","04-0009","PU",null,"Other","GA","GA",12,2,2229784]
["WP","LAX","AZ","Colorado City","Colorado City Municipal","AZC","AZ","Colorado City Municipal","04-0076","PU",null,"Other","GA","GA",0,8,3214575]
["WP","LAX","AZ","Coolidge","Coolidge Municipal","P08","AZ","Coolidge Municipal","04-0011","PU",null,"Local","GA","GA",0,18,3177894]
["WP","LAX","AZ","Cottonwood","Cottonwood","P52","AZ","Cottonwood","04-0012","PU",null,"Local","GA","GA",2,55,1431317]
["WP","LAX","AZ","Douglas Bisbee","Bisbee Douglas International","DUG","AZ","Bisbee Douglas International","04-0013","PU",null,"Local","GA","GA",0,19,1138947]
["WP","LAX","AZ","Eloy","Eloy Municipal","E60","AZ","Eloy Municipal","04-0014","PU",null,"Local","GA","GA",2,44,4685588]
["WP","LAX","AZ","Flagstaff","Flagstaff Pulliam","FLG","AZ","Flagstaff Pulliam","04-0015","PU","N",null,"P","P",62109,134,13527778]
["WP","LAX","AZ","Fort Huachuca Sierra Vista","Sierra Vista Municipal-Libby AAF","FHU","AZ","Sierra Vista Municipal-Libby AAF","04-0060","MR",null,"Local","GA","GA",968,56,7789474]
["WP","LAX","AZ","Gila Bend","Gila Bend Municipal","E63","AZ","Gila Bend Municipal","04-0016","PU",null,"Basic","GA","GA",0,0,2430595]
["WP","LAX","AZ","Glendale","Glendale Municipal","GEU","AZ","Glendale Municipal","04-0064","PU",null,"Regional","R","R",27,196,5801016]
["WP","LAX","AZ","Globe","San Carlos Apache","P13","AZ","San Carlos Apache","04-0017","NA",null,"Basic","GA","GA",1,4,1736844]
["WP","LAX","AZ","Goodyear","Phoenix Goodyear","GYR","AZ","Phoenix Goodyear","04-0018","PU",null,"Regional","R","R",5,218,15735465]
["WP","LAX","AZ","Grand Canyon","Grand Canyon National Park","GCN","AZ","Grand Canyon National Park","04-0019","PU","N",null,"P","P",318622,34,19878272]
["WP","LAX","AZ","Holbrook","Holbrook Municipal","P14","AZ","Holbrook Municipal","04-0020","PU",null,"Basic","GA","GA",0,6,1785073]
["WP","LAX","AZ","Kayenta","Kayenta","0V7","AZ","Kayenta","04-0067","NA",null,"Basic","GA","GA",301,0,6486317]
["WP","LAX","AZ","Kingman","Kingman","IGM","AZ","Kingman","04-0021","PU",null,"Regional","GA","GA",897,172,5663217]
["WP","LAX","AZ","Lake Havasu City","Lake Havasu City","HII","AZ","Lake Havasu City","04-0071","PU",null,"Regional","GA","GA",1,128,8080169]
["WP","LAX","AZ","Marana","Pinal Airpark","MZJ","AZ","Pinal Airpark","04-0055","PU",null,"Other","GA","GA",0,3,0]
["WP","LAX","AZ","Mesa","Falcon Field","FFZ","AZ","Falcon Field","04-0023","PU",null,"Regional","R","R",18,605,7342582]
["WP","LAX","AZ","Nogales","Nogales International","OLS","AZ","Nogales International","04-0024","PU",null,"Local","GA","GA",12,22,3582492]
["WP","LAX","AZ","Page","Page Municipal","PGA","AZ","Page Municipal","04-0025","PU","N",null,"P","P",20264,81,7638849]
["WP","LAX","AZ","Parker","Avi Suquilla","P20","AZ","Avi Suquilla","04-0026","NA",null,"Local","GA","GA",42,22,5492285]
["WP","LAX","AZ","Payson","Payson","PAN","AZ","Payson","04-0027","PU",null,"Local","GA","GA",14,43,6655718]
["WP","LAX","AZ","Peach Springs","Grand Canyon West","1G4","AZ","Grand Canyon West","04-0068","NA","N",null,"P","P",60682,0,7993034]
["WP","LAX","AZ","Phoenix","Phoenix Deer Valley","DVT","AZ","Phoenix Deer Valley","04-0028","PU",null,"National","R","R",93,981,18205895]
["WP","LAX","AZ","Phoenix","Phoenix-Mesa Gateway","IWA","AZ","Phoenix-Mesa Gateway","04-0078","PU","S",null,"P","P",417862,89,119399350]
["WP","LAX","AZ","Phoenix","Phoenix Sky Harbor International","PHX","AZ","Phoenix Sky Harbor International","04-0029","PU","L",null,"P","P",18907171,67,400006562]
["WP","LAX","AZ","Polacca","Polacca","P10","AZ","Polacca","04-0081","NA",null,"Basic","GA","GA",0,0,5119211]
["WP","LAX","AZ","Prescott","Ernest A. Love Field","PRC","AZ","Ernest A. Love Field","04-0030","PU",null,"Regional","CS","CS",7836,238,10164727]
["WP","LAX","AZ","Safford","Safford Regional","SAD","AZ","Safford Regional","04-0031","PU",null,"Local","GA","GA",0,32,1933949]
["WP","LAX","AZ","San Manuel","San Manuel","E77","AZ","San Manuel","04-0080","PR",null,"Local","GA","GA",0,22,4227780]
["WP","LAX","AZ","Scottsdale","Scottsdale","SDL","AZ","Scottsdale","04-0032","PU",null,"National","R","R",1025,341,10647103]
["WP","LAX","AZ","Sedona","Sedona","SEZ","AZ","Sedona","04-0033","PU",null,"Local","GA","GA",41,66,3973450]
["WP","LAX","AZ","Show Low","Show Low Regional","SOW","AZ","Show Low Regional","04-0035","PU",null,"Regional","CS","CS",3080,47,13587375]
["WP","LAX","AZ","Springerville","Springerville Municipal","D68","AZ","Springerville Municipal","04-0038","PU",null,"Local","GA","GA",0,19,8047473]
["WP","LAX","AZ","St Johns","St Johns Industrial Air Park","SJN","AZ","St Johns Industrial Air Park","04-0039","PU",null,"Other","GA","GA",0,6,1590779]
["WP","LAX","AZ","Taylor","Taylor","TYL","AZ","Taylor","04-0065","PU",null,"Local","GA","GA",0,36,5689947]
["WP","LAX","AZ","Tuba City","Tuba City","T03","AZ","Tuba City","04-0054","NA",null,"Basic","GA","GA",16,0,3621015]
["WP","LAX","AZ","Tucson","Marana Regional","AVQ","AZ","Marana Regional","04-0058","PU",null,"Regional","R","R",32,301,6580526]
["WP","LAX","AZ","Tucson","Ryan Field","RYN","AZ","Ryan Field","04-0044","PU",null,"Regional","R","R",0,192,6132497]
["WP","LAX","AZ","Tucson","Tucson International","TUS","AZ","Tucson International","04-0045","PU","M",null,"P","P",1844228,230,74826643]
["WP","LAX","AZ","Whiteriver","Whiteriver","E24","AZ","Whiteriver","04-0047","NA",null,"Basic","GA","GA",0,0,2155262]
["WP","LAX","AZ","Wickenburg","Wickenburg Municipal","E25","AZ","Wickenburg Municipal","04-0048","PU",null,"Local","GA","GA",12,52,3219434]
["WP","LAX","AZ","Willcox","Cochise County","P33","AZ","Cochise County","04-0049","PU",null,"Local","GA","GA",0,25,1922980]
["WP","LAX","AZ","Williams","H.A. Clark Memorial Field","CMR","AZ","H.A. Clark Memorial Field","04-0050","PU",null,"Basic","GA","GA",0,16,2697527]
["WP","LAX","AZ","Window Rock","Window Rock","RQE","AZ","Window Rock","04-0051","NA",null,"Other","GA","GA",561,3,4883693]
["WP","LAX","AZ","Winslow","Winslow-Lindbergh Regional","INW","AZ","Winslow-Lindbergh Regional","04-0052","PU",null,"Basic","GA","GA",20,11,9421055]
["WP","LAX","AZ","Yuma","Yuma MCAS/Yuma International","NYL","AZ","Yuma MCAS/Yuma International","04-0053","MN","N",null,"P","P",82163,120,18611376]
["WP","LAX","CA","Apple Valley","Apple Valley","APV","CA","Apple Valley","06-0009","PU",null,"Regional","GA","GA",0,117,2434198]
["WP","LAX","CA","Bakersfield","Meadows Field","BFL","CA","Meadows Field","06-0017","PU","N",null,"P","P",111699,256,33332103]
["WP","LAX","CA","Bakersfield","Bakersfield Municipal","L45","CA","Bakersfield Municipal","06-0323","PU",null,"Local","GA","GA",0,79,5537895]
["WP","LAX","CA","Banning","Banning Municipal","BNG","CA","Banning Municipal","06-0018","PU",null,"Local","GA","GA",0,40,3248782]
["WP","LAX","CA","Big Bear City","Big Bear City","L35","CA","Big Bear City","06-0022","PU",null,"Regional","GA","GA",0,129,4612567]
["WP","LAX","CA","Bishop","Eastern Sierra Regional","BIH","CA","Eastern Sierra Regional","06-0024","PU",null,"Local","GA","GA",2,61,3118948]
["WP","LAX","CA","Blythe","Blythe","BLH","CA","Blythe","06-0025","PU",null,"Basic","GA","GA",2,4,5512291]
["WP","LAX","CA","Borrego Springs","Borrego Valley","L08","CA","Borrego Valley","06-0027","PU",null,"Local","GA","GA",0,27,4065790]
["WP","LAX","CA","Brawley","Brawley Municipal","BWC","CA","Brawley Municipal","06-0028","PU",null,"Local","GA","GA",0,60,1265953]
["WP","LAX","CA","Burbank","Bob Hope","BUR","CA","Bob Hope","06-0031","PU","M",null,"P","P",2239804,91,52508198]
["WP","LAX","CA","Calexico","Calexico International","CXL","CA","Calexico International","06-0034","PU",null,"Local","GA","GA",2,17,3587632]
["WP","LAX","CA","California City","California City Municipal","L71","CA","California City Municipal","06-0341","PU",null,"Local","GA","GA",0,20,1563158]
["WP","LAX","CA","Camarillo","Camarillo","CMA","CA","Camarillo","06-0339","PU",null,"National","R","R",18,573,8188420]
["WP","LAX","CA","Carlsbad","McClellan-Palomar","CRQ","CA","McClellan-Palomar","06-0036","PU","N",null,"P","P",28355,341,8504825]
["WP","LAX","CA","Chemehuevi Valley","Chemehuevi Valley","49X","CA","Chemehuevi Valley","06-0348","NA",null,"Other","GA","GA",0,2,2628897]
["WP","LAX","CA","Chino","Chino","CNO","CA","Chino","06-0042","PU",null,"National","R","R",7,529,4726837]
["WP","LAX","CA","Compton","Compton/Woodley","CPM","CA","Compton/Woodley","06-0049","PU",null,"Local","R","R",0,216,3355263]
["WP","LAX","CA","Corona","Corona Municipal","AJO","CA","Corona Municipal","06-0055","PU",null,"Regional","GA","GA",0,349,0]
["WP","LAX","CA","Daggett","Barstow-Daggett","DAG","CA","Barstow-Daggett","06-0058","PU",null,"Local","GA","GA",44,20,2898507]
["WP","LAX","CA","Delano","Delano Municipal","DLO","CA","Delano Municipal","06-0061","PU",null,"Local","GA","GA",1,17,2554414]
["WP","LAX","CA","El Monte","El Monte","EMT","CA","El Monte","06-0068","PU",null,"Regional","R","R",0,333,1457895]
["WP","LAX","CA","Fallbrook","Fallbrook Community Airpark","L18","CA","Fallbrook Community Airpark","06-0078","PU",null,"Local","GA","GA",0,113,6457895]
["WP","LAX","CA","Fullerton","Fullerton Municipal","FUL","CA","Fullerton Municipal","06-0091","PU",null,"Regional","R","R",0,269,3474642]
["WP","LAX","CA","Hawthorne","Jack Northrop Field/Hawthorne Municipal","HHR","CA","Jack Northrop Field/Hawthorne Municipal","06-0101","PU",null,"Regional","R","R",5,124,3994737]
["WP","LAX","CA","Hemet","Hemet-Ryan","HMT","CA","Hemet-Ryan","06-0104","PU",null,"Regional","GA","GA",2,86,6153428]
["WP","LAX","CA","Imperial","Imperial County","IPL","CA","Imperial County","06-0109","PU",null,"Regional","CS","CS",4752,86,7056579]
["WP","LAX","CA","Independence","Independence","2O7","CA","Independence","06-0108","PU",null,"Other","GA","GA",0,3,1667895]
["WP","LAX","CA","Inyokern","Inyokern","IYK","CA","Inyokern","06-0110","PU","N",null,"P","P",11109,108,4569230]
["WP","LAX","CA","Kernville","Kern Valley","L05","CA","Kern Valley","06-0112","PU",null,"Basic","GA","GA",0,8,1043684]
["WP","LAX","CA","La Verne","Brackett Field","POC","CA","Brackett Field","06-0116","PU",null,"Regional","R","R",1,258,2107895]
["WP","LAX","CA","Lancaster","General Wm J Fox Airfield","WJF","CA","General Wm J Fox Airfield","06-0118","PU",null,"Regional","GA","GA",46,154,3457895]
["WP","LAX","CA","Lompoc","Lompoc","LPC","CA","Lompoc","06-0125","PU",null,"Local","GA","GA",0,72,3787400]
["WP","LAX","CA","Lone Pine","Lone Pine","O26","CA","Lone Pine","06-0126","PU",null,"Other","GA","GA",0,7,1135263]
["WP","LAX","CA","Long Beach","Long Beach /Daugherty Field/","LGB","CA","Long Beach /Daugherty Field/","06-0127","PU","S",null,"P","P",1451404,435,75806638]
["WP","LAX","CA","Los Angeles","Los Angeles International","LAX","CA","Los Angeles International","06-0139","PU","L",null,"P","P",28857755,2,562253337]
["WP","LAX","CA","Los Angeles","Whiteman","WHP","CA","Whiteman","06-0134","PU",null,"Regional","R","R",0,542,2150001]
["WP","LAX","CA","Lost Hills","Lost Hills-Kern County","L84","CA","Lost Hills-Kern County","06-0141","PU",null,"Other","GA","GA",0,0,2621169]
["WP","LAX","CA","Mojave","Mojave","MHV","CA","Mojave","06-0154","PU",null,"Regional","GA","GA",135,165,6417469]
["WP","LAX","CA","Murrieta/Temecula","French Valley","F70","CA","French Valley","06-0338","PU",null,"Regional","GA","GA",0,167,3152632]
["WP","LAX","CA","Needles","Needles","EED","CA","Needles","06-0164","PU",null,"Other","GA","GA",0,5,3508521]
["WP","LAX","CA","Oceanside","Oceanside Municipal","OKB","CA","Oceanside Municipal","06-0173","PU",null,"Local","GA","GA",0,54,1789474]
["WP","LAX","CA","Ontario","Ontario International","ONT","CA","Ontario International","06-0175","PU","M",null,"P","P",2380881,27,66954664]
["WP","LAX","CA","Oxnard","Oxnard","OXR","CA","Oxnard","06-0179","PU",null,"Regional","CS","CS",4074,157,11552727]
["WP","LAX","CA","Palm Springs","Palm Springs International","PSP","CA","Palm Springs International","06-0181","PU","S",null,"P","P",751068,100,43473461]
["WP","LAX","CA","Palm Springs","Jacqueline Cochran Regional","TRM","CA","Jacqueline Cochran Regional","06-0255","PU",null,"Regional","GA","GA",68,50,3521053]
["WP","LAX","CA","Palmdale","Palmdale Regional/USAF Plant 42","PMD","CA","Palmdale Regional/USAF Plant 42","06-0319","MA",null,"Other","GA","GA",0,0,0]
["WP","LAX","CA","Ramona","Ramona","RNM","CA","Ramona","06-0192","PU",null,"Regional","R","R",2,146,7948598]
["WP","LAX","CA","Redlands","Redlands Municipal","REI","CA","Redlands Municipal","06-0195","PU",null,"Regional","GA","GA",0,170,757934]
["WP","LAX","CA","Rialto","Rialto Municipal /Miro Field/","L67","CA","Rialto Municipal /Miro Field/","06-0197","PU",null,"Local","R","R",0,250,0]
["WP","LAX","CA","Riverside","Riverside Municipal","RAL","CA","Riverside Municipal","06-0200","PU",null,"Regional","R","R",0,163,7383966]
["WP","LAX","CA","Riverside","March ARB","RIV","CA","March ARB","06-0201","MA",null,"National","R","R",37332,0,14109088]
["WP","LAX","CA","San Bernardino","San Bernardino International","SBD","CA","San Bernardino International","06-0358","PU",null,"Regional","R","R",6,19,6732895]
["WP","LAX","CA","San Diego","Montgomery Field","MYF","CA","Montgomery Field","06-0211","PU",null,"Regional","R","R",3,481,9050000]
["WP","LAX","CA","San Diego","San Diego International","SAN","CA","San Diego International","06-0214","PU","L",null,"P","P",8430509,6,207449207]
["WP","LAX","CA","San Diego","Brown Field Municipal","SDM","CA","Brown Field Municipal","06-0213","PU",null,"Regional","R","R",194,138,12658886]
["WP","LAX","CA","San Diego/El Cajon","Gillespie Field","SEE","CA","Gillespie Field","06-0212","PU",null,"National","R","R",30,666,11130274]
["WP","LAX","CA","Santa Ana","John Wayne Airport-Orange County","SNA","CA","John Wayne Airport-Orange County","06-0233","PU","M",null,"P","P",4278623,529,179659824]
["WP","LAX","CA","Santa Barbara","Santa Barbara Municipal","SBA","CA","Santa Barbara Municipal","06-0235","PU","S",null,"P","P",382894,202,51499215]
["WP","LAX","CA","Santa Maria","Santa Maria Public/Capt G Allan Hancock Field","SMX","CA","Santa Maria Public/Capt G Allan Hancock Field","06-0237","PU","N",null,"P","P",47741,253,7940000]
["WP","LAX","CA","Santa Monica","Santa Monica Municipal","SMO","CA","Santa Monica Municipal","06-0239","PU",null,"Regional","R","R",547,303,750000]
["WP","LAX","CA","Santa Ynez","Santa Ynez","IZA","CA","Santa Ynez","06-0243","PU",null,"Regional","GA","GA",0,110,5167368]
["WP","LAX","CA","Shafter","Shafter-Minter Field","MIT","CA","Shafter-Minter Field","06-0247","PU",null,"Local","GA","GA",0,106,1412633]
["WP","LAX","CA","Taft","Taft-Kern County","L17","CA","Taft-Kern County","06-0252","PU",null,"Local","GA","GA",0,16,0]
["WP","LAX","CA","Tehachapi","Tehachapi Municipal","TSP","CA","Tehachapi Municipal","06-0253","PU",null,"Local","GA","GA",0,92,2968421]
["WP","LAX","CA","Torrance","Zamperini Field","TOA","CA","Zamperini Field","06-0257","PU",null,"Regional","R","R",30,497,0]
["WP","LAX","CA","Trona","Trona","L72","CA","Trona","06-0261","PU",null,"Local","GA","GA",0,16,0]
["WP","LAX","CA","Twentynine Palms","Twentynine Palms","TNP","CA","Twentynine Palms","06-0267","PU",null,"Basic","GA","GA",0,12,921053]
["WP","LAX","CA","Upland","Cable","CCB","CA","Cable","06-0269","PR",null,"Regional","R","R",0,113,8211329]
["WP","LAX","CA","Van Nuys","Van Nuys","VNY","CA","Van Nuys","06-0131","PU",null,"National","R","R",432,668,12384211]
["WP","LAX","CA","Victorville","Southern California Logistics","VCV","CA","Southern California Logistics","06-0359","PU",null,"National","R","R",32385,189,5187095]
["WP","LAX","CA","Wasco","Wasco-Kern County","L19","CA","Wasco-Kern County","06-0333","PU",null,"Other","GA","GA",0,8,1099960]
["WP","SFO","CA","Alturas","Alturas Municipal","AAT","CA","Alturas Municipal","06-0003","PU",null,"Basic","GA","GA",2,9,897368]
["WP","SFO","CA","Arcata/Eureka","Arcata","ACV","CA","Arcata","06-0010","PU","N",null,"P","P",93402,8,8335772]
["WP","SFO","CA","Atwater","Castle","MER","CA","Castle","06-0364","PU",null,"Regional","GA","GA",0,80,11913158]
["WP","SFO","CA","Auburn","Auburn Municipal","AUN","CA","Auburn Municipal","06-0012","PU",null,"Regional","GA","GA",0,153,1646394]
["WP","SFO","CA","Beckwourth","Nervino","O02","CA","Nervino","06-0020","PU",null,"Local","GA","GA",0,20,1038385]
["WP","SFO","CA","Boonville","Boonville","D83","CA","Boonville","06-0299","PU",null,"Basic","GA","GA",0,10,1328144]
["WP","SFO","CA","Bridgeport","Bryant Field","O57","CA","Bryant Field","06-0030","PU",null,"Other","GA","GA",0,1,1652631]
["WP","SFO","CA","Byron","Byron","C83","CA","Byron","06-0008","PU",null,"Local","R","R",0,84,950000]
["WP","SFO","CA","Cameron Park","Cameron Airpark","O61","CA","Cameron Airpark","06-0312","PU",null,"Local","GA","GA",0,95,0]
["WP","SFO","CA","Cedarville","Cedarville","O59","CA","Cedarville","06-0039","PU",null,"Other","GA","GA",0,5,1087106]
["WP","SFO","CA","Chester","Rogers Field","O05","CA","Rogers Field","06-0040","PU",null,"Basic","GA","GA",0,2,4557614]
["WP","SFO","CA","Chico","Chico Municipal","CIC","CA","Chico Municipal","06-0041","PU","N",null,"P","P",23272,137,10534687]
["WP","SFO","CA","Chowchilla","Chowchilla","2O6","CA","Chowchilla","06-0043","PU",null,"Basic","GA","GA",0,12,1157895]
["WP","SFO","CA","Cloverdale","Cloverdale Municipal","O60","CA","Cloverdale Municipal","06-0045","PU",null,"Local","GA","GA",0,19,1894736]
["WP","SFO","CA","Coalinga","New Coalinga Municipal","C80","CA","New Coalinga Municipal","06-0046","PU",null,"Local","GA","GA",2,15,1421054]
["WP","SFO","CA","Columbia","Columbia","O22","CA","Columbia","06-0047","PU",null,"Regional","GA","GA",0,102,894737]
["WP","SFO","CA","Colusa","Colusa County","O08","CA","Colusa County","06-0048","PU",null,"Local","GA","GA",0,38,805526]
["WP","SFO","CA","Concord","Buchanan Field","CCR","CA","Buchanan Field","06-0050","PU",null,"National","R","R",53,387,10393558]
["WP","SFO","CA","Corning","Corning Municipal","0O4","CA","Corning Municipal","06-0053","PU",null,"Basic","GA","GA",0,19,977585]
["WP","SFO","CA","Covelo","Round Valley","O09","CA","Round Valley","06-0056","PU",null,"Other","GA","GA",0,6,913684]
["WP","SFO","CA","Crescent City","Jack McNamara Field","CEC","CA","Jack McNamara Field","06-0057","PU","N",null,"P","P",14341,26,32380189]
["WP","SFO","CA","Davis","University","EDU","CA","University","06-0059","PU",null,"Local","GA","GA",0,45,2286526]
["WP","SFO","CA","Davis/Woodland/Winters","Yolo County","DWA","CA","Yolo County","06-0342","PU",null,"Local","GA","GA",8,76,3258831]
["WP","SFO","CA","Dinsmore","Dinsmore","D63","CA","Dinsmore","06-0361","PU",null,"Other","GA","GA",0,0,1064347]
["WP","SFO","CA","Dorris","Butte Valley","A32","CA","Butte Valley","06-0063","PU",null,"Other","GA","GA",0,1,759790]
["WP","SFO","CA","Dunsmuir","Dunsmuir Municipal-Mott","1O6","CA","Dunsmuir Municipal-Mott","06-0066","PU",null,"Basic","GA","GA",0,8,1438193]
["WP","SFO","CA","Eureka","Murray Field","EKA","CA","Murray Field","06-0072","PU",null,"Regional","GA","GA",0,53,1615790]
["WP","SFO","CA","Eureka","Kneeland","O19","CA","Kneeland","06-0362","PU",null,"Other","GA","GA",0,0,0]
["WP","SFO","CA","Fall River Mills","Fall River Mills","O89","CA","Fall River Mills","06-0077","PU",null,"Basic","GA","GA",0,9,751579]
["WP","SFO","CA","Firebaugh","Firebaugh","F34","CA","Firebaugh","06-0346","PU",null,"Basic","GA","GA",0,12,765047]
["WP","SFO","CA","Fort Jones","Scott Valley","A30","CA","Scott Valley","06-0082","PU",null,"Basic","GA","GA",0,17,782106]
["WP","SFO","CA","Fortuna","Rohnerville","FOT","CA","Rohnerville","06-0083","PU",null,"Local","GA","GA",0,15,1348157]
["WP","SFO","CA","Franklin","Franklin Field","F72","CA","Franklin Field","06-0084","PU",null,"Basic","GA","GA",0,10,813157]
["WP","SFO","CA","Fresno","Fresno Yosemite International","FAT","CA","Fresno Yosemite International","06-0087","PU","S",null,"P","P",569879,170,46377940]
["WP","SFO","CA","Fresno","Fresno Chandler Executive","FCH","CA","Fresno Chandler Executive","06-0088","PU",null,"Regional","R","R",242,103,5375790]
["WP","SFO","CA","Garberville","Garberville","O16","CA","Garberville","06-0092","PU",null,"Basic","GA","GA",0,27,3743291]
["WP","SFO","CA","Georgetown","Georgetown","E36","CA","Georgetown","06-0093","PU",null,"Local","GA","GA",0,37,2951650]
["WP","SFO","CA","Grass Valley","Nevada County Air Park","GOO","CA","Nevada County Air Park","06-0095","PU",null,"Local","GA","GA",19,131,3296264]
["WP","SFO","CA","Groveland","Pine Mountain Lake","E45","CA","Pine Mountain Lake","06-0344","PU",null,"Basic","GA","GA",0,13,0]
["WP","SFO","CA","Gustine","Gustine","3O1","CA","Gustine","06-0096","PU",null,"Local","GA","GA",0,24,1210526]
["WP","SFO","CA","Half Moon Bay","Half Moon Bay","HAF","CA","Half Moon Bay","06-0097","PU",null,"Local","R","R",0,34,3631579]
["WP","SFO","CA","Hanford","Hanford Municipal","HJO","CA","Hanford Municipal","06-0098","PU",null,"Local","GA","GA",0,67,846408]
["WP","SFO","CA","Happy Camp","Happy Camp","36S","CA","Happy Camp","06-0099","PU",null,"Other","GA","GA",0,0,1736843]
["WP","SFO","CA","Hayfork","Hayfork","F62","CA","Hayfork","06-0102","PU",null,"Other","GA","GA",0,4,0]
["WP","SFO","CA","Hayward","Hayward Executive","HWD","CA","Hayward Executive","06-0103","PU",null,"National","R","R",6,368,6750263]
["WP","SFO","CA","Healdsburg","Healdsburg Municipal","HES","CA","Healdsburg Municipal","06-0305","PU",null,"Local","GA","GA",0,46,3214729]
["WP","SFO","CA","Hollister","Hollister Municipal","CVH","CA","Hollister Municipal","06-0105","PU",null,"Local","GA","GA",0,61,3405225]
["WP","SFO","CA","Hoopa","Hoopa","O21","CA","Hoopa","06-0106","PU",null,"Other","GA","GA",0,1,0]
["WP","SFO","CA","Jackson","Westover Field Amador County","JAQ","CA","Westover Field Amador County","06-0111","PU",null,"Local","GA","GA",0,85,12352638]
["WP","SFO","CA","King City","Mesa Del Rey","KIC","CA","Mesa Del Rey","06-0113","PU",null,"Local","GA","GA",0,30,1732393]
["WP","SFO","CA","Lakeport","Lampson Field","1O2","CA","Lampson Field","06-0117","PU",null,"Local","GA","GA",3,72,2460474]
["WP","SFO","CA","Lee Vining","Lee Vining","O24","CA","Lee Vining","06-0119","PU",null,"Other","GA","GA",0,1,1368421]
["WP","SFO","CA","Lincoln","Lincoln Regional/Karl Harder Field","LHM","CA","Lincoln Regional/Karl Harder Field","06-0120","PU",null,"Regional","R","R",1,200,988003]
["WP","SFO","CA","Littleriver","Little River","LLR","CA","Little River","06-0121","PU",null,"Local","GA","GA",0,14,3411316]
["WP","SFO","CA","Livermore","Livermore Municipal","LVK","CA","Livermore Municipal","06-0123","PU",null,"Regional","R","R",89,453,1654211]
["WP","SFO","CA","Los Banos","Los Banos Municipal","LSN","CA","Los Banos Municipal","06-0140","PU",null,"Local","GA","GA",0,16,1347368]
["WP","SFO","CA","Madera","Madera Municipal","MAE","CA","Madera Municipal","06-0144","PU",null,"Regional","GA","GA",0,82,2263158]
["WP","SFO","CA","Mammoth Lakes","Mammoth Yosemite","MMH","CA","Mammoth Yosemite","06-0146","PU","N",null,"P","P",19814,4,17183497]
["WP","SFO","CA","Marina","Marina Municipal","OAR","CA","Marina Municipal","06-0367","PU",null,"Local","GA","GA",0,45,3684211]
["WP","SFO","CA","Mariposa","Mariposa-Yosemite","MPI","CA","Mariposa-Yosemite","06-0147","PU",null,"Local","GA","GA",0,27,4423683]
["WP","SFO","CA","Marysville","Yuba County","MYV","CA","Yuba County","06-0149","PU",null,"Regional","GA","GA",2,60,3906053]
["WP","SFO","CA","Mendota","William Robert Johnston Municipal","M90","CA","William Robert Johnston Municipal","06-0151","PU",null,"Other","GA","GA",0,0,1131789]
["WP","SFO","CA","Merced","Merced Regional//Macready Field","MCE","CA","Merced Regional//Macready Field","06-0152","PU",null,"Local","GA","GA",2051,80,6289474]
["WP","SFO","CA","Modesto","Modesto City County-Harry Sham Field","MOD","CA","Modesto City County-Harry Sham Field","06-0153","PU","N",null,"P","P",23487,182,9502631]
["WP","SFO","CA","Montague","Siskiyou County","SIY","CA","Siskiyou County","06-0157","PU",null,"Local","GA","GA",7,18,1932527]
["WP","SFO","CA","Monterey","Monterey Peninsula","MRY","CA","Monterey Peninsula","06-0159","PU","N",null,"P","P",190527,159,5685698]
["WP","SFO","CA","Napa","Napa County","APC","CA","Napa County","06-0162","PU",null,"National","R","R",316,219,7155789]
["WP","SFO","CA","Novato","Gnoss Field","DVO","CA","Gnoss Field","06-0167","PU",null,"Regional","R","R",0,238,14817527]
["WP","SFO","CA","Oakdale","Oakdale","O27","CA","Oakdale","06-0168","PU",null,"Local","GA","GA",0,57,3182136]
["WP","SFO","CA","Oakland","Metropolitan Oakland International","OAK","CA","Metropolitan Oakland International","06-0170","PU","M",null,"P","P",4673417,239,173952726]
["WP","SFO","CA","Oceano","Oceano County","L52","CA","Oceano County","06-0172","PU",null,"Local","GA","GA",1,16,983289]
["WP","SFO","CA","Orland","Haigh Field","O37","CA","Haigh Field","06-0177","PU",null,"Local","GA","GA",0,44,1015001]
["WP","SFO","CA","Oroville","Oroville Municipal","OVE","CA","Oroville Municipal","06-0178","PU",null,"Local","GA","GA",0,29,1948900]
["WP","SFO","CA","Palo Alto","Palo Alto Airport of Santa Clara County","PAO","CA","Palo Alto Airport of Santa Clara County","06-0182","PU",null,"Regional","R","R",6,226,3171945]
["WP","SFO","CA","Paso Robles","Paso Robles Municipal","PRB","CA","Paso Robles Municipal","06-0184","PU",null,"Regional","GA","GA",3,162,6708385]
["WP","SFO","CA","Petaluma","Petaluma Municipal","O69","CA","Petaluma Municipal","06-0186","PU",null,"Regional","R","R",0,208,1707895]
["WP","SFO","CA","Placerville","Placerville","PVF","CA","Placerville","06-0188","PU",null,"Local","GA","GA",0,136,1804871]
["WP","SFO","CA","Porterville","Porterville Municipal","PTV","CA","Porterville Municipal","06-0190","PU",null,"Local","GA","GA",1,86,1127527]
["WP","SFO","CA","Quincy","Gansner Field","2O1","CA","Gansner Field","06-0191","PU",null,"Local","GA","GA",0,27,815765]
["WP","SFO","CA","Rancho Murieta","Rancho Murieta","RIU","CA","Rancho Murieta","06-0347","PR",null,"Local","GA","GA",0,50,0]
["WP","SFO","CA","Red Bluff","Red Bluff Municipal","RBL","CA","Red Bluff Municipal","06-0193","PU",null,"Local","GA","GA",0,122,966315]
["WP","SFO","CA","Redding","Benton Field","O85","CA","Benton Field","06-0308","PU",null,"Local","GA","GA",0,80,1600000]
["WP","SFO","CA","Redding","Redding Municipal","RDD","CA","Redding Municipal","06-0194","PU","N",null,"P","P",54420,185,4423000]
["WP","SFO","CA","Reedley","Reedley Municipal","O32","CA","Reedley Municipal","06-0196","PU",null,"Local","GA","GA",0,45,1057105]
["WP","SFO","CA","Rio Vista","Rio Vista Municipal","O88","CA","Rio Vista Municipal","06-0199","PU",null,"Local","GA","GA",0,37,783159]
["WP","SFO","CA","Ruth","Ruth","T42","CA","Ruth","06-0310","PU",null,"Basic","GA","GA",0,0,815789]
["WP","SFO","CA","Sacramento","McClellan Airfield","MCC","CA","McClellan Airfield","06-0203","PU",null,"Regional","GA","GA",35,31,0]
["WP","SFO","CA","Sacramento","Sacramento Mather","MHR","CA","Sacramento Mather","06-0363","PU",null,"Local","R","R",12,31,13621053]
["WP","SFO","CA","Sacramento","Sacramento Executive","SAC","CA","Sacramento Executive","06-0205","PU",null,"Regional","R","R",44,299,9396842]
["WP","SFO","CA","Sacramento","Sacramento International","SMF","CA","Sacramento International","06-0204","PU","M",null,"P","P",4424279,9,80233306]
["WP","SFO","CA","Salinas","Salinas Municipal","SNS","CA","Salinas Municipal","06-0206","PU",null,"Regional","GA","GA",44,202,2118395]
["WP","SFO","CA","San Andreas","Calaveras County-Maury Rasmussen Field","CPU","CA","Calaveras County-Maury Rasmussen Field","06-0207","PU",null,"Local","GA","GA",0,52,915789]
["WP","SFO","CA","San Carlos","San Carlos","SQL","CA","San Carlos","06-0210","PU",null,"Regional","R","R",1,345,23611051]
["WP","SFO","CA","San Francisco","San Francisco International","SFO","CA","San Francisco International","06-0221","PU","L",null,"P","P",19359003,12,148272833]
["WP","SFO","CA","San Jose","Reid-Hillview of Santa Clara County","RHV","CA","Reid-Hillview of Santa Clara County","06-0225","PU",null,"Regional","R","R",0,321,7371754]
["WP","SFO","CA","San Jose","Norman Y. Mineta San Jose International","SJC","CA","Norman Y. Mineta San Jose International","06-0226","PU","M",null,"P","P",4056167,161,178413203]
["WP","SFO","CA","San Luis Obispo","San Luis County Regional","SBP","CA","San Luis County Regional","06-0228","PU","N",null,"P","P",129220,257,30056013]
["WP","SFO","CA","San Martin","South County Airport of Santa Clara County","E16","CA","South County Airport of Santa Clara County","06-0229","PU",null,"Local","R","R",0,75,2221579]
["WP","SFO","CA","Santa Rosa","Charles M. Schulz - Sonoma County","STS","CA","Charles M. Schulz - Sonoma County","06-0241","PU","N",null,"P","P",92778,312,29526997]
["WP","SFO","CA","Shelter Cove","Shelter Cove","0Q5","CA","Shelter Cove","06-0360","PU",null,"Other","GA","GA",0,0,0]
["WP","SFO","CA","South Lake Tahoe","Lake Tahoe","TVL","CA","Lake Tahoe","06-0249","PU",null,"Local","GA","GA",97,29,12349687]
["WP","SFO","CA","Stockton","Stockton Metropolitan","SCK","CA","Stockton Metropolitan","06-0250","PU","N",null,"P","P",50632,149,6997277]
["WP","SFO","CA","Susanville","Susanville Municipal","SVE","CA","Susanville Municipal","06-0251","PU",null,"Local","GA","GA",0,45,5841615]
["WP","SFO","CA","Tracy","Tracy Municipal","TCY","CA","Tracy Municipal","06-0259","PU",null,"Local","GA","GA",0,79,2850010]
["WP","SFO","CA","Trinity Center","Trinity Center","O86","CA","Trinity Center","06-0260","PU",null,"Local","GA","GA",0,18,837105]
["WP","SFO","CA","Truckee","Truckee-Tahoe","TRK","CA","Truckee-Tahoe","06-0262","PU",null,"Regional","GA","GA",65,76,4172631]
["WP","SFO","CA","Tulare","Mefford Field","TLR","CA","Mefford Field","06-0263","PU",null,"Local","GA","GA",0,65,1744736]
["WP","SFO","CA","Tulelake","Tulelake Municipal","O81","CA","Tulelake Municipal","06-0264","PU",null,"Basic","GA","GA",29,7,7649685]
["WP","SFO","CA","Turlock","Turlock Municipal","O15","CA","Turlock Municipal","06-0265","PU",null,"Local","GA","GA",0,57,2950000]
["WP","SFO","CA","Ukiah","Ukiah Municipal","UKI","CA","Ukiah Municipal","06-0268","PU",null,"Local","GA","GA",4,69,2769473]
["WP","SFO","CA","Vacaville","Nut Tree","VCB","CA","Nut Tree","06-0270","PU",null,"Regional","GA","GA",0,161,23959210]
["WP","SFO","CA","Visalia","Sequoia Field","D86","CA","Sequoia Field","06-0266","PU",null,"Basic","GA","GA",0,13,1736508]
["WP","SFO","CA","Visalia","Visalia Municipal","VIS","CA","Visalia Municipal","06-0271","PU",null,"Regional","GA","GA",1831,161,6263157]
["WP","SFO","CA","Watsonville","Watsonville Municipal","WVI","CA","Watsonville Municipal","06-0272","PU",null,"Regional","GA","GA",0,308,7710228]
["WP","SFO","CA","Weaverville","Lonnie Pool Field/Weaverville","O54","CA","Lonnie Pool Field/Weaverville","06-0273","PU",null,"Other","GA","GA",0,0,526316]
["WP","SFO","CA","Weed","Weed","O46","CA","Weed","06-0274","PU",null,"Local","GA","GA",0,20,863104]
["WP","SFO","CA","Willits","Ells Field-Willits Municipal","O28","CA","Ells Field-Willits Municipal","06-0278","PU",null,"Basic","GA","GA",0,13,2082618]
["WP","SFO","CA","Willows","Willows-Glenn County","WLW","CA","Willows-Glenn County","06-0279","PU",null,"Local","GA","GA",1,32,991316]
["WP","SFO","CA","Woodlake","Woodlake","O42","CA","Woodlake","06-0280","PU",null,"Local","GA","GA",0,19,5662800]
["WP","SFO","CA","Yuba City","Sutter County","O52","CA","Sutter County","06-0282","PU",null,"Local","GA","GA",0,68,2688421]
["WP","SFO","NV","Alamo","Alamo Landing Field","L92","NV","Alamo Landing Field","32-0034","PU",null,"Basic","GA","GA",0,1,831579]
["WP","SFO","NV","Austin","Austin","TMT","NV","Austin","32-0026","PU",null,"Basic","GA","GA",0,7,900000]
["WP","SFO","NV","Battle Mountain","Battle Mountain","BAM","NV","Battle Mountain","32-0001","PU",null,"Basic","GA","GA",0,6,6715789]
["WP","SFO","NV","Beatty","Beatty","BTY","NV","Beatty","32-0002","PU",null,"Basic","GA","GA",0,6,3948000]
["WP","SFO","NV","Boulder City","Boulder City Municipal","BVU","NV","Boulder City Municipal","32-0003","PU","N",null,"P","P",169923,231,6856994]
["WP","SFO","NV","Carson City","Carson","CXP","NV","Carson","32-0004","PU",null,"Regional","R","R",0,190,6709895]
["WP","SFO","NV","Elko","Elko Regional","EKO","NV","Elko Regional","32-0005","PU","N",null,"P","P",21863,75,15399157]
["WP","SFO","NV","Ely","Ely /Yelland Field/","ELY","NV","Ely /Yelland Field/","32-0006","PU",null,"Basic","GA","GA",245,9,3501843]
["WP","SFO","NV","Eureka","Eureka","05U","NV","Eureka","32-0007","PU",null,"Basic","GA","GA",0,5,1290018]
["WP","SFO","NV","Fallon","Fallon Municipal","FLX","NV","Fallon Municipal","32-0008","PU",null,"Local","GA","GA",0,21,3463737]
["WP","SFO","NV","Gabbs","Gabbs","GAB","NV","Gabbs","32-0029","PU",null,"Basic","GA","GA",0,1,446500]
["WP","SFO","NV","Hawthorne","Hawthorne Industrial","HTH","NV","Hawthorne Industrial","32-0009","PU",null,"Basic","GA","GA",0,7,3434060]
["WP","SFO","NV","Jackpot","Jackpot/Hayden Field","06U","NV","Jackpot/Hayden Field","32-0024","PU",null,"Basic","GA","GA",0,1,5676842]
["WP","SFO","NV","Jean","Jean","0L7","NV","Jean","32-0032","PU",null,"Local","GA","GA",0,19,750000]
["WP","SFO","NV","Las Vegas","Henderson Executive","HND","NV","Henderson Executive","32-0027","PU",null,"National","R","R",13272,248,9518072]
["WP","SFO","NV","Las Vegas","McCarran International","LAS","NV","McCarran International","32-0012","PU","L",null,"P","P",18996738,126,295701752]
["WP","SFO","NV","Las Vegas","North Las Vegas","VGT","NV","North Las Vegas","32-0010","PU","N",null,"P","P",64674,644,19342875]
["WP","SFO","NV","Lovelock","Derby Field","LOL","NV","Derby Field","32-0011","PU",null,"Basic","GA","GA",0,3,3516058]
["WP","SFO","NV","Mesquite","Mesquite","67L","NV","Mesquite","32-0031","PU",null,"Local","GA","GA",22,28,831579]
["WP","SFO","NV","Minden","Minden-Tahoe","MEV","NV","Minden-Tahoe","32-0013","PU",null,"Regional","GA","GA",43,174,3406570]
["WP","SFO","NV","Overton","Perkins Field","U08","NV","Perkins Field","32-0014","PU",null,"Basic","GA","GA",0,13,1000000]
["WP","SFO","NV","Owyhee","Owyhee","10U","NV","Owyhee","32-0028","NA",null,"Basic","GA","GA",0,0,907895]
["WP","SFO","NV","Pahrump","Pahrump (New)","000","NV","Pahrump (New)","32-0025",null,null,null,null,"GA",0,0,15384684]
["WP","SFO","NV","Panaca","Lincoln County","1L1","NV","Lincoln County","32-0016","PU",null,"Basic","GA","GA",0,2,1400000]
["WP","SFO","NV","Reno","Reno/Tahoe International","RNO","NV","Reno/Tahoe International","32-0017","PU","M",null,"P","P",1857488,161,76116714]
["WP","SFO","NV","Reno","Reno/Stead","RTS","NV","Reno/Stead","32-0018","PU",null,"Local","R","R",0,118,5561743]
["WP","SFO","NV","Silver Springs","Silver Springs","SPZ","NV","Silver Springs","32-0023","PU",null,"Other","GA","GA",0,7,2162894]
["WP","SFO","NV","Tonopah","Tonopah","TPH","NV","Tonopah","32-0019","PU",null,"Basic","GA","GA",1,6,2300395]
["WP","SFO","NV","Wells","Wells Municipal/Harriet Field","LWL","NV","Wells Municipal/Harriet Field","32-0020","PU",null,"Basic","GA","GA",0,10,2378855]
["WP","SFO","NV","Winnemucca","Winnemucca Municipal","WMC","NV","Winnemucca Municipal","32-0021","PU",null,"Local","GA","GA",24,34,2771053]
["WP","SFO","NV","Yerington","Yerington Municipal","O43","NV","Yerington Municipal","32-0022","PU",null,"Local","GA","GA",0,44,4748710]

{"sheet":"Inflation","index":3,"n_rows":40,"n_cols":35,"rows_kept":40,"cut":false,"hidden":true,"merged":[]}
[null,"FY00","FY99","FY01","FY02","FY03","FY04","FY05","FY06","FY07","FY08","FY09","FY10","FY11","FY12","FY13","FY14","FY15","FY16","FY17","FY18","FY19","FY20","FY21","FY22","FY23","FY24","FY25","FY26","FY27","FY28","FY29","FY30","BEYOND","Total"]
["BY12",0.77760526315789469,0.76112280701754365,0.7951754385964912,0.80805263157894736,0.82543859649122797,0.84885964912280698,0.87719298245614041,0.90576315789473683,0.93170175438596481,0.95160526315789462,0.96295614035087695,0.97192982456140342,0.98421052631578931,1,1.0175438596491229,1.0342105263157895,1.0526315789473684,1.070175438596491,1.0903508771929822,1.1096491228070173,1.1298245614035087,1.1499999999999999,1.1706999999999999,1.1917726,1.2132245068,1.2350625479224,1.2572936737850031,1.2799249599131333,1.3029636091915697,1.3264169541570181,1.3502924593318444,1.3745977235998177,1.3993404826246145,"End"]
["BY13",0.7641982758620689,0.74799999999999978,0.78146551724137925,0.79412068965517235,0.81120689655172395,0.83422413793103445,0.86206896551724144,0.89014655172413781,0.91563793103448265,0.93519827586206883,0.94635344827586176,0.95517241379310336,0.9672413793103446,0.98275862068965514,1,1.0163793103448275,1.0344827586206895,1.0517241379310343,1.0715517241379307,1.0905172413793101,1.1103448275862069,1.1301724137931033,1.150515517241379,1.171224796551724,1.192306842889655,1.2137683660616689,1.2356161966507788,1.257857288190493,1.2804987193779218,1.3035476963267245,1.3270115548606056,1.3508977628480967]
[]
[null,"BY13","BY12"]
[1998,{"$f":"B7-(B8-B7)","v":0.73180172413793065}]
[1999,0.74799999999999978,0.76112280701754365]
[2000,0.7641982758620689,0.77760526315789469]
[2001,0.78146551724137925,0.7951754385964912]
[2002,0.79412068965517235,0.80805263157894736]
[2003,0.81120689655172395,0.82543859649122797]
[2004,0.83422413793103445,0.84885964912280698]
[2005,0.86206896551724144,0.87719298245614041]
[2006,0.89014655172413781,0.90576315789473683]
[2007,0.91563793103448265,0.93170175438596481]
[2008,0.93519827586206883,0.95160526315789462]
[2009,0.94635344827586176,0.96295614035087695]
[2010,0.95517241379310336,0.97192982456140342]
[2011,0.9672413793103446,0.98421052631578931]
[2012,0.98275862068965514,1]
[2013,1,1.0175438596491229]
[2014,1.0163793103448275,1.0342105263157895]
[2015,1.0344827586206895,1.0526315789473684]
[2016,1.0517241379310343,1.070175438596491]
[2017,1.0715517241379307,1.0903508771929822]
[2018,1.0905172413793101,1.1096491228070173]
[2019,1.1103448275862069,1.1298245614035087]
[2020,1.1301724137931033,1.1499999999999999]
[2021,1.150515517241379,1.1706999999999999]
[2022,1.171224796551724,1.1917726]
[2023,1.192306842889655,1.2132245068]
[2024,1.2137683660616689,1.2350625479224]
[2025,1.2356161966507788,1.2572936737850031]
[2026,1.257857288190493,1.2799249599131333]
[2027,1.2804987193779218,1.3029636091915697]
[2028,1.3035476963267245,1.3264169541570181]
[2029,1.3270115548606056,1.3502924593318444]
[2030,1.3508977628480967,1.3745977235998177]
["BEYOND",null,1.3993404826246145]
["Total",null,"End"]

{"sheet":"Geographic_Adj","index":4,"n_rows":55,"n_cols":11,"rows_kept":55,"cut":false,"hidden":true,"merged":[]}
[null,"Economic Adjustment Factors by State"]
[null,"UFC 3-701-01, DoD Pricing Guide for 2011"]
[null,"Updated as Change 1, June 2011"]
[null,"Inside US",null,"Construction","Construction Rel. to KS"]
[1,"ALASKA","AK",1.78,1.89]
[2,"ALABAMA","AL",0.86,0.91]
[3,"ARKANSAS","AR",0.89,0.95]
[4,"ARIZONA","AZ",0.99,1.05,null,null,null,null,"Validate if state entered by user is correct format"]
[5,"CALIFORNIA","CA",1.21,1.29,null,null,null,null,"NH",{"$f":"IF(ISNA(VLOOKUP(J9,C5:C55,1,FALSE)),1,0)","v":0}]
[6,"COLORADO","CO",0.99,1.05]
[7,"CONNECTICUT","CT",1.1399999999999999,1.21]
[8,"WASHINGTON DC","DC",1,1.06]
[9,"DELAWARE","DE",1.06,1.1299999999999999]
[10,"FLORIDA","FL",0.85,0.9]
[11,"GEORGIA","GA",0.85,0.9]
[12,"HAWAII","HI",2.14,2.2799999999999998]
[13,"IOWA","IA",0.99,1.05]
[14,"IDAHO","ID",0.94,1]
[15,"ILLINOIS","IL",1.2,1.28]
[16,"INDIANA","IN",0.94,1]
[17,"KANSAS","KS",0.94,1]
[18,"KENTUCKY","KY",0.89,0.95]
[19,"LOUISIANA","LA",0.89,0.95]
[20,"MASSACHUSETTS","MA",1.18,1.26]
[21,"MARYLAND","MD",0.98,1.04]
[22,"MAINE","ME",1.04,1.1100000000000001]
[23,"MICHIGAN","MI",1.1499999999999999,1.22]
[24,"MINNESOTA","MN",1.07,1.1399999999999999]
[25,"MISSOURI","MO",0.98,1.04]
[26,"MISSISSIPPI","MS",0.87,0.93]
[27,"MONTANA","MT",1.0900000000000001,1.1599999999999999]
[28,"NORTH CAROLINA","NC",0.86,0.91]
[29,"NORTH DAKOTA","ND",1.08,1.1499999999999999]
[30,"NEBRASKA","NE",0.96,1.02]
[31,"NEW HAMPSHIRE","NH",1.1099999999999999,1.18]
[32,"NEW JERSEY","NJ",1.18,1.26]
[33,"NEW MEXICO","NM",0.96,1.02]
[34,"NEVADA","NV",1.26,1.34]
[35,"NEW YORK","NY",1.06,1.1299999999999999]
[36,"OHIO","OH",0.9,0.96]
[37,"OKLAHOMA","OK",0.93,0.99]
[38,"OREGON","OR",1.03,1.1000000000000001]
[39,"PENNSYLVANIA","PA",1.04,1.1100000000000001]
[40,"RHODE ISLAND","RI",1.0900000000000001,1.1599999999999999]
[41,"SOUTH CAROLINA","SC",0.88,0.94]
[42,"SOUTH DAKOTA","SD",1,1.06]
[43,"TENNESSEE","TN",0.86,0.91]
[44,"TEXAS","TX",0.79,0.84]
[45,"UTAH","UT",1.04,1.1100000000000001]
[46,"VIRGINIA","VA",0.91,0.97]
[47,"VERMONT","VT",0.96,1.02]
[48,"WASHINGTON","WA",1.08,1.1499999999999999]
[49,"WISCONSIN","WI",1.08,1.1499999999999999]
[50,"WEST VIRGINIA","WV",0.94,1]
[51,"WYOMING","WY",1.02,1.0900000000000001]

{"sheet":"ReportTemplate","index":5,"n_rows":20,"n_cols":7,"rows_kept":20,"cut":false,"hidden":true,"merged":[[20,0,21,1],[0,0,0,6],[5,3,5,6]]}
["Airport Capital Cost Estimation Tool: Report"]
[]
["Report Name"]
["Report Description"]
["Name of Preparer"]
["Organization",null,null,"Output "]
["Phone number",null,null,null,"Cost Estimate","Low Estimate","High Estimate"]
["Email",null,null,"FY2014$",564563456,564563456,564563456]
["Date Created",null,null,"FY2017",564563456,564563456,564563456]
[]
["FAA Airport ID",null,null,"Inflation factor"]
["State"]
["Airport Name"]
[]
["Project Type"]
["Project Description"]
["Planned Year of Construction"]
["variable1"]
["variable2"]
["Landing gear configuration"]

{"sheet":"ACCE ProjectList","index":6,"n_rows":14,"n_cols":9,"rows_kept":14,"cut":false,"hidden":true,"merged":[]}
[null,"Row number reference","number of inputs","Caption 1","unit1","Caption 2","unit2","input1","input2"]
["Aircraft Rescue and Fire Fighting (ARFF) Facility ",14,1,"Combined Floor Area","Sq. Ft.","No. of Floors","floors","Floor Area, K Sq. Ft.","number of floors"]
["Apron",9,2,"Pavement Area","Sq. Ft.","Design Aircraft MTOW","lbs.","Pavement Area, K Sq. Ft.","Adj. MTOW, K Lbs."]
["Automated Weather Observing System",13,0]
["Perimeter Fencing",11,1,"Length","Linear Ft.",null,null,"Fencing, K Linear Ft."]
["Precision Approach Path Indicator (PAPI)",12,1,"No. of Systems/Rwy Ends","units",null,null,"No. of systems installed"]
["Runway",10,2,"Pavement Area","Sq. Ft.","Design Aircraft MTOW","lbs.","Pavement Area, K Sq. Ft.","Adj. MTOW, K Lbs."]
["Snow Removal Equipment (SRE) Building ",15,1,"Combined Floor Area","Sq. Ft.",null,null,"Floor Area, K Sq. Ft."]
["Taxiway",8,2,"Pavement Area","Sq. Ft.","Design Aircraft MTOW","lbs.","Pavement Area, K Sq. Ft.","Adj. MTOW, K Lbs."]
[]
[]
[]
["user selected"]
["Taxiway",{"$f":"VLOOKUP(A14,A2:G9,2,FALSE)","v":8},{"$f":"VLOOKUP(A14,A2:G9,3,FALSE)","v":2},{"$f":"VLOOKUP(A14,A2:G9,4,FALSE)","v":"Pavement Area"},{"$f":"VLOOKUP(A14,A2:G9,5,FALSE)","v":"Sq. Ft."},{"$f":"VLOOKUP(A14,A2:G9,6,FALSE)","v":"Design Aircraft MTOW"},{"$f":"VLOOKUP(A14,A2:G9,7,FALSE)","v":"lbs."}]

{"sheet":"CER_Summary","index":7,"n_rows":26,"n_cols":20,"rows_kept":26,"cut":false,"hidden":true,"merged":[]}
["Airport Code",null,{"$f":"VLOOKUP(B1,'NPIAS Arpts'!F:R,13,FALSE)","v":{"$error":"#N/A"}},"user created?"]
["Anticipated Construction Year"]
["Project Description",null,null,null,null,null,null,null,null,null,null,null,{"$f":"B2","v":0},{"$f":"VLOOKUP(M3,Inflation!A6:B38,2,FALSE)","v":{"$error":"#N/A"}},"state adjustment",{"$f":"VLOOKUP(IF(ISNA(B20),C20,B20),Geographic_Adj!C5:E55,3,FALSE)","v":{"$error":"#N/A"}}]
["Project Type",null,null,null,null,null,null,null,null,null,null,null,2014,{"$f":"VLOOKUP(M4,Inflation!A6:B38,2,FALSE)","v":1.0163793103448275}]
["Landing Gear",null,{"$f":"VLOOKUP(B5,Landing_Gear!B1:D7,3,FALSE)","v":{"$error":"#N/A"}},null,null,null,null,null,null,null,null,null,"Adjustment",{"$f":"N3/N4","v":{"$error":"#N/A"}}]
[null,null,null,null,null,null,null,null,null,null,null,null,null,{"$f":"N5-1","v":{"$error":"#N/A"}}]
["Project","Ref.","Class","Coeff. 1","Op.","Coeff. 2","Op.","Independent Var. 1","Op.","Coeff. 3","Op.","Independent Var. 2","2014 Estimate","Current year Estimate","2014 state adj","state adj current year","Low Estimate","LE_1minus","High Estimate","HE_1plus"]
[{"$f":"'ACCE ProjectList'!A9","v":"Taxiway"},"H2","Horizontal",null,{"$f":"\"+\"","v":"+"},11.857166307017939,{"$f":"\"*\"","v":"*"},null,{"$f":"\"+\"","v":"+"},6.057156018041022,{"$f":"\"*\"","v":"*"},null,{"$f":"D8+(F8*H8)+(J8*L8)","v":0},{"$f":"M8*$N$5","v":{"$error":"#N/A"}},{"$f":"M8*$P$3*1000","v":{"$error":"#N/A"}},{"$f":"N8*$P$3*1000","v":{"$error":"#N/A"}},-0.24904942588112405,{"$f":"Q8+1","v":0.750950574118876},0.24904942588112405,{"$f":"S8+1","v":1.249049425881124}]
[{"$f":"'ACCE ProjectList'!A3","v":"Apron"},"H4","Horizontal",null,{"$f":"\"+\"","v":"+"},1.2123222890724352,"*",null,"+",12.192048359329158,{"$f":"\"*\"","v":"*"},null,{"$f":"D9+(F9*H9)+(J9*L9)","v":0},{"$f":"M9*$N$5","v":{"$error":"#N/A"}},{"$f":"ROUNDUP(M9*$P$3*1000,-3)","v":{"$error":"#N/A"}},{"$error":"#N/A"},-0.23224964624881789,{"$f":"Q9+1","v":0.76775035375118206},0.23224964624881789,{"$f":"S9+1","v":1.2322496462488179}]
[{"$f":"'ACCE ProjectList'!A7","v":"Runway"},"H5","Horizontal",null,"+",2.8746130060769901,"*",null,"+",35.417925431390806,"*",null,0,{"$error":"#N/A"},{"$error":"#N/A"},{"$error":"#N/A"},-0.25909458578592703,0.74090541421407297,0.25909458578592703,1.259094585785927]
[{"$f":"'ACCE ProjectList'!A5","v":"Perimeter Fencing"},"H6","Horizontal",null,"+",32.221943586149024,"*",null,"+",0,"*",null,0,{"$error":"#N/A"},{"$error":"#N/A"},{"$error":"#N/A"},-8.3577112779595522E-2,0.91642288722040444,8.3577112779595522E-2,1.0835771127795955]
[{"$f":"'ACCE ProjectList'!A6","v":"Precision Approach Path Indicator (PAPI)"},"H7","Horizontal",null,"+",83.141555457716407,"*",null,"+",0,"*",null,0,{"$error":"#N/A"},{"$error":"#N/A"},{"$error":"#N/A"},-0.18090322613184021,0.81909677386815982,0.18090322613184021,1.1809032261318402]
[{"$f":"'ACCE ProjectList'!A4","v":"Automated Weather Observing System"},"H10","Horizontal",171.72589116844355,"+",null,"*",null,"+",null,"*",null,{"$f":"D13+(F13*H13)+(J13*L13)","v":171.72589116844355},{"$error":"#N/A"},{"$error":"#N/A"},{"$error":"#N/A"},-0.10642734107731443,0.89357265892268556,0.10642734107731443,1.1064273410773144]
[{"$f":"'ACCE ProjectList'!A2","v":"Aircraft Rescue and Fire Fighting (ARFF) Facility "},"V1","Vertical",null,{"$f":"\"+\"","v":"+"},374.56383763541658,{"$f":"\"*\"","v":"*"},null,"+",null,{"$f":"\"*\"","v":"*"},null,0,{"$error":"#N/A"},{"$error":"#N/A"},{"$error":"#N/A"},-5.871474168751515E-2,0.94128525831248488,5.871474168751515E-2,1.0587147416875151]
[{"$f":"'ACCE ProjectList'!A8","v":"Snow Removal Equipment (SRE) Building "},"V3","Vertical",111.50479367295293,{"$f":"\"+\"","v":"+"},116.50649322312259,{"$f":"\"*\"","v":"*"},null,"+",null,{"$f":"\"*\"","v":"*"},null,{"$f":"D15+(F15*H15)+(J15*L15)","v":111.50479367295293},{"$error":"#N/A"},{"$error":"#N/A"},{"$error":"#N/A"},-6.4120207040611665E-2,0.93587979295938828,6.4120207040611665E-2,1.0641202070406117]
["Visual Aid (Rotating Beacon)","H7","Horizontal",null,{"$f":"\"+\"","v":"+"},{"$f":"F12","v":83.141555457716407},{"$f":"\"*\"","v":"*"},1,"+",0,{"$f":"\"*\"","v":"*"},null,{"$f":"D16+(F16*H16)+(J16*L16)","v":83.141555457716407},{"$f":"M16*$N$5","v":{"$error":"#N/A"}},{"$f":"ROUNDUP(M16*$P$3*1000,-3)","v":{"$error":"#N/A"}},{"$f":"ROUNDUP(N16*$P$3*1000,-3)","v":{"$error":"#N/A"}},{"$f":"Q12","v":-0.18090322613184021},0.81909677386815982,{"$f":"S12","v":0.18090322613184021},1.1809032261318402]
[]
["Row identified and number of inputs",{"$f":"'ACCE ProjectList'!B14","v":8},{"$f":"'ACCE ProjectList'!C14","v":2}]
[]
["State",{"$f":"VLOOKUP(B1,'NPIAS Arpts'!F:H,2,FALSE)","v":{"$error":"#N/A"}},null,"if user does not choose to save airport to database, then write to C20"]
["Airport Name",{"$f":"VLOOKUP(B1,'NPIAS Arpts'!F:H,3,FALSE)","v":{"$error":"#N/A"}}]
[]
[]
["flag for year message box initiated",0]
["flag for Independent variable1 msgbox initiated",0]
["flag for Independent variable2 msgbox initiated",0]

{"sheet":"CER_Summary_low","index":8,"n_rows":21,"n_cols":16,"rows_kept":21,"cut":false,"hidden":true,"merged":[]}
["Airport Code",{"$f":"CER_Summary!B1","v":0}]
["Anticipated Construction Year",{"$f":"CER_Summary!B2","v":0}]
["Project Description",{"$f":"CER_Summary!B3","v":0},null,null,null,null,null,null,null,null,null,null,{"$f":"B2","v":0},{"$f":"VLOOKUP(M3,Inflation!A6:B38,2,FALSE)","v":{"$error":"#N/A"}},"state adjustment",{"$f":"CER_Summary!P3","v":{"$error":"#N/A"}}]
["Project Type",{"$f":"CER_Summary!B4","v":0},null,null,null,null,null,null,null,null,null,null,2014,{"$f":"VLOOKUP(M4,Inflation!A6:B38,2,FALSE)","v":1.0163793103448275}]
["Landing Gear",{"$f":"CER_Summary!B5","v":0},{"$f":"VLOOKUP(B5,Landing_Gear!B1:D7,2,FALSE)","v":{"$error":"#N/A"}},null,null,null,null,null,null,null,null,null,"Adjustment",{"$f":"N3/N4","v":{"$error":"#N/A"}}]
[]
["Project","Ref.","Class","Coeff. 1","Op.","Coeff. 2","Op.","Independent Var. 1","Op.","Coeff. 3","Op.","Independent Var. 2","2014 Estimate","Current year Estimate","2014 state adj","state adj current year"]
[{"$f":"CER_Summary!A8","v":"Taxiway"},"H2","Horizontal",null,{"$f":"\"+\"","v":"+"},{"$f":"CER_Summary!F8*CER_Summary!R8","v":8.904145845678114},{"$f":"\"*\"","v":"*"},{"$f":"CER_Summary!H8","v":0},{"$f":"\"+\"","v":"+"},{"$f":"CER_Summary!J8*CER_Summary!R8","v":4.5486247892755101},{"$f":"\"*\"","v":"*"},{"$f":"CER_Summary!L8","v":0},{"$f":"D8+(F8*H8)+(J8*L8)","v":0},{"$f":"M8*$N$5","v":{"$error":"#N/A"}},{"$f":"M8*$P$3*1000","v":{"$error":"#N/A"}},{"$f":"N8*$P$3*1000","v":{"$error":"#N/A"}}]
[{"$f":"CER_Summary!A9","v":"Apron"},"H4","Horizontal",null,{"$f":"\"+\"","v":"+"},{"$f":"CER_Summary!F9*CER_Summary!R9","v":0.9307608662958049},"*",{"$f":"CER_Summary!H9","v":0},"+",{"$f":"CER_Summary!J9*CER_Summary!R9","v":9.3604494408264802},"*",{"$f":"CER_Summary!L9","v":0},0,{"$f":"M9*$N$5","v":{"$error":"#N/A"}},{"$f":"ROUNDUP(M9*$P$3*1000,-3)","v":{"$error":"#N/A"}},{"$f":"ROUNDUP(N9*$P$3*1000,-3)","v":{"$error":"#N/A"}}]
[{"$f":"CER_Summary!A10","v":"Runway"},"H5","Horizontal",null,"+",{"$f":"CER_Summary!F10*CER_Summary!R10","v":2.129816339972634},"*",{"$f":"CER_Summary!H10","v":0},"+",{"$f":"CER_Summary!J10*CER_Summary!R10","v":26.241332712347756},"*",{"$f":"CER_Summary!L10","v":0},0,{"$error":"#N/A"},{"$error":"#N/A"},{"$error":"#N/A"}]
[{"$f":"CER_Summary!A11","v":"Perimeter Fencing"},"H6","Horizontal",null,"+",{"$f":"CER_Summary!F11*CER_Summary!R11","v":29.528926573071683},"*",{"$f":"CER_Summary!H11","v":0},"+",{"$f":"CER_Summary!J11*0.65865","v":0},"*",{"$f":"CER_Summary!L11","v":0},0,{"$error":"#N/A"},{"$error":"#N/A"},{"$error":"#N/A"}]
[{"$f":"CER_Summary!A12","v":"Precision Approach Path Indicator (PAPI)"},"H7","Horizontal",null,"+",{"$f":"CER_Summary!F12*CER_Summary!R12","v":68.100979849796204},"*",{"$f":"CER_Summary!H12","v":0},"+",{"$f":"CER_Summary!J12*0.65865","v":0},"*",{"$f":"CER_Summary!L12","v":0},0,{"$error":"#N/A"},{"$error":"#N/A"},{"$error":"#N/A"}]
[{"$f":"CER_Summary!A13","v":"Automated Weather Observing System"},"H10","Horizontal",{"$f":"CER_Summary!D13*CER_Summary!R13","v":153.44956117725383},"+",{"$f":"CER_Summary!F13*CER_Summary!R13","v":0},"*",{"$f":"CER_Summary!H13","v":0},"+",{"$f":"CER_Summary!J13*0.65865","v":0},"*",{"$f":"CER_Summary!L13","v":0},153.44956117725383,{"$error":"#N/A"},{"$error":"#N/A"},{"$error":"#N/A"}]
[{"$f":"CER_Summary!A14","v":"Aircraft Rescue and Fire Fighting (ARFF) Facility "},"V1","Vertical",{"$f":"CER_Summary!D14*0.65865","v":0},{"$f":"\"+\"","v":"+"},{"$f":"CER_Summary!F14*CER_Summary!R14","v":352.57141866316874},{"$f":"\"*\"","v":"*"},{"$f":"CER_Summary!H14","v":0},"+",{"$f":"CER_Summary!J14*0.65865","v":0},{"$f":"\"*\"","v":"*"},{"$f":"CER_Summary!L14","v":0},0,{"$error":"#N/A"},{"$error":"#N/A"},{"$error":"#N/A"}]
[{"$f":"CER_Summary!A15","v":"Snow Removal Equipment (SRE) Building "},"V3","Vertical",{"$f":"CER_Summary!D15*CER_Summary!R15","v":104.35508321662249},{"$f":"\"+\"","v":"+"},{"$f":"CER_Summary!F15*CER_Summary!R15","v":109.03607275608034},{"$f":"\"*\"","v":"*"},{"$f":"CER_Summary!H15","v":0},"+",{"$f":"CER_Summary!J15*0.65865","v":0},{"$f":"\"*\"","v":"*"},{"$f":"CER_Summary!L15","v":0},104.35508321662249,{"$error":"#N/A"},{"$error":"#N/A"},{"$error":"#N/A"}]
[{"$f":"CER_Summary!A16","v":"Visual Aid (Rotating Beacon)"},"H7","Horizontal",null,{"$f":"\"+\"","v":"+"},{"$f":"CER_Summary!F16*CER_Summary!R16","v":68.100979849796204},{"$f":"\"*\"","v":"*"},1,"+",{"$f":"CER_Summary!J16*0.65865","v":0},{"$f":"\"*\"","v":"*"},null,68.100979849796204,{"$error":"#N/A"},{"$error":"#N/A"},{"$error":"#N/A"}]
[]
["Row identified and number of inputs",{"$f":"CER_Summary!B18","v":8},{"$f":"CER_Summary!C18","v":2}]
[]
["State",{"$f":"CER_Summary!B20","v":{"$error":"#N/A"}}]
["Airport Name",{"$f":"CER_Summary!B21","v":{"$error":"#N/A"}}]

{"sheet":"CER_Summary_high","index":9,"n_rows":21,"n_cols":16,"rows_kept":21,"cut":false,"hidden":true,"merged":[]}
["Airport Code",{"$f":"CER_Summary!B1","v":0},{"$f":"CER_Summary!C1","v":{"$error":"#N/A"}}]
["Anticipated Construction Year",{"$f":"CER_Summary!B2","v":0}]
["Project Description",{"$f":"CER_Summary!B3","v":0},null,null,null,null,null,null,null,null,null,null,{"$f":"B2","v":0},{"$f":"CER_Summary!N3","v":{"$error":"#N/A"}},"state adjustment",{"$f":"CER_Summary!P3","v":{"$error":"#N/A"}}]
["Project Type",{"$f":"CER_Summary!B4","v":0},null,null,null,null,null,null,null,null,null,null,2014,{"$f":"CER_Summary!N4","v":1.0163793103448275}]
["Landing Gear",{"$f":"CER_Summary!B5","v":0},{"$f":"CER_Summary!C5","v":{"$error":"#N/A"}},null,null,null,null,null,null,null,null,null,"Adjustment",{"$f":"N3/N4","v":{"$error":"#N/A"}}]
[]
["Project","Ref.","Class","Coeff. 1","Op.","Coeff. 2","Op.","Independent Var. 1","Op.","Coeff. 3","Op.","Independent Var. 2","2014 Estimate","Current year Estimate","2014 state adj","state adj current year"]
[{"$f":"CER_Summary!A8","v":"Taxiway"},"H2","Horizontal",null,"+",{"$f":"CER_Summary!F8*CER_Summary!T8","v":14.810186768357765},"*",{"$f":"CER_Summary!H8","v":0},"+",{"$f":"CER_Summary!J8*CER_Summary!T8","v":7.5656872468065339},"*",{"$f":"CER_Summary!L8","v":0},{"$f":"D8+(F8*H8)+(J8*L8)","v":0},{"$f":"M8*$N$5","v":{"$error":"#N/A"}},{"$f":"M8*$P$3*1000","v":{"$error":"#N/A"}},{"$f":"N8*$P$3*1000","v":{"$error":"#N/A"}}]
[{"$f":"CER_Summary!A9","v":"Apron"},"H4","Horizontal",null,"+",{"$f":"CER_Summary!F9*CER_Summary!T9","v":1.4938837118490655},"*",{"$f":"CER_Summary!H9","v":0},"+",{"$f":"CER_Summary!J9*CER_Summary!T9","v":15.023647277831836},"*",{"$f":"CER_Summary!L9","v":0},{"$f":"D9+(F9*H9)+(J9*L9)","v":0},{"$f":"M9*$N$5","v":{"$error":"#N/A"}},{"$f":"ROUNDUP(M9*$P$3*1000,-3)","v":{"$error":"#N/A"}},{"$f":"ROUNDUP(N9*$P$3*1000,-3)","v":{"$error":"#N/A"}}]
[{"$f":"CER_Summary!A10","v":"Runway"},"H5","Horizontal",null,"+",{"$f":"CER_Summary!F10*CER_Summary!T10","v":3.6194096721813462},"*",{"$f":"CER_Summary!H10","v":0},"+",{"$f":"CER_Summary!J10*CER_Summary!T10","v":44.594518150433856},"*",{"$f":"CER_Summary!L10","v":0},0,{"$error":"#N/A"},{"$error":"#N/A"},{"$error":"#N/A"}]
[{"$f":"CER_Summary!A11","v":"Perimeter Fencing"},"H6","Horizontal",null,"+",{"$f":"CER_Summary!F11*CER_Summary!T11","v":34.914960599226362},"*",{"$f":"CER_Summary!H11","v":0},"+",{"$f":"CER_Summary!J11*1.34135","v":0},"*",{"$f":"CER_Summary!L11","v":0},0,{"$error":"#N/A"},{"$error":"#N/A"},{"$error":"#N/A"}]
[{"$f":"CER_Summary!A12","v":"Precision Approach Path Indicator (PAPI)"},"H7","Horizontal",null,"+",{"$f":"CER_Summary!F12*CER_Summary!T12","v":98.182131065636611},"*",{"$f":"CER_Summary!H12","v":0},"+",{"$f":"CER_Summary!J12*1.34135","v":0},"*",{"$f":"CER_Summary!L12","v":0},0,{"$error":"#N/A"},{"$error":"#N/A"},{"$error":"#N/A"}]
[{"$f":"CER_Summary!A13","v":"Automated Weather Observing System"},"H10","Horizontal",{"$f":"CER_Summary!D13*CER_Summary!T13","v":190.00222115963328},"+",{"$f":"CER_Summary!F13*CER_Summary!T13","v":0},"*",{"$f":"CER_Summary!H13","v":0},"+",{"$f":"CER_Summary!J13*1.34135","v":0},"*",{"$f":"CER_Summary!L13","v":0},190.00222115963328,{"$error":"#N/A"},{"$error":"#N/A"},{"$error":"#N/A"}]
[{"$f":"CER_Summary!A14","v":"Aircraft Rescue and Fire Fighting (ARFF) Facility "},"V1","Vertical",{"$f":"CER_Summary!D14*1.34135","v":0},"+",{"$f":"CER_Summary!F14*CER_Summary!T14","v":396.55625660766441},"*",{"$f":"CER_Summary!H14","v":0},"+",{"$f":"CER_Summary!J14*1.34135","v":0},"*",{"$f":"CER_Summary!L14","v":0},0,{"$error":"#N/A"},{"$error":"#N/A"},{"$error":"#N/A"}]
[{"$f":"CER_Summary!A15","v":"Snow Removal Equipment (SRE) Building "},"V3","Vertical",{"$f":"CER_Summary!D15*CER_Summary!T15","v":118.65450412928337},"+",{"$f":"CER_Summary!F15*CER_Summary!T15","v":123.97691369016484},"*",{"$f":"CER_Summary!H15","v":0},"+",{"$f":"CER_Summary!J15*1.34135","v":0},"*",{"$f":"CER_Summary!L15","v":0},118.65450412928337,{"$error":"#N/A"},{"$error":"#N/A"},{"$error":"#N/A"}]
[{"$f":"CER_Summary!A16","v":"Visual Aid (Rotating Beacon)"},"H7","Horizontal",null,{"$f":"\"+\"","v":"+"},{"$f":"CER_Summary!F16*CER_Summary!T16","v":98.182131065636611},{"$f":"\"*\"","v":"*"},1,{"$f":"\"+\"","v":"+"},{"$f":"CER_Summary!J16*1.34135","v":0},{"$f":"\"*\"","v":"*"},null,98.182131065636611,{"$error":"#N/A"},{"$error":"#N/A"},{"$error":"#N/A"}]
[]
["Row identified and number of inputs",{"$f":"CER_Summary!B18","v":8},{"$f":"CER_Summary!C18","v":2}]
[]
["State",{"$f":"CER_Summary!B20","v":{"$error":"#N/A"}}]
["Airport Name",{"$f":"CER_Summary!B21","v":{"$error":"#N/A"}}]

{"sheet":"results_summary","index":10,"n_rows":9,"n_cols":9,"rows_kept":9,"cut":false,"hidden":true,"merged":[]}
[]
[null,null,null,null,null,null,"state adj current year"]
[null,null,{"$f":"VLOOKUP('ACCE ProjectList'!A14,CER_Summary!A8:P16,1,FALSE)","v":"Taxiway"},{"$f":"VLOOKUP('ACCE ProjectList'!A14,CER_Summary!$A$8:$P$16,15,FALSE)","v":{"$error":"#N/A"}},{"$f":"IF(D3<100000,MROUND(D3,1000),IF(D3>=1000000,MROUND(D3,100000),MROUND(D3,10000)))","v":{"$error":"#N/A"}},{"$f":"E3","v":{"$error":"#N/A"}},{"$f":"VLOOKUP('ACCE ProjectList'!A14,CER_Summary!$A$8:$P$16,16,FALSE)","v":{"$error":"#N/A"}},{"$f":"IF(G3<100000,MROUND(G3,1000),IF(G3>=1000000,MROUND(G3,100000),MROUND(G3,10000)))","v":{"$error":"#N/A"}},{"$f":"H3","v":{"$error":"#N/A"}}]
[null,null,"low",{"$f":"VLOOKUP('ACCE ProjectList'!A14,CER_Summary_low!$A$8:$P$16,15,FALSE)","v":{"$error":"#N/A"}},{"$f":"IF(D4<100000,MROUND(D4,1000),IF(D4>=1000000,MROUND(D4,100000),MROUND(D4,10000)))","v":{"$error":"#N/A"}},{"$f":"IF(E3=E4,IF(D4<100000,MROUND(D4,1000),IF(D4>=1000000,MROUND(D4,10000),MROUND(D4,1000))),IF(D4<100000,MROUND(D4,1000),IF(D4>=1000000,MROUND(D4,100000),MROUND(D4,10000))))","v":{"$error":"#N/A"}},{"$f":"VLOOKUP('ACCE ProjectList'!A14,CER_Summary_low!$A$8:$P$16,16,FALSE)","v":{"$error":"#N/A"}},{"$f":"IF(G4<100000,MROUND(G4,1000),IF(G4>=1000000,MROUND(G4,100000),MROUND(G4,10000)))","v":{"$error":"#N/A"}},{"$f":"IF(H3=H4,IF(G4<100000,MROUND(G4,1000),IF(G4>=1000000,MROUND(G4,10000),MROUND(G4,1000))),IF(G4<100000,MROUND(G4,1000),IF(G4>=1000000,MROUND(G4,100000),MROUND(G4,10000))))","v":{"$error":"#N/A"}}]
[null,null,"high",{"$f":"VLOOKUP('ACCE ProjectList'!A14,CER_Summary_high!$A$8:$P$16,15,FALSE)","v":{"$error":"#N/A"}},{"$error":"#N/A"},{"$f":"IF(E4=E5,IF(D5<100000,MROUND(D5,1000),IF(D5>=1000000,MROUND(D5,10000),MROUND(D5,1000))),IF(D5<100000,MROUND(D5,1000),IF(D5>=1000000,MROUND(D5,100000),MROUND(D5,10000))))","v":{"$error":"#N/A"}},{"$f":"VLOOKUP('ACCE ProjectList'!A14,CER_Summary_high!$A$8:$P$16,16,FALSE)","v":{"$error":"#N/A"}},{"$error":"#N/A"},{"$f":"IF(H4=H5,IF(G5<100000,MROUND(G5,1000),IF(G5>=1000000,MROUND(G5,10000),MROUND(G5,1000))),IF(G5<100000,MROUND(G5,1000),IF(G5>=1000000,MROUND(G5,100000),MROUND(G5,10000))))","v":{"$error":"#N/A"}}]
[]
[null,null,null,"cost estimate","low","high"]
[null,null,"2014 state adj",{"$f":"F3","v":{"$error":"#N/A"}},{"$f":"F4","v":{"$error":"#N/A"}},{"$f":"F5","v":{"$error":"#N/A"}}]
[null,null,"state adj current year",{"$f":"I3","v":{"$error":"#N/A"}},{"$f":"I4","v":{"$error":"#N/A"}},{"$f":"I5","v":{"$error":"#N/A"}}]

{"sheet":"ACCE","index":11,"n_rows":0,"n_cols":0,"rows_kept":0,"cut":false,"hidden":false,"merged":[]}